Workbook

Sheet Readme First
A3: 1 | B3: All lines in the Portfolio view are coded with a reference, such as "aa" or "f". This makes conference discussions and data requests much easier.
C4: Some reference letters were purposely omitted.
A5: 2 | B5: Some programs in the Portfolio and Sector Views, (Single Family Existing and Electronic Media Tools & Marketing, for instance) are comprised
B6: of sub-groupings.
C7: Those sub-groups are color-coded and indented. Their totals add up to the grouping above.
A8: 3 | B8: In all program detail pages, program names, order number, and fuel type are noted in both the horizontal and vertical margins, providing a quick reference
B9: for readers, no matter where they are in the worksheet.
A10: 4 | B10: Measure tables are calculated for 2018/19-specific values.
B11: Original 2017 (the 2017 values originally stated in the 2017 ACP) are hard-coded in the detail pages for reference.
A12: 5 | B12: PSE added new navigation buttons to the detail pages. Now, readers can navigate directly to a corresponding gas or electric detail page.
B13: (The exception, of course, are those programs that are gas-or electric-only, or retired [red tab] programs.)
A14: 6 | B14: Tabs colored red indicate a retired program or a program that is on hiatus

Sheet Budget Category Descriptions
B1: Exhibit 1 Budget Category Definitions
B3: Cost Element | C3: Also referred to as a General Ledger account number, the cost element is the finest level of detail within PSE accounting systems. There are often many cost element numbers that "roll up" into a cost element segment. For instance, the overhead segment includes material OH, transportation OH, labor OH, etc. Employee/Office Expenses include travel, meals, lodging, parking, etc. Cost elements have a very specific connotation and are typically designed to meet a variety of accounting standards, such as FERC requirements. Therefore, in Exhibit 1, the term "cost element" is rarely used. The groupings that represent the budget allocations are most accurately listed in the below table.
B4: Order number(s) | C4: This is the main level of tracking expenditures and expenses in Energy Effiency. Per FERC rules, all conservation order numbers start with a "1823nnnn", where "n" is some number. Cost elements apply to all order numbers (for instance, all conservation programs that offer incentives will have at least a labor, incentive and overhead cost element within the order number.
B5: Labor | C5: Energy Efficiency program staff labor. Average FTE cost including management assessments. This Budget Category group includes assessments from Major Accounts management, Resource Planning, Corporate Communications management, IT specialists and some building maintenance allocations.
B6: Marketing Labor | C6: Also Energy Efficiency staff labor, associated specifically with Marketing functions. Marketing allocates staffing according to program needs.
B7: Overhead | C7: Overhead--costs associated with primarily employee labor; benefits, for instance.
B8: Micro-Overhead | C8: New for 2017, these expenditures are not incremental from 2016 budget amounts. Rather, this budget category reflects assessments (both labor and non-labor, such as office supplies, departmental meetings, group trainings, etc.) that were formerly calculated, aggregated, and then represented in the Labor category. A result of PSE accounting revisions implemented in 2017, this enhancement will provide a more direct view of expenditures that assess over a cost center, rather than directly to an order number. Annual Schedule 120 audits of assessed costs will become clearer.
B9: Marketing | C9: Service and materials associated with the cost of printing program brochures, marketing pieces, advertising, banners, etc. Also includes marketing conducted by vendors and contractors.
B10: Employee/Office Expense | C10: Costs associated with EE staff attending events, employee training, conferences, business meals, business parking, ferry & bridge tolls, mileage incurred on employee automobiles, office supplies, phones, subscriptions, software/hardware, etc.
B11: Outside Services | C11: Contractors and vendors, such as PECI, Ecos, CostCo, EFI, etc. Legal expenses, technical services (CMS design, PSE.com web portals, etc.). These costs do NOT include brochure development, marketing pieces, (which are classified under MARKETING). These costs do NOT include incentives paid to customers by contractors.
B12: Materials | C12: Primarily tools, trade show equipment, etc.
B13: Miscellaneous | C13: This category should seldomly be used, and only expenses that cannot be classified under one of the above categories.
B14: Direct Benefit to Customer | C14: All costs associated with rebates, grants, remuneration, value-added services. PSE cost element # 62510000; Consumer Incentive Payments, is classified by the Accounting department as Miscellaneous. However, it is one of the primarily elements of Energy Efficiency's Direct Benefit to Customer (DBtC).
B15: Revenue (Enter as a negative) | C15: Any amount that PSE is paid by a customer, partner, municipality or outside entity.

Sheet Global Figures Reference
A1: Global References
B3: Overhead Rates
D4: 2018 | E4: 2019
C5: Labor Overhead | D5: 0.688 | E5: 0.688
C6: Micro Overhead | D6: 0.24 | E6: 0.24

Sheet Building the 2-yr elec target
H2: Reflects Bill Hopkins' input of 7/14/2017
H5: Puget Sound Energy 2018-2019 Electric Portfolio Savings
H8: Description | I8: MWh | J8: aMW | K8: Comment | N8: Calculation
H10: Colored cells correspond to indicated lines in Exhibit 1: Savings and Budgets, 2-Year Portfolio View.
H11: Add | L11: These are specific elements that comprise the Portfolio View of Exhibit 1.
G12: a | H12: Total Biennial Potential IRP & CPA Guidance | I12: 473163 | J12: =I12/8760 -> 54.0140411 | K12: IRP guidance (no behavior savings) | L12: Represents all available conservation that is cost-effective, reliable, and feasible, per RCW 19.285.040(1). | N12: Figure 3, Exhibit i
G13: b | H13: Add Decoupling Commitment (5% add) | I13: =(I12)*0.05 -> 23658.15 | J13: =J12*0.05 -> 2.700702055 | K13: 5% of "base" savings | L13: Based on IRP Total Biennial Potential | N13: = a * 0.05
G14: c | H14: Add 449 Customers | I14: ='Portfolio--2018-2019'!G29 -> 18693 | J14: =I14/8760 -> 2.13390411 | K14: 15,000 residential HER customers | L14: Excluded from CPA. Savings included in Large Power User/Self-Directed program | N14: line u of Exhibit 1 Portfolio View
G15: d | H15: Add Pilots with Uncertain Savings | I15: ='Portfolio--2018-2019'!G38 -> 4480 | J15: =I15/8760 -> 0.5114155251 | K15: New Residential + Small Business | L15: Commercial Pay For Performance pilot | N15: line aa of Exhibit 1 Portfolio View
G16: e | H16: Total 2018-2019 Portfolio Savings | I16: =SUM(I12:I15) -> 519994.15 | J16: =I16/8760 -> 59.36006279 | L16: This figure is what Energy Efficiency is managing to. | N16: = a + b + c + d: lines bb & be of Exhibit 1 Portfolio View
H17: Exclude | L17: Remove these elements in order to calculate the EIA penalty target.
G18: f | H18: Subtract NEEA Savings | I18: =-'Portfolio--2018-2019'!G41 -> -25053.6 | J18: =I18/8760 -> -2.86 | L18: (RV "codes & standards", "trackable" measures from NEEA forecast) | N18: line ac of Exhibit 1 Portfolio View
G19: g | H19: Subtract Decoupling Commitment Amount | I19: =-I13 -> -23658.15 | J19: =-J13 -> -2.700702055 | N19: Provided by NEEA staff
G20: h | H20: Subtract 449 Customers | I20: =-'Portfolio--2018-2019'!G29 -> -18693 | J20: =I20/8760 -> -2.13390411 | N20: = c
G21: i | H21: Subtract Pilots with Uncertain Savings | I21: =-I15 -> -4480 | J21: =-J15 -> -0.5114155251 | N21: = d
G22: j | H22: Total Exclusion | I22: =SUM(I18:I21) -> -71884.75 | J22: =SUM(J18:J21) -> -8.206021689 | N22: = f + g + h + i
H23: Resultant Targets
G24: k | H24: EIA Penalty Target | I24: =I16+I22 -> 448109.4 | J24: =I24/8760 -> 51.1540411 | K24: EIA Target + Decoupling Commitment. $50/MWh of shortfall. | L24: $58.77/MWh shortfall penalty, based on 2016 inflation, per RCW 19.285.060. | N24: = e + j
G26: l | H26: Decoupling Commitment | I26: =I13 -> 23658.15 | J26: =J13 -> 2.700702055 | N26: = b
L32: D.C. = Decoupling Commitment
L33: EIA = Energy Independence Act; referencing RCW 19.285, or "I-937".
L34: HER = Residential Home Energy Reports
L35: IRP = Integrated Resource Plan

Sheet Building the 2-yr gas target
F7: Puget Sound Energy 2018-2019 Natural Gas Portfolio Savings
F10: Description | G10: Therms | H10: Comment | K10: Calculation
F11: Colored cells correspond to indicated lines in Exhibit 1: Savings and Budgets, 2-Year Portfolio View.
F12: Add | H12: These are specific elements that comprise the Portfolio View of Exhibit 1
E13: a | F13: Total Biennial Potential IRP Guidance | G13: =ROUND(6155339,-3) -> 6155000 | H13: 2-year pro rata, versus ramp rate in IRP | K13: Page 24, July 16 CRAG meeting presentation
E14: b | F14: Decoupling Commitment | G14: 0 | H14: Order 07, Docket UG-121705 & UG-130138, no decoupling for natural gas.
E15: c | F15: Add Pilots with Uncertain Savings | G15: ='Portfolio--2018-2019'!I37 -> 40000 | H15: Commercial Pay for Performance pilot | K15: line z of Exhibit 1 Portfolio View
E16: d | F16: Total 2018-2019 Portfolio Savings | G16: =SUM(G13:G15) -> 6195000 | H16: This figure is what Energy Efficiency is managing to. | K16: = a + b + c; line bb of Exhibit 1 Portfolio View
F17: Exclude | H17: Remove these elements in order to calculate the penalty target.
E18: e | F18: NEEA Savings | G18: 0 | K18: line ab of Exhibit 1 Portfolio View
E19: f | F19: Decoupling Commitment | G19: 0
E20: g | F20: Pilots with Uncertain Savings | G20: =-G15 -> -40000 | K20: = c
E21: h | F21: Total Exclusion | G21: =SUM(G18:G20) -> -40000 | K21: = e + f + g
F22: Resultant Target
E23: i | F23: Total natural gas savings subject to penalty | G23: =G16+G21 -> 6155000 | H23: Penalty outlined in Stipulation Agreement, UG-011571 Section M43. | K23: = d + h
G26: It is important to note that many specific natural gas program total values include decimals. Their aggregation may
G27: result in slight rounding differences between this table and the Portfolio View of Exhibit 1.

Sheet Exec Summary Tables
B4: 2018-2019 Energy Efficiency
B5: Portfolio Amounts
C6: Total Savings | D6: Budgets | E6: EIA & Natural Gas Penalty Target | F6: TRC
B7: Electric | C7: ='Portfolio--2018-2019'!G79-462 -> 519993.7663 | D7: ='Portfolio--2018-2019'!H79 -> 182864617.5 | E7: ='Portfolio--2018-2019'!G84 -> 448109.4 | F7: 1.4
C8: =C7/8760 -> 59.36001899 | E8: =E7/8760 -> 51.1540411
B9: Natural Gas | C9: ='Portfolio--2018-2019'!I79 -> 6194999.64 | D9: ='Portfolio--2018-2019'!J79 -> 29587670.72 | E9: ='Portfolio--2018-2019'!I84 -> 6155000 | F9: 1.34
B10: Total Budget | D10: =SUM(D7:D9) -> 212452288.2
H14: 2018-2019 Energy Efficiency
H15: Sector Savings Goals
I16: REM | J16: BEM | K16: Pilots | L16: Regional (NEEA + Generation)
H17: Electric | I17: ='Portfolio--2018-2019'!G22 -> 227798.8357 | J17: ='Portfolio--2018-2019'!G33 -> 261623.3306 | K17: ='Portfolio--2018-2019'!G38 -> 4480 | L17: ='Portfolio--2018-2019'!G44 -> 26553.6
I18: =I17/8760 -> 26.0044333 | J18: =J17/8760 -> 29.86567701 | K18: =K17/8760 -> 0.5114155251 | L18: =L17/8760 -> 3.031232877
H19: Natural Gas | I19: ='Portfolio--2018-2019'!I22 -> 3511181.84 | J19: ='Portfolio--2018-2019'!I33 -> 2643817.8 | K19: ='Portfolio--2018-2019'!I38 -> 40000 | L19: ='Portfolio--2018-2019'!I44 -> 0
H21: Source - Exhibit 1: Savings and Budgets
N24: 2018-2019 Energy Efficiency
N25: Sector Anticipated Expenditures
O26: REM | P26: BEM | Q26: Pilots | R26: Regional (NEEA + Generation) | S26: Portfolio Support | T26: Research & Compliance | U26: Other Electric Programs
N27: Electric | O27: ='Portfolio--2018-2019'!H22 -> 76846896.55 | P27: ='Portfolio--2018-2019'!H33 -> 72731142.1 | Q27: ='Portfolio--2018-2019'!H38 -> 434000 | R27: ='Portfolio--2018-2019'!H44 -> 10400000 | S27: ='Portfolio--2018-2019'!H61 -> 13239191.63 | T27: ='Portfolio--2018-2019'!H69 -> 7055607.974 | U27: ='Portfolio--2018-2019'!H75 -> 2157779.2
N28: Natural Gas | O28: ='Portfolio--2018-2019'!J22 -> 15619935.15 | P28: ='Portfolio--2018-2019'!J33 -> 6488401.44 | Q28: ='Portfolio--2018-2019'!J38 -> 61613 | R28: ='Portfolio--2018-2019'!J42 -> 4440380 | S28: ='Portfolio--2018-2019'!J61 -> 2130777.408 | T28: ='Portfolio--2018-2019'!J69 -> 846563.716 | U28: ='Portfolio--2018-2019'!P22 -> 0
N29: Sector Total | O29: =SUM(O27:O28) -> 92466831.71 | P29: =SUM(P27:P28) -> 79219543.54 | Q29: 495613 | R29: 14840380 | S29: 15369969.04 | T29: 7902171.69 | U29: 2157779.2
N31: Source - Exhibit 1: Savings and Budgets

Sheet Portfolio--2018-2019
G1: 2018-2019 Two-Year
F2: PSE Conservation Rider Savings Goals and Budgets
E3: Last revised: | F3: =NOW() -> 2017-11-01T10:50:25.970
B4: Ref # | C4: Schedule Nos. (Unless otherwise noted, applies to both electric and gas) | D4: Program Name | G4: MWh Savings | H4: Electric Rider Budget | I4: Therm Savings | J4: Gas Rider Budget | K4: Total Rider Budget
D5: (All indented program or activity names are color-coded and comprise the totals of the above program or activity grouping.)
D6: Residential Energy Management
B7: a | C7: 201 | D7: Low Income Weatherization | G7: ='Portfolio--2018 Specific'!G7+'Portfolio--2019 Specific'!G7 -> 4132.06552 | H7: ='Portfolio--2018 Specific'!H7+'Portfolio--2019 Specific'!H7 -> 8010049.584 | I7: ='Portfolio--2018 Specific'!I7+'Portfolio--2019 Specific'!I7 -> 19539.94 | J7: ='Portfolio--2018 Specific'!J7+'Portfolio--2019 Specific'!J7 -> 578158.136 | K7: =H7:H22+J7:J22 -> 8588207.72
B8: b | C8: 214 | D8: Single Family Existing Subtotal | G8: =SUM(G9:G18) -> 183254.0892 | H8: =SUM(H9:H18) -> 46127255.16 | I8: =SUM(I9:I18) -> 3195298.3 | J8: =SUM(J9:J18) -> 12639892.54 | K8: 58767147.7
B9: c | E9: Residential lighting | G9: ='Portfolio--2018 Specific'!G9+'Portfolio--2019 Specific'!G9 -> 122219.9037 | H9: ='Portfolio--2018 Specific'!H9+'Portfolio--2019 Specific'!H9 -> 24602590.23 | I9: ='Portfolio--2018 Specific'!I9+'Portfolio--2019 Specific'!I9 -> 0 | J9: ='Portfolio--2018 Specific'!J9+'Portfolio--2019 Specific'!J9 -> 0 | K9: 24602590.23
B10: d | E10: Space heat | G10: ='Portfolio--2018 Specific'!G10+'Portfolio--2019 Specific'!G10 -> 15098.74 | H10: ='Portfolio--2018 Specific'!H10+'Portfolio--2019 Specific'!H10 -> 6608596.8 | I10: ='Portfolio--2018 Specific'!I10+'Portfolio--2019 Specific'!I10 -> 1258195.8 | J10: ='Portfolio--2018 Specific'!J10+'Portfolio--2019 Specific'!J10 -> 4484413.2 | K10: 11093010
B11: e | E11: Water heat | G11: ='Portfolio--2018 Specific'!G11+'Portfolio--2019 Specific'!G11 -> 1960.904 | H11: ='Portfolio--2018 Specific'!H11+'Portfolio--2019 Specific'!H11 -> 804304.8 | I11: ='Portfolio--2018 Specific'!I11+'Portfolio--2019 Specific'!I11 -> 188251 | J11: ='Portfolio--2018 Specific'!J11+'Portfolio--2019 Specific'!J11 -> 574232.8 | K11: 1378537.6
B12: f | E12: Single Family Rental Pilot | G12: ='Portfolio--2018 Specific'!G12+'Portfolio--2019 Specific'!G12 -> 0 | H12: ='Portfolio--2018 Specific'!H12+'Portfolio--2019 Specific'!H12 -> 214706.8 | I12: ='Portfolio--2018 Specific'!I12+'Portfolio--2019 Specific'!I12 -> 0 | J12: ='Portfolio--2018 Specific'!J12+'Portfolio--2019 Specific'!J12 -> 194706.8 | K12: 409413.6
B13: g | E13: Home Energy Assessment | G13: ='Portfolio--2018 Specific'!G13+'Portfolio--2019 Specific'!G13 -> 10296.57 | H13: ='Portfolio--2018 Specific'!H13+'Portfolio--2019 Specific'!H13 -> 5283759.401 | I13: ='Portfolio--2018 Specific'!I13+'Portfolio--2019 Specific'!I13 -> 0 | J13: ='Portfolio--2018 Specific'!J13+'Portfolio--2019 Specific'!J13 -> 0 | K13: 5283759.401
B14: h | E14: Home Appliances | G14: ='Portfolio--2018 Specific'!G14+'Portfolio--2019 Specific'!G14 -> 12344.8055 | H14: ='Portfolio--2018 Specific'!H14+'Portfolio--2019 Specific'!H14 -> 4748888.4 | I14: ='Portfolio--2018 Specific'!I14+'Portfolio--2019 Specific'!I14 -> 23582.5 | J14: ='Portfolio--2018 Specific'!J14+'Portfolio--2019 Specific'!J14 -> 0 | K14: 4748888.4
B15: i | E15: Web-Enabled Thermostats | G15: ='Portfolio--2018 Specific'!G15+'Portfolio--2019 Specific'!G15 -> 2622.6 | H15: ='Portfolio--2018 Specific'!H15+'Portfolio--2019 Specific'!H15 -> 313049.6 | I15: ='Portfolio--2018 Specific'!I15+'Portfolio--2019 Specific'!I15 -> 712500 | J15: ='Portfolio--2018 Specific'!J15+'Portfolio--2019 Specific'!J15 -> 1252349.6 | K15: 1565399.2
B16: j | E16: Showerheads | G16: ='Portfolio--2018 Specific'!G16+'Portfolio--2019 Specific'!G16 -> 2952.446 | H16: ='Portfolio--2018 Specific'!H16+'Portfolio--2019 Specific'!H16 -> 834404.4687 | I16: ='Portfolio--2018 Specific'!I16+'Portfolio--2019 Specific'!I16 -> 121399 | J16: ='Portfolio--2018 Specific'!J16+'Portfolio--2019 Specific'!J16 -> 586926.1972 | K16: 1421330.666
B17: k | E17: Weatherization | G17: ='Portfolio--2018 Specific'!G17+'Portfolio--2019 Specific'!G17 -> 4158.12 | H17: ='Portfolio--2018 Specific'!H17+'Portfolio--2019 Specific'!H17 -> 1938539.2 | I17: ='Portfolio--2018 Specific'!I17+'Portfolio--2019 Specific'!I17 -> 771370 | J17: ='Portfolio--2018 Specific'!J17+'Portfolio--2019 Specific'!J17 -> 5345894 | K17: 7284433.2
B18: l | E18: Home Energy Reports | G18: ='Portfolio--2018 Specific'!G18+'Portfolio--2019 Specific'!G18 -> 11600 | H18: ='Portfolio--2018 Specific'!H18+'Portfolio--2019 Specific'!H18 -> 778415.46 | I18: ='Portfolio--2018 Specific'!I18+'Portfolio--2019 Specific'!I18 -> 120000 | J18: ='Portfolio--2018 Specific'!J18+'Portfolio--2019 Specific'!J18 -> 201369.94 | K18: 979785.4
B19: m | C19: 215 | D19: Single Family New Construction | G19: ='Portfolio--2018 Specific'!G19+'Portfolio--2019 Specific'!G19 -> 613.781 | H19: ='Portfolio--2018 Specific'!H19+'Portfolio--2019 Specific'!H19 -> 478222.4 | I19: ='Portfolio--2018 Specific'!I19+'Portfolio--2019 Specific'!I19 -> 25920 | J19: ='Portfolio--2018 Specific'!J19+'Portfolio--2019 Specific'!J19 -> 208698.88 | K19: 686921.28
B20: n | C20: 217 | D20: Multifamily Retrofit | G20: ='Portfolio--2018 Specific'!G20+'Portfolio--2019 Specific'!G20 -> 33804.00006 | H20: ='Portfolio--2018 Specific'!H20+'Portfolio--2019 Specific'!H20 -> 19556009.69 | I20: ='Portfolio--2018 Specific'!I20+'Portfolio--2019 Specific'!I20 -> 160453.6 | J20: ='Portfolio--2018 Specific'!J20+'Portfolio--2019 Specific'!J20 -> 1297243.2 | K20: 20853252.89
B21: o | C21: 218 | D21: Multifamily New Construction | G21: ='Portfolio--2018 Specific'!G21+'Portfolio--2019 Specific'!G21 -> 5994.9 | H21: ='Portfolio--2018 Specific'!H21+'Portfolio--2019 Specific'!H21 -> 2675359.72 | I21: ='Portfolio--2018 Specific'!I21+'Portfolio--2019 Specific'!I21 -> 109970 | J21: ='Portfolio--2018 Specific'!J21+'Portfolio--2019 Specific'!J21 -> 895942.4 | K21: 3571302.12
B22: p | D22: Total, Residential Programs | G22: =G7+G8+SUM(G19:G21) -> 227798.8357 | H22: =H7+H8+SUM(H19:H21) -> 76846896.55 | I22: =I7+I8+SUM(I19:I21) -> 3511181.84 | J22: =J7+J8+SUM(J19:J21) -> 15619935.15 | K22: 92466831.71
D24: Business Energy Management
B25: q | C25: 250 | D25: Commercial / Industrial Retrofit | G25: ='Portfolio--2018 Specific'!G25+'Portfolio--2019 Specific'!G25 -> 118500 | H25: ='Portfolio--2018 Specific'!H25+'Portfolio--2019 Specific'!H25 -> 30604109.33 | I25: ='Portfolio--2018 Specific'!I25+'Portfolio--2019 Specific'!I25 -> 825000 | J25: ='Portfolio--2018 Specific'!J25+'Portfolio--2019 Specific'!J25 -> 3266700 | K25: =H25:H33+J25:J33 -> 33870809.33
B26: r | C26: 251 | D26: Commercial/Industrial New Construction | G26: ='Portfolio--2018 Specific'!G26+'Portfolio--2019 Specific'!G26 -> 40000 | H26: ='Portfolio--2018 Specific'!H26+'Portfolio--2019 Specific'!H26 -> 9591820.8 | I26: ='Portfolio--2018 Specific'!I26+'Portfolio--2019 Specific'!I26 -> 210000 | J26: ='Portfolio--2018 Specific'!J26+'Portfolio--2019 Specific'!J26 -> 998920 | K26: 10590740.8
B27: s | C27: 253 | D27: Commercial Strategic Energy Management | G27: ='Portfolio--2018 Specific'!G27+'Portfolio--2019 Specific'!G27 -> 26000 | H27: ='Portfolio--2018 Specific'!H27+'Portfolio--2019 Specific'!H27 -> 2864344.24 | I27: ='Portfolio--2018 Specific'!I27+'Portfolio--2019 Specific'!I27 -> 1340000 | J27: ='Portfolio--2018 Specific'!J27+'Portfolio--2019 Specific'!J27 -> 1131864.24 | K27: 3996208.48
B28: t | C28: E258 | D28: Large Power User - Self Directed Program - Subtotal | G28: =G29+G30 -> 35693 | H28: =H29+H30 -> 17591094.44 | K28: 17591094.44
B29: u | C29: E258 | E29: 449 Customers | G29: ='Portfolio--2018 Specific'!G29+'Portfolio--2019 Specific'!G29 -> 18693 | H29: ='Portfolio--2018 Specific'!H29+'Portfolio--2019 Specific'!H29 -> 8021680.938 | K29: 8021680.938
B30: v | C30: E258 | E30: Non-449 Customers | G30: ='Portfolio--2018 Specific'!G30+'Portfolio--2019 Specific'!G30 -> 17000 | H30: ='Portfolio--2018 Specific'!H30+'Portfolio--2019 Specific'!H30 -> 9569413.507 | K30: 9569413.507
B31: w | C31: 261 | D31: Energy Efficient Technology Evaluation | G31: ='Portfolio--2018 Specific'!G31+'Portfolio--2019 Specific'!G31 -> 0 | H31: ='Portfolio--2018 Specific'!H31+'Portfolio--2019 Specific'!H31 -> 0 | I31: ='Portfolio--2018 Specific'!I31+'Portfolio--2019 Specific'!I31 -> 0 | J31: ='Portfolio--2018 Specific'!J31+'Portfolio--2019 Specific'!J31 -> 0 | K31: 0
B32: x | C32: 262 | D32: Commercial Rebates | G32: ='Portfolio--2018 Specific'!G32+'Portfolio--2019 Specific'!G32 -> 41430.3306 | H32: ='Portfolio--2018 Specific'!H32+'Portfolio--2019 Specific'!H32 -> 12079773.28 | I32: ='Portfolio--2018 Specific'!I32+'Portfolio--2019 Specific'!I32 -> 268817.8 | J32: ='Portfolio--2018 Specific'!J32+'Portfolio--2019 Specific'!J32 -> 1090917.2 | K32: 13170690.48
B33: y | D33: Subtotal, Business Programs | G33: =SUM(G25:G28)+SUM(G31:G32) -> 261623.3306 | H33: =SUM(H25:H28)+SUM(H31:H32) -> 72731142.1 | I33: =SUM(I25:I32) -> 2643817.8 | J33: =SUM(J25:J32) -> 6488401.44 | K33: 79219543.54
D35: Pilots With Uncertain Savings
B36: z | C36: 249 | D36: Residential | G36: ='Portfolio--2018 Specific'!G36+'Portfolio--2019 Specific'!G36 -> 0 | H36: ='Portfolio--2018 Specific'!H36+'Portfolio--2019 Specific'!H36 -> 0 | I36: ='Portfolio--2018 Specific'!I36+'Portfolio--2019 Specific'!I36 -> 0 | J36: ='Portfolio--2018 Specific'!J36+'Portfolio--2019 Specific'!J36 -> 0 | K36: =H36:H38+J36:J38 -> 0
B37: aa | C37: 249 | D37: Commercial Pay for Performance Pilot | G37: ='Portfolio--2018 Specific'!G37+'Portfolio--2019 Specific'!G37 -> 4480 | H37: ='Portfolio--2018 Specific'!H37+'Portfolio--2019 Specific'!H37 -> 434000 | I37: ='Portfolio--2018 Specific'!I37+'Portfolio--2019 Specific'!I37 -> 40000 | J37: ='Portfolio--2018 Specific'!J37+'Portfolio--2019 Specific'!J37 -> 61613 | K37: 495613
B38: ab | D38: Subtotal, Pilots | G38: =SUM(G36:G37) -> 4480 | H38: =SUM(H36:H37) -> 434000 | I38: =SUM(I36:I37) -> 40000 | J38: =SUM(J36:J37) -> 61613 | K38: 495613
D40: Regional Efficiency Programs
B41: ac | C41: E254 | D41: NW Energy Efficiency Alliance (NEEA) | G41: ='Portfolio--2018 Specific'!G41+'Portfolio--2019 Specific'!G41 -> 25053.6 | H41: ='Portfolio--2018 Specific'!H41+'Portfolio--2019 Specific'!H41 -> 10400000 | K41: =H41:H44+J41:J44 -> 10400000
B42: ad | D42: NEEA Natural Gas Market Transformation | I42: ='Portfolio--2018 Specific'!I42+'Portfolio--2019 Specific'!I42 -> 0 | J42: ='Portfolio--2018 Specific'!J42+'Portfolio--2019 Specific'!J42 -> 4440380 | K42: 4440380
B43: ae | C43: E292 | D43: Generation, Transmission and Distribution | G43: ='Portfolio--2018 Specific'!G43+'Portfolio--2019 Specific'!G43 -> 1500 | H43: ='Portfolio--2018 Specific'!H43+'Portfolio--2019 Specific'!H43 -> 0 | K43: 0
B44: af | D44: Subtotal, Regional Programs | G44: =SUM(G41:G43) -> 26553.6 | H44: =SUM(H41:H43) -> 10400000 | I44: =SUM(I41:I43) -> 0 | J44: =SUM(J41:J43) -> 4440380 | K44: 14840380
D46: Energy Efficiency Portfolio Support
B47: ag | D47: Data and Systems Services | H47: ='Portfolio--2018 Specific'!H47+'Portfolio--2019 Specific'!H47 -> 2203355.04 | J47: ='Portfolio--2018 Specific'!J47+'Portfolio--2019 Specific'!J47 -> 329236.96 | K47: =H47:H61+J47:J61 -> 2532592
B48: ah | D48: Rebates Processing | H48: ='Portfolio--2018 Specific'!H48+'Portfolio--2019 Specific'!H48 -> 1125052.8 | J48: ='Portfolio--2018 Specific'!J48+'Portfolio--2019 Specific'!J48 -> 166967.2 | K48: 1292020
B49: ai | D49: Verification Team | H49: ='Portfolio--2018 Specific'!H49+'Portfolio--2019 Specific'!H49 -> 1077788.48 | J49: ='Portfolio--2018 Specific'!J49+'Portfolio--2019 Specific'!J49 -> 159695.52 | K49: 1237484
B50: aj | D50: Programs Support | H50: ='Portfolio--2018 Specific'!H50+'Portfolio--2019 Specific'!H50 -> 829132.8 | J50: ='Portfolio--2018 Specific'!J50+'Portfolio--2019 Specific'!J50 -> 124307.2 | K50: 953440
B51: ak | D51: Trade Ally Support | H51: ='Portfolio--2018 Specific'!H51+'Portfolio--2019 Specific'!H51 -> 236000 | J51: ='Portfolio--2018 Specific'!J51+'Portfolio--2019 Specific'!J51 -> 44000 | K51: 280000
B52: al | D52: Contractor Alliance Network (net of revenue + cost) | H52: ='Portfolio--2018 Specific'!H52+'Portfolio--2019 Specific'!H52 -> 0 | J52: ='Portfolio--2018 Specific'!J52+'Portfolio--2019 Specific'!J52 -> 0 | K52: 0
B53: am | D53: Automated Benchmarking System | H53: ='Portfolio--2018 Specific'!H53+'Portfolio--2019 Specific'!H53 -> 377289.848 | J53: ='Portfolio--2018 Specific'!J53+'Portfolio--2019 Specific'!J53 -> 170784.792 | K53: 548074.64
B54: an | D54: Energy Advisors | H54: ='Portfolio--2018 Specific'!H54+'Portfolio--2019 Specific'!H54 -> 2301414.24 | J54: ='Portfolio--2018 Specific'!J54+'Portfolio--2019 Specific'!J54 -> 347381.76 | K54: 2648796
B55: ao | D55: Energy Efficient Communities | H55: ='Portfolio--2018 Specific'!H55+'Portfolio--2019 Specific'!H55 -> 1976670.2 | J55: ='Portfolio--2018 Specific'!J55+'Portfolio--2019 Specific'!J55 -> 284000.2 | K55: 2260670.4
B56: ap | D56: Customer Digital Experience | H56: ='Portfolio--2018 Specific'!H56+'Portfolio--2019 Specific'!H56 -> 1172391.84 | J56: ='Portfolio--2018 Specific'!J56+'Portfolio--2019 Specific'!J56 -> 176407.52 | K56: 1348799.36
B57: aq | D57: Market Integration | H57: ='Portfolio--2018 Specific'!H57+'Portfolio--2019 Specific'!H57 -> 523922.944 | J57: ='Portfolio--2018 Specific'!J57+'Portfolio--2019 Specific'!J57 -> 77945.856 | K57: 601868.8
B58: ar | D58: Events | H58: ='Portfolio--2018 Specific'!H58+'Portfolio--2019 Specific'!H58 -> 1233524.64 | J58: ='Portfolio--2018 Specific'!J58+'Portfolio--2019 Specific'!J58 -> 227808 | K58: 1461332.64
B59: as | D59: Brochures, non program-specific | H59: ='Portfolio--2018 Specific'!H59+'Portfolio--2019 Specific'!H59 -> 165248.8 | J59: ='Portfolio--2018 Specific'!J59+'Portfolio--2019 Specific'!J59 -> 19642.4 | K59: 184891.2
B60: at | C60: 202 | D60: Education | H60: ='Portfolio--2018 Specific'!H60+'Portfolio--2019 Specific'!H60 -> 17400 | J60: ='Portfolio--2018 Specific'!J60+'Portfolio--2019 Specific'!J60 -> 2600 | K60: 20000
B61: au | D61: Subtotal, Portfolio Support | H61: =SUM(H47:H60) -> 13239191.63 | J61: =SUM(J47:J60) -> 2130777.408 | K61: 15369969.04
D63: Energy Efficiency Research & Compliance
B64: av | D64: Conservation Supply Curves | H64: ='Portfolio--2018 Specific'!H64+'Portfolio--2019 Specific'!H64 -> 713052 | J64: ='Portfolio--2018 Specific'!J64+'Portfolio--2019 Specific'!J64 -> 106548 | K64: =H64:H68+J64:J68 -> 819600
B65: aw | D65: Strategic Planning | H65: ='Portfolio--2018 Specific'!H65+'Portfolio--2019 Specific'!H65 -> 1676458.768 | J65: ='Portfolio--2018 Specific'!J65+'Portfolio--2019 Specific'!J65 -> 148127.632 | K65: =H65:H69+J65:J69 -> 1824586.4
B66: ax | D66: Market Research | H66: ='Portfolio--2018 Specific'!H66+'Portfolio--2019 Specific'!H66 -> 471733.57 | J66: ='Portfolio--2018 Specific'!J66+'Portfolio--2019 Specific'!J66 -> 70488.92 | K66: =H66:H70+J66:J70 -> 542222.49
B67: ay | D67: Program Evaluation | H67: ='Portfolio--2018 Specific'!H67+'Portfolio--2019 Specific'!H67 -> 4029363.636 | J67: ='Portfolio--2018 Specific'!J67+'Portfolio--2019 Specific'!J67 -> 521399.164 | K67: =H67:H71+J67:J71 -> 4550762.8
B68: az | D68: Biennial Electric Conservation Acquisition Review | H68: ='Portfolio--2018 Specific'!H68+'Portfolio--2019 Specific'!H68 -> 165000 | J68: ='Portfolio--2018 Specific'!J68+'Portfolio--2019 Specific'!J68 -> 0 | K68: =H68:H72+J68:J72 -> 165000
B69: ba | D69: Subtotal, Research & Compliance | H69: =SUM(H64:H68) -> 7055607.974 | J69: =SUM(J64:J68) -> 846563.716 | K69: =H69+J69 -> 7902171.69
B71: bb | C71: Total Savings, Efficiency Programs Included in CE Calculations | G71: =G22+G33+G38+G44 -> 520455.7663 | H71: =H22+H33+H38+H44+H61+H69 -> 180706838.3 | I71: =I22+I33+I38+I44 -> 6194999.64 | J71: =J22+J33+J38+J44+J61+J69 -> 29587670.72 | K71: =H71+J71 -> 210294509
D73: Other Electric Programs
B74: bc | C74: E150 | D74: Net Metering | H74: ='Portfolio--2018 Specific'!H74+'Portfolio--2019 Specific'!H74 -> 2157779.2
B75: bd | D75: Subtotal, Other Electric Programs | H75: =SUM(H74:H74) -> 2157779.2 | J75: =SUM(J74:J74) -> 0
B79: be | D79: GRAND TOTAL All Programs | G79: =G71 -> 520455.7663 | H79: =H71+H75 -> 182864617.5 | I79: =I71 -> 6194999.64 | J79: =J71+J75 -> 29587670.72 | K79: =H79+J79 -> 212452288.2
G80: =G79/8760 -> 59.41275871
D81: NOTE: The GRAND TOTAL All Programs figure in line be is 0.1% higher than the calculated Total 2018-2019 Portfolio Savings Target of 519,994 MWh. This is due to the timing of revisions of RTF UES values in the Home Appliances program subsequent to target-setting. Please select the "Go to Building the Electric Target" button to the left to see each element of the 2018-2019 Portfolio Savings Target calculation steps.
B84: bf | D84: EIA and Natural Gas Penalty Target | G84: ='Building the 2-yr elec target'!I24 -> 448109.4 | I84: 6155000
G85: =G84/8760 -> 51.1540411
B87: bg | D87: Two-Year Decoupling Target | G87: ='Building the 2-yr elec target'!I13 -> 23658.15 | H87: 5% of IRP Total Biennial Potential of 473,163 MWh
B90: bh | E90: Blue cells = use for 10% "info-only" calculation: | H90: =(H38+H61)/H71 -> 0.07566504823 | J90: =(J38+J61)/J71 -> 0.07409810759
F91: Add up all blue cells and divide by "Total, Efficiency Programs Included in CE Calculations" line.
F92: HER program costs excluded from "info-only" calculation because savings will be measured.
B94: bi | E94: Purple cells = use to indicate a reasonable amt. spent on EM&V (condition (6)(c)): | H94: =(H47+H49+SUM(H67:H68))/(H22+H33) -> 0.04997730431 | J94: =(J47+J49+SUM(J67:J68))/(J22+J33) -> 0.04569912529
B95: bk | E95: EM&V Budget (WAC 480-109-120(1)(b)(vi)(B)) | H95: =(H47+H49+SUM(H67:H68)) -> 7475507.156 | J95: =(J47+J49+SUM(J67:J68)) -> 1010331.644
F96: (Line bi) Add up the sum of [Data & Systems Services + Program Evaluation + BECAR + Verification] purple cells and divide by the [Residential + Business] purple cells.
F97: (Line bk) Add up the sum of [Data & Systems Services + Program Evaluation + BECAR + Verification] purple cells

Sheet Portfolio--2018 Specific
G1: 2018
F2: PSE Conservation Rider Savings Goals and Budgets
E3: Last revised: | F3: =NOW() -> 2017-11-01T10:50:25.970
B4: Ref # | C4: Schedule Nos. (Unless otherwise noted, applies to both electric and gas) | D4: Program Name | G4: MWh Savings | H4: Electric Rider Budget | I4: Therm Savings | J4: Gas Rider Budget | K4: Total Rider Budget
D5: (All indented program or activity names are color-coded and comprise the totals of the above program or activity grouping.)
D6: Residential Energy Management
B7: a | C7: 201 | D7: Low Income Weatherization | G7: ='2018 Sector View Electric'!T8/1000 -> 2066.03276 | H7: ='2018 Sector View Electric'!S8 -> 4005024.792 | I7: ='2018 Sector View Gas'!T8 -> 9769.97 | J7: ='2018 Sector View Gas'!S8 -> 289079.068 | K7: =H7:H22+J7:J22 -> 4294103.86
B8: b | C8: 214 | D8: Single Family Existing Subtotal | G8: =SUM(G9:G18) -> 98821.01017 | H8: =SUM(H9:H18) -> 23365857.77 | I8: =SUM(I9:I18) -> 1650762.55 | J8: =SUM(J9:J18) -> 6331872.969 | K8: 29697730.74
B9: c | E9: Residential lighting | G9: ='2018 Sector View Electric'!T16/1000 -> 62649.61742 | H9: ='2018 Sector View Electric'!S16 -> 12605450.31 | K9: 12605450.31
B10: d | E10: Space heat | G10: ='2018 Sector View Electric'!T12/1000 -> 7549.37 | H10: ='2018 Sector View Electric'!S12 -> 3304298.4 | I10: ='2018 Sector View Gas'!T12 -> 629097.9 | J10: ='2018 Sector View Gas'!S12 -> 2242206.6 | K10: 5546505
B11: e | E11: Water heat | G11: ='2018 Sector View Electric'!T10/1000 -> 980.452 | H11: ='2018 Sector View Electric'!S10 -> 402152.4 | I11: ='2018 Sector View Gas'!T10 -> 94125.5 | J11: ='2018 Sector View Gas'!S10 -> 287116.4 | K11: 689268.8
B12: f | E12: Single Family Rental Pilot | G12: ='2018 Sector View Electric'!T13/1000 -> 0 | H12: ='2018 Sector View Electric'!S13 -> 109928.4 | I12: ='2018 Sector View Gas'!T13 -> 0 | J12: ='2018 Sector View Gas'!S13 -> 99928.4 | K12: 209856.8
B13: g | E13: Home Energy Assessment | G13: ='2018 Sector View Electric'!T9/1000 -> 5148.285 | H13: ='2018 Sector View Electric'!S9 -> 2644879.7 | I13: ='2018 Sector View Gas'!T9 -> 0 | J13: ='2018 Sector View Gas'!S9 -> 0 | K13: 2644879.7
B14: h | E14: Home Appliances | G14: ='2018 Sector View Electric'!T14/1000 -> 6172.40275 | H14: ='2018 Sector View Electric'!S14 -> 2374444.2 | I14: ='2018 Sector View Gas'!T15 -> 11791.25 | J14: ='2018 Sector View Gas'!S15 -> 0 | K14: 2374444.2
B15: i | E15: Web-Enabled Thermostats | G15: ='2018 Sector View Electric'!T18/1000 -> 1165.6 | H15: ='2018 Sector View Electric'!S18 -> 149024.8 | I15: ='2018 Sector View Gas'!T16 -> 342000 | J15: ='2018 Sector View Gas'!S16 -> 604924.8 | K15: 753949.6
B16: j | E16: Showerheads | G16: ='2018 Sector View Electric'!T15/1000 -> 1476.223 | H16: ='2018 Sector View Electric'!S15 -> 417202.2344 | I16: ='2018 Sector View Gas'!T14 -> 60700.4 | J16: ='2018 Sector View Gas'!S14 -> 293464.7986 | K16: 710667.0329
B17: k | E17: Weatherization | G17: ='2018 Sector View Electric'!T11/1000 -> 2079.06 | H17: ='2018 Sector View Electric'!S11 -> 969269.6 | I17: ='2018 Sector View Gas'!T11 -> 393047.5 | J17: ='2018 Sector View Gas'!S11 -> 2703547 | K17: 3672816.6
B18: l | E18: Home Energy Reports | G18: ='2018 Sector View Electric'!T17/1000 -> 11600 | H18: ='2018 Sector View Electric'!S17 -> 389207.73 | I18: ='2018 Sector View Gas'!T17 -> 120000 | J18: ='2018 Sector View Gas'!S17 -> 100684.97 | K18: 489892.7
B19: m | C19: 215 | D19: Single Family New Construction | G19: ='2018 Sector View Electric'!T19/1000+'2018 Sector View Electric'!T20/1000 -> 254.278 | H19: ='2018 Sector View Electric'!S19+'2018 Sector View Electric'!S20 -> 210361.2 | I19: ='2018 Sector View Gas'!T18 -> 9875 | J19: =+'2018 Sector View Gas'!S18 -> 95599.44 | K19: 305960.64
B20: n | C20: 217 | D20: Multifamily Retrofit | G20: ='2018 Sector View Electric'!T21/1000 -> 17569.03503 | H20: ='2018 Sector View Electric'!S21 -> 10385754.85 | I20: ='2018 Sector View Gas'!T19 -> 80226.8 | J20: ='2018 Sector View Gas'!S19 -> 656719.2 | K20: 11042474.04
B21: o | C21: 218 | D21: Multifamily New Construction | G21: ='2018 Sector View Electric'!T22/1000 -> 2498.9 | H21: ='2018 Sector View Electric'!S22 -> 1225948.46 | I21: ='2018 Sector View Gas'!T20 -> 54735 | J21: ='2018 Sector View Gas'!S20 -> 446096.2 | K21: 1672044.66
B22: p | D22: Total, Residential Programs | G22: =G7+G8+SUM(G19:G21) -> 121209.256 | H22: =H7+H8+SUM(H19:H21) -> 39192947.07 | I22: =I7+I8+SUM(I19:I21) -> 1805369.32 | J22: =J7+J8+SUM(J19:J21) -> 7819366.877 | K22: 47012313.94
D24: Business Energy Management
B25: q | C25: 250 | D25: Commercial / Industrial Retrofit | G25: =('2018 Sector View Electric'!T27/1000)+('2018 Sector View Electric'!T28/1000) -> 57750 | H25: ='2018 Sector View Electric'!S27+'2018 Sector View Electric'!S28 -> 15181830.71 | I25: ='2018 Sector View Gas'!T26 -> 400000 | J25: ='2018 Sector View Gas'!S26 -> 1617100 | K25: =H25:H33+J25:J33 -> 16798930.71
B26: r | C26: 251 | D26: Commercial/Industrial New Construction | G26: ='2018 Sector View Electric'!T29/1000 -> 20000 | H26: ='2018 Sector View Electric'!S29 -> 4795910.4 | I26: ='2018 Sector View Gas'!T27 -> 105000 | J26: ='2018 Sector View Gas'!S27 -> 499460 | K26: 5295370.4
B27: s | C27: 253 | D27: Commercial Strategic Energy Management | G27: ='2018 Sector View Electric'!T30/1000 -> 13000 | H27: ='2018 Sector View Electric'!S30 -> 1444640.24 | I27: ='2018 Sector View Gas'!T28 -> 670000 | J27: ='2018 Sector View Gas'!S28 -> 561112.24 | K27: 2005752.48
B28: t | C28: E258 | D28: Large Power User - Self Directed Program Subtotal | G28: =G29+G30 -> 34693 | H28: =H29+H30 -> 15670547.22 | K28: 15670547.22
B29: u | C29: E258 | E29: 449 Customers | G29: ='2018 Sector View Electric'!T35/1000 -> 18193 | H29: ='2018 Sector View Electric'!S35 -> 7398340.469 | K29: 7398340.469
B30: v | C30: E258 | E30: Non-449 Customers | G30: ='2018 Sector View Electric'!T36/1000 -> 16500 | H30: ='2018 Sector View Electric'!S36 -> 8272206.754 | K30: 8272206.754
B31: w | C31: 261 | D31: Energy Efficient Technology Evaluation | G31: ='2018 Sector View Electric'!T37 -> 0 | H31: ='2018 Sector View Electric'!S37 -> 0 | I31: ='2018 Sector View Gas'!T31 -> 0 | J31: ='2018 Sector View Gas'!S31 -> 0 | K31: 0
B32: x | C32: 262 | D32: Commercial Rebates | G32: ='2018 Sector View Electric'!T38/1000 -> 20559.9243 | H32: ='2018 Sector View Electric'!S38 -> 6071120.64 | I32: ='2018 Sector View Gas'!T32 -> 127858.9 | J32: ='2018 Sector View Gas'!S32 -> 523607.8 | K32: 6594728.44
B33: y | D33: Subtotal, Business Programs | G33: =SUM(G25:G28)+SUM(G31:G32) -> 146002.9243 | H33: =SUM(H25:H28)+SUM(H31:H32) -> 43164049.21 | I33: =SUM(I25:I32) -> 1302858.9 | J33: =SUM(J25:J32) -> 3201280.04 | K33: 46365329.25
D35: Pilots With Uncertain Savings
B36: z | C36: 249 | D36: Residential | G36: ='2018 Sector View Electric'!T52 -> 0 | H36: ='2018 Sector View Electric'!S52 -> 0 | I36: ='2018 Sector View Gas'!T44 -> 0 | J36: ='2018 Sector View Gas'!S44 -> 0 | K36: =H36:H38+J36:J38 -> 0
B37: aa | C37: 249 | D37: Commercial Pay for Performance Pilot | G37: ='2018 Sector View Electric'!T53/1000 -> 840 | H37: ='2018 Sector View Electric'!S53 -> 84000 | I37: ='2018 Sector View Gas'!T45 -> 7500 | J37: ='2018 Sector View Gas'!S45 -> 11925 | K37: 95925
B38: ab | D38: Subtotal, Pilots | G38: =SUM(G36:G37) -> 840 | H38: =SUM(H36:H37) -> 84000 | I38: =SUM(I36:I37) -> 7500 | J38: =SUM(J36:J37) -> 11925 | K38: 95925
D40: Regional Efficiency Programs
B41: ac | C41: E254 | D41: NW Energy Efficiency Alliance (NEEA) | G41: ='2018 Sector View Electric'!T59/1000 -> 12526.8 | H41: ='2018 Sector View Electric'!S59 -> 5200000 | K41: =H41:H44+J41:J44 -> 5200000
B42: ad | D42: NEEA Natural Gas Market Transformation | I42: ='2018 Sector View Gas'!T51 -> 0 | J42: ='2018 Sector View Gas'!S51 -> 2006136 | K42: 2006136
B43: ae | C43: E292 | D43: Generation, Transmission and Distribution | G43: ='2018 Sector View Electric'!T60/1000 -> 750 | H43: ='2018 Sector View Electric'!S60 -> 0 | K43: 0
B44: af | D44: Subtotal, Regional Programs | G44: =SUM(G41:G43) -> 13276.8 | H44: =SUM(H41:H43) -> 5200000 | I44: =SUM(I41:I43) -> 0 | J44: =SUM(J41:J43) -> 2006136 | K44: 7206136
D46: Energy Efficiency Portfolio Support
B47: ag | D47: Data and Systems Services | H47: ='2018 Sector View Electric'!S66 -> 1101677.52 | J47: ='2018 Sector View Gas'!S57 -> 164618.48 | K47: =H47:H61+J47:J61 -> 1266296
B48: ah | D48: Rebates Processing | H48: ='2018 Sector View Electric'!S67 -> 562526.4 | J48: ='2018 Sector View Gas'!S58 -> 83483.6 | K48: 646010
B49: ai | D49: Verification Team | H49: ='2018 Sector View Electric'!S68 -> 538894.24 | J49: ='2018 Sector View Gas'!S59 -> 79847.76 | K49: 618742
B50: aj | D50: Programs Support | H50: ='2018 Sector View Electric'!S69 -> 414566.4 | J50: ='2018 Sector View Gas'!S60 -> 62153.6 | K50: 476720
B51: ak | D51: Trade Ally Support | H51: ='2018 Sector View Electric'!S70 -> 118000 | J51: ='2018 Sector View Gas'!S61 -> 22000 | K51: 140000
B52: al | D52: Contractor Alliance Network (net of revenue + cost) | H52: ='2018 Sector View Electric'!S71 -> -34000 | J52: ='2018 Sector View Gas'!S62 -> -34000 | K52: -68000
B53: am | D53: Automated Benchmarking System | H53: ='2018 Sector View Electric'!S72 -> 203669.6 | J53: ='2018 Sector View Gas'!S63 -> 93346.4 | K53: 297016
B54: an | D54: Energy Advisors | H54: ='2018 Sector View Electric'!S73 -> 1150707.12 | J54: ='2018 Sector View Gas'!S64 -> 173705.88 | K54: 1324413
B55: ao | D55: Energy Efficient Communities | H55: ='2018 Sector View Electric'!S74 -> 985334.6 | J55: ='2018 Sector View Gas'!S65 -> 140519.4 | K55: 1125854
B56: ap | D56: Customer Digital Experience | H56: ='2018 Sector View Electric'!S75 -> 586195.92 | J56: ='2018 Sector View Gas'!S66 -> 88203.76 | K56: 674399.68
B57: aq | D57: Market Integration | H57: ='2018 Sector View Electric'!S76 -> 261961.472 | J57: ='2018 Sector View Gas'!S67 -> 38972.928 | K57: 300934.4
B58: ar | D58: Events | H58: ='2018 Sector View Electric'!S77 -> 635662.32 | J58: ='2018 Sector View Gas'!S68 -> 116754 | K58: 752416.32
B59: as | D59: Brochures, non program-specific | H59: ='2018 Sector View Electric'!S78 -> 82624.4 | J59: ='2018 Sector View Gas'!S69 -> 9821.2 | K59: 92445.6
B60: at | C60: 202 | D60: Education | H60: ='2018 Sector View Electric'!S79 -> 8700 | J60: ='2018 Sector View Gas'!S70 -> 1300 | K60: 10000
B61: au | D61: Subtotal, Portfolio Support | H61: =SUM(H47:H60) -> 6616519.992 | J61: =SUM(J47:J60) -> 1040727.008 | K61: 7657247
D63: Energy Efficiency Research & Compliance
B64: av | D64: Conservation Supply Curves | H64: ='2018 Sector View Electric'!S85 -> 502686 | J64: ='2018 Sector View Gas'!S76 -> 75114 | K64: =H64:H68+J64:J68 -> 577800
B65: aw | D65: Strategic Planning | H65: ='2018 Sector View Electric'!S86 -> 890429.384 | J65: ='2018 Sector View Gas'!S77 -> 81863.816 | K65: =H65:H69+J65:J69 -> 972293.2
B66: ax | D66: Market Research | H66: ='2018 Sector View Electric'!S87 -> 236763.97 | J66: ='2018 Sector View Gas'!S78 -> 35378.52 | K66: =H66:H70+J66:J70 -> 272142.49
B67: ay | D67: Program Evaluation | H67: ='2018 Sector View Electric'!S88 -> 2035606.818 | J67: ='2018 Sector View Gas'!S79 -> 264274.582 | K67: =H67:H71+J67:J71 -> 2299881.4
B68: az | D68: Biennial Electric Conservation Acquisition Review | H68: ='2018 Sector View Electric'!S89 -> 90000 | K68: =H68:H72+J68:J72 -> 90000
B69: ba | D69: Subtotal, Research & Compliance | H69: =SUM(H64:H68) -> 3755486.172 | J69: =SUM(J64:J68) -> 456630.918 | K69: =H69+J69 -> 4212117.09
B71: bb | C71: Total Savings, Efficiency Programs Included in CE Calculations | G71: =G22+G33+G38+G44 -> 281328.9803 | H71: =H22+H33+H38+H44+H61+H69 -> 98013002.44 | I71: =I22+I33+I38+I44 -> 3115728.22 | J71: =J22+J33+J38+J44+J61+J69 -> 14536065.84 | K71: =H71+J71 -> 112549068.3
D73: Other Electric Programs
B74: bc | C74: E150 | D74: Net Metering | H74: ='2018 Sector View Electric'!S95 -> 1063889.6
B75: bd | D75: Subtotal, Other Electric Programs | H75: =SUM(H74:H74) -> 1063889.6 | J75: =SUM(J74:J74) -> 0
B79: be | D79: GRAND TOTAL All Programs | G79: =G71 -> 281328.9803 | H79: =H71+H75 -> 99076892.04 | I79: =I71 -> 3115728.22 | J79: =J71+J75 -> 14536065.84 | K79: =H79+J79 -> 113612957.9
G80: =G79/8760 -> 32.1151804
B82: bf | E82: Blue cells = use for 10% "info-only" calculation: | H82: =(H38+H61)/H71 -> 0.06836358264 | J82: =(J38+J61)/J71 -> 0.07241656851
F83: Add up all blue cells and divide by "Total, Efficiency Programs Included in CE Calculations" line.
F84: HER program costs excluded from "info-only" calculation because savings will be measured.
B86: bg | E86: Purple cells = use to indicate a reasonable amt. spent on EM&V (condition (6)(c)): | H86: =(H47+H49+SUM(H67:H68))/(H22+H33) -> 0.04572991668 | J86: =(J47+J49+SUM(J67:J68))/(J22+J33) -> 0.04616251894
B87: bh | E87: EM&V Budget (WAC 480-109-120(1)(b)(vi)(B)) | H87: =(H47+H49+SUM(H67:H68)) -> 3766178.578 | J87: =(J47+J49+SUM(J67:J68)) -> 508740.822
F88: (Line bg) Add up the sum of [Data & Systems Services + Program Evaluation + BECAR + Verification] purple cells and divide by the [Residential + Business] purple cells.
F89: (Line bg) Add up the sum of [Data & Systems Services + Program Evaluation + BECAR + Verification] purple cells

Sheet Portfolio--2019 Specific
G1: 2019
F2: PSE Conservation Rider Savings Goals and Budgets
E3: Last revised: | F3: =NOW() -> 2017-11-01T10:50:25.970
B4: Ref # | C4: Schedule Nos. (Unless otherwise noted, applies to both electric and gas) | D4: Program Name | G4: MWh Savings | H4: Electric Rider Budget | I4: Therm Savings | J4: Gas Rider Budget | K4: Total Rider Budget
D5: (All indented program or activity names are color-coded and comprise the totals of the above program or activity grouping.)
D6: Residential Energy Management
B7: a | C7: 201 | D7: Low Income Weatherization | G7: ='2019 Sector View Elect'!T8/1000 -> 2066.03276 | H7: ='2019 Sector View Elect'!S8 -> 4005024.792 | I7: ='2019 Sector View Gas'!T8 -> 9769.97 | J7: ='2019 Sector View Gas'!S8 -> 289079.068 | K7: =H7:H22+J7:J22 -> 4294103.86
B8: b | C8: 214 | D8: Single Family Existing Subtotal | G8: =SUM(G9:G18) -> 84433.07898 | H8: =SUM(H9:H18) -> 22761397.39 | I8: =SUM(I9:I18) -> 1544535.75 | J8: =SUM(J9:J18) -> 6308019.569 | K8: 29069416.96
B9: c | E9: Residential lighting | G9: ='2019 Sector View Elect'!T16/1000 -> 59570.28623 | H9: ='2019 Sector View Elect'!S16 -> 11997139.92 | K9: 11997139.92
B10: d | E10: Space heat | G10: ='2019 Sector View Elect'!T12/1000 -> 7549.37 | H10: ='2019 Sector View Elect'!S12 -> 3304298.4 | I10: ='2019 Sector View Gas'!T12 -> 629097.9 | J10: ='2019 Sector View Gas'!S12 -> 2242206.6 | K10: 5546505
B11: e | E11: Water heat | G11: ='2019 Sector View Elect'!T10/1000 -> 980.452 | H11: ='2019 Sector View Elect'!S10 -> 402152.4 | I11: ='2019 Sector View Gas'!T10 -> 94125.5 | J11: ='2019 Sector View Gas'!S10 -> 287116.4 | K11: 689268.8
B12: f | E12: Single Family Rental Pilot | G12: ='2019 Sector View Elect'!T13/1000 -> 0 | H12: ='2019 Sector View Elect'!S13 -> 104778.4 | I12: ='2019 Sector View Gas'!T13 -> 0 | J12: ='2019 Sector View Gas'!S13 -> 94778.4 | K12: 199556.8
B13: g | E13: Home Energy Assessment | G13: ='2019 Sector View Elect'!T9/1000 -> 5148.285 | H13: ='2019 Sector View Elect'!S9 -> 2638879.7 | I13: ='2019 Sector View Gas'!T9 -> 0 | J13: ='2019 Sector View Gas'!S9 -> 0 | K13: 2638879.7
B14: h | E14: Home Appliances | G14: ='2019 Sector View Elect'!T14/1000 -> 6172.40275 | H14: ='2019 Sector View Elect'!S14 -> 2374444.2 | I14: ='2019 Sector View Gas'!T15 -> 11791.25 | J14: ='2019 Sector View Gas'!S15 -> 0 | K14: 2374444.2
B15: i | E15: Web-Enabled Thermostats | G15: ='2019 Sector View Elect'!T18/1000 -> 1457 | H15: ='2019 Sector View Elect'!S18 -> 164024.8 | I15: ='2019 Sector View Gas'!T16 -> 370500 | J15: ='2019 Sector View Gas'!S16 -> 647424.8 | K15: 811449.6
B16: j | E16: Showerheads | G16: ='2019 Sector View Elect'!T15/1000 -> 1476.223 | H16: ='2019 Sector View Elect'!S15 -> 417202.2344 | I16: ='2019 Sector View Gas'!T14 -> 60698.6 | J16: ='2019 Sector View Gas'!S14 -> 293461.3986 | K16: 710663.6329
B17: k | E17: Weatherization | G17: ='2019 Sector View Elect'!T11/1000 -> 2079.06 | H17: ='2019 Sector View Elect'!S11 -> 969269.6 | I17: ='2019 Sector View Gas'!T11 -> 378322.5 | J17: ='2019 Sector View Gas'!S11 -> 2642347 | K17: 3611616.6
B18: l | E18: Home Energy Reports | G18: ='2019 Sector View Elect'!T17 -> 0 | H18: ='2019 Sector View Elect'!S17 -> 389207.73 | I18: ='2019 Sector View Gas'!T17 -> 0 | J18: ='2019 Sector View Gas'!S17 -> 100684.97 | K18: 489892.7
B19: m | C19: 215 | D19: Single Family New Construction | G19: ='2019 Sector View Elect'!T19/1000+'2019 Sector View Elect'!T20/1000 -> 359.503 | H19: ='2019 Sector View Elect'!S19+'2019 Sector View Elect'!S20 -> 267861.2 | I19: =+'2019 Sector View Gas'!T18 -> 16045 | J19: ='2019 Sector View Gas'!S18 -> 113099.44 | K19: 380960.64
B20: n | C20: 217 | D20: Multifamily Retrofit | G20: ='2019 Sector View Elect'!T21/1000 -> 16234.96503 | H20: ='2019 Sector View Elect'!S21 -> 9170254.845 | I20: ='2019 Sector View Gas'!T19 -> 80226.8 | J20: ='2019 Sector View Gas'!S19 -> 640524 | K20: 9810778.845
B21: o | C21: 218 | D21: Multifamily New Construction | G21: ='2019 Sector View Elect'!T22/1000 -> 3496 | H21: ='2019 Sector View Elect'!S22 -> 1449411.26 | I21: ='2019 Sector View Gas'!T20 -> 55235 | J21: ='2019 Sector View Gas'!S20 -> 449846.2 | K21: 1899257.46
B22: p | D22: Total, Residential Programs | G22: =G7+G8+SUM(G19:G21) -> 106589.5798 | H22: =H7+H8+SUM(H19:H21) -> 37653949.48 | I22: =I7+I8+SUM(I19:I21) -> 1705812.52 | J22: =J7+J8+SUM(J19:J21) -> 7800568.277 | K22: 45454517.76
D24: Business Energy Management
B25: q | C25: 250 | D25: Commercial / Industrial Retrofit | G25: =('2019 Sector View Elect'!T27/1000)+('2019 Sector View Elect'!T28/1000) -> 60750 | H25: ='2019 Sector View Elect'!S27+'2019 Sector View Elect'!S28 -> 15422278.63 | I25: ='2019 Sector View Gas'!T26 -> 425000 | J25: ='2019 Sector View Gas'!S26 -> 1649600 | K25: =H25:H33+J25:J33 -> 17071878.63
B26: r | C26: 251 | D26: Commercial/Industrial New Construction | G26: ='2019 Sector View Elect'!T29/1000 -> 20000 | H26: ='2019 Sector View Elect'!S29 -> 4795910.4 | I26: ='2019 Sector View Gas'!T27 -> 105000 | J26: ='2019 Sector View Gas'!S27 -> 499460 | K26: 5295370.4
B27: s | C27: 253 | D27: Commercial Strategic Energy Management | G27: ='2019 Sector View Elect'!T30/1000 -> 13000 | H27: ='2019 Sector View Elect'!S30 -> 1419704 | I27: ='2019 Sector View Gas'!T28 -> 670000 | J27: ='2019 Sector View Gas'!S28 -> 570752 | K27: 1990456
B28: t | C28: E258 | D28: Large Power User - Self Directed Program Subtotal | G28: =G29+G30 -> 1000 | H28: =H29+H30 -> 1920547.222 | K28: 1920547.222
B29: u | C29: E258 | E29: 449 Customers | G29: ='2019 Sector View Elect'!T35/1000 -> 500 | H29: ='2019 Sector View Elect'!S35 -> 623340.4688 | K29: 623340.4688
B30: v | C30: E258 | E30: Non-449 Customers | G30: ='2019 Sector View Elect'!T36/1000 -> 500 | H30: ='2019 Sector View Elect'!S36 -> 1297206.754 | K30: 1297206.754
B31: w | C31: 261 | D31: Energy Efficient Technology Evaluation | G31: ='2019 Sector View Elect'!T37 -> 0 | H31: ='2019 Sector View Elect'!S37 -> 0 | I31: ='2019 Sector View Gas'!T31 -> 0 | J31: ='2019 Sector View Gas'!S31 -> 0 | K31: 0
B32: x | C32: 262 | D32: Commercial Rebates | G32: ='2019 Sector View Elect'!T38/1000 -> 20870.4063 | H32: ='2019 Sector View Elect'!S38 -> 6008652.64 | I32: ='2019 Sector View Gas'!T32 -> 140958.9 | J32: ='2019 Sector View Gas'!S32 -> 567309.4 | K32: 6575962.04
B33: y | D33: Subtotal, Business Programs | G33: =SUM(G25:G28)+SUM(G31:G32) -> 115620.4063 | H33: =SUM(H25:H28)+SUM(H31:H32) -> 29567092.89 | I33: =SUM(I25:I32) -> 1340958.9 | J33: =SUM(J25:J32) -> 3287121.4 | K33: 32854214.29
D35: Pilots With Uncertain Savings
B36: z | C36: 249 | D36: Residential | G36: ='2019 Sector View Elect'!T52 -> 0 | H36: ='2019 Sector View Elect'!S52 -> 0 | I36: ='2019 Sector View Gas'!T44 -> 0 | J36: ='2019 Sector View Gas'!S44 -> 0 | K36: =H36:H38+J36:J38 -> 0
B37: aa | C37: 249 | D37: Commercial Pay for Performance Pilot | G37: ='2019 Sector View Elect'!T53/1000 -> 3640 | H37: ='2019 Sector View Elect'!S53 -> 350000 | I37: ='2019 Sector View Gas'!T45 -> 32500 | J37: ='2019 Sector View Gas'!S45 -> 49688 | K37: 399688
B38: ab | D38: Subtotal, Pilots | G38: =SUM(G36:G37) -> 3640 | H38: =SUM(H36:H37) -> 350000 | I38: =SUM(I36:I37) -> 32500 | J38: =SUM(J36:J37) -> 49688 | K38: 399688
D40: Regional Efficiency Programs
B41: ac | C41: E254 | D41: NW Energy Efficiency Alliance (NEEA) | G41: ='2019 Sector View Elect'!T59/1000 -> 12526.8 | H41: ='2019 Sector View Elect'!S59 -> 5200000 | K41: =H41:H44+J41:J44 -> 5200000
B42: ad | D42: NEEA Natural Gas Market Transformation | I42: ='2019 Sector View Gas'!T51 -> 0 | J42: ='2019 Sector View Gas'!S51 -> 2434244 | K42: 2434244
B43: ae | C43: E292 | D43: Generation, Transmission and Distribution | G43: ='2019 Sector View Elect'!T60/1000 -> 750 | H43: ='2019 Sector View Elect'!S60 -> 0 | K43: 0
B44: af | D44: Subtotal, Regional Programs | G44: =SUM(G41:G43) -> 13276.8 | H44: =SUM(H41:H43) -> 5200000 | I44: =SUM(I41:I43) -> 0 | J44: =SUM(J41:J43) -> 2434244 | K44: 7634244
D46: Energy Efficiency Portfolio Support
B47: ag | D47: Data and Systems Services | H47: ='2019 Sector View Elect'!S66 -> 1101677.52 | J47: ='2019 Sector View Gas'!S57 -> 164618.48 | K47: =H47:H61+J47:J61 -> 1266296
B48: ah | D48: Rebates Processing | H48: ='2019 Sector View Elect'!S67 -> 562526.4 | J48: ='2019 Sector View Gas'!S58 -> 83483.6 | K48: 646010
B49: ai | D49: Verification Team | H49: ='2019 Sector View Elect'!S68 -> 538894.24 | J49: ='2019 Sector View Gas'!S59 -> 79847.76 | K49: 618742
B50: aj | D50: Programs Support | H50: ='2019 Sector View Elect'!S69 -> 414566.4 | J50: ='2019 Sector View Gas'!S60 -> 62153.6 | K50: 476720
B51: ak | D51: Trade Ally Support | H51: ='2019 Sector View Elect'!S70 -> 118000 | J51: ='2019 Sector View Gas'!S61 -> 22000 | K51: 140000
B52: al | D52: Contractor Alliance Network (net of revenue + cost) | H52: ='2019 Sector View Elect'!S71 -> 34000 | J52: ='2019 Sector View Gas'!S62 -> 34000 | K52: 68000
B53: am | D53: Automated Benchmarking System | H53: ='2019 Sector View Elect'!S72 -> 173620.248 | J53: ='2019 Sector View Gas'!S63 -> 77438.392 | K53: 251058.64
B54: an | D54: Energy Advisors | H54: ='2019 Sector View Elect'!S73 -> 1150707.12 | J54: ='2019 Sector View Gas'!S64 -> 173675.88 | K54: 1324383
B55: ao | D55: Energy Efficient Communities | H55: ='2019 Sector View Elect'!S74 -> 991335.6 | J55: ='2019 Sector View Gas'!S65 -> 143480.8 | K55: 1134816.4
B56: ap | D56: Customer Digital Experience | H56: ='2019 Sector View Elect'!S75 -> 586195.92 | J56: ='2019 Sector View Gas'!S66 -> 88203.76 | K56: 674399.68
B57: aq | D57: Market Integration | H57: ='2019 Sector View Elect'!S76 -> 261961.472 | J57: ='2019 Sector View Gas'!S67 -> 38972.928 | K57: 300934.4
B58: ar | D58: Events | H58: ='2019 Sector View Elect'!S77 -> 597862.32 | J58: ='2019 Sector View Gas'!S68 -> 111054 | K58: 708916.32
B59: as | D59: Brochures, non program-specific | H59: ='2019 Sector View Elect'!S78 -> 82624.4 | J59: ='2019 Sector View Gas'!S69 -> 9821.2 | K59: 92445.6
B60: at | C60: 202 | D60: Education | H60: ='2019 Sector View Elect'!S79 -> 8700 | J60: ='2019 Sector View Gas'!S70 -> 1300 | K60: 10000
B61: au | D61: Subtotal, Portfolio Support | H61: =SUM(H47:H60) -> 6622671.64 | J61: =SUM(J47:J60) -> 1090050.4 | K61: 7712722.04
D63: Energy Efficiency Research & Compliance
B64: av | D64: Conservation Supply Curves | H64: ='2019 Sector View Elect'!S85 -> 210366 | J64: ='2019 Sector View Gas'!S76 -> 31434 | K64: =H64:H68+J64:J68 -> 241800
B65: aw | D65: Strategic Planning | H65: ='2019 Sector View Elect'!S86 -> 786029.384 | J65: ='2019 Sector View Gas'!S77 -> 66263.816 | K65: =H65:H69+J65:J69 -> 852293.2
B66: ax | D66: Market Research | H66: ='2019 Sector View Elect'!S87 -> 234969.6 | J66: ='2019 Sector View Gas'!S78 -> 35110.4 | K66: =H66:H70+J66:J70 -> 270080
B67: ay | D67: Program Evaluation | H67: ='2019 Sector View Elect'!S88 -> 1993756.818 | J67: ='2019 Sector View Gas'!S79 -> 257124.582 | K67: =H67:H71+J67:J71 -> 2250881.4
B68: az | D68: Biennial Electric Conservation Acquisition Review | H68: ='2019 Sector View Elect'!S89 -> 75000 | K68: =H68:H72+J68:J72 -> 75000
B69: ba | D69: Subtotal, Research & Compliance | H69: =SUM(H64:H68) -> 3300121.802 | J69: =SUM(J64:J68) -> 389932.798 | K69: =H69+J69 -> 3690054.6
B71: bb | C71: Total Savings, Efficiency Programs Included in CE Calculations | G71: =G22+G33+G38+G44 -> 239126.7861 | H71: =H22+H33+H38+H44+H61+H69 -> 82693835.81 | I71: =I22+I33+I38+I44 -> 3079271.42 | J71: =J22+J33+J38+J44+J61+J69 -> 15051604.87 | K71: =H71+J71 -> 97745440.69
D73: Other Electric Programs
B74: bc | C74: E150 | D74: Net Metering | H74: ='2019 Sector View Elect'!S95 -> 1093889.6
B75: bd | D75: Subtotal, Other Electric Programs | H75: =SUM(H74:H74) -> 1093889.6 | J75: =SUM(J74:J74) -> 0
B79: be | D79: GRAND TOTAL All Programs | G79: =G71 -> 239126.7861 | H79: =H71+H75 -> 83787725.41 | I79: =I71 -> 3079271.42 | J79: =J71+J75 -> 15051604.87 | K79: =H79+J79 -> 98839330.29
G80: =G79/8760 -> 27.29757832
B82: bf | E82: Blue cells = use for 10% "info-only" calculation: | H82: =(H38+H61)/H71 -> 0.08431912211 | J82: =(J38+J61)/J71 -> 0.07572205154
F83: Add up all blue cells and divide by "Total, Efficiency Programs Included in CE Calculations" line.
F84: HER program costs excluded from "info-only" calculation because savings will be measured.
B86: bg | E86: Purple cells = use to indicate a reasonable amt. spent on EM&V (condition (6)(c)): | H86: =(H47+H49+SUM(H67:H68))/(H22+H33) -> 0.05518106306 | J86: =(J47+J49+SUM(J67:J68))/(J22+J33) -> 0.0452385336
B87: bh | E87: EM&V Budget (WAC 480-109-120(1)(b)(vi)(B)) | H87: =(H47+H49+SUM(H67:H68)) -> 3709328.578 | J87: =(J47+J49+SUM(J67:J68)) -> 501590.822
F88: (Line bg) Add up the sum of [Data & Systems Services + Program Evaluation + BECAR + Verification] purple cells and divide by the [Residential + Business] purple cells.
F89: (Line bh) Add up the sum of [Data & Systems Services + Program Evaluation + BECAR + Verification] purple cells

Sheet 2-year Sector View Electric
C2: Energy Efficiency 2018-2019 Budgets and Aggregate Program Savings
C3: Two-Year Sector View
C4: Electric Programs | I4: Please see category descriptions at the bottom of the sector table.
I5: Budget Category
B6: Workbook Name | C6: Schedule | D6: Comment | E6: Description (Blue, indented text indicates a sub-total value) | H6: Order Number (Click on the order# below to link to the detail page) | I6: Program Labor | J6: Marketing Labor | K6: Overhead | L6: Marketing | M6: Employee/Office Expense | N6: Outside Services | O6: Materials | P6: Miscellaneous | Q6: DBtC | R6: Revenue | S6: Total Budget | T6: Total Savings kWh | V6: Comments
C7: Residential Energy Management
B8: LIW Detail_REM E201_Elec | C8: E201 | E8: Low Income Weatherization | H8: 18230611 | I8: ='2018 Sector View Electric'!I8+'2019 Sector View Elect'!I8 -> 233600 | J8: ='2018 Sector View Electric'!J8+'2019 Sector View Elect'!J8 -> 35200 | K8: ='2018 Sector View Electric'!K8+'2019 Sector View Elect'!K8 -> 249446.4 | L8: ='2018 Sector View Electric'!L8+'2019 Sector View Elect'!L8 -> 108000 | M8: ='2018 Sector View Electric'!M8+'2019 Sector View Elect'!M8 -> 10000 | N8: ='2018 Sector View Electric'!N8+'2019 Sector View Elect'!N8 -> 50000 | O8: ='2018 Sector View Electric'!O8+'2019 Sector View Elect'!O8 -> 3000 | P8: ='2018 Sector View Electric'!P8+'2019 Sector View Elect'!P8 -> 3000 | Q8: ='2018 Sector View Electric'!Q8+'2019 Sector View Elect'!Q8 -> 7317803.184 | R8: ='2018 Sector View Electric'!R8+'2019 Sector View Elect'!R8 -> 0 | S8: ='2018 Sector View Electric'!S8+'2019 Sector View Elect'!S8 -> 8010049.584 | T8: ='2018 Sector View Electric'!T8+'2019 Sector View Elect'!T8 -> 4132065.52
B9: HomePrint Detail_REM_E214 Elec | C9: E214 | E9: Home Energy Assessments | H9: 18230625 | I9: ='2018 Sector View Electric'!I9+'2019 Sector View Elect'!I9 -> 81600 | J9: ='2018 Sector View Electric'!J9+'2019 Sector View Elect'!J9 -> 43200 | K9: ='2018 Sector View Electric'!K9+'2019 Sector View Elect'!K9 -> 115814.4 | L9: ='2018 Sector View Electric'!L9+'2019 Sector View Elect'!L9 -> 265000 | M9: ='2018 Sector View Electric'!M9+'2019 Sector View Elect'!M9 -> 3000 | N9: ='2018 Sector View Electric'!N9+'2019 Sector View Elect'!N9 -> 369200 | O9: ='2018 Sector View Electric'!O9+'2019 Sector View Elect'!O9 -> 0 | P9: ='2018 Sector View Electric'!P9+'2019 Sector View Elect'!P9 -> 2000 | Q9: ='2018 Sector View Electric'!Q9+'2019 Sector View Elect'!Q9 -> 4403945.001 | R9: ='2018 Sector View Electric'!R9+'2019 Sector View Elect'!R9 -> 0 | S9: ='2018 Sector View Electric'!S9+'2019 Sector View Elect'!S9 -> 5283759.401 | T9: ='2018 Sector View Electric'!T9+'2019 Sector View Elect'!T9 -> 10296570
B10: WaterHea_Detail_REM_E214 Elec | C10: E214 | E10: SF Existing Water Heat | H10: 18230626 | I10: ='2018 Sector View Electric'!I10+'2019 Sector View Elect'!I10 -> 35200 | J10: ='2018 Sector View Electric'!J10+'2019 Sector View Elect'!J10 -> 6400 | K10: ='2018 Sector View Electric'!K10+'2019 Sector View Elect'!K10 -> 38604.8 | L10: ='2018 Sector View Electric'!L10+'2019 Sector View Elect'!L10 -> 157500 | M10: ='2018 Sector View Electric'!M10+'2019 Sector View Elect'!M10 -> 2400 | N10: ='2018 Sector View Electric'!N10+'2019 Sector View Elect'!N10 -> 0 | O10: ='2018 Sector View Electric'!O10+'2019 Sector View Elect'!O10 -> 2000 | P10: ='2018 Sector View Electric'!P10+'2019 Sector View Elect'!P10 -> 1000 | Q10: ='2018 Sector View Electric'!Q10+'2019 Sector View Elect'!Q10 -> 561200 | R10: ='2018 Sector View Electric'!R10+'2019 Sector View Elect'!R10 -> 0 | S10: ='2018 Sector View Electric'!S10+'2019 Sector View Elect'!S10 -> 804304.8 | T10: ='2018 Sector View Electric'!T10+'2019 Sector View Elect'!T10 -> 1960904
B11: Wx_Detail_REM E214 Elec | C11: E214 | E11: SF Existing Weatherization | H11: 18230627 | I11: ='2018 Sector View Electric'!I11+'2019 Sector View Elect'!I11 -> 72000 | J11: ='2018 Sector View Electric'!J11+'2019 Sector View Elect'!J11 -> 54400 | K11: ='2018 Sector View Electric'!K11+'2019 Sector View Elect'!K11 -> 117299.2 | L11: ='2018 Sector View Electric'!L11+'2019 Sector View Elect'!L11 -> 275000 | M11: ='2018 Sector View Electric'!M11+'2019 Sector View Elect'!M11 -> 6000 | N11: ='2018 Sector View Electric'!N11+'2019 Sector View Elect'!N11 -> 220000 | O11: ='2018 Sector View Electric'!O11+'2019 Sector View Elect'!O11 -> 0 | P11: ='2018 Sector View Electric'!P11+'2019 Sector View Elect'!P11 -> 2000 | Q11: ='2018 Sector View Electric'!Q11+'2019 Sector View Elect'!Q11 -> 1191840 | R11: ='2018 Sector View Electric'!R11+'2019 Sector View Elect'!R11 -> 0 | S11: ='2018 Sector View Electric'!S11+'2019 Sector View Elect'!S11 -> 1938539.2 | T11: ='2018 Sector View Electric'!T11+'2019 Sector View Elect'!T11 -> 4158120
B12: SpcHeat Detail_REM_E214 Elec | C12: E214 | E12: SF Existing Space Heat | H12: 18230628 | I12: ='2018 Sector View Electric'!I12+'2019 Sector View Elect'!I12 -> 59200 | J12: ='2018 Sector View Electric'!J12+'2019 Sector View Elect'!J12 -> 46400 | K12: ='2018 Sector View Electric'!K12+'2019 Sector View Elect'!K12 -> 97996.8 | L12: ='2018 Sector View Electric'!L12+'2019 Sector View Elect'!L12 -> 456000 | M12: ='2018 Sector View Electric'!M12+'2019 Sector View Elect'!M12 -> 6000 | N12: ='2018 Sector View Electric'!N12+'2019 Sector View Elect'!N12 -> 0 | O12: ='2018 Sector View Electric'!O12+'2019 Sector View Elect'!O12 -> 2000 | P12: ='2018 Sector View Electric'!P12+'2019 Sector View Elect'!P12 -> 1000 | Q12: ='2018 Sector View Electric'!Q12+'2019 Sector View Elect'!Q12 -> 5940000 | R12: ='2018 Sector View Electric'!R12+'2019 Sector View Elect'!R12 -> 0 | S12: ='2018 Sector View Electric'!S12+'2019 Sector View Elect'!S12 -> 6608596.8 | T12: ='2018 Sector View Electric'!T12+'2019 Sector View Elect'!T12 -> 15098740
C13: E214 | D13: New for 2018-2019 | E13: SF Rentals Pilot | H13: 1823nnnn | I13: ='2018 Sector View Electric'!I13+'2019 Sector View Elect'!I13 -> 14400 | J13: ='2018 Sector View Electric'!J13+'2019 Sector View Elect'!J13 -> 11200 | K13: ='2018 Sector View Electric'!K13+'2019 Sector View Elect'!K13 -> 23756.8 | L13: ='2018 Sector View Electric'!L13+'2019 Sector View Elect'!L13 -> 25000 | M13: ='2018 Sector View Electric'!M13+'2019 Sector View Elect'!M13 -> 350 | N13: ='2018 Sector View Electric'!N13+'2019 Sector View Elect'!N13 -> 140000 | O13: ='2018 Sector View Electric'!O13+'2019 Sector View Elect'!O13 -> 0 | P13: ='2018 Sector View Electric'!P13+'2019 Sector View Elect'!P13 -> 0 | Q13: ='2018 Sector View Electric'!Q13+'2019 Sector View Elect'!Q13 -> 0 | R13: ='2018 Sector View Electric'!R13+'2019 Sector View Elect'!R13 -> 0 | S13: ='2018 Sector View Electric'!S13+'2019 Sector View Elect'!S13 -> 214706.8 | T13: ='2018 Sector View Electric'!T13+'2019 Sector View Elect'!T13 -> 0
B14: HmAppplc_Detail_REM_E214 Elec | C14: E214 | E14: Home Appliances | H14: 18230434 | I14: ='2018 Sector View Electric'!I14+'2019 Sector View Elect'!I14 -> 137600 | J14: ='2018 Sector View Electric'!J14+'2019 Sector View Elect'!J14 -> 78400 | K14: ='2018 Sector View Electric'!K14+'2019 Sector View Elect'!K14 -> 200448 | L14: ='2018 Sector View Electric'!L14+'2019 Sector View Elect'!L14 -> 411562 | M14: ='2018 Sector View Electric'!M14+'2019 Sector View Elect'!M14 -> 2000 | N14: ='2018 Sector View Electric'!N14+'2019 Sector View Elect'!N14 -> 190000 | O14: ='2018 Sector View Electric'!O14+'2019 Sector View Elect'!O14 -> 2000 | P14: ='2018 Sector View Electric'!P14+'2019 Sector View Elect'!P14 -> 1000 | Q14: ='2018 Sector View Electric'!Q14+'2019 Sector View Elect'!Q14 -> 3725878.4 | R14: ='2018 Sector View Electric'!R14+'2019 Sector View Elect'!R14 -> 0 | S14: ='2018 Sector View Electric'!S14+'2019 Sector View Elect'!S14 -> 4748888.4 | T14: ='2018 Sector View Electric'!T14+'2019 Sector View Elect'!T14 -> 12344805.5
B15: ShwrHead_Detail_REM_E214 Elec | C15: E214 | E15: Residential Showerheads | H15: 18230435 | I15: ='2018 Sector View Electric'!I15+'2019 Sector View Elect'!I15 -> 43200 | J15: ='2018 Sector View Electric'!J15+'2019 Sector View Elect'!J15 -> 6400 | K15: ='2018 Sector View Electric'!K15+'2019 Sector View Elect'!K15 -> 46028.8 | L15: ='2018 Sector View Electric'!L15+'2019 Sector View Elect'!L15 -> 161830 | M15: ='2018 Sector View Electric'!M15+'2019 Sector View Elect'!M15 -> 1000 | N15: ='2018 Sector View Electric'!N15+'2019 Sector View Elect'!N15 -> 24250 | O15: ='2018 Sector View Electric'!O15+'2019 Sector View Elect'!O15 -> 1000 | P15: ='2018 Sector View Electric'!P15+'2019 Sector View Elect'!P15 -> 500 | Q15: ='2018 Sector View Electric'!Q15+'2019 Sector View Elect'!Q15 -> 550195.6687 | R15: ='2018 Sector View Electric'!R15+'2019 Sector View Elect'!R15 -> 0 | S15: ='2018 Sector View Electric'!S15+'2019 Sector View Elect'!S15 -> 834404.4687 | T15: ='2018 Sector View Electric'!T15+'2019 Sector View Elect'!T15 -> 2952446
B16: Lighting Detail_REM_E214 Elec | C16: E214 | E16: Energy Efficient Lighting Services | H16: 18230440 | I16: ='2018 Sector View Electric'!I16+'2019 Sector View Elect'!I16 -> 333440 | J16: ='2018 Sector View Electric'!J16+'2019 Sector View Elect'!J16 -> 206400 | K16: ='2018 Sector View Electric'!K16+'2019 Sector View Elect'!K16 -> 500971.52 | L16: ='2018 Sector View Electric'!L16+'2019 Sector View Elect'!L16 -> 3075000 | M16: ='2018 Sector View Electric'!M16+'2019 Sector View Elect'!M16 -> 22000 | N16: ='2018 Sector View Electric'!N16+'2019 Sector View Elect'!N16 -> 3171487 | O16: ='2018 Sector View Electric'!O16+'2019 Sector View Elect'!O16 -> 16500 | P16: ='2018 Sector View Electric'!P16+'2019 Sector View Elect'!P16 -> 0 | Q16: ='2018 Sector View Electric'!Q16+'2019 Sector View Elect'!Q16 -> 17276791.71 | R16: ='2018 Sector View Electric'!R16+'2019 Sector View Elect'!R16 -> 0 | S16: ='2018 Sector View Electric'!S16+'2019 Sector View Elect'!S16 -> 24602590.23 | T16: ='2018 Sector View Electric'!T16+'2019 Sector View Elect'!T16 -> 122219903.7
B17: HER Detail_REM_E214 elec. | C17: E214 | E17: Home Energy Reports | H17: 18230461 | I17: ='2018 Sector View Electric'!I17+'2019 Sector View Elect'!I17 -> 49600 | J17: ='2018 Sector View Electric'!J17+'2019 Sector View Elect'!J17 -> 8000 | K17: ='2018 Sector View Electric'!K17+'2019 Sector View Elect'!K17 -> 53452.8 | L17: ='2018 Sector View Electric'!L17+'2019 Sector View Elect'!L17 -> 30762.66 | M17: ='2018 Sector View Electric'!M17+'2019 Sector View Elect'!M17 -> 1200 | N17: ='2018 Sector View Electric'!N17+'2019 Sector View Elect'!N17 -> 200500 | O17: ='2018 Sector View Electric'!O17+'2019 Sector View Elect'!O17 -> 200 | P17: ='2018 Sector View Electric'!P17+'2019 Sector View Elect'!P17 -> 300 | Q17: ='2018 Sector View Electric'!Q17+'2019 Sector View Elect'!Q17 -> 434400 | R17: ='2018 Sector View Electric'!R17+'2019 Sector View Elect'!R17 -> 0 | S17: ='2018 Sector View Electric'!S17+'2019 Sector View Elect'!S17 -> 778415.46 | T17: ='2018 Sector View Electric'!T17+'2019 Sector View Elect'!T17 -> 11600000
B18: Web Tstat Detail_REM E214 Elec | C18: E214 | E18: Web-Enabled Thermostat | H18: 18230023 | I18: ='2018 Sector View Electric'!I18+'2019 Sector View Elect'!I18 -> 53600 | J18: ='2018 Sector View Electric'!J18+'2019 Sector View Elect'!J18 -> 9600 | K18: ='2018 Sector View Electric'!K18+'2019 Sector View Elect'!K18 -> 58649.6 | L18: ='2018 Sector View Electric'!L18+'2019 Sector View Elect'!L18 -> 30000 | M18: ='2018 Sector View Electric'!M18+'2019 Sector View Elect'!M18 -> 200 | N18: ='2018 Sector View Electric'!N18+'2019 Sector View Elect'!N18 -> 24000 | O18: ='2018 Sector View Electric'!O18+'2019 Sector View Elect'!O18 -> 1000 | P18: ='2018 Sector View Electric'!P18+'2019 Sector View Elect'!P18 -> 1000 | Q18: ='2018 Sector View Electric'!Q18+'2019 Sector View Elect'!Q18 -> 135000 | R18: ='2018 Sector View Electric'!R18+'2019 Sector View Elect'!R18 -> 0 | S18: ='2018 Sector View Electric'!S18+'2019 Sector View Elect'!S18 -> 313049.6 | T18: ='2018 Sector View Electric'!T18+'2019 Sector View Elect'!T18 -> 2622600
B19: SFNC Detail_REM E215 Elec | C19: E215 | E19: Single Family New Construction | H19: 18230405 | I19: ='2018 Sector View Electric'!I19+'2019 Sector View Elect'!I19 -> 27200 | J19: ='2018 Sector View Electric'!J19+'2019 Sector View Elect'!J19 -> 8000 | K19: ='2018 Sector View Electric'!K19+'2019 Sector View Elect'!K19 -> 32665.6 | L19: ='2018 Sector View Electric'!L19+'2019 Sector View Elect'!L19 -> 8000 | M19: ='2018 Sector View Electric'!M19+'2019 Sector View Elect'!M19 -> 2000 | N19: ='2018 Sector View Electric'!N19+'2019 Sector View Elect'!N19 -> 0 | O19: ='2018 Sector View Electric'!O19+'2019 Sector View Elect'!O19 -> 0 | P19: ='2018 Sector View Electric'!P19+'2019 Sector View Elect'!P19 -> 0 | Q19: ='2018 Sector View Electric'!Q19+'2019 Sector View Elect'!Q19 -> 239000 | R19: ='2018 Sector View Electric'!R19+'2019 Sector View Elect'!R19 -> 0 | S19: ='2018 Sector View Electric'!S19+'2019 Sector View Elect'!S19 -> 316865.6 | T19: ='2018 Sector View Electric'!T19+'2019 Sector View Elect'!T19 -> 453141
B20: MfgHmNew Detail_REM E215 Elec | C20: E215 | E20: Manufactured Home New Construction | H20: 18230071 | I20: ='2018 Sector View Electric'!I20+'2019 Sector View Elect'!I20 -> 20800 | J20: ='2018 Sector View Electric'!J20+'2019 Sector View Elect'!J20 -> 4800 | K20: ='2018 Sector View Electric'!K20+'2019 Sector View Elect'!K20 -> 23756.8 | L20: ='2018 Sector View Electric'!L20+'2019 Sector View Elect'!L20 -> 34500 | M20: ='2018 Sector View Electric'!M20+'2019 Sector View Elect'!M20 -> 1000 | N20: ='2018 Sector View Electric'!N20+'2019 Sector View Elect'!N20 -> 3000 | O20: ='2018 Sector View Electric'!O20+'2019 Sector View Elect'!O20 -> 1000 | P20: ='2018 Sector View Electric'!P20+'2019 Sector View Elect'!P20 -> 0 | Q20: ='2018 Sector View Electric'!Q20+'2019 Sector View Elect'!Q20 -> 72500 | R20: ='2018 Sector View Electric'!R20+'2019 Sector View Elect'!R20 -> 0 | S20: ='2018 Sector View Electric'!S20+'2019 Sector View Elect'!S20 -> 161356.8 | T20: ='2018 Sector View Electric'!T20+'2019 Sector View Elect'!T20 -> 160640
B21: MF Retr Detail_REM E217 Elec | C21: E217 | E21: Multifamily Retrofit | H21: 18230407 | I21: ='2018 Sector View Electric'!I21+'2019 Sector View Elect'!I21 -> 289800 | J21: ='2018 Sector View Electric'!J21+'2019 Sector View Elect'!J21 -> 86400 | K21: ='2018 Sector View Electric'!K21+'2019 Sector View Elect'!K21 -> 349113.6 | L21: ='2018 Sector View Electric'!L21+'2019 Sector View Elect'!L21 -> 135000 | M21: ='2018 Sector View Electric'!M21+'2019 Sector View Elect'!M21 -> 8000 | N21: ='2018 Sector View Electric'!N21+'2019 Sector View Elect'!N21 -> 2984000 | O21: ='2018 Sector View Electric'!O21+'2019 Sector View Elect'!O21 -> 2000 | P21: ='2018 Sector View Electric'!P21+'2019 Sector View Elect'!P21 -> 2000 | Q21: ='2018 Sector View Electric'!Q21+'2019 Sector View Elect'!Q21 -> 15699696.09 | R21: ='2018 Sector View Electric'!R21+'2019 Sector View Elect'!R21 -> 0 | S21: ='2018 Sector View Electric'!S21+'2019 Sector View Elect'!S21 -> 19556009.69 | T21: ='2018 Sector View Electric'!T21+'2019 Sector View Elect'!T21 -> 33804000.06
B22: MFNC Detail_REM E218 Elec | C22: E218 | E22: Multi-Family New Construction | H22: 18230486 | I22: ='2018 Sector View Electric'!I22+'2019 Sector View Elect'!I22 -> 207440 | J22: ='2018 Sector View Electric'!J22+'2019 Sector View Elect'!J22 -> 8000 | K22: ='2018 Sector View Electric'!K22+'2019 Sector View Elect'!K22 -> 199928.32 | L22: ='2018 Sector View Electric'!L22+'2019 Sector View Elect'!L22 -> 70000 | M22: ='2018 Sector View Electric'!M22+'2019 Sector View Elect'!M22 -> 8000 | N22: ='2018 Sector View Electric'!N22+'2019 Sector View Elect'!N22 -> 605000 | O22: ='2018 Sector View Electric'!O22+'2019 Sector View Elect'!O22 -> 6000 | P22: ='2018 Sector View Electric'!P22+'2019 Sector View Elect'!P22 -> 0 | Q22: ='2018 Sector View Electric'!Q22+'2019 Sector View Elect'!Q22 -> 1570991.4 | R22: ='2018 Sector View Electric'!R22+'2019 Sector View Elect'!R22 -> 0 | S22: ='2018 Sector View Electric'!S22+'2019 Sector View Elect'!S22 -> 2675359.72 | T22: ='2018 Sector View Electric'!T22+'2019 Sector View Elect'!T22 -> 5994900
G23: Total, Residential Energy Management | I23: =SUM(I8:I22) -> 1658680 | J23: 612800 | K23: 2107933.44 | L23: 5243154.66 | M23: 73150 | N23: 7981437 | O23: 36700 | P23: 13800 | Q23: 59119241.45 | R23: =SUM(R8:R22) -> 0 | S23: 76846896.55 | T23: 227798835.7
H25: 2016-2017 Figures | I25: 2332949.327 | J25: 646734.15 | K25: 2006963.799 | L25: 6493846.23 | M25: 101708 | N25: 7410750 | O25: 134200 | P25: 86250 | Q25: 71946750.88 | R25: 0 | S25: 91160152.39 | T25: 261686218
C26: Business Energy Managment | Q26: 0.7892346491
B27: CI Retr Detail_BEM E250 Elec | C27: E250 | E27: Commercial/Industrial Retrofit | H27: 18230711 | I27: ='2018 Sector View Electric'!I27+'2019 Sector View Elect'!I27 -> 1375764.218 | J27: ='2018 Sector View Electric'!J27+'2019 Sector View Elect'!J27 -> 29000 | K27: ='2018 Sector View Electric'!K27+'2019 Sector View Elect'!K27 -> 1296665.194 | L27: ='2018 Sector View Electric'!L27+'2019 Sector View Elect'!L27 -> 20300 | M27: ='2018 Sector View Electric'!M27+'2019 Sector View Elect'!M27 -> 181400 | N27: ='2018 Sector View Electric'!N27+'2019 Sector View Elect'!N27 -> 1111400 | O27: ='2018 Sector View Electric'!O27+'2019 Sector View Elect'!O27 -> 0 | P27: ='2018 Sector View Electric'!P27+'2019 Sector View Elect'!P27 -> 0 | Q27: ='2018 Sector View Electric'!Q27+'2019 Sector View Elect'!Q27 -> 6460000 | R27: ='2018 Sector View Electric'!R27+'2019 Sector View Elect'!R27 -> 0 | S27: ='2018 Sector View Electric'!S27+'2019 Sector View Elect'!S27 -> 10474529.41 | T27: ='2018 Sector View Electric'!T27+'2019 Sector View Elect'!T27 -> 31000000
B28: BusLgtGrants_BEM E250 Elect | C28: E250 | E28: Custom Lighting Grants | H28: 18230724 | I28: ='2018 Sector View Electric'!I28+'2019 Sector View Elect'!I28 -> 2537500 | J28: ='2018 Sector View Electric'!J28+'2019 Sector View Elect'!J28 -> 6090 | K28: ='2018 Sector View Electric'!K28+'2019 Sector View Elect'!K28 -> 2358989.92 | L28: ='2018 Sector View Electric'!L28+'2019 Sector View Elect'!L28 -> 24000 | M28: ='2018 Sector View Electric'!M28+'2019 Sector View Elect'!M28 -> 90000 | N28: ='2018 Sector View Electric'!N28+'2019 Sector View Elect'!N28 -> 225000 | O28: ='2018 Sector View Electric'!O28+'2019 Sector View Elect'!O28 -> 7000 | P28: ='2018 Sector View Electric'!P28+'2019 Sector View Elect'!P28 -> 6000 | Q28: ='2018 Sector View Electric'!Q28+'2019 Sector View Elect'!Q28 -> 14875000 | R28: ='2018 Sector View Electric'!R28+'2019 Sector View Elect'!R28 -> 0 | S28: ='2018 Sector View Electric'!S28+'2019 Sector View Elect'!S28 -> 20129579.92 | T28: ='2018 Sector View Electric'!T28+'2019 Sector View Elect'!T28 -> 87500000
B29: CI NC Detail_BEM E251 Elec | C29: E251 | E29: Commercial/Industrial New Construction | H29: 18230715 | I29: ='2018 Sector View Electric'!I29+'2019 Sector View Elect'!I29 -> 672000 | J29: ='2018 Sector View Electric'!J29+'2019 Sector View Elect'!J29 -> 9600 | K29: ='2018 Sector View Electric'!K29+'2019 Sector View Elect'!K29 -> 630220.8 | L29: ='2018 Sector View Electric'!L29+'2019 Sector View Elect'!L29 -> 9600 | M29: ='2018 Sector View Electric'!M29+'2019 Sector View Elect'!M29 -> 9600 | N29: ='2018 Sector View Electric'!N29+'2019 Sector View Elect'!N29 -> 201600 | O29: ='2018 Sector View Electric'!O29+'2019 Sector View Elect'!O29 -> 14400 | P29: ='2018 Sector View Electric'!P29+'2019 Sector View Elect'!P29 -> 0 | Q29: ='2018 Sector View Electric'!Q29+'2019 Sector View Elect'!Q29 -> 8044800 | R29: ='2018 Sector View Electric'!R29+'2019 Sector View Elect'!R29 -> 0 | S29: ='2018 Sector View Electric'!S29+'2019 Sector View Elect'!S29 -> 9591820.8 | T29: ='2018 Sector View Electric'!T29+'2019 Sector View Elect'!T29 -> 40000000
E30: Commercial Strategic Energy Management | I30: ='2018 Sector View Electric'!I30+'2019 Sector View Elect'!I30 -> 873000 | J30: ='2018 Sector View Electric'!J30+'2019 Sector View Elect'!J30 -> 0 | K30: ='2018 Sector View Electric'!K30+'2019 Sector View Elect'!K30 -> 811344.24 | L30: ='2018 Sector View Electric'!L30+'2019 Sector View Elect'!L30 -> 10000 | M30: ='2018 Sector View Electric'!M30+'2019 Sector View Elect'!M30 -> 30000 | N30: ='2018 Sector View Electric'!N30+'2019 Sector View Elect'!N30 -> 87500 | O30: ='2018 Sector View Electric'!O30+'2019 Sector View Elect'!O30 -> 10000 | P30: ='2018 Sector View Electric'!P30+'2019 Sector View Elect'!P30 -> 20000 | Q30: ='2018 Sector View Electric'!Q30+'2019 Sector View Elect'!Q30 -> 1022500 | R30: ='2018 Sector View Electric'!R30+'2019 Sector View Elect'!R30 -> 0 | S30: ='2018 Sector View Electric'!S30+'2019 Sector View Elect'!S30 -> 2864344.24 | T30: ='2018 Sector View Electric'!T30+'2019 Sector View Elect'!T30 -> 26000000
B31: RCM Detail_BEM E253 Elec | C31: E253 | E31: SEM | H31: 18230723 | I31: ='2018 Sector View Electric'!I31+'2019 Sector View Elect'!I31 -> 773000 | J31: ='2018 Sector View Electric'!J31+'2019 Sector View Elect'!J31 -> 0 | K31: ='2018 Sector View Electric'!K31+'2019 Sector View Elect'!K31 -> 717344 | L31: ='2018 Sector View Electric'!L31+'2019 Sector View Elect'!L31 -> 10000 | M31: ='2018 Sector View Electric'!M31+'2019 Sector View Elect'!M31 -> 30000 | N31: ='2018 Sector View Electric'!N31+'2019 Sector View Elect'!N31 -> 30000 | O31: ='2018 Sector View Electric'!O31+'2019 Sector View Elect'!O31 -> 10000 | P31: ='2018 Sector View Electric'!P31+'2019 Sector View Elect'!P31 -> 20000 | Q31: ='2018 Sector View Electric'!Q31+'2019 Sector View Elect'!Q31 -> 1000000 | R31: ='2018 Sector View Electric'!R31+'2019 Sector View Elect'!R31 -> 0 | S31: ='2018 Sector View Electric'!S31+'2019 Sector View Elect'!S31 -> 2590344 | T31: ='2018 Sector View Electric'!T31+'2019 Sector View Elect'!T31 -> 26000000
B32: RCM U-S-B Detail_E253 Elec | C32: E253 | E32: Urban Smart Bellevue | H32: 18230414 | I32: ='2018 Sector View Electric'!I32+'2019 Sector View Elect'!I32 -> 0 | J32: ='2018 Sector View Electric'!J32+'2019 Sector View Elect'!J32 -> 0 | K32: ='2018 Sector View Electric'!K32+'2019 Sector View Elect'!K32 -> 0 | L32: ='2018 Sector View Electric'!L32+'2019 Sector View Elect'!L32 -> 0 | M32: ='2018 Sector View Electric'!M32+'2019 Sector View Elect'!M32 -> 0 | N32: ='2018 Sector View Electric'!N32+'2019 Sector View Elect'!N32 -> 27500 | O32: ='2018 Sector View Electric'!O32+'2019 Sector View Elect'!O32 -> 0 | P32: ='2018 Sector View Electric'!P32+'2019 Sector View Elect'!P32 -> 0 | Q32: ='2018 Sector View Electric'!Q32+'2019 Sector View Elect'!Q32 -> 22500 | R32: ='2018 Sector View Electric'!R32+'2019 Sector View Elect'!R32 -> 0 | S32: ='2018 Sector View Electric'!S32+'2019 Sector View Elect'!S32 -> 50000 | T32: ='2018 Sector View Electric'!T32+'2019 Sector View Elect'!T32 -> 0
B33: ResAcctSW Detail_PSWE_Elec | E33: Resource Accounting Software | H33: 18230502 | I33: ='2018 Sector View Electric'!I33+'2019 Sector View Elect'!I33 -> 100000 | J33: ='2018 Sector View Electric'!J33+'2019 Sector View Elect'!J33 -> 0 | K33: ='2018 Sector View Electric'!K33+'2019 Sector View Elect'!K33 -> 94000.24 | L33: ='2018 Sector View Electric'!L33+'2019 Sector View Elect'!L33 -> 0 | M33: ='2018 Sector View Electric'!M33+'2019 Sector View Elect'!M33 -> 0 | N33: ='2018 Sector View Electric'!N33+'2019 Sector View Elect'!N33 -> 30000 | O33: ='2018 Sector View Electric'!O33+'2019 Sector View Elect'!O33 -> 0 | P33: ='2018 Sector View Electric'!P33+'2019 Sector View Elect'!P33 -> 0 | Q33: ='2018 Sector View Electric'!Q33+'2019 Sector View Elect'!Q33 -> 0 | R33: ='2018 Sector View Electric'!R33+'2019 Sector View Elect'!R33 -> 0 | S33: ='2018 Sector View Electric'!S33+'2019 Sector View Elect'!S33 -> 224000.24 | T33: ='2018 Sector View Electric'!T33+'2019 Sector View Elect'!T33 -> 0
E34: High Voltage, Self-Directed | I34: ='2018 Sector View Electric'!I34+'2019 Sector View Elect'!I34 -> 702887.2796 | J34: ='2018 Sector View Electric'!J34+'2019 Sector View Elect'!J34 -> 0 | K34: ='2018 Sector View Electric'!K34+'2019 Sector View Elect'!K34 -> 653207.1651 | L34: ='2018 Sector View Electric'!L34+'2019 Sector View Elect'!L34 -> 0 | M34: ='2018 Sector View Electric'!M34+'2019 Sector View Elect'!M34 -> 0 | N34: ='2018 Sector View Electric'!N34+'2019 Sector View Elect'!N34 -> 0 | O34: ='2018 Sector View Electric'!O34+'2019 Sector View Elect'!O34 -> 0 | P34: ='2018 Sector View Electric'!P34+'2019 Sector View Elect'!P34 -> 0 | Q34: ='2018 Sector View Electric'!Q34+'2019 Sector View Elect'!Q34 -> 16235000 | R34: ='2018 Sector View Electric'!R34+'2019 Sector View Elect'!R34 -> 0 | S34: ='2018 Sector View Electric'!S34+'2019 Sector View Elect'!S34 -> 17591094.44 | T34: ='2018 Sector View Electric'!T34+'2019 Sector View Elect'!T34 -> 35693000
B35: LPSD_Detail_449_Elec | C35: E258 | E35: 449 Customers | H35: 18230720 | I35: ='2018 Sector View Electric'!I35+'2019 Sector View Elect'!I35 -> 189706 | J35: ='2018 Sector View Electric'!J35+'2019 Sector View Elect'!J35 -> 0 | K35: ='2018 Sector View Electric'!K35+'2019 Sector View Elect'!K35 -> 176974.9376 | L35: ='2018 Sector View Electric'!L35+'2019 Sector View Elect'!L35 -> 0 | M35: ='2018 Sector View Electric'!M35+'2019 Sector View Elect'!M35 -> 0 | N35: ='2018 Sector View Electric'!N35+'2019 Sector View Elect'!N35 -> 0 | O35: ='2018 Sector View Electric'!O35+'2019 Sector View Elect'!O35 -> 0 | P35: ='2018 Sector View Electric'!P35+'2019 Sector View Elect'!P35 -> 0 | Q35: ='2018 Sector View Electric'!Q35+'2019 Sector View Elect'!Q35 -> 7655000 | R35: ='2018 Sector View Electric'!R35+'2019 Sector View Elect'!R35 -> 0 | S35: ='2018 Sector View Electric'!S35+'2019 Sector View Elect'!S35 -> 8021680.938 | T35: ='2018 Sector View Electric'!T35+'2019 Sector View Elect'!T35 -> 18693000
B36: LPSD_Detail_Non-449 Elec | C36: E258 | E36: Non-449 Customers | H36: 18230721 | I36: ='2018 Sector View Electric'!I36+'2019 Sector View Elect'!I36 -> 513181.2796 | J36: ='2018 Sector View Electric'!J36+'2019 Sector View Elect'!J36 -> 0 | K36: ='2018 Sector View Electric'!K36+'2019 Sector View Elect'!K36 -> 476232.2275 | L36: ='2018 Sector View Electric'!L36+'2019 Sector View Elect'!L36 -> 0 | M36: ='2018 Sector View Electric'!M36+'2019 Sector View Elect'!M36 -> 0 | N36: ='2018 Sector View Electric'!N36+'2019 Sector View Elect'!N36 -> 0 | O36: ='2018 Sector View Electric'!O36+'2019 Sector View Elect'!O36 -> 0 | P36: ='2018 Sector View Electric'!P36+'2019 Sector View Elect'!P36 -> 0 | Q36: ='2018 Sector View Electric'!Q36+'2019 Sector View Elect'!Q36 -> 8580000 | R36: ='2018 Sector View Electric'!R36+'2019 Sector View Elect'!R36 -> 0 | S36: ='2018 Sector View Electric'!S36+'2019 Sector View Elect'!S36 -> 9569413.507 | T36: ='2018 Sector View Electric'!T36+'2019 Sector View Elect'!T36 -> 17000000
B37: TechEval Detail_BEM E261 Elec | C37: E261 | E37: Technology Evaluation | H37: 18230448 | I37: ='2018 Sector View Electric'!I37+'2019 Sector View Elect'!I37 -> 0 | J37: ='2018 Sector View Electric'!J37+'2019 Sector View Elect'!J37 -> 0 | K37: ='2018 Sector View Electric'!K37+'2019 Sector View Elect'!K37 -> 0 | L37: ='2018 Sector View Electric'!L37+'2019 Sector View Elect'!L37 -> 0 | M37: ='2018 Sector View Electric'!M37+'2019 Sector View Elect'!M37 -> 0 | N37: ='2018 Sector View Electric'!N37+'2019 Sector View Elect'!N37 -> 0 | O37: ='2018 Sector View Electric'!O37+'2019 Sector View Elect'!O37 -> 0 | P37: ='2018 Sector View Electric'!P37+'2019 Sector View Elect'!P37 -> 0 | Q37: ='2018 Sector View Electric'!Q37+'2019 Sector View Elect'!Q37 -> 0 | R37: ='2018 Sector View Electric'!R37+'2019 Sector View Elect'!R37 -> 0 | S37: ='2018 Sector View Electric'!S37+'2019 Sector View Elect'!S37 -> 0 | T37: ='2018 Sector View Electric'!T37+'2019 Sector View Elect'!T37 -> 0
C38: E262 | E38: Business Rebates | I38: ='2018 Sector View Electric'!I38+'2019 Sector View Elect'!I38 -> 376960 | J38: ='2018 Sector View Electric'!J38+'2019 Sector View Elect'!J38 -> 60800 | K38: ='2018 Sector View Electric'!K38+'2019 Sector View Elect'!K38 -> 406241.28 | L38: ='2018 Sector View Electric'!L38+'2019 Sector View Elect'!L38 -> 220000 | M38: ='2018 Sector View Electric'!M38+'2019 Sector View Elect'!M38 -> 31500 | N38: ='2018 Sector View Electric'!N38+'2019 Sector View Elect'!N38 -> 1817900 | O38: ='2018 Sector View Electric'!O38+'2019 Sector View Elect'!O38 -> 15500 | P38: ='2018 Sector View Electric'!P38+'2019 Sector View Elect'!P38 -> 8000 | Q38: ='2018 Sector View Electric'!Q38+'2019 Sector View Elect'!Q38 -> 9142872 | R38: ='2018 Sector View Electric'!R38+'2019 Sector View Elect'!R38 -> 0 | S38: ='2018 Sector View Electric'!S38+'2019 Sector View Elect'!S38 -> 12079773.28 | T38: ='2018 Sector View Electric'!T38+'2019 Sector View Elect'!T38 -> 41430330.6
B39: Comm Lgt Mkdn_E262 Elect | C39: E262 | E39: Lighting to Go--also referred to as Business Lighting Markdowns | H39: 18230714 | I39: ='2018 Sector View Electric'!I39+'2019 Sector View Elect'!I39 -> 28800 | J39: ='2018 Sector View Electric'!J39+'2019 Sector View Elect'!J39 -> 19200 | K39: ='2018 Sector View Electric'!K39+'2019 Sector View Elect'!K39 -> 44544 | L39: ='2018 Sector View Electric'!L39+'2019 Sector View Elect'!L39 -> 20000 | M39: ='2018 Sector View Electric'!M39+'2019 Sector View Elect'!M39 -> 5500 | N39: ='2018 Sector View Electric'!N39+'2019 Sector View Elect'!N39 -> 180000 | O39: ='2018 Sector View Electric'!O39+'2019 Sector View Elect'!O39 -> 500 | P39: ='2018 Sector View Electric'!P39+'2019 Sector View Elect'!P39 -> 1000 | Q39: ='2018 Sector View Electric'!Q39+'2019 Sector View Elect'!Q39 -> 732352 | R39: ='2018 Sector View Electric'!R39+'2019 Sector View Elect'!R39 -> 0 | S39: ='2018 Sector View Electric'!S39+'2019 Sector View Elect'!S39 -> 1031896 | T39: ='2018 Sector View Electric'!T39+'2019 Sector View Elect'!T39 -> 18389282
B40: Comm Kit-Laund_E262 Elect | C40: E262 | E40: Commercial kitchen and laundry | H40: 18230716 | I40: ='2018 Sector View Electric'!I40+'2019 Sector View Elect'!I40 -> 51200 | J40: ='2018 Sector View Electric'!J40+'2019 Sector View Elect'!J40 -> 12800 | K40: ='2018 Sector View Electric'!K40+'2019 Sector View Elect'!K40 -> 59392 | L40: ='2018 Sector View Electric'!L40+'2019 Sector View Elect'!L40 -> 30000 | M40: ='2018 Sector View Electric'!M40+'2019 Sector View Elect'!M40 -> 7000 | N40: ='2018 Sector View Electric'!N40+'2019 Sector View Elect'!N40 -> 0 | O40: ='2018 Sector View Electric'!O40+'2019 Sector View Elect'!O40 -> 0 | P40: ='2018 Sector View Electric'!P40+'2019 Sector View Elect'!P40 -> 0 | Q40: ='2018 Sector View Electric'!Q40+'2019 Sector View Elect'!Q40 -> 156020 | R40: ='2018 Sector View Electric'!R40+'2019 Sector View Elect'!R40 -> 0 | S40: ='2018 Sector View Electric'!S40+'2019 Sector View Elect'!S40 -> 316412 | T40: ='2018 Sector View Electric'!T40+'2019 Sector View Elect'!T40 -> 944048.6
B41: Comm HVAC_E262 Elect | C41: E262 | E41: Commercial HVAC | H41: 18230718 | I41: ='2018 Sector View Electric'!I41+'2019 Sector View Elect'!I41 -> 30400 | J41: ='2018 Sector View Electric'!J41+'2019 Sector View Elect'!J41 -> 8000 | K41: ='2018 Sector View Electric'!K41+'2019 Sector View Elect'!K41 -> 35635.2 | L41: ='2018 Sector View Electric'!L41+'2019 Sector View Elect'!L41 -> 10000 | M41: ='2018 Sector View Electric'!M41+'2019 Sector View Elect'!M41 -> 4000 | N41: ='2018 Sector View Electric'!N41+'2019 Sector View Elect'!N41 -> 0 | O41: ='2018 Sector View Electric'!O41+'2019 Sector View Elect'!O41 -> 10000 | P41: ='2018 Sector View Electric'!P41+'2019 Sector View Elect'!P41 -> 2000 | Q41: ='2018 Sector View Electric'!Q41+'2019 Sector View Elect'!Q41 -> 562500 | R41: ='2018 Sector View Electric'!R41+'2019 Sector View Elect'!R41 -> 0 | S41: ='2018 Sector View Electric'!S41+'2019 Sector View Elect'!S41 -> 662535.2 | T41: ='2018 Sector View Electric'!T41+'2019 Sector View Elect'!T41 -> 2067000
C42: E262 | D42: New for 2018-2019 | E42: Upstream Rooftop Units | H42: 1823zzzz | I42: ='2018 Sector View Electric'!I42+'2019 Sector View Elect'!I42 -> 35200 | J42: ='2018 Sector View Electric'!J42+'2019 Sector View Elect'!J42 -> 8000 | K42: ='2018 Sector View Electric'!K42+'2019 Sector View Elect'!K42 -> 40089.6 | L42: ='2018 Sector View Electric'!L42+'2019 Sector View Elect'!L42 -> 80000 | M42: ='2018 Sector View Electric'!M42+'2019 Sector View Elect'!M42 -> 2000 | N42: ='2018 Sector View Electric'!N42+'2019 Sector View Elect'!N42 -> 400000 | O42: ='2018 Sector View Electric'!O42+'2019 Sector View Elect'!O42 -> 1000 | P42: ='2018 Sector View Electric'!P42+'2019 Sector View Elect'!P42 -> 1000 | Q42: ='2018 Sector View Electric'!Q42+'2019 Sector View Elect'!Q42 -> 1400000 | R42: ='2018 Sector View Electric'!R42+'2019 Sector View Elect'!R42 -> 0 | S42: ='2018 Sector View Electric'!S42+'2019 Sector View Elect'!S42 -> 1967289.6 | T42: ='2018 Sector View Electric'!T42+'2019 Sector View Elect'!T42 -> 4230000
B43: Comm ExpLgt_E262 Elect | C43: E262 | E43: Business Lighting Express | H43: 18230722 | I43: ='2018 Sector View Electric'!I43+'2019 Sector View Elect'!I43 -> 0 | J43: ='2018 Sector View Electric'!J43+'2019 Sector View Elect'!J43 -> 0 | K43: ='2018 Sector View Electric'!K43+'2019 Sector View Elect'!K43 -> 0 | L43: ='2018 Sector View Electric'!L43+'2019 Sector View Elect'!L43 -> 0 | M43: ='2018 Sector View Electric'!M43+'2019 Sector View Elect'!M43 -> 0 | N43: ='2018 Sector View Electric'!N43+'2019 Sector View Elect'!N43 -> 0 | O43: ='2018 Sector View Electric'!O43+'2019 Sector View Elect'!O43 -> 0 | P43: ='2018 Sector View Electric'!P43+'2019 Sector View Elect'!P43 -> 0 | Q43: ='2018 Sector View Electric'!Q43+'2019 Sector View Elect'!Q43 -> 0 | R43: ='2018 Sector View Electric'!R43+'2019 Sector View Elect'!R43 -> 0 | S43: ='2018 Sector View Electric'!S43+'2019 Sector View Elect'!S43 -> 0 | T43: ='2018 Sector View Electric'!T43+'2019 Sector View Elect'!T43 -> 0
E44: Business Direct-Install Programs--Includes: | I44: =I45+I46+I47 -> 231360 | J44: =J45+J46+J47 -> 12800 | K44: 226580.48 | L44: 80000 | M44: 13000 | N44: 1237900 | O44: 4000 | P44: 4000 | Q44: 6292000 | R44: 0 | S44: =S45+S46+S47 -> 8101640.48 | T44: =T45+T46+T47 -> 15800000
B45: Sm Bus DI_E262 Elect | C45: E262 | F45: Small Business Direct Install | H45: 18231134 | I45: ='2018 Sector View Electric'!I45+'2019 Sector View Elect'!I45 -> 231360 | J45: ='2018 Sector View Electric'!J45+'2019 Sector View Elect'!J45 -> 12800 | K45: ='2018 Sector View Electric'!K45+'2019 Sector View Elect'!K45 -> 226580.48 | L45: ='2018 Sector View Electric'!L45+'2019 Sector View Elect'!L45 -> 80000 | M45: ='2018 Sector View Electric'!M45+'2019 Sector View Elect'!M45 -> 13000 | N45: ='2018 Sector View Electric'!N45+'2019 Sector View Elect'!N45 -> 1237900 | O45: ='2018 Sector View Electric'!O45+'2019 Sector View Elect'!O45 -> 4000 | P45: ='2018 Sector View Electric'!P45+'2019 Sector View Elect'!P45 -> 4000 | Q45: ='2018 Sector View Electric'!Q45+'2019 Sector View Elect'!Q45 -> 6292000 | R45: ='2018 Sector View Electric'!R45+'2019 Sector View Elect'!R45 -> 0 | S45: ='2018 Sector View Electric'!S45+'2019 Sector View Elect'!S45 -> 8101640.48 | T45: ='2018 Sector View Electric'!T45+'2019 Sector View Elect'!T45 -> 15800000
B46: Sm Agr DI_E262 Elect | C46: E262 | F46: Small Agriculture Direct Install | H46: 18230521 | I46: ='2018 Sector View Electric'!I46+'2019 Sector View Elect'!I46 -> 0 | J46: ='2018 Sector View Electric'!J46+'2019 Sector View Elect'!J46 -> 0 | K46: ='2018 Sector View Electric'!K46+'2019 Sector View Elect'!K46 -> 0 | L46: ='2018 Sector View Electric'!L46+'2019 Sector View Elect'!L46 -> 0 | M46: ='2018 Sector View Electric'!M46+'2019 Sector View Elect'!M46 -> 0 | N46: ='2018 Sector View Electric'!N46+'2019 Sector View Elect'!N46 -> 0 | O46: ='2018 Sector View Electric'!O46+'2019 Sector View Elect'!O46 -> 0 | P46: ='2018 Sector View Electric'!P46+'2019 Sector View Elect'!P46 -> 0 | Q46: ='2018 Sector View Electric'!Q46+'2019 Sector View Elect'!Q46 -> 0 | R46: ='2018 Sector View Electric'!R46+'2019 Sector View Elect'!R46 -> 0 | S46: ='2018 Sector View Electric'!S46+'2019 Sector View Elect'!S46 -> 0 | T46: ='2018 Sector View Electric'!T46+'2019 Sector View Elect'!T46 -> 0
B47: Lodging DI_E262 Elec | C47: E262 | F47: Lodging Direct Install | H47: 18230520 | I47: ='2018 Sector View Electric'!I47+'2019 Sector View Elect'!I47 -> 0 | J47: ='2018 Sector View Electric'!J47+'2019 Sector View Elect'!J47 -> 0 | K47: ='2018 Sector View Electric'!K47+'2019 Sector View Elect'!K47 -> 0 | L47: ='2018 Sector View Electric'!L47+'2019 Sector View Elect'!L47 -> 0 | M47: ='2018 Sector View Electric'!M47+'2019 Sector View Elect'!M47 -> 0 | N47: ='2018 Sector View Electric'!N47+'2019 Sector View Elect'!N47 -> 0 | O47: ='2018 Sector View Electric'!O47+'2019 Sector View Elect'!O47 -> 0 | P47: ='2018 Sector View Electric'!P47+'2019 Sector View Elect'!P47 -> 0 | Q47: ='2018 Sector View Electric'!Q47+'2019 Sector View Elect'!Q47 -> 0 | R47: ='2018 Sector View Electric'!R47+'2019 Sector View Elect'!R47 -> 0 | S47: ='2018 Sector View Electric'!S47+'2019 Sector View Elect'!S47 -> 0 | T47: ='2018 Sector View Electric'!T47+'2019 Sector View Elect'!T47 -> 0
G48: Total, Business Energy Management | I48: =SUM(I27:I30)+I34+I37+I38 -> 6538111.498 | J48: 105490 | K48: 6156668.599 | L48: 283900 | M48: 342500 | N48: 3443400 | O48: 46900 | P48: 34000 | Q48: 55780172 | R48: 0 | S48: =SUM(S27:S30)+S34+S37+S38 -> 72731142.1 | T48: 261623330.6
H50: 2016-2017 Figures | I50: 6541982.995 | J50: 197192.6287 | K50: 4499821.794 | L50: 442570 | M50: 287674 | N50: 5621694 | O50: 96466 | P50: 2062391 | Q50: 55881988.2 | R50: 0 | S50: 75631780.62
C51: Pilots With Uncertain Savings
B52: REM Pilots E249 Elec | C52: E249 | E52: Residential Pilots | H52: 18230522 | I52: ='2018 Sector View Electric'!I52+'2019 Sector View Elect'!I52 -> 0 | J52: ='2018 Sector View Electric'!J52+'2019 Sector View Elect'!J52 -> 0 | K52: ='2018 Sector View Electric'!K52+'2019 Sector View Elect'!K52 -> 0 | L52: ='2018 Sector View Electric'!L52+'2019 Sector View Elect'!L52 -> 0 | M52: ='2018 Sector View Electric'!M52+'2019 Sector View Elect'!M52 -> 0 | N52: ='2018 Sector View Electric'!N52+'2019 Sector View Elect'!N52 -> 0 | O52: ='2018 Sector View Electric'!O52+'2019 Sector View Elect'!O52 -> 0 | P52: ='2018 Sector View Electric'!P52+'2019 Sector View Elect'!P52 -> 0 | Q52: ='2018 Sector View Electric'!Q52+'2019 Sector View Elect'!Q52 -> 0 | R52: ='2018 Sector View Electric'!R52+'2019 Sector View Elect'!R52 -> 0 | S52: ='2018 Sector View Electric'!S52+'2019 Sector View Elect'!S52 -> 0 | T52: ='2018 Sector View Electric'!T52+'2019 Sector View Elect'!T52 -> 0
B53: BEM Pilots E249 Elec | C53: E249 | E53: Commercial Pay for Performance Pilot | H53: 1823pppp | I53: ='2018 Sector View Electric'!I53+'2019 Sector View Elect'!I53 -> 0 | J53: ='2018 Sector View Electric'!J53+'2019 Sector View Elect'!J53 -> 0 | K53: ='2018 Sector View Electric'!K53+'2019 Sector View Elect'!K53 -> 0 | L53: ='2018 Sector View Electric'!L53+'2019 Sector View Elect'!L53 -> 0 | M53: ='2018 Sector View Electric'!M53+'2019 Sector View Elect'!M53 -> 0 | N53: ='2018 Sector View Electric'!N53+'2019 Sector View Elect'!N53 -> 0 | O53: ='2018 Sector View Electric'!O53+'2019 Sector View Elect'!O53 -> 0 | P53: ='2018 Sector View Electric'!P53+'2019 Sector View Elect'!P53 -> 0 | Q53: ='2018 Sector View Electric'!Q53+'2019 Sector View Elect'!Q53 -> 434000 | R53: ='2018 Sector View Electric'!R53+'2019 Sector View Elect'!R53 -> 0 | S53: ='2018 Sector View Electric'!S53+'2019 Sector View Elect'!S53 -> 434000 | T53: ='2018 Sector View Electric'!T53+'2019 Sector View Elect'!T53 -> 4480000
G54: Total, Pilots | I54: =SUM(I52:I53) -> 0 | J54: =SUM(J52:J53) -> 0 | K54: 0 | L54: 0 | M54: 0 | N54: 0 | O54: 0 | P54: 0 | Q54: 434000 | R54: 0 | S54: 434000 | T54: 4480000
H56: 2016-2017 Figures | I56: 55594.8 | J56: 8000.04 | K56: 42417.75828 | L56: 18827.4 | M56: 4000 | N56: 422538 | O56: 1000 | P56: 2000 | Q56: 422521 | R56: 0 | S56: 976898.9983 | T56: 17346930
C58: Regional Efficiency Programs
B59: NEEA Detail_E254 elec | C59: E254 | E59: Northwest Energy Efficiency Alliance | H59: 18230421 | I59: ='2018 Sector View Electric'!I59+'2019 Sector View Elect'!I59 -> 0 | J59: ='2018 Sector View Electric'!J59+'2019 Sector View Elect'!J59 -> 0 | K59: ='2018 Sector View Electric'!K59+'2019 Sector View Elect'!K59 -> 0 | L59: ='2018 Sector View Electric'!L59+'2019 Sector View Elect'!L59 -> 0 | M59: ='2018 Sector View Electric'!M59+'2019 Sector View Elect'!M59 -> 0 | N59: ='2018 Sector View Electric'!N59+'2019 Sector View Elect'!N59 -> 3120000 | O59: ='2018 Sector View Electric'!O59+'2019 Sector View Elect'!O59 -> 0 | P59: ='2018 Sector View Electric'!P59+'2019 Sector View Elect'!P59 -> 0 | Q59: ='2018 Sector View Electric'!Q59+'2019 Sector View Elect'!Q59 -> 7280000 | R59: ='2018 Sector View Electric'!R59+'2019 Sector View Elect'!R59 -> 0 | S59: ='2018 Sector View Electric'!S59+'2019 Sector View Elect'!S59 -> 10400000 | T59: ='2018 Sector View Electric'!T59+'2019 Sector View Elect'!T59 -> 25053600
B60: T&D Detail_Reg E292 elec | C60: E292 | E60: Transmission & Distribution | H60: 18230711 | I60: ='2018 Sector View Electric'!I60+'2019 Sector View Elect'!I60 -> 0 | J60: ='2018 Sector View Electric'!J60+'2019 Sector View Elect'!J60 -> 0 | K60: ='2018 Sector View Electric'!K60+'2019 Sector View Elect'!K60 -> 0 | L60: ='2018 Sector View Electric'!L60+'2019 Sector View Elect'!L60 -> 0 | M60: ='2018 Sector View Electric'!M60+'2019 Sector View Elect'!M60 -> 0 | N60: ='2018 Sector View Electric'!N60+'2019 Sector View Elect'!N60 -> 0 | O60: ='2018 Sector View Electric'!O60+'2019 Sector View Elect'!O60 -> 0 | P60: ='2018 Sector View Electric'!P60+'2019 Sector View Elect'!P60 -> 0 | Q60: ='2018 Sector View Electric'!Q60+'2019 Sector View Elect'!Q60 -> 0 | R60: ='2018 Sector View Electric'!R60+'2019 Sector View Elect'!R60 -> 0 | S60: ='2018 Sector View Electric'!S60+'2019 Sector View Elect'!S60 -> 0 | T60: ='2018 Sector View Electric'!T60+'2019 Sector View Elect'!T60 -> 1500000
G61: Total, Regional Efficiency Programs | I61: =SUM(I59:I60) -> 0 | J61: =SUM(J59:J60) -> 0 | K61: 0 | L61: 0 | M61: 0 | N61: 3120000 | O61: 0 | P61: 0 | Q61: 7280000 | R61: 0 | S61: 10400000 | T61: 26553600
H63: 2016-2017 Figures | I63: 0 | J63: 0 | K63: 0 | L63: 0 | M63: 0 | N63: 1771139 | O63: 0 | P63: 1385245 | Q63: 7364896 | R63: 0 | S63: 10521300 | T63: 54986000
C65: Energy Efficiency Portfolio Support
B66: Data & Systm Svcs_Elect | E66: Data and Systems Services | H66: 18230745 | I66: ='2018 Sector View Electric'!I66+'2019 Sector View Elect'!I66 -> 838680 | J66: ='2018 Sector View Electric'!J66+'2019 Sector View Elect'!J66 -> 0 | K66: ='2018 Sector View Electric'!K66+'2019 Sector View Elect'!K66 -> 778295.04 | L66: ='2018 Sector View Electric'!L66+'2019 Sector View Elect'!L66 -> 0 | M66: ='2018 Sector View Electric'!M66+'2019 Sector View Elect'!M66 -> 20880 | N66: ='2018 Sector View Electric'!N66+'2019 Sector View Elect'!N66 -> 565500 | O66: ='2018 Sector View Electric'!O66+'2019 Sector View Elect'!O66 -> 0 | P66: ='2018 Sector View Electric'!P66+'2019 Sector View Elect'!P66 -> 0 | Q66: ='2018 Sector View Electric'!Q66+'2019 Sector View Elect'!Q66 -> 0 | R66: ='2018 Sector View Electric'!R66+'2019 Sector View Elect'!R66 -> 0 | S66: ='2018 Sector View Electric'!S66+'2019 Sector View Elect'!S66 -> 2203355.04
B67: Rebt Procg Detail_Elect | E67: Rebates Processing | H67: 18230507 | I67: ='2018 Sector View Electric'!I67+'2019 Sector View Elect'!I67 -> 557600 | J67: ='2018 Sector View Electric'!J67+'2019 Sector View Elect'!J67 -> 0 | K67: ='2018 Sector View Electric'!K67+'2019 Sector View Elect'!K67 -> 517452.8 | L67: ='2018 Sector View Electric'!L67+'2019 Sector View Elect'!L67 -> 0 | M67: ='2018 Sector View Electric'!M67+'2019 Sector View Elect'!M67 -> 40000 | N67: ='2018 Sector View Electric'!N67+'2019 Sector View Elect'!N67 -> 0 | O67: ='2018 Sector View Electric'!O67+'2019 Sector View Elect'!O67 -> 10000 | P67: ='2018 Sector View Electric'!P67+'2019 Sector View Elect'!P67 -> 0 | Q67: ='2018 Sector View Electric'!Q67+'2019 Sector View Elect'!Q67 -> 0 | R67: ='2018 Sector View Electric'!R67+'2019 Sector View Elect'!R67 -> 0 | S67: ='2018 Sector View Electric'!S67+'2019 Sector View Elect'!S67 -> 1125052.8
B68: VTeam Detail_R&C_Elec | E68: Verification Team | H68: 18230418 | I68: ='2018 Sector View Electric'!I68+'2019 Sector View Elect'!I68 -> 460160 | J68: ='2018 Sector View Electric'!J68+'2019 Sector View Elect'!J68 -> 0 | K68: ='2018 Sector View Electric'!K68+'2019 Sector View Elect'!K68 -> 427028.48 | L68: ='2018 Sector View Electric'!L68+'2019 Sector View Elect'!L68 -> 0 | M68: ='2018 Sector View Electric'!M68+'2019 Sector View Elect'!M68 -> 21600 | N68: ='2018 Sector View Electric'!N68+'2019 Sector View Elect'!N68 -> 156600 | O68: ='2018 Sector View Electric'!O68+'2019 Sector View Elect'!O68 -> 12400 | P68: ='2018 Sector View Electric'!P68+'2019 Sector View Elect'!P68 -> 0 | Q68: ='2018 Sector View Electric'!Q68+'2019 Sector View Elect'!Q68 -> 0 | R68: ='2018 Sector View Electric'!R68+'2019 Sector View Elect'!R68 -> 0 | S68: ='2018 Sector View Electric'!S68+'2019 Sector View Elect'!S68 -> 1077788.48
B69: ProgDev Detail_R&C_ Elec | E69: Programs Support | H69: 18230810 | I69: ='2018 Sector View Electric'!I69+'2019 Sector View Elect'!I69 -> 417600 | J69: ='2018 Sector View Electric'!J69+'2019 Sector View Elect'!J69 -> 0 | K69: ='2018 Sector View Electric'!K69+'2019 Sector View Elect'!K69 -> 387532.8 | L69: ='2018 Sector View Electric'!L69+'2019 Sector View Elect'!L69 -> 0 | M69: ='2018 Sector View Electric'!M69+'2019 Sector View Elect'!M69 -> 24000 | N69: ='2018 Sector View Electric'!N69+'2019 Sector View Elect'!N69 -> 0 | O69: ='2018 Sector View Electric'!O69+'2019 Sector View Elect'!O69 -> 0 | P69: ='2018 Sector View Electric'!P69+'2019 Sector View Elect'!P69 -> 0 | Q69: ='2018 Sector View Electric'!Q69+'2019 Sector View Elect'!Q69 -> 0 | R69: ='2018 Sector View Electric'!R69+'2019 Sector View Elect'!R69 -> 0 | S69: ='2018 Sector View Electric'!S69+'2019 Sector View Elect'!S69 -> 829132.8
B70: TradeAlly Detail_PS_ Elec | E70: Trade Ally Support | H70: 18230730 | I70: ='2018 Sector View Electric'!I70+'2019 Sector View Elect'!I70 -> 0 | J70: ='2018 Sector View Electric'!J70+'2019 Sector View Elect'!J70 -> 0 | K70: ='2018 Sector View Electric'!K70+'2019 Sector View Elect'!K70 -> 0 | L70: ='2018 Sector View Electric'!L70+'2019 Sector View Elect'!L70 -> 0 | M70: ='2018 Sector View Electric'!M70+'2019 Sector View Elect'!M70 -> 0 | N70: ='2018 Sector View Electric'!N70+'2019 Sector View Elect'!N70 -> 236000 | O70: ='2018 Sector View Electric'!O70+'2019 Sector View Elect'!O70 -> 0 | P70: ='2018 Sector View Electric'!P70+'2019 Sector View Elect'!P70 -> 0 | Q70: ='2018 Sector View Electric'!Q70+'2019 Sector View Elect'!Q70 -> 0 | R70: ='2018 Sector View Electric'!R70+'2019 Sector View Elect'!R70 -> 0 | S70: ='2018 Sector View Electric'!S70+'2019 Sector View Elect'!S70 -> 236000
B71: CAN_Elect | E71: Contractor Alliance Network (revenue + cost) | H71: 18230746 | I71: ='2018 Sector View Electric'!I71+'2019 Sector View Elect'!I71 -> 140800 | J71: ='2018 Sector View Electric'!J71+'2019 Sector View Elect'!J71 -> 6400 | K71: ='2018 Sector View Electric'!K71+'2019 Sector View Elect'!K71 -> 136601.6 | L71: ='2018 Sector View Electric'!L71+'2019 Sector View Elect'!L71 -> 40000 | M71: ='2018 Sector View Electric'!M71+'2019 Sector View Elect'!M71 -> 10000 | N71: ='2018 Sector View Electric'!N71+'2019 Sector View Elect'!N71 -> 228000 | O71: ='2018 Sector View Electric'!O71+'2019 Sector View Elect'!O71 -> 3000 | P71: ='2018 Sector View Electric'!P71+'2019 Sector View Elect'!P71 -> 0 | Q71: ='2018 Sector View Electric'!Q71+'2019 Sector View Elect'!Q71 -> 0 | R71: ='2018 Sector View Electric'!R71+'2019 Sector View Elect'!R71 -> -564801.6 | S71: ='2018 Sector View Electric'!S71+'2019 Sector View Elect'!S71 -> 0
B72: ABS Detail_PSWE_Elec | E72: Automated Benchmarking System | H72: 18230411 | I72: ='2018 Sector View Electric'!I72+'2019 Sector View Elect'!I72 -> 124891 | J72: ='2018 Sector View Electric'!J72+'2019 Sector View Elect'!J72 -> 0 | K72: ='2018 Sector View Electric'!K72+'2019 Sector View Elect'!K72 -> 115898.848 | L72: ='2018 Sector View Electric'!L72+'2019 Sector View Elect'!L72 -> 0 | M72: ='2018 Sector View Electric'!M72+'2019 Sector View Elect'!M72 -> 0 | N72: ='2018 Sector View Electric'!N72+'2019 Sector View Elect'!N72 -> 136500 | O72: ='2018 Sector View Electric'!O72+'2019 Sector View Elect'!O72 -> 0 | P72: ='2018 Sector View Electric'!P72+'2019 Sector View Elect'!P72 -> 0 | Q72: ='2018 Sector View Electric'!Q72+'2019 Sector View Elect'!Q72 -> 0 | R72: ='2018 Sector View Electric'!R72+'2019 Sector View Elect'!R72 -> 0 | S72: ='2018 Sector View Electric'!S72+'2019 Sector View Elect'!S72 -> 377289.848
B73: Engy Adv Detail_PSCE Elec | E73: Energy Advisors | H73: 18230610 | I73: ='2018 Sector View Electric'!I73+'2019 Sector View Elect'!I73 -> 1308480 | J73: ='2018 Sector View Electric'!J73+'2019 Sector View Elect'!J73 -> 0 | K73: ='2018 Sector View Electric'!K73+'2019 Sector View Elect'!K73 -> 900234.24 | L73: ='2018 Sector View Electric'!L73+'2019 Sector View Elect'!L73 -> 0 | M73: ='2018 Sector View Electric'!M73+'2019 Sector View Elect'!M73 -> 88000 | N73: ='2018 Sector View Electric'!N73+'2019 Sector View Elect'!N73 -> 2000 | O73: ='2018 Sector View Electric'!O73+'2019 Sector View Elect'!O73 -> 0 | P73: ='2018 Sector View Electric'!P73+'2019 Sector View Elect'!P73 -> 2700 | Q73: ='2018 Sector View Electric'!Q73+'2019 Sector View Elect'!Q73 -> 0 | R73: ='2018 Sector View Electric'!R73+'2019 Sector View Elect'!R73 -> 0 | S73: ='2018 Sector View Electric'!S73+'2019 Sector View Elect'!S73 -> 2301414.24
B74: EEC Detail_PS_Elec | E74: Energy Efficient Communities | H74: 18230811 | I74: ='2018 Sector View Electric'!I74+'2019 Sector View Elect'!I74 -> 888400 | J74: ='2018 Sector View Electric'!J74+'2019 Sector View Elect'!J74 -> 12000 | K74: ='2018 Sector View Electric'!K74+'2019 Sector View Elect'!K74 -> 619475.2 | L74: ='2018 Sector View Electric'!L74+'2019 Sector View Elect'!L74 -> 274080 | M74: ='2018 Sector View Electric'!M74+'2019 Sector View Elect'!M74 -> 70470 | N74: ='2018 Sector View Electric'!N74+'2019 Sector View Elect'!N74 -> 88500 | O74: ='2018 Sector View Electric'!O74+'2019 Sector View Elect'!O74 -> 23745 | P74: ='2018 Sector View Electric'!P74+'2019 Sector View Elect'!P74 -> 0 | Q74: ='2018 Sector View Electric'!Q74+'2019 Sector View Elect'!Q74 -> 0 | R74: ='2018 Sector View Electric'!R74+'2019 Sector View Elect'!R74 -> 0 | S74: ='2018 Sector View Electric'!S74+'2019 Sector View Elect'!S74 -> 1976670.2
B75: CustOnline Detail_PSWE_Elec | E75: Customer Digital Experience | H75: 18230408 | I75: ='2018 Sector View Electric'!I75+'2019 Sector View Elect'!I75 -> 203680 | J75: ='2018 Sector View Electric'!J75+'2019 Sector View Elect'!J75 -> 0 | K75: ='2018 Sector View Electric'!K75+'2019 Sector View Elect'!K75 -> 140131.84 | L75: ='2018 Sector View Electric'!L75+'2019 Sector View Elect'!L75 -> 0 | M75: ='2018 Sector View Electric'!M75+'2019 Sector View Elect'!M75 -> 0 | N75: ='2018 Sector View Electric'!N75+'2019 Sector View Elect'!N75 -> 828580 | O75: ='2018 Sector View Electric'!O75+'2019 Sector View Elect'!O75 -> 0 | P75: ='2018 Sector View Electric'!P75+'2019 Sector View Elect'!P75 -> 0 | Q75: ='2018 Sector View Electric'!Q75+'2019 Sector View Elect'!Q75 -> 0 | R75: ='2018 Sector View Electric'!R75+'2019 Sector View Elect'!R75 -> 0 | S75: ='2018 Sector View Electric'!S75+'2019 Sector View Elect'!S75 -> 1172391.84
B76: Mkt Intgn Detail_PSWE_Elec | E76: Market Integration | H76: 18230466 | I76: ='2018 Sector View Electric'!I76+'2019 Sector View Elect'!I76 -> 293888 | J76: ='2018 Sector View Electric'!J76+'2019 Sector View Elect'!J76 -> 0 | K76: ='2018 Sector View Electric'!K76+'2019 Sector View Elect'!K76 -> 202194.944 | L76: ='2018 Sector View Electric'!L76+'2019 Sector View Elect'!L76 -> 0 | M76: ='2018 Sector View Electric'!M76+'2019 Sector View Elect'!M76 -> 0 | N76: ='2018 Sector View Electric'!N76+'2019 Sector View Elect'!N76 -> 27840 | O76: ='2018 Sector View Electric'!O76+'2019 Sector View Elect'!O76 -> 0 | P76: ='2018 Sector View Electric'!P76+'2019 Sector View Elect'!P76 -> 0 | Q76: ='2018 Sector View Electric'!Q76+'2019 Sector View Elect'!Q76 -> 0 | R76: ='2018 Sector View Electric'!R76+'2019 Sector View Elect'!R76 -> 0 | S76: ='2018 Sector View Electric'!S76+'2019 Sector View Elect'!S76 -> 523922.944
B77: Events Detail_PSCE Elec | E77: Events | H77: 18230602 | I77: ='2018 Sector View Electric'!I77+'2019 Sector View Elect'!I77 -> 601680 | J77: ='2018 Sector View Electric'!J77+'2019 Sector View Elect'!J77 -> 2600 | K77: ='2018 Sector View Electric'!K77+'2019 Sector View Elect'!K77 -> 415744.64 | L77: ='2018 Sector View Electric'!L77+'2019 Sector View Elect'!L77 -> 13920 | M77: ='2018 Sector View Electric'!M77+'2019 Sector View Elect'!M77 -> 7810 | N77: ='2018 Sector View Electric'!N77+'2019 Sector View Elect'!N77 -> 182200 | O77: ='2018 Sector View Electric'!O77+'2019 Sector View Elect'!O77 -> 9570 | P77: ='2018 Sector View Electric'!P77+'2019 Sector View Elect'!P77 -> 0 | Q77: ='2018 Sector View Electric'!Q77+'2019 Sector View Elect'!Q77 -> 0 | R77: ='2018 Sector View Electric'!R77+'2019 Sector View Elect'!R77 -> 0 | S77: ='2018 Sector View Electric'!S77+'2019 Sector View Elect'!S77 -> 1233524.64
B78: Brochures Detail_PSCE Elec | E78: Brochures, non program-specific | H78: 18230482 | I78: ='2018 Sector View Electric'!I78+'2019 Sector View Elect'!I78 -> 35200 | J78: ='2018 Sector View Electric'!J78+'2019 Sector View Elect'!J78 -> 17400 | K78: ='2018 Sector View Electric'!K78+'2019 Sector View Elect'!K78 -> 36188.8 | L78: ='2018 Sector View Electric'!L78+'2019 Sector View Elect'!L78 -> 26000 | M78: ='2018 Sector View Electric'!M78+'2019 Sector View Elect'!M78 -> 0 | N78: ='2018 Sector View Electric'!N78+'2019 Sector View Elect'!N78 -> 5220 | O78: ='2018 Sector View Electric'!O78+'2019 Sector View Elect'!O78 -> 45240 | P78: ='2018 Sector View Electric'!P78+'2019 Sector View Elect'!P78 -> 0 | Q78: ='2018 Sector View Electric'!Q78+'2019 Sector View Elect'!Q78 -> 0 | R78: ='2018 Sector View Electric'!R78+'2019 Sector View Elect'!R78 -> 0 | S78: ='2018 Sector View Electric'!S78+'2019 Sector View Elect'!S78 -> 165248.8
B79: Educatn Detail_PSCE E202 Elec | C79: E202 | E79: Education | H79: 18230621 | I79: ='2018 Sector View Electric'!I79+'2019 Sector View Elect'!I79 -> 0 | J79: ='2018 Sector View Electric'!J79+'2019 Sector View Elect'!J79 -> 0 | K79: ='2018 Sector View Electric'!K79+'2019 Sector View Elect'!K79 -> 0 | L79: ='2018 Sector View Electric'!L79+'2019 Sector View Elect'!L79 -> 0 | M79: ='2018 Sector View Electric'!M79+'2019 Sector View Elect'!M79 -> 0 | N79: ='2018 Sector View Electric'!N79+'2019 Sector View Elect'!N79 -> 17400 | O79: ='2018 Sector View Electric'!O79+'2019 Sector View Elect'!O79 -> 0 | P79: ='2018 Sector View Electric'!P79+'2019 Sector View Elect'!P79 -> 0 | Q79: ='2018 Sector View Electric'!Q79+'2019 Sector View Elect'!Q79 -> 0 | R79: ='2018 Sector View Electric'!R79+'2019 Sector View Elect'!R79 -> 0 | S79: ='2018 Sector View Electric'!S79+'2019 Sector View Elect'!S79 -> 17400
G80: Total, Portfolio Support | I80: =SUM(I66:I79) -> 5871059 | J80: 38400 | K80: 4676779.232 | L80: 354000 | M80: 282760 | N80: 2474340 | O80: 103955 | P80: 2700 | Q80: 0 | R80: -564801.6 | S80: 13239191.63
H82: 2016-2017 Figures | I82: 5626691.591 | J82: 64012.7 | K82: 3852295.72 | L82: 258405 | M82: 367062 | N82: 2193040 | O82: 120340 | P82: 124922 | Q82: 0 | R82: -623570.92 | S82: 11983198.09
C84: Research & Compliance
B85: SuppCrv Detail_R&C_Elec | E85: Conservation Supply Curves | H85: 18230809 | I85: ='2018 Sector View Electric'!I85+'2019 Sector View Elect'!I85 -> 174000 | J85: ='2018 Sector View Electric'!J85+'2019 Sector View Elect'!J85 -> 0 | K85: ='2018 Sector View Electric'!K85+'2019 Sector View Elect'!K85 -> 119712 | L85: ='2018 Sector View Electric'!L85+'2019 Sector View Elect'!L85 -> 0 | M85: ='2018 Sector View Electric'!M85+'2019 Sector View Elect'!M85 -> 1740 | N85: ='2018 Sector View Electric'!N85+'2019 Sector View Elect'!N85 -> 417600 | O85: ='2018 Sector View Electric'!O85+'2019 Sector View Elect'!O85 -> 0 | P85: ='2018 Sector View Electric'!P85+'2019 Sector View Elect'!P85 -> 0 | Q85: ='2018 Sector View Electric'!Q85+'2019 Sector View Elect'!Q85 -> 0 | R85: ='2018 Sector View Electric'!R85+'2019 Sector View Elect'!R85 -> 0 | S85: ='2018 Sector View Electric'!S85+'2019 Sector View Elect'!S85 -> 713052
B86: Strat Plan Detail_R&C_Elec | E86: Strategic Planning | H86: 18230469 | I86: ='2018 Sector View Electric'!I86+'2019 Sector View Elect'!I86 -> 463536 | J86: ='2018 Sector View Electric'!J86+'2019 Sector View Elect'!J86 -> 0 | K86: ='2018 Sector View Electric'!K86+'2019 Sector View Elect'!K86 -> 318912.768 | L86: ='2018 Sector View Electric'!L86+'2019 Sector View Elect'!L86 -> 0 | M86: ='2018 Sector View Electric'!M86+'2019 Sector View Elect'!M86 -> 20010 | N86: ='2018 Sector View Electric'!N86+'2019 Sector View Elect'!N86 -> 874000 | O86: ='2018 Sector View Electric'!O86+'2019 Sector View Elect'!O86 -> 0 | P86: ='2018 Sector View Electric'!P86+'2019 Sector View Elect'!P86 -> 0 | Q86: ='2018 Sector View Electric'!Q86+'2019 Sector View Elect'!Q86 -> 0 | R86: ='2018 Sector View Electric'!R86+'2019 Sector View Elect'!R86 -> 0 | S86: ='2018 Sector View Electric'!S86+'2019 Sector View Elect'!S86 -> 1676458.768
B87: Mktg Resch Detail_PS_ Elec | E87: Market Research | H87: 18230413 | I87: ='2018 Sector View Electric'!I87+'2019 Sector View Elect'!I87 -> 278400 | J87: ='2018 Sector View Electric'!J87+'2019 Sector View Elect'!J87 -> 0 | K87: ='2018 Sector View Electric'!K87+'2019 Sector View Elect'!K87 -> 191539.2 | L87: ='2018 Sector View Electric'!L87+'2019 Sector View Elect'!L87 -> 0 | M87: ='2018 Sector View Electric'!M87+'2019 Sector View Elect'!M87 -> 0 | N87: ='2018 Sector View Electric'!N87+'2019 Sector View Elect'!N87 -> 1794.37 | O87: ='2018 Sector View Electric'!O87+'2019 Sector View Elect'!O87 -> 0 | P87: ='2018 Sector View Electric'!P87+'2019 Sector View Elect'!P87 -> 0 | Q87: ='2018 Sector View Electric'!Q87+'2019 Sector View Elect'!Q87 -> 0 | R87: ='2018 Sector View Electric'!R87+'2019 Sector View Elect'!R87 -> 0 | S87: ='2018 Sector View Electric'!S87+'2019 Sector View Elect'!S87 -> 471733.57
B88: Eval Detail_R&C_Elec | E88: Program Evaluation | H88: 18230802 | I88: ='2018 Sector View Electric'!I88+'2019 Sector View Elect'!I88 -> 328512 | J88: ='2018 Sector View Electric'!J88+'2019 Sector View Elect'!J88 -> 0 | K88: ='2018 Sector View Electric'!K88+'2019 Sector View Elect'!K88 -> 304859.136 | L88: ='2018 Sector View Electric'!L88+'2019 Sector View Elect'!L88 -> 0 | M88: ='2018 Sector View Electric'!M88+'2019 Sector View Elect'!M88 -> 12180 | N88: ='2018 Sector View Electric'!N88+'2019 Sector View Elect'!N88 -> 2843812.5 | O88: ='2018 Sector View Electric'!O88+'2019 Sector View Elect'!O88 -> 0 | P88: ='2018 Sector View Electric'!P88+'2019 Sector View Elect'!P88 -> 540000 | Q88: ='2018 Sector View Electric'!Q88+'2019 Sector View Elect'!Q88 -> 0 | R88: ='2018 Sector View Electric'!R88+'2019 Sector View Elect'!R88 -> 0 | S88: ='2018 Sector View Electric'!S88+'2019 Sector View Elect'!S88 -> 4029363.636
B89: BECAR Detail_R&C Elec | E89: Biennial Elec. Consv. Aquisitn. Review | H89: 18230624 | I89: ='2018 Sector View Electric'!I89+'2019 Sector View Elect'!I89 -> 0 | J89: ='2018 Sector View Electric'!J89+'2019 Sector View Elect'!J89 -> 0 | K89: ='2018 Sector View Electric'!K89+'2019 Sector View Elect'!K89 -> 0 | L89: ='2018 Sector View Electric'!L89+'2019 Sector View Elect'!L89 -> 0 | M89: ='2018 Sector View Electric'!M89+'2019 Sector View Elect'!M89 -> 0 | N89: ='2018 Sector View Electric'!N89+'2019 Sector View Elect'!N89 -> 165000 | O89: ='2018 Sector View Electric'!O89+'2019 Sector View Elect'!O89 -> 0 | P89: ='2018 Sector View Electric'!P89+'2019 Sector View Elect'!P89 -> 0 | Q89: ='2018 Sector View Electric'!Q89+'2019 Sector View Elect'!Q89 -> 0 | R89: ='2018 Sector View Electric'!R89+'2019 Sector View Elect'!R89 -> 0 | S89: ='2018 Sector View Electric'!S89+'2019 Sector View Elect'!S89 -> 165000
G90: Total, Research & Compliance | I90: =SUM(I85:I89) -> 1244448 | J90: =SUM(J85:J89) -> 0 | K90: 935023.104 | L90: 0 | M90: =SUM(M85:M89) -> 33930 | N90: 4302206.87 | O90: 0 | P90: =SUM(P85:P89) -> 540000 | Q90: 0 | R90: 0 | S90: 7055607.974
H92: 2016-2017 Figures | I92: 1357612.761 | J92: 0 | K92: 914461.4515 | L92: 0 | M92: 31737.6 | N92: 3783515.855 | O92: 12267 | P92: 7830 | Q92: 0 | R92: 0 | S92: 6107424.668
C94: Other Electric Programs
B95: Net Mtr Details_Oth Elec E150 | C95: E150 | E95: Net Metering | H95: 18230128 | I95: ='2018 Sector View Electric'!I95+'2019 Sector View Elect'!I95 -> 486400 | J95: ='2018 Sector View Electric'!J95+'2019 Sector View Elect'!J95 -> 0 | K95: ='2018 Sector View Electric'!K95+'2019 Sector View Elect'!K95 -> 451379.2 | L95: ='2018 Sector View Electric'!L95+'2019 Sector View Elect'!L95 -> 0 | M95: ='2018 Sector View Electric'!M95+'2019 Sector View Elect'!M95 -> 20000 | N95: ='2018 Sector View Electric'!N95+'2019 Sector View Elect'!N95 -> 120000 | O95: ='2018 Sector View Electric'!O95+'2019 Sector View Elect'!O95 -> 10000 | P95: ='2018 Sector View Electric'!P95+'2019 Sector View Elect'!P95 -> 1070000 | Q95: ='2018 Sector View Electric'!Q95+'2019 Sector View Elect'!Q95 -> 0 | R95: ='2018 Sector View Electric'!R95+'2019 Sector View Elect'!R95 -> 0 | S95: ='2018 Sector View Electric'!S95+'2019 Sector View Elect'!S95 -> 2157779.2
G96: Total, Other Electric Programs | I96: =SUM(I95:I95) -> 486400 | J96: 0 | K96: 451379.2 | L96: 0 | M96: 20000 | N96: 120000 | O96: 10000 | P96: 1070000 | Q96: 0 | R96: 0 | S96: 2157779.2
H98: 2016-2017 Figures | I98: 418431.9865 | J98: 0 | K98: 290445.8197 | L98: 0 | M98: 24640 | N98: 0 | O98: 16500 | P98: 66800 | Q98: 0 | R98: 0 | S98: 816800
G100: GRAND TOTAL, ELECTRIC PROGRAMS | I100: =I96+I90+I61+I54+I48+I23 -> 9927639.498 | J100: 718290 | K100: 9651004.343 | L100: 5527054.66 | M100: 469580 | N100: 18967043.87 | O100: 93600 | P100: 1657800 | Q100: 122613413.5 | R100: 0 | S100: =S96+S90+S80+S61+S54+S48+S23 -> 182864617.5 | T100: =T96+T90+T61+T54+T48+T23 -> 520455766.3
H102: 2016-2017 Figures | I102: 16516486.63 | J102: 930339.5188 | K102: 11729987.74 | L102: 7213648.63 | M102: 827741.6 | N102: 22833757.86 | O102: 374273 | P102: 3238393 | Q102: 135943760.1 | R102: -623570.92 | S102: 198984817.1
T103: =T100/1000/8760 -> 59.41275871
G104: Budget Category Includes | H104: This is the main level of tracking expenditures and expenses in EES. Per FERC rules, all conservation order numbers start with a "1823nnnn", where "n" is some number. Cost elements apply to all order numbers (for instance, all conservation programs that | I104: Energy Efficiency program staff labor. Average FTE cost including management assessments. This Budget Category group includes assessments from Major Accounts management, Resource Planning, Corporate Communications management, IT specialists and some building maintenance allocations. | J104: Also Energy Efficiency staff labor, associated specifically with Marketing functions. Marketing allocates staffing according to program needs. | K104: Overhead--costs associated with primarily employee labor; benefits, for instance. For 2017, includes micro-overhead. | L104: Service and materials associated with the cost of printing program brochures, marketing pieces, advertising, banners, etc. Also includes marketing conducted by vendors and contractors. | M104: Costs associated with EE staff attending events, employee training, conferences, business meals, business parking, ferry & bridge tolls, mileage incurred on employee automobiles, office supplies, phones, subscriptions, software/hardware, etc. | N104: Contractors and vendors, such as PECI, Ecos, CostCo, EFI, etc. Legal expenses, technical services (CMS design, PSE.com web portals, etc.). These costs do NOT include brochure development, marketing pieces, (which are classified under MARKETING). These costs do NOT include incentives paid to customers by contractors. | O104: Primarily tools, trade show equipment, etc. | P104: This category should seldomly be used, and only expenses that cannot be classified under one of the above categories. | Q104: All costs associated with rebates, grants, remuneration, value-added services that have a direct bearing on a customer's perceived value of PSE offerings. | R104: Any amount that PSE is paid by a customer, partner, municipality or outside entity.

Sheet 2018 Sector View Electric
C2: Energy Efficiency 2018 Budgets and Aggregate Program Savings
C3: Sector View
C4: Electric Programs | I4: Please see category descriptions at the bottom of the sector table.
I5: Budget Category
B6: Workbook Name | C6: Schedule | D6: Comment | E6: Description (Blue, indented text indicates a sub-total value) | H6: Order Number (Click on the order# below to link to the detail page) | I6: Program Labor | J6: Marketing Labor | K6: Overhead | L6: Marketing | M6: Employee/Office Expense | N6: Outside Services | O6: Materials | P6: Miscellaneous | Q6: DBtC | R6: Revenue | S6: Total Budget | T6: Total Savings kWh | V6: Comments
C7: Residential Energy Management
B8: LIW Detail_REM E201_Elec | C8: E201 | E8: Low Income Weatherization | H8: 18230611 | I8: =' LowIncWx Detail_REM E201_Elec'!D5 -> 116800 | J8: =' LowIncWx Detail_REM E201_Elec'!E5 -> 17600 | K8: =' LowIncWx Detail_REM E201_Elec'!F5 -> 124723.2 | L8: =' LowIncWx Detail_REM E201_Elec'!G5 -> 54000 | M8: =' LowIncWx Detail_REM E201_Elec'!H5 -> 5000 | N8: =' LowIncWx Detail_REM E201_Elec'!I5 -> 25000 | O8: =' LowIncWx Detail_REM E201_Elec'!J5 -> 1500 | P8: =' LowIncWx Detail_REM E201_Elec'!K5 -> 1500 | Q8: =' LowIncWx Detail_REM E201_Elec'!L5 -> 3658901.592 | R8: =' LowIncWx Detail_REM E201_Elec'!M5 -> 0 | S8: =' LowIncWx Detail_REM E201_Elec'!N5 -> 4005024.792 | T8: =' LowIncWx Detail_REM E201_Elec'!O5 -> 2066032.76
B9: HomePrint Detail_REM_E214 Elec | C9: E214 | E9: Home Energy Assessments | H9: 18230625 | I9: ='HmEnrgAsmt Detail_REM_E214 Elec'!D5 -> 40800 | J9: ='HmEnrgAsmt Detail_REM_E214 Elec'!E5 -> 21600 | K9: ='HmEnrgAsmt Detail_REM_E214 Elec'!F5 -> 57907.2 | L9: ='HmEnrgAsmt Detail_REM_E214 Elec'!G5 -> 132500 | M9: ='HmEnrgAsmt Detail_REM_E214 Elec'!H5 -> 1500 | N9: ='HmEnrgAsmt Detail_REM_E214 Elec'!I5 -> 187600 | O9: ='HmEnrgAsmt Detail_REM_E214 Elec'!J5 -> 0 | P9: ='HmEnrgAsmt Detail_REM_E214 Elec'!K5 -> 1000 | Q9: ='HmEnrgAsmt Detail_REM_E214 Elec'!L5 -> 2201972.5 | R9: ='HmEnrgAsmt Detail_REM_E214 Elec'!M5 -> 0 | S9: ='HmEnrgAsmt Detail_REM_E214 Elec'!N5 -> 2644879.7 | T9: ='HmEnrgAsmt Detail_REM_E214 Elec'!O5 -> 5148285
B10: WaterHea_Detail_REM_E214 Elec | C10: E214 | E10: SF Existing Water Heat | H10: 18230626 | I10: ='WaterHea_Detail_REM_E214 Elec'!D5 -> 17600 | J10: ='WaterHea_Detail_REM_E214 Elec'!E5 -> 3200 | K10: ='WaterHea_Detail_REM_E214 Elec'!F5 -> 19302.4 | L10: ='WaterHea_Detail_REM_E214 Elec'!G5 -> 78750 | M10: ='WaterHea_Detail_REM_E214 Elec'!H5 -> 1200 | N10: ='WaterHea_Detail_REM_E214 Elec'!I5 -> 0 | O10: ='WaterHea_Detail_REM_E214 Elec'!J5 -> 1000 | P10: ='WaterHea_Detail_REM_E214 Elec'!K5 -> 500 | Q10: ='WaterHea_Detail_REM_E214 Elec'!L5 -> 280600 | R10: ='WaterHea_Detail_REM_E214 Elec'!M5 -> 0 | S10: ='WaterHea_Detail_REM_E214 Elec'!N5 -> 402152.4 | T10: ='WaterHea_Detail_REM_E214 Elec'!O5 -> 980452
B11: Wx_Detail_REM E214 Elec | C11: E214 | E11: SF Existing Weatherization | H11: 18230627 | I11: ='Wx_Detail_REM E214 Elec'!D5 -> 36000 | J11: ='Wx_Detail_REM E214 Elec'!E5 -> 27200 | K11: ='Wx_Detail_REM E214 Elec'!F5 -> 58649.6 | L11: ='Wx_Detail_REM E214 Elec'!G5 -> 137500 | M11: ='Wx_Detail_REM E214 Elec'!H5 -> 3000 | N11: ='Wx_Detail_REM E214 Elec'!I5 -> 110000 | O11: ='Wx_Detail_REM E214 Elec'!J5 -> 0 | P11: ='Wx_Detail_REM E214 Elec'!K5 -> 1000 | Q11: ='Wx_Detail_REM E214 Elec'!L5 -> 595920 | R11: ='Wx_Detail_REM E214 Elec'!M5 -> 0 | S11: ='Wx_Detail_REM E214 Elec'!N5 -> 969269.6 | T11: ='Wx_Detail_REM E214 Elec'!O5 -> 2079060
B12: SpcHeat Detail_REM_E214 Elec | C12: E214 | E12: SF Existing Space Heat | H12: 18230628 | I12: ='SpcHeat Detail_REM_E214 Elec'!D5 -> 29600 | J12: ='SpcHeat Detail_REM_E214 Elec'!E5 -> 23200 | K12: ='SpcHeat Detail_REM_E214 Elec'!F5 -> 48998.4 | L12: ='SpcHeat Detail_REM_E214 Elec'!G5 -> 228000 | M12: ='SpcHeat Detail_REM_E214 Elec'!H5 -> 3000 | N12: ='SpcHeat Detail_REM_E214 Elec'!I5 -> 0 | O12: ='SpcHeat Detail_REM_E214 Elec'!J5 -> 1000 | P12: ='SpcHeat Detail_REM_E214 Elec'!K5 -> 500 | Q12: ='SpcHeat Detail_REM_E214 Elec'!L5 -> 2970000 | R12: ='SpcHeat Detail_REM_E214 Elec'!M5 -> 0 | S12: ='SpcHeat Detail_REM_E214 Elec'!N5 -> 3304298.4 | T12: ='SpcHeat Detail_REM_E214 Elec'!O5 -> 7549370
C13: E214 | D13: New for 2018-2019 | E13: SF Rentals Pilot | H13: 1823nnnn | I13: ='SFRental_REM_E214 Elec'!D5 -> 7200 | J13: ='SFRental_REM_E214 Elec'!E5 -> 5600 | K13: ='SFRental_REM_E214 Elec'!F5 -> 11878.4 | L13: ='SFRental_REM_E214 Elec'!G5 -> 15000 | M13: ='SFRental_REM_E214 Elec'!H5 -> 250 | N13: ='SFRental_REM_E214 Elec'!I5 -> 70000 | O13: ='SFRental_REM_E214 Elec'!J5 -> 0 | P13: ='SFRental_REM_E214 Elec'!K5 -> 0 | Q13: ='SFRental_REM_E214 Elec'!L5 -> 0 | R13: ='SFRental_REM_E214 Elec'!M5 -> 0 | S13: ='SFRental_REM_E214 Elec'!N5 -> 109928.4 | T13: ='SFRental_REM_E214 Elec'!O5 -> 0
B14: HmAppplc_Detail_REM_E214 Elec | C14: E214 | E14: Home Appliances | H14: 18230434 | I14: ='HmAppplc_Detail_REM_E214 Elec'!D5 -> 68800 | J14: ='HmAppplc_Detail_REM_E214 Elec'!E5 -> 39200 | K14: ='HmAppplc_Detail_REM_E214 Elec'!F5 -> 100224 | L14: ='HmAppplc_Detail_REM_E214 Elec'!G5 -> 205781 | M14: ='HmAppplc_Detail_REM_E214 Elec'!H5 -> 1000 | N14: ='HmAppplc_Detail_REM_E214 Elec'!I5 -> 95000 | O14: ='HmAppplc_Detail_REM_E214 Elec'!J5 -> 1000 | P14: ='HmAppplc_Detail_REM_E214 Elec'!K5 -> 500 | Q14: ='HmAppplc_Detail_REM_E214 Elec'!L5 -> 1862939.2 | R14: ='HmAppplc_Detail_REM_E214 Elec'!M5 -> 0 | S14: ='HmAppplc_Detail_REM_E214 Elec'!N5 -> 2374444.2 | T14: ='HmAppplc_Detail_REM_E214 Elec'!O5 -> 6172402.75
B15: ShwrHead_Detail_REM_E214 Elec | C15: E214 | E15: Residential Showerheads | H15: 18230435 | I15: ='ShwrHead_Detail_REM_E214 Elec'!D5 -> 21600 | J15: ='ShwrHead_Detail_REM_E214 Elec'!E5 -> 3200 | K15: ='ShwrHead_Detail_REM_E214 Elec'!F5 -> 23014.4 | L15: ='ShwrHead_Detail_REM_E214 Elec'!G5 -> 80915 | M15: ='ShwrHead_Detail_REM_E214 Elec'!H5 -> 500 | N15: ='ShwrHead_Detail_REM_E214 Elec'!I5 -> 12125 | O15: ='ShwrHead_Detail_REM_E214 Elec'!J5 -> 500 | P15: ='ShwrHead_Detail_REM_E214 Elec'!K5 -> 250 | Q15: ='ShwrHead_Detail_REM_E214 Elec'!L5 -> 275097.8344 | R15: ='ShwrHead_Detail_REM_E214 Elec'!M5 -> 0 | S15: ='ShwrHead_Detail_REM_E214 Elec'!N5 -> 417202.2344 | T15: ='ShwrHead_Detail_REM_E214 Elec'!O5 -> 1476223
B16: Lighting Detail_REM_E214 Elec | C16: E214 | E16: Energy Efficient Lighting Services | H16: 18230440 | I16: ='Lighting Detail_REM_E214 Elec'!D5 -> 166720 | J16: ='Lighting Detail_REM_E214 Elec'!E5 -> 103200 | K16: ='Lighting Detail_REM_E214 Elec'!F5 -> 250485.76 | L16: ='Lighting Detail_REM_E214 Elec'!G5 -> 1625000 | M16: ='Lighting Detail_REM_E214 Elec'!H5 -> 11000 | N16: ='Lighting Detail_REM_E214 Elec'!I5 -> 1585743.5 | O16: ='Lighting Detail_REM_E214 Elec'!J5 -> 8250 | P16: ='Lighting Detail_REM_E214 Elec'!K5 -> 0 | Q16: ='Lighting Detail_REM_E214 Elec'!L5 -> 8855051.046 | R16: ='Lighting Detail_REM_E214 Elec'!M5 -> 0 | S16: ='Lighting Detail_REM_E214 Elec'!N5 -> 12605450.31 | T16: ='Lighting Detail_REM_E214 Elec'!O5 -> 62649617.42
B17: HER Detail_REM_E214 elec. | C17: E214 | E17: Home Energy Reports | H17: 18230461 | I17: ='HER Detail_REM_E214 elec.'!D5 -> 24800 | J17: ='HER Detail_REM_E214 elec.'!E5 -> 4000 | K17: ='HER Detail_REM_E214 elec.'!F5 -> 26726.4 | L17: ='HER Detail_REM_E214 elec.'!G5 -> 15381.33 | M17: ='HER Detail_REM_E214 elec.'!H5 -> 600 | N17: ='HER Detail_REM_E214 elec.'!I5 -> 100250 | O17: ='HER Detail_REM_E214 elec.'!J5 -> 100 | P17: ='HER Detail_REM_E214 elec.'!K5 -> 150 | Q17: ='HER Detail_REM_E214 elec.'!L5 -> 217200 | R17: ='HER Detail_REM_E214 elec.'!M5 -> 0 | S17: ='HER Detail_REM_E214 elec.'!N5 -> 389207.73 | T17: ='HER Detail_REM_E214 elec.'!O5 -> 11600000
B18: Web Tstat Detail_REM E214 Elec | C18: E214 | E18: Web-Enabled Thermostat | H18: 18230023 | I18: ='Web Tstat Detail_REM E214 Elec'!D5 -> 26800 | J18: ='Web Tstat Detail_REM E214 Elec'!E5 -> 4800 | K18: ='Web Tstat Detail_REM E214 Elec'!F5 -> 29324.8 | L18: ='Web Tstat Detail_REM E214 Elec'!G5 -> 15000 | M18: ='Web Tstat Detail_REM E214 Elec'!H5 -> 100 | N18: ='Web Tstat Detail_REM E214 Elec'!I5 -> 12000 | O18: ='Web Tstat Detail_REM E214 Elec'!J5 -> 500 | P18: ='Web Tstat Detail_REM E214 Elec'!K5 -> 500 | Q18: ='Web Tstat Detail_REM E214 Elec'!L5 -> 60000 | R18: ='Web Tstat Detail_REM E214 Elec'!M5 -> 0 | S18: ='Web Tstat Detail_REM E214 Elec'!N5 -> 149024.8 | T18: ='Web Tstat Detail_REM E214 Elec'!O5 -> 1165600
B19: SFNC Detail_REM E215 Elec | C19: E215 | E19: Single Family New Construction | H19: 18230405 | I19: ='SFNC Detail_REM E215 Elec'!D5 -> 13600 | J19: ='SFNC Detail_REM E215 Elec'!E5 -> 4000 | K19: ='SFNC Detail_REM E215 Elec'!F5 -> 16332.8 | L19: ='SFNC Detail_REM E215 Elec'!G5 -> 4000 | M19: ='SFNC Detail_REM E215 Elec'!H5 -> 1000 | N19: ='SFNC Detail_REM E215 Elec'!I5 -> 0 | O19: ='SFNC Detail_REM E215 Elec'!J5 -> 0 | P19: ='SFNC Detail_REM E215 Elec'!K5 -> 0 | Q19: ='SFNC Detail_REM E215 Elec'!L5 -> 101250 | R19: ='SFNC Detail_REM E215 Elec'!M5 -> 0 | S19: ='SFNC Detail_REM E215 Elec'!N5 -> 140182.8 | T19: ='SFNC Detail_REM E215 Elec'!O5 -> 193068
B20: MfgHmNew Detail_REM E215 Elec | C20: E215 | E20: Manufactured Home New Construction | H20: 18230071 | I20: ='NCMfgHome Detail_REM E215 Elec'!D5 -> 10400 | J20: ='NCMfgHome Detail_REM E215 Elec'!E5 -> 2400 | K20: ='NCMfgHome Detail_REM E215 Elec'!F5 -> 11878.4 | L20: ='NCMfgHome Detail_REM E215 Elec'!G5 -> 15500 | M20: ='NCMfgHome Detail_REM E215 Elec'!H5 -> 500 | N20: ='NCMfgHome Detail_REM E215 Elec'!I5 -> 1500 | O20: ='NCMfgHome Detail_REM E215 Elec'!J5 -> 500 | P20: ='NCMfgHome Detail_REM E215 Elec'!K5 -> 0 | Q20: ='NCMfgHome Detail_REM E215 Elec'!L5 -> 27500 | R20: ='NCMfgHome Detail_REM E215 Elec'!M5 -> 0 | S20: ='NCMfgHome Detail_REM E215 Elec'!N5 -> 70178.4 | T20: ='NCMfgHome Detail_REM E215 Elec'!O5 -> 61210
B21: MF Retr Detail_REM E217 Elec | C21: E217 | E21: Multifamily Retrofit | H21: 18230407 | I21: ='MF Retr Detail_REM E217 Elec'!D5 -> 144900 | J21: ='MF Retr Detail_REM E217 Elec'!E5 -> 43200 | K21: ='MF Retr Detail_REM E217 Elec'!F5 -> 174556.8 | L21: ='MF Retr Detail_REM E217 Elec'!G5 -> 67500 | M21: ='MF Retr Detail_REM E217 Elec'!H5 -> 4000 | N21: ='MF Retr Detail_REM E217 Elec'!I5 -> 1492000 | O21: ='MF Retr Detail_REM E217 Elec'!J5 -> 1000 | P21: ='MF Retr Detail_REM E217 Elec'!K5 -> 1000 | Q21: ='MF Retr Detail_REM E217 Elec'!L5 -> 8457598.045 | R21: ='MF Retr Detail_REM E217 Elec'!M5 -> 0 | S21: ='MF Retr Detail_REM E217 Elec'!N5 -> 10385754.85 | T21: ='MF Retr Detail_REM E217 Elec'!O5 -> 17569035.03
B22: MFNC Detail_REM E218 Elec | C22: E218 | E22: Multi-Family New Construction | H22: 18230486 | I22: ='MFNC Detail_REM E218 Elec'!D5 -> 103720 | J22: ='MFNC Detail_REM E218 Elec'!E5 -> 4000 | K22: ='MFNC Detail_REM E218 Elec'!F5 -> 99964.16 | L22: ='MFNC Detail_REM E218 Elec'!G5 -> 35000 | M22: ='MFNC Detail_REM E218 Elec'!H5 -> 4000 | N22: ='MFNC Detail_REM E218 Elec'!I5 -> 302500 | O22: ='MFNC Detail_REM E218 Elec'!J5 -> 3000 | P22: ='MFNC Detail_REM E218 Elec'!K5 -> 0 | Q22: ='MFNC Detail_REM E218 Elec'!L5 -> 673764.3 | R22: ='MFNC Detail_REM E218 Elec'!M5 -> 0 | S22: ='MFNC Detail_REM E218 Elec'!N5 -> 1225948.46 | T22: ='MFNC Detail_REM E218 Elec'!O5 -> 2498900
G23: Total, Residential Energy Management | I23: =SUM(I8:I22) -> 829340 | J23: =SUM(J8:J22) -> 306400 | K23: 1053966.72 | L23: 2709827.33 | M23: 36650 | N23: 3993718.5 | O23: 18350 | P23: 6900 | Q23: 30237794.52 | R23: 0 | S23: 39192947.07 | T23: 121209256
C26: Business Energy Managment
B27: CI Retr Detail_BEM E250 Elec | C27: E250 | E27: Commercial/Industrial Retrofit | H27: 18230711 | I27: ='CI Retr Detail_BEM E250 Elec'!C5 -> 687882.109 | J27: ='CI Retr Detail_BEM E250 Elec'!D5 -> 14500 | K27: ='CI Retr Detail_BEM E250 Elec'!E5 -> 648334.5972 | L27: ='CI Retr Detail_BEM E250 Elec'!F5 -> 10150 | M27: ='CI Retr Detail_BEM E250 Elec'!G5 -> 90700 | N27: ='CI Retr Detail_BEM E250 Elec'!H5 -> 471700 | O27: ='CI Retr Detail_BEM E250 Elec'!I5 -> 0 | P27: ='CI Retr Detail_BEM E250 Elec'!J5 -> 0 | Q27: ='CI Retr Detail_BEM E250 Elec'!K5 -> 3230000 | R27: ='CI Retr Detail_BEM E250 Elec'!L5 -> 0 | S27: ='CI Retr Detail_BEM E250 Elec'!M5 -> 5153266.706 | T27: ='CI Retr Detail_BEM E250 Elec'!N5 -> 14000000
B28: BusLgtGrants_BEM E250 Elect | C28: E250 | E28: Custom Lighting Grants | H28: 18230724 | I28: ='BusLgtGrants_BEM E250 Elect'!C5 -> 1250000 | J28: ='BusLgtGrants_BEM E250 Elect'!D5 -> 3000 | K28: ='BusLgtGrants_BEM E250 Elect'!E5 -> 1162064 | L28: ='BusLgtGrants_BEM E250 Elect'!F5 -> 12000 | M28: ='BusLgtGrants_BEM E250 Elect'!G5 -> 45000 | N28: ='BusLgtGrants_BEM E250 Elect'!H5 -> 112500 | O28: ='BusLgtGrants_BEM E250 Elect'!I5 -> 3500 | P28: ='BusLgtGrants_BEM E250 Elect'!J5 -> 3000 | Q28: ='BusLgtGrants_BEM E250 Elect'!K5 -> 7437500 | R28: ='BusLgtGrants_BEM E250 Elect'!L5 -> 0 | S28: ='BusLgtGrants_BEM E250 Elect'!M5 -> 10028564 | T28: ='BusLgtGrants_BEM E250 Elect'!N5 -> 43750000
B29: CI NC Detail_BEM E251 Elec | C29: E251 | E29: Commercial/Industrial New Construction | H29: 18230715 | I29: ='CI NC Detail_BEM E251 Elec'!C5 -> 336000 | J29: ='CI NC Detail_BEM E251 Elec'!D5 -> 4800 | K29: ='CI NC Detail_BEM E251 Elec'!E5 -> 315110.4 | L29: ='CI NC Detail_BEM E251 Elec'!F5 -> 4800 | M29: ='CI NC Detail_BEM E251 Elec'!G5 -> 4800 | N29: ='CI NC Detail_BEM E251 Elec'!H5 -> 100800 | O29: ='CI NC Detail_BEM E251 Elec'!I5 -> 7200 | P29: ='CI NC Detail_BEM E251 Elec'!J5 -> 0 | Q29: ='CI NC Detail_BEM E251 Elec'!K5 -> 4022400 | R29: ='CI NC Detail_BEM E251 Elec'!L5 -> 0 | S29: ='CI NC Detail_BEM E251 Elec'!M5 -> 4795910.4 | T29: ='CI NC Detail_BEM E251 Elec'!N5 -> 20000000
E30: Commercial Strategic Energy Management | I30: =SUM(I31:I33) -> 430000 | J30: =SUM(J31:J33) -> 0 | K30: =SUM(K31:K33) -> 399640.24 | L30: 5000 | M30: 15000 | N30: 57500 | O30: 5000 | P30: 10000 | Q30: 522500 | R30: 0 | S30: 1444640.24 | T30: 13000000
B31: RCM Detail_BEM E253 Elec | C31: E253 | E31: SEM | H31: 18230723 | I31: ='RCM Detail_BEM E253 Elec'!C5 -> 380000 | J31: ='RCM Detail_BEM E253 Elec'!D5 -> 0 | K31: ='RCM Detail_BEM E253 Elec'!E5 -> 352640 | L31: ='RCM Detail_BEM E253 Elec'!F5 -> 5000 | M31: ='RCM Detail_BEM E253 Elec'!G5 -> 15000 | N31: ='RCM Detail_BEM E253 Elec'!H5 -> 15000 | O31: ='RCM Detail_BEM E253 Elec'!I5 -> 5000 | P31: ='RCM Detail_BEM E253 Elec'!J5 -> 10000 | Q31: ='RCM Detail_BEM E253 Elec'!K5 -> 500000 | R31: ='RCM Detail_BEM E253 Elec'!L5 -> 0 | S31: ='RCM Detail_BEM E253 Elec'!M5 -> 1282640 | T31: ='RCM Detail_BEM E253 Elec'!N5 -> 13000000
B32: RCM U-S-B Detail_E253 Elec | C32: E253 | E32: Urban Smart Bellevue | H32: 18230414 | I32: ='RCM U-S-B Detail_E253 Elec'!C5 -> 0 | J32: ='RCM U-S-B Detail_E253 Elec'!D5 -> 0 | K32: ='RCM U-S-B Detail_E253 Elec'!E5 -> 0 | L32: ='RCM U-S-B Detail_E253 Elec'!F5 -> 0 | M32: ='RCM U-S-B Detail_E253 Elec'!G5 -> 0 | N32: ='RCM U-S-B Detail_E253 Elec'!H5 -> 27500 | O32: ='RCM U-S-B Detail_E253 Elec'!I5 -> 0 | P32: ='RCM U-S-B Detail_E253 Elec'!J5 -> 0 | Q32: ='RCM U-S-B Detail_E253 Elec'!K5 -> 22500 | R32: ='RCM U-S-B Detail_E253 Elec'!L5 -> 0 | S32: ='RCM U-S-B Detail_E253 Elec'!M5 -> 50000 | T32: ='RCM U-S-B Detail_E253 Elec'!N5 -> 0
B33: ResAcctSW Detail_PSWE_Elec | E33: Resource Accounting Software | H33: 18230502 | I33: ='ResAcctSW Detail_PSWE_Elec'!D5 -> 50000 | J33: ='ResAcctSW Detail_PSWE_Elec'!E5 -> 0 | K33: ='ResAcctSW Detail_PSWE_Elec'!F5 -> 47000.24 | L33: ='ResAcctSW Detail_PSWE_Elec'!G5 -> 0 | M33: ='ResAcctSW Detail_PSWE_Elec'!H5 -> 0 | N33: ='ResAcctSW Detail_PSWE_Elec'!I5 -> 15000 | O33: ='ResAcctSW Detail_PSWE_Elec'!J5 -> 0 | P33: ='ResAcctSW Detail_PSWE_Elec'!K5 -> 0 | Q33: ='ResAcctSW Detail_PSWE_Elec'!L5 -> 0 | R33: ='ResAcctSW Detail_PSWE_Elec'!M5 -> 0 | S33: ='ResAcctSW Detail_PSWE_Elec'!N5 -> 112000.24 | T33: ='ResAcctSW Detail_PSWE_Elec'!O5 -> 0
E34: High Voltage, Self-Directed | I34: =SUM(I35:I36) -> 351443.6398 | J34: =SUM(J35:J36) -> 0 | K34: 326603.5826 | L34: 0 | M34: 0 | N34: 0 | O34: 0 | P34: 0 | Q34: 14992500 | R34: 0 | S34: 15670547.22 | T34: 34693000
B35: LPSD_Detail_449_Elec | C35: E258 | E35: 449 Customers | H35: 18230720 | I35: =LPSD_Detail_449_Elec!C5 -> 94853 | J35: =LPSD_Detail_449_Elec!D5 -> 0 | K35: =LPSD_Detail_449_Elec!E5 -> 88487.46882 | L35: =LPSD_Detail_449_Elec!F5 -> 0 | M35: =LPSD_Detail_449_Elec!G5 -> 0 | N35: =LPSD_Detail_449_Elec!H5 -> 0 | O35: =LPSD_Detail_449_Elec!I5 -> 0 | P35: =LPSD_Detail_449_Elec!J5 -> 0 | Q35: =LPSD_Detail_449_Elec!K5 -> 7215000 | R35: =LPSD_Detail_449_Elec!L5 -> 0 | S35: =LPSD_Detail_449_Elec!M5 -> 7398340.469 | T35: =LPSD_Detail_449_Elec!N5 -> 18193000
B36: LPSD_Detail_Non-449 Elec | C36: E258 | E36: Non-449 Customers | H36: 18230721 | I36: ='LPSD_Detail_Non-449 Elec'!C5 -> 256590.6398 | J36: ='LPSD_Detail_Non-449 Elec'!D5 -> 0 | K36: ='LPSD_Detail_Non-449 Elec'!E5 -> 238116.1137 | L36: ='LPSD_Detail_Non-449 Elec'!F5 -> 0 | M36: ='LPSD_Detail_Non-449 Elec'!G5 -> 0 | N36: ='LPSD_Detail_Non-449 Elec'!H5 -> 0 | O36: ='LPSD_Detail_Non-449 Elec'!I5 -> 0 | P36: ='LPSD_Detail_Non-449 Elec'!J5 -> 0 | Q36: ='LPSD_Detail_Non-449 Elec'!K5 -> 7777500 | R36: ='LPSD_Detail_Non-449 Elec'!L5 -> 0 | S36: ='LPSD_Detail_Non-449 Elec'!M5 -> 8272206.754 | T36: ='LPSD_Detail_Non-449 Elec'!N5 -> 16500000
B37: TechEval Detail_BEM E261 Elec | C37: E261 | E37: Technology Evaluation | H37: 18230448 | I37: ='TechEval Detail_BEM E261 Elec'!C5 -> 0 | J37: ='TechEval Detail_BEM E261 Elec'!D5 -> 0 | K37: ='TechEval Detail_BEM E261 Elec'!E5 -> 0 | L37: ='TechEval Detail_BEM E261 Elec'!F5 -> 0 | M37: ='TechEval Detail_BEM E261 Elec'!G5 -> 0 | N37: ='TechEval Detail_BEM E261 Elec'!H5 -> 0 | O37: ='TechEval Detail_BEM E261 Elec'!I5 -> 0 | P37: ='TechEval Detail_BEM E261 Elec'!J5 -> 0 | Q37: ='TechEval Detail_BEM E261 Elec'!K5 -> 0 | R37: ='TechEval Detail_BEM E261 Elec'!L5 -> 0 | S37: ='TechEval Detail_BEM E261 Elec'!M5 -> 0 | T37: ='TechEval Detail_BEM E261 Elec'!N5 -> 0
C38: E262 | E38: Business Rebates | I38: =SUM(I39:I44) -> 188480 | J38: =SUM(J39:J44) -> 30400 | K38: 203120.64 | L38: 110000 | M38: 16250 | N38: 984160 | O38: 7750 | P38: 4000 | Q38: 4526960 | R38: 0 | S38: 6071120.64 | T38: =SUM(T39:T44) -> 20559924.3
B39: Comm Lgt Mkdn_E262 Elect | C39: E262 | E39: Lighting to Go--also referred to as Business Lighting Markdowns | H39: 18230714 | I39: ='Comm Lgt Mkdn_E262 Elect'!D5 -> 14400 | J39: ='Comm Lgt Mkdn_E262 Elect'!E5 -> 9600 | K39: ='Comm Lgt Mkdn_E262 Elect'!F5 -> 22272 | L39: ='Comm Lgt Mkdn_E262 Elect'!G5 -> 10000 | M39: ='Comm Lgt Mkdn_E262 Elect'!H5 -> 2750 | N39: ='Comm Lgt Mkdn_E262 Elect'!I5 -> 85000 | O39: ='Comm Lgt Mkdn_E262 Elect'!J5 -> 250 | P39: ='Comm Lgt Mkdn_E262 Elect'!K5 -> 500 | Q39: ='Comm Lgt Mkdn_E262 Elect'!L5 -> 374900 | R39: ='Comm Lgt Mkdn_E262 Elect'!M5 -> 0 | S39: ='Comm Lgt Mkdn_E262 Elect'!N5 -> 519672 | T39: ='Comm Lgt Mkdn_E262 Elect'!O5 -> 9419400
B40: Comm Kit-Laund_E262 Elect | C40: E262 | E40: Commercial kitchen and laundry | H40: 18230716 | I40: ='Comm Kit-Laund_E262 Elect'!D5 -> 25600 | J40: ='Comm Kit-Laund_E262 Elect'!E5 -> 6400 | K40: ='Comm Kit-Laund_E262 Elect'!F5 -> 29696 | L40: ='Comm Kit-Laund_E262 Elect'!G5 -> 15000 | M40: ='Comm Kit-Laund_E262 Elect'!H5 -> 3500 | N40: ='Comm Kit-Laund_E262 Elect'!I5 -> 0 | O40: ='Comm Kit-Laund_E262 Elect'!J5 -> 0 | P40: ='Comm Kit-Laund_E262 Elect'!K5 -> 0 | Q40: ='Comm Kit-Laund_E262 Elect'!L5 -> 78010 | R40: ='Comm Kit-Laund_E262 Elect'!M5 -> 0 | S40: ='Comm Kit-Laund_E262 Elect'!N5 -> 158206 | T40: ='Comm Kit-Laund_E262 Elect'!O5 -> 472024.3
B41: Comm HVAC_E262 Elect | C41: E262 | E41: Commercial HVAC | H41: 18230718 | I41: ='Comm HVAC_E262 Elect'!D5 -> 15200 | J41: ='Comm HVAC_E262 Elect'!E5 -> 4000 | K41: ='Comm HVAC_E262 Elect'!F5 -> 17817.6 | L41: ='Comm HVAC_E262 Elect'!G5 -> 5000 | M41: ='Comm HVAC_E262 Elect'!H5 -> 2000 | N41: ='Comm HVAC_E262 Elect'!I5 -> 0 | O41: ='Comm HVAC_E262 Elect'!J5 -> 5000 | P41: ='Comm HVAC_E262 Elect'!K5 -> 1000 | Q41: ='Comm HVAC_E262 Elect'!L5 -> 281250 | R41: ='Comm HVAC_E262 Elect'!M5 -> 0 | S41: ='Comm HVAC_E262 Elect'!N5 -> 331267.6 | T41: ='Comm HVAC_E262 Elect'!O5 -> 1033500
C42: E262 | D42: New for 2018-2019 | E42: Upstream Rooftop Units | H42: 1823zzzz | I42: ='Comm Upstr-Rooftop_E262 Elect'!D5 -> 17600 | J42: ='Comm Upstr-Rooftop_E262 Elect'!E5 -> 4000 | K42: ='Comm Upstr-Rooftop_E262 Elect'!F5 -> 20044.8 | L42: ='Comm Upstr-Rooftop_E262 Elect'!G5 -> 40000 | M42: ='Comm Upstr-Rooftop_E262 Elect'!H5 -> 1000 | N42: ='Comm Upstr-Rooftop_E262 Elect'!I5 -> 200000 | O42: ='Comm Upstr-Rooftop_E262 Elect'!J5 -> 500 | P42: ='Comm Upstr-Rooftop_E262 Elect'!K5 -> 500 | Q42: ='Comm Upstr-Rooftop_E262 Elect'!L5 -> 700000 | R42: ='Comm Upstr-Rooftop_E262 Elect'!M5 -> 0 | S42: ='Comm Upstr-Rooftop_E262 Elect'!N5 -> 983644.8 | T42: ='Comm Upstr-Rooftop_E262 Elect'!O5 -> 2115000
B43: Comm ExpLgt_E262 Elect | C43: E262 | E43: Business Lighting Express | H43: 18230722 | I43: ='Comm ExpLgt_E262 Elect'!D5 -> 0 | J43: ='Comm ExpLgt_E262 Elect'!E5 -> 0 | K43: ='Comm ExpLgt_E262 Elect'!F5 -> 0 | L43: ='Comm ExpLgt_E262 Elect'!G5 -> 0 | M43: ='Comm ExpLgt_E262 Elect'!H5 -> 0 | N43: ='Comm ExpLgt_E262 Elect'!I5 -> 0 | O43: ='Comm ExpLgt_E262 Elect'!J5 -> 0 | P43: ='Comm ExpLgt_E262 Elect'!K5 -> 0 | Q43: ='Comm ExpLgt_E262 Elect'!L5 -> 0 | R43: ='Comm ExpLgt_E262 Elect'!M5 -> 0 | S43: ='Comm ExpLgt_E262 Elect'!N5 -> 0 | T43: ='Comm ExpLgt_E262 Elect'!O5 -> 0
E44: Business Direct-Install Programs--Includes: | I44: =I45+I46+I47 -> 115680 | J44: =J45+J46+J47 -> 6400 | K44: 113290.24 | L44: 40000 | M44: 7000 | N44: 699160 | O44: 2000 | P44: 2000 | Q44: 3092800 | R44: 0 | S44: 4078330.24 | T44: 7520000
B45: Sm Bus DI_E262 Elect | C45: E262 | F45: Small Business Direct Install | H45: 18231134 | I45: ='Sm Bus DI_E262 Elect'!D5 -> 115680 | J45: ='Sm Bus DI_E262 Elect'!E5 -> 6400 | K45: ='Sm Bus DI_E262 Elect'!F5 -> 113290.24 | L45: ='Sm Bus DI_E262 Elect'!G5 -> 40000 | M45: ='Sm Bus DI_E262 Elect'!H5 -> 7000 | N45: ='Sm Bus DI_E262 Elect'!I5 -> 699160 | O45: ='Sm Bus DI_E262 Elect'!J5 -> 2000 | P45: ='Sm Bus DI_E262 Elect'!K5 -> 2000 | Q45: ='Sm Bus DI_E262 Elect'!L5 -> 3092800 | R45: ='Sm Bus DI_E262 Elect'!M5 -> 0 | S45: ='Sm Bus DI_E262 Elect'!N5 -> 4078330.24 | T45: ='Sm Bus DI_E262 Elect'!O5 -> 7520000
B46: Sm Agr DI_E262 Elect | C46: E262 | F46: Small Agriculture Direct Install | H46: 18230521 | I46: ='Sm Agr DI_E262 Elect'!D5 -> 0 | J46: ='Sm Agr DI_E262 Elect'!E5 -> 0 | K46: ='Sm Agr DI_E262 Elect'!F5 -> 0 | L46: ='Sm Agr DI_E262 Elect'!G5 -> 0 | M46: ='Sm Agr DI_E262 Elect'!H5 -> 0 | N46: ='Sm Agr DI_E262 Elect'!I5 -> 0 | O46: ='Sm Agr DI_E262 Elect'!J5 -> 0 | P46: ='Sm Agr DI_E262 Elect'!K5 -> 0 | Q46: ='Sm Agr DI_E262 Elect'!L5 -> 0 | R46: ='Sm Agr DI_E262 Elect'!M5 -> 0 | S46: ='Sm Agr DI_E262 Elect'!N5 -> 0 | T46: ='Sm Agr DI_E262 Elect'!O5 -> 0
B47: Lodging DI_E262 Elec | C47: E262 | F47: Lodging Direct Install | H47: 18230520 | I47: ='Lodging DI_E262 Elec'!D5 -> 0 | J47: ='Lodging DI_E262 Elec'!E5 -> 0 | K47: ='Lodging DI_E262 Elec'!F5 -> 0 | L47: ='Lodging DI_E262 Elec'!G5 -> 0 | M47: ='Lodging DI_E262 Elec'!H5 -> 0 | N47: ='Lodging DI_E262 Elec'!I5 -> 0 | O47: ='Lodging DI_E262 Elec'!J5 -> 0 | P47: ='Lodging DI_E262 Elec'!K5 -> 0 | Q47: ='Lodging DI_E262 Elec'!L5 -> 0 | R47: ='Lodging DI_E262 Elec'!M5 -> 0 | S47: ='Lodging DI_E262 Elec'!N5 -> 0 | T47: ='Lodging DI_E262 Elec'!O5 -> 0
G48: Total, Business Energy Management | I48: =SUM(I27:I30)+I34+I37+I38 -> 3243805.749 | J48: 52700 | K48: 3054873.46 | L48: 141950 | M48: 171750 | N48: 1726660 | O48: 23450 | P48: 17000 | Q48: 34731860 | R48: 0 | S48: 43164049.21 | T48: 146002924.3
C51: Pilots With Uncertain Savings
B52: REM Pilots E249 Elec | C52: E249 | E52: Residential Pilots | H52: 18230522 | I52: ='REM Pilots E249 Elec'!D5 -> 0 | J52: ='REM Pilots E249 Elec'!E5 -> 0 | K52: ='REM Pilots E249 Elec'!F5 -> 0 | L52: ='REM Pilots E249 Elec'!G5 -> 0 | M52: ='REM Pilots E249 Elec'!H5 -> 0 | N52: ='REM Pilots E249 Elec'!I5 -> 0 | O52: ='REM Pilots E249 Elec'!J5 -> 0 | P52: ='REM Pilots E249 Elec'!K5 -> 0 | Q52: ='REM Pilots E249 Elec'!L5 -> 0 | R52: ='REM Pilots E249 Elec'!M5 -> 0 | S52: ='REM Pilots E249 Elec'!N5 -> 0 | T52: ='REM Pilots E249 Elec'!O5 -> 0
B53: BEM Pilots E249 Elec | C53: E249 | E53: Commercial Pay for Performance Pilot | H53: 1823pppp | I53: ='BEM Pilots E249 Elec'!I5 -> 0 | J53: ='BEM Pilots E249 Elec'!J5 -> 0 | K53: ='BEM Pilots E249 Elec'!K5 -> 0 | L53: ='BEM Pilots E249 Elec'!L5 -> 0 | M53: ='BEM Pilots E249 Elec'!M5 -> 0 | N53: ='BEM Pilots E249 Elec'!N5 -> 0 | O53: ='BEM Pilots E249 Elec'!O5 -> 0 | P53: ='BEM Pilots E249 Elec'!P5 -> 0 | Q53: ='BEM Pilots E249 Elec'!Q5 -> 84000 | R53: ='BEM Pilots E249 Elec'!R5 -> 0 | S53: ='BEM Pilots E249 Elec'!S5 -> 84000 | T53: ='BEM Pilots E249 Elec'!T5 -> 840000
G54: Total, Pilots | I54: =SUM(I52:I53) -> 0 | J54: =SUM(J52:J53) -> 0 | K54: 0 | L54: 0 | M54: 0 | N54: 0 | O54: 0 | P54: 0 | Q54: 84000 | R54: 0 | S54: 84000 | T54: 840000
C58: Regional Efficiency Programs
B59: NEEA Detail_E254 elec | C59: E254 | E59: Northwest Energy Efficiency Alliance | H59: 18230421 | I59: ='NEEA Detail_E254 elec'!D5 -> 0 | J59: ='NEEA Detail_E254 elec'!E5 -> 0 | K59: ='NEEA Detail_E254 elec'!F5 -> 0 | L59: ='NEEA Detail_E254 elec'!G5 -> 0 | M59: ='NEEA Detail_E254 elec'!H5 -> 0 | N59: ='NEEA Detail_E254 elec'!I5 -> 1560000 | O59: ='NEEA Detail_E254 elec'!J5 -> 0 | P59: ='NEEA Detail_E254 elec'!K5 -> 0 | Q59: ='NEEA Detail_E254 elec'!L5 -> 3640000 | R59: ='NEEA Detail_E254 elec'!M5 -> 0 | S59: ='NEEA Detail_E254 elec'!N5 -> 5200000 | T59: ='NEEA Detail_E254 elec'!O5 -> 12526800
B60: T&D Detail_Reg E292 elec | C60: E292 | E60: Transmission & Distribution | H60: 18230711 | I60: ='T&D Detail_Reg E292 elec'!C5 -> 0 | J60: ='T&D Detail_Reg E292 elec'!D5 -> 0 | K60: ='T&D Detail_Reg E292 elec'!E5 -> 0 | L60: ='T&D Detail_Reg E292 elec'!F5 -> 0 | M60: ='T&D Detail_Reg E292 elec'!G5 -> 0 | N60: ='T&D Detail_Reg E292 elec'!H5 -> 0 | O60: ='T&D Detail_Reg E292 elec'!I5 -> 0 | P60: ='T&D Detail_Reg E292 elec'!J5 -> 0 | Q60: ='T&D Detail_Reg E292 elec'!K5 -> 0 | R60: ='T&D Detail_Reg E292 elec'!L5 -> 0 | S60: ='T&D Detail_Reg E292 elec'!M5 -> 0 | T60: ='T&D Detail_Reg E292 elec'!N5 -> 750000
G61: Total, Regional Efficiency Programs | I61: =SUM(I59:I60) -> 0 | J61: 0 | K61: 0 | L61: 0 | M61: 0 | N61: 1560000 | O61: 0 | P61: 0 | Q61: 3640000 | R61: 0 | S61: 5200000 | T61: 13276800
C65: Energy Efficiency Portfolio Support
B66: Data & Systm Svcs_Elect | E66: Data and Systems Services | H66: 18230745 | I66: ='Data & Systm Svcs_Elect'!D5 -> 419340 | J66: ='Data & Systm Svcs_Elect'!E5 -> 0 | K66: ='Data & Systm Svcs_Elect'!F5 -> 389147.52 | L66: ='Data & Systm Svcs_Elect'!G5 -> 0 | M66: ='Data & Systm Svcs_Elect'!H5 -> 10440 | N66: ='Data & Systm Svcs_Elect'!I5 -> 282750 | O66: ='Data & Systm Svcs_Elect'!J5 -> 0 | P66: ='Data & Systm Svcs_Elect'!K5 -> 0 | Q66: ='Data & Systm Svcs_Elect'!L5 -> 0 | R66: ='Data & Systm Svcs_Elect'!M5 -> 0 | S66: ='Data & Systm Svcs_Elect'!N5 -> 1101677.52
B67: Rebt Procg Detail_Elect | E67: Rebates Processing | H67: 18230507 | I67: ='Rebt Procg Detail_Elect'!D5 -> 278800 | J67: ='Rebt Procg Detail_Elect'!E5 -> 0 | K67: ='Rebt Procg Detail_Elect'!F5 -> 258726.4 | L67: ='Rebt Procg Detail_Elect'!G5 -> 0 | M67: ='Rebt Procg Detail_Elect'!H5 -> 20000 | N67: ='Rebt Procg Detail_Elect'!I5 -> 0 | O67: ='Rebt Procg Detail_Elect'!J5 -> 5000 | P67: ='Rebt Procg Detail_Elect'!K5 -> 0 | Q67: ='Rebt Procg Detail_Elect'!L5 -> 0 | R67: ='Rebt Procg Detail_Elect'!M5 -> 0 | S67: ='Rebt Procg Detail_Elect'!N5 -> 562526.4
B68: VTeam Detail_R&C_Elec | E68: Verification Team | H68: 18230418 | I68: ='Verifctn Team Detail Elec'!D5 -> 230080 | J68: ='Verifctn Team Detail Elec'!E5 -> 0 | K68: ='Verifctn Team Detail Elec'!F5 -> 213514.24 | L68: ='Verifctn Team Detail Elec'!G5 -> 0 | M68: ='Verifctn Team Detail Elec'!H5 -> 10800 | N68: ='Verifctn Team Detail Elec'!I5 -> 78300 | O68: ='Verifctn Team Detail Elec'!J5 -> 6200 | P68: ='Verifctn Team Detail Elec'!K5 -> 0 | Q68: ='Verifctn Team Detail Elec'!L5 -> 0 | R68: ='Verifctn Team Detail Elec'!M5 -> 0 | S68: ='Verifctn Team Detail Elec'!N5 -> 538894.24
B69: ProgDev Detail_R&C_ Elec | E69: Programs Support | H69: 18230810 | I69: ='Progs Supp Detail_PS_ Elec'!D5 -> 208800 | J69: ='Progs Supp Detail_PS_ Elec'!E5 -> 0 | K69: ='Progs Supp Detail_PS_ Elec'!F5 -> 193766.4 | L69: ='Progs Supp Detail_PS_ Elec'!G5 -> 0 | M69: ='Progs Supp Detail_PS_ Elec'!H5 -> 12000 | N69: ='Progs Supp Detail_PS_ Elec'!I5 -> 0 | O69: ='Progs Supp Detail_PS_ Elec'!J5 -> 0 | P69: ='Progs Supp Detail_PS_ Elec'!K5 -> 0 | Q69: ='Progs Supp Detail_PS_ Elec'!L5 -> 0 | R69: ='Progs Supp Detail_PS_ Elec'!M5 -> 0 | S69: ='Progs Supp Detail_PS_ Elec'!N5 -> 414566.4
B70: TradeAlly Detail_PS_ Elec | E70: Trade Ally Support | H70: 18230730 | I70: ='TradeAlly Detail_PS_ Elec'!D5 -> 0 | J70: ='TradeAlly Detail_PS_ Elec'!E5 -> 0 | K70: ='TradeAlly Detail_PS_ Elec'!F5 -> 0 | L70: ='TradeAlly Detail_PS_ Elec'!G5 -> 0 | M70: ='TradeAlly Detail_PS_ Elec'!H5 -> 0 | N70: ='TradeAlly Detail_PS_ Elec'!I5 -> 118000 | O70: ='TradeAlly Detail_PS_ Elec'!J5 -> 0 | P70: ='TradeAlly Detail_PS_ Elec'!K5 -> 0 | Q70: ='TradeAlly Detail_PS_ Elec'!L5 -> 0 | R70: ='TradeAlly Detail_PS_ Elec'!M5 -> 0 | S70: ='TradeAlly Detail_PS_ Elec'!N5 -> 118000
B71: CAN_Elect | E71: Contractor Alliance Network (revenue + cost) | H71: 18230746 | I71: =CAN_Elect!D5 -> 70400 | J71: =CAN_Elect!E5 -> 3200 | K71: =CAN_Elect!F5 -> 68300.8 | L71: =CAN_Elect!G5 -> 20000 | M71: =CAN_Elect!H5 -> 5000 | N71: =CAN_Elect!I5 -> 80000 | O71: =CAN_Elect!J5 -> 1500 | P71: =CAN_Elect!K5 -> 0 | Q71: =CAN_Elect!L5 -> 0 | R71: =CAN_Elect!M5 -> -282400.8 | S71: =CAN_Elect!N5 -> -34000
B72: ABS Detail_PSWE_Elec | E72: Automated Benchmarking System | H72: 18230411 | I72: ='ABS Detail_PSWE_Elec'!D5 -> 65700 | J72: ='ABS Detail_PSWE_Elec'!E5 -> 0 | K72: ='ABS Detail_PSWE_Elec'!F5 -> 60969.6 | L72: ='ABS Detail_PSWE_Elec'!G5 -> 0 | M72: ='ABS Detail_PSWE_Elec'!H5 -> 0 | N72: ='ABS Detail_PSWE_Elec'!I5 -> 77000 | O72: ='ABS Detail_PSWE_Elec'!J5 -> 0 | P72: ='ABS Detail_PSWE_Elec'!K5 -> 0 | Q72: ='ABS Detail_PSWE_Elec'!L5 -> 0 | R72: ='ABS Detail_PSWE_Elec'!M5 -> 0 | S72: ='ABS Detail_PSWE_Elec'!N5 -> 203669.6
B73: Engy Adv Detail_PSCE Elec | E73: Energy Advisors | H73: 18230610 | I73: ='Engy Adv Detail_PSCE Elec'!D5 -> 654240 | J73: ='Engy Adv Detail_PSCE Elec'!E5 -> 0 | K73: ='Engy Adv Detail_PSCE Elec'!F5 -> 450117.12 | L73: ='Engy Adv Detail_PSCE Elec'!G5 -> 0 | M73: ='Engy Adv Detail_PSCE Elec'!H5 -> 44000 | N73: ='Engy Adv Detail_PSCE Elec'!I5 -> 1000 | O73: ='Engy Adv Detail_PSCE Elec'!J5 -> 0 | P73: ='Engy Adv Detail_PSCE Elec'!K5 -> 1350 | Q73: ='Engy Adv Detail_PSCE Elec'!L5 -> 0 | R73: ='Engy Adv Detail_PSCE Elec'!M5 -> 0 | S73: ='Engy Adv Detail_PSCE Elec'!N5 -> 1150707.12
B74: EEC Detail_PS_Elec | E74: Energy Efficient Communities | H74: 18230811 | I74: ='EEC Detail_PS_Elec'!D5 -> 444200 | J74: ='EEC Detail_PS_Elec'!E5 -> 5000 | K74: ='EEC Detail_PS_Elec'!F5 -> 309049.6 | L74: ='EEC Detail_PS_Elec'!G5 -> 137040 | M74: ='EEC Detail_PS_Elec'!H5 -> 34800 | N74: ='EEC Detail_PS_Elec'!I5 -> 43500 | O74: ='EEC Detail_PS_Elec'!J5 -> 11745 | P74: ='EEC Detail_PS_Elec'!K5 -> 0 | Q74: ='EEC Detail_PS_Elec'!L5 -> 0 | R74: ='EEC Detail_PS_Elec'!M5 -> 0 | S74: ='EEC Detail_PS_Elec'!N5 -> 985334.6
B75: CustOnline Detail_PSWE_Elec | E75: Customer Digital Experience | H75: 18230408 | I75: ='CustDigExprnc Detail_PSWE_Elec'!D5 -> 101840 | J75: ='CustDigExprnc Detail_PSWE_Elec'!E5 -> 0 | K75: ='CustDigExprnc Detail_PSWE_Elec'!F5 -> 70065.92 | L75: ='CustDigExprnc Detail_PSWE_Elec'!G5 -> 0 | M75: ='CustDigExprnc Detail_PSWE_Elec'!H5 -> 0 | N75: ='CustDigExprnc Detail_PSWE_Elec'!I5 -> 414290 | O75: ='CustDigExprnc Detail_PSWE_Elec'!J5 -> 0 | P75: ='CustDigExprnc Detail_PSWE_Elec'!K5 -> 0 | Q75: ='CustDigExprnc Detail_PSWE_Elec'!L5 -> 0 | R75: ='CustDigExprnc Detail_PSWE_Elec'!M5 -> 0 | S75: ='CustDigExprnc Detail_PSWE_Elec'!N5 -> 586195.92
B76: Mkt Intgn Detail_PSWE_Elec | E76: Market Integration | H76: 18230466 | I76: ='Mkt Intgn Detail_PSWE_Elec'!D5 -> 146944 | J76: ='Mkt Intgn Detail_PSWE_Elec'!E5 -> 0 | K76: ='Mkt Intgn Detail_PSWE_Elec'!F5 -> 101097.472 | L76: ='Mkt Intgn Detail_PSWE_Elec'!G5 -> 0 | M76: ='Mkt Intgn Detail_PSWE_Elec'!H5 -> 0 | N76: ='Mkt Intgn Detail_PSWE_Elec'!I5 -> 13920 | O76: ='Mkt Intgn Detail_PSWE_Elec'!J5 -> 0 | P76: ='Mkt Intgn Detail_PSWE_Elec'!K5 -> 0 | Q76: ='Mkt Intgn Detail_PSWE_Elec'!L5 -> 0 | R76: ='Mkt Intgn Detail_PSWE_Elec'!M5 -> 0 | S76: ='Mkt Intgn Detail_PSWE_Elec'!N5 -> 261961.472
B77: Events Detail_PSCE Elec | E77: Events | H77: 18230602 | I77: ='Events Detail_PSCE Elec'!D5 -> 300840 | J77: ='Events Detail_PSCE Elec'!E5 -> 1300 | K77: ='Events Detail_PSCE Elec'!F5 -> 207872.32 | L77: ='Events Detail_PSCE Elec'!G5 -> 6960 | M77: ='Events Detail_PSCE Elec'!H5 -> 3905 | N77: ='Events Detail_PSCE Elec'!I5 -> 110000 | O77: ='Events Detail_PSCE Elec'!J5 -> 4785 | P77: ='Events Detail_PSCE Elec'!K5 -> 0 | Q77: ='Events Detail_PSCE Elec'!L5 -> 0 | R77: ='Events Detail_PSCE Elec'!M5 -> 0 | S77: ='Events Detail_PSCE Elec'!N5 -> 635662.32
B78: Brochures Detail_PSCE Elec | E78: Brochures, non program-specific | H78: 18230482 | I78: ='Brochures Detail_PSCE Elec'!D5 -> 17600 | J78: ='Brochures Detail_PSCE Elec'!E5 -> 8700 | K78: ='Brochures Detail_PSCE Elec'!F5 -> 18094.4 | L78: ='Brochures Detail_PSCE Elec'!G5 -> 13000 | M78: ='Brochures Detail_PSCE Elec'!H5 -> 0 | N78: ='Brochures Detail_PSCE Elec'!I5 -> 2610 | O78: ='Brochures Detail_PSCE Elec'!J5 -> 22620 | P78: ='Brochures Detail_PSCE Elec'!K5 -> 0 | Q78: ='Brochures Detail_PSCE Elec'!L5 -> 0 | R78: ='Brochures Detail_PSCE Elec'!M5 -> 0 | S78: ='Brochures Detail_PSCE Elec'!N5 -> 82624.4
B79: Educatn Detail_PSCE E202 Elec | C79: E202 | E79: Education | H79: 18230621 | I79: ='Educatn Detail_PSCE E202 Elec'!D5 -> 0 | J79: ='Educatn Detail_PSCE E202 Elec'!E5 -> 0 | K79: ='Educatn Detail_PSCE E202 Elec'!F5 -> 0 | L79: ='Educatn Detail_PSCE E202 Elec'!G5 -> 0 | M79: ='Educatn Detail_PSCE E202 Elec'!H5 -> 0 | N79: ='Educatn Detail_PSCE E202 Elec'!I5 -> 8700 | O79: ='Educatn Detail_PSCE E202 Elec'!J5 -> 0 | P79: ='Educatn Detail_PSCE E202 Elec'!K5 -> 0 | Q79: ='Educatn Detail_PSCE E202 Elec'!L5 -> 0 | R79: ='Educatn Detail_PSCE E202 Elec'!M5 -> 0 | S79: ='Educatn Detail_PSCE E202 Elec'!N5 -> 8700
G80: Total, Portfolio Support | I80: =SUM(I66:I79) -> 2938784 | J80: 18200 | K80: 2340721.792 | L80: 177000 | M80: 140945 | N80: 1230070 | O80: 51850 | P80: 1350 | Q80: 0 | R80: -282400.8 | S80: 6616519.992
C84: Research & Compliance
B85: SuppCrv Detail_R&C_Elec | E85: Conservation Supply Curves | H85: 18230809 | I85: ='SuppCrv Detail_R&C_Elec'!D5 -> 87000 | J85: ='SuppCrv Detail_R&C_Elec'!E5 -> 0 | K85: ='SuppCrv Detail_R&C_Elec'!F5 -> 59856 | L85: ='SuppCrv Detail_R&C_Elec'!G5 -> 0 | M85: ='SuppCrv Detail_R&C_Elec'!H5 -> 870 | N85: ='SuppCrv Detail_R&C_Elec'!I5 -> 354960 | O85: ='SuppCrv Detail_R&C_Elec'!J5 -> 0 | P85: ='SuppCrv Detail_R&C_Elec'!K5 -> 0 | Q85: ='SuppCrv Detail_R&C_Elec'!L5 -> 0 | R85: ='SuppCrv Detail_R&C_Elec'!M5 -> 0 | S85: ='SuppCrv Detail_R&C_Elec'!N5 -> 502686
B86: Strat Plan Detail_R&C_Elec | E86: Strategic Planning | H86: 18230469 | I86: ='Strat Plan Detail_R&C_Elec'!D5 -> 231768 | J86: ='Strat Plan Detail_R&C_Elec'!E5 -> 0 | K86: ='Strat Plan Detail_R&C_Elec'!F5 -> 159456.384 | L86: ='Strat Plan Detail_R&C_Elec'!G5 -> 0 | M86: ='Strat Plan Detail_R&C_Elec'!H5 -> 10005 | N86: ='Strat Plan Detail_R&C_Elec'!I5 -> 489200 | O86: ='Strat Plan Detail_R&C_Elec'!J5 -> 0 | P86: ='Strat Plan Detail_R&C_Elec'!K5 -> 0 | Q86: ='Strat Plan Detail_R&C_Elec'!L5 -> 0 | R86: ='Strat Plan Detail_R&C_Elec'!M5 -> 0 | S86: ='Strat Plan Detail_R&C_Elec'!N5 -> 890429.384
B87: Mktg Resch Detail_PS_ Elec | E87: Market Research | H87: 18230413 | I87: ='Mktg Resch Detail_PS_ Elec'!D5 -> 139200 | J87: ='Mktg Resch Detail_PS_ Elec'!E5 -> 0 | K87: ='Mktg Resch Detail_PS_ Elec'!F5 -> 95769.6 | L87: ='Mktg Resch Detail_PS_ Elec'!G5 -> 0 | M87: ='Mktg Resch Detail_PS_ Elec'!H5 -> 0 | N87: ='Mktg Resch Detail_PS_ Elec'!I5 -> 1794.37 | O87: ='Mktg Resch Detail_PS_ Elec'!J5 -> 0 | P87: ='Mktg Resch Detail_PS_ Elec'!K5 -> 0 | Q87: ='Mktg Resch Detail_PS_ Elec'!L5 -> 0 | R87: ='Mktg Resch Detail_PS_ Elec'!M5 -> 0 | S87: ='Mktg Resch Detail_PS_ Elec'!N5 -> 236763.97
B88: Eval Detail_R&C_Elec | E88: Program Evaluation | H88: 18230802 | I88: ='Eval Detail_R&C_Elec'!D5 -> 164256 | J88: ='Eval Detail_R&C_Elec'!E5 -> 0 | K88: ='Eval Detail_R&C_Elec'!F5 -> 152429.568 | L88: ='Eval Detail_R&C_Elec'!G5 -> 0 | M88: ='Eval Detail_R&C_Elec'!H5 -> 6090 | N88: ='Eval Detail_R&C_Elec'!I5 -> 1445831.25 | O88: ='Eval Detail_R&C_Elec'!J5 -> 0 | P88: ='Eval Detail_R&C_Elec'!K5 -> 267000 | Q88: ='Eval Detail_R&C_Elec'!L5 -> 0 | R88: ='Eval Detail_R&C_Elec'!M5 -> 0 | S88: ='Eval Detail_R&C_Elec'!N5 -> 2035606.818
B89: BECAR Detail_R&C Elec | E89: Biennial Elec. Consv. Aquisitn. Review | H89: 18230624 | I89: ='BECAR Detail_R&C Elec'!D5 -> 0 | J89: ='BECAR Detail_R&C Elec'!E5 -> 0 | K89: ='BECAR Detail_R&C Elec'!F5 -> 0 | L89: ='BECAR Detail_R&C Elec'!G5 -> 0 | M89: ='BECAR Detail_R&C Elec'!H5 -> 0 | N89: ='BECAR Detail_R&C Elec'!I5 -> 90000 | O89: ='BECAR Detail_R&C Elec'!J5 -> 0 | P89: ='BECAR Detail_R&C Elec'!K5 -> 0 | Q89: ='BECAR Detail_R&C Elec'!L5 -> 0 | R89: ='BECAR Detail_R&C Elec'!M5 -> 0 | S89: ='BECAR Detail_R&C Elec'!N5 -> 90000
G90: Total, Research & Compliance | I90: =SUM(I85:I89) -> 622224 | J90: 0 | K90: 467511.552 | L90: 0 | M90: 16965 | N90: 2381785.62 | O90: 0 | P90: 267000 | Q90: 0 | R90: 0 | S90: 3755486.172
C94: Other Electric Programs
B95: Net Mtr Details_Oth Elec E150 | C95: E150 | E95: Net Metering | H95: 18230128 | I95: ='Net Mtr Details_Oth Elec E150'!D5 -> 243200 | J95: ='Net Mtr Details_Oth Elec E150'!E5 -> 0 | K95: ='Net Mtr Details_Oth Elec E150'!F5 -> 225689.6 | L95: ='Net Mtr Details_Oth Elec E150'!G5 -> 0 | M95: ='Net Mtr Details_Oth Elec E150'!H5 -> 10000 | N95: ='Net Mtr Details_Oth Elec E150'!I5 -> 70000 | O95: ='Net Mtr Details_Oth Elec E150'!J5 -> 5000 | P95: ='Net Mtr Details_Oth Elec E150'!K5 -> 510000 | Q95: ='Net Mtr Details_Oth Elec E150'!L5 -> 0 | R95: ='Net Mtr Details_Oth Elec E150'!M5 -> 0 | S95: ='Net Mtr Details_Oth Elec E150'!N5 -> 1063889.6
G96: Total, Other Electric Programs | I96: =SUM(I95:I95) -> 243200 | J96: 0 | K96: 225689.6 | L96: 0 | M96: 10000 | N96: 70000 | O96: 5000 | P96: 510000 | Q96: 0 | R96: 0 | S96: 1063889.6
G100: GRAND TOTAL, ELECTRIC PROGRAMS | I100: =I96+I90+I61+I54+I48+I23 -> 4938569.749 | J100: 359100 | K100: 4802041.332 | L100: 2851777.33 | M100: 235365 | N100: 9732164.12 | O100: 46800 | P100: 800900 | Q100: 68693654.52 | R100: 0 | S100: =S96+S90+S80+S61+S54+S48+S23 -> 99076892.04 | T100: =T96+T90+T61+T54+T48+T23 -> 281328980.3
T103: =T100/1000/8760 -> 32.1151804
G104: Budget Category Includes | H104: This is the main level of tracking expenditures and expenses in EES. Per FERC rules, all conservation order numbers start with a "1823nnnn", where "n" is some number. Cost elements apply to all order numbers (for instance, all conservation programs that | I104: Energy Efficiency program staff labor. Average FTE cost including management assessments. This Budget Category group includes assessments from Major Accounts management, Resource Planning, Corporate Communications management, IT specialists and some building maintenance allocations. | J104: Also Energy Efficiency staff labor, associated specifically with Marketing functions. Marketing allocates staffing according to program needs. | K104: Overhead--costs associated with primarily employee labor; benefits, for instance. For 2017, includes micro-overhead. | L104: Service and materials associated with the cost of printing program brochures, marketing pieces, advertising, banners, etc. Also includes marketing conducted by vendors and contractors. | M104: Costs associated with EE staff attending events, employee training, conferences, business meals, business parking, ferry & bridge tolls, mileage incurred on employee automobiles, office supplies, phones, subscriptions, software/hardware, etc. | N104: Contractors and vendors, such as PECI, Ecos, CostCo, EFI, etc. Legal expenses, technical services (CMS design, PSE.com web portals, etc.). These costs do NOT include brochure development, marketing pieces, (which are classified under MARKETING). These costs do NOT include incentives paid to customers by contractors. | O104: Primarily tools, trade show equipment, etc. | P104: This category should seldomly be used, and only expenses that cannot be classified under one of the above categories. | Q104: All costs associated with rebates, grants, remuneration, value-added services that have a direct bearing on a customer's perceived value of PSE offerings. | R104: Any amount that PSE is paid by a customer, partner, municipality or outside entity.

Sheet 2019 Sector View Elect
C2: Energy Efficiency 2019 Budgets and Aggregate Program Savings
C3: Sector View | I3: Please see category descriptions at the bottom of the sector table.
C4: Electric Programs
I5: Budget Category
B6: Workbook Name | C6: Schedule | D6: Comment | E6: Description (Blue, indented text indicates a sub-total value) | H6: Order Number (Click on the order# below to link to the detail page) | I6: Program Labor | J6: Marketing Labor | K6: Overhead | L6: Marketing | M6: Employee/Office Expense | N6: Outside Services | O6: Materials | P6: Miscellaneous | Q6: DBtC | R6: Revenue | S6: Total Budget | T6: Total Savings kWh | V6: Comments
C7: Residential Energy Management
B8: LIW Detail_REM E201_Elec | C8: E201 | E8: Low Income Weatherization | H8: 18230611 | I8: =' LowIncWx Detail_REM E201_Elec'!D6 -> 116800 | J8: =' LowIncWx Detail_REM E201_Elec'!E6 -> 17600 | K8: =' LowIncWx Detail_REM E201_Elec'!F6 -> 124723.2 | L8: =' LowIncWx Detail_REM E201_Elec'!G6 -> 54000 | M8: =' LowIncWx Detail_REM E201_Elec'!H6 -> 5000 | N8: =' LowIncWx Detail_REM E201_Elec'!I6 -> 25000 | O8: =' LowIncWx Detail_REM E201_Elec'!J6 -> 1500 | P8: =' LowIncWx Detail_REM E201_Elec'!K6 -> 1500 | Q8: =' LowIncWx Detail_REM E201_Elec'!L6 -> 3658901.592 | R8: =' LowIncWx Detail_REM E201_Elec'!M6 -> 0 | S8: =' LowIncWx Detail_REM E201_Elec'!N6 -> 4005024.792 | T8: =' LowIncWx Detail_REM E201_Elec'!O6 -> 2066032.76
B9: HomePrint Detail_REM_E214 Elec | C9: E214 | E9: Home Energy Assessments | H9: 18230625 | I9: ='HmEnrgAsmt Detail_REM_E214 Elec'!D6 -> 40800 | J9: ='HmEnrgAsmt Detail_REM_E214 Elec'!E6 -> 21600 | K9: ='HmEnrgAsmt Detail_REM_E214 Elec'!F6 -> 57907.2 | L9: ='HmEnrgAsmt Detail_REM_E214 Elec'!G6 -> 132500 | M9: ='HmEnrgAsmt Detail_REM_E214 Elec'!H6 -> 1500 | N9: ='HmEnrgAsmt Detail_REM_E214 Elec'!I6 -> 181600 | O9: ='HmEnrgAsmt Detail_REM_E214 Elec'!J6 -> 0 | P9: ='HmEnrgAsmt Detail_REM_E214 Elec'!K6 -> 1000 | Q9: ='HmEnrgAsmt Detail_REM_E214 Elec'!L6 -> 2201972.5 | R9: ='HmEnrgAsmt Detail_REM_E214 Elec'!M6 -> 0 | S9: ='HmEnrgAsmt Detail_REM_E214 Elec'!N6 -> 2638879.7 | T9: ='HmEnrgAsmt Detail_REM_E214 Elec'!O6 -> 5148285
B10: WaterHea_Detail_REM_E214 Elec | C10: E214 | E10: SF Existing Water Heat | H10: 18230626 | I10: ='WaterHea_Detail_REM_E214 Elec'!D6 -> 17600 | J10: ='WaterHea_Detail_REM_E214 Elec'!E6 -> 3200 | K10: ='WaterHea_Detail_REM_E214 Elec'!F6 -> 19302.4 | L10: ='WaterHea_Detail_REM_E214 Elec'!G6 -> 78750 | M10: ='WaterHea_Detail_REM_E214 Elec'!H6 -> 1200 | N10: ='WaterHea_Detail_REM_E214 Elec'!I6 -> 0 | O10: ='WaterHea_Detail_REM_E214 Elec'!J6 -> 1000 | P10: ='WaterHea_Detail_REM_E214 Elec'!K6 -> 500 | Q10: ='WaterHea_Detail_REM_E214 Elec'!L6 -> 280600 | R10: ='WaterHea_Detail_REM_E214 Elec'!M6 -> 0 | S10: ='WaterHea_Detail_REM_E214 Elec'!N6 -> 402152.4 | T10: ='WaterHea_Detail_REM_E214 Elec'!O6 -> 980452
B11: Wx_Detail_REM E214 Elec | C11: E214 | E11: SF Existing Weatherization | H11: 18230627 | I11: ='Wx_Detail_REM E214 Elec'!D6 -> 36000 | J11: ='Wx_Detail_REM E214 Elec'!E6 -> 27200 | K11: ='Wx_Detail_REM E214 Elec'!F6 -> 58649.6 | L11: ='Wx_Detail_REM E214 Elec'!G6 -> 137500 | M11: ='Wx_Detail_REM E214 Elec'!H6 -> 3000 | N11: ='Wx_Detail_REM E214 Elec'!I6 -> 110000 | O11: ='Wx_Detail_REM E214 Elec'!J6 -> 0 | P11: ='Wx_Detail_REM E214 Elec'!K6 -> 1000 | Q11: ='Wx_Detail_REM E214 Elec'!L6 -> 595920 | R11: ='Wx_Detail_REM E214 Elec'!M6 -> 0 | S11: ='Wx_Detail_REM E214 Elec'!N6 -> 969269.6 | T11: ='Wx_Detail_REM E214 Elec'!O6 -> 2079060
B12: SpcHeat Detail_REM_E214 Elec | C12: E214 | E12: SF Existing Space Heat | H12: 18230628 | I12: ='SpcHeat Detail_REM_E214 Elec'!D6 -> 29600 | J12: ='SpcHeat Detail_REM_E214 Elec'!E6 -> 23200 | K12: ='SpcHeat Detail_REM_E214 Elec'!F6 -> 48998.4 | L12: ='SpcHeat Detail_REM_E214 Elec'!G6 -> 228000 | M12: ='SpcHeat Detail_REM_E214 Elec'!H6 -> 3000 | N12: ='SpcHeat Detail_REM_E214 Elec'!I6 -> 0 | O12: ='SpcHeat Detail_REM_E214 Elec'!J6 -> 1000 | P12: ='SpcHeat Detail_REM_E214 Elec'!K6 -> 500 | Q12: ='SpcHeat Detail_REM_E214 Elec'!L6 -> 2970000 | R12: ='SpcHeat Detail_REM_E214 Elec'!M6 -> 0 | S12: ='SpcHeat Detail_REM_E214 Elec'!N6 -> 3304298.4 | T12: ='SpcHeat Detail_REM_E214 Elec'!O6 -> 7549370
C13: E214 | D13: New for 2018-2019 | E13: SF Rentals Pilot | H13: 1823nnnn | I13: ='SFRental_REM_E214 Elec'!D6 -> 7200 | J13: ='SFRental_REM_E214 Elec'!E6 -> 5600 | K13: ='SFRental_REM_E214 Elec'!F6 -> 11878.4 | L13: ='SFRental_REM_E214 Elec'!G6 -> 10000 | M13: ='SFRental_REM_E214 Elec'!H6 -> 100 | N13: ='SFRental_REM_E214 Elec'!I6 -> 70000 | O13: ='SFRental_REM_E214 Elec'!J6 -> 0 | P13: ='SFRental_REM_E214 Elec'!K6 -> 0 | Q13: ='SFRental_REM_E214 Elec'!L6 -> 0 | R13: ='SFRental_REM_E214 Elec'!M6 -> 0 | S13: ='SFRental_REM_E214 Elec'!N6 -> 104778.4 | T13: ='SFRental_REM_E214 Elec'!O6 -> 0
B14: HmAppplc_Detail_REM_E214 Elec | C14: E214 | E14: Home Appliances | H14: 18230434 | I14: ='HmAppplc_Detail_REM_E214 Elec'!D6 -> 68800 | J14: ='HmAppplc_Detail_REM_E214 Elec'!E6 -> 39200 | K14: ='HmAppplc_Detail_REM_E214 Elec'!F6 -> 100224 | L14: ='HmAppplc_Detail_REM_E214 Elec'!G6 -> 205781 | M14: ='HmAppplc_Detail_REM_E214 Elec'!H6 -> 1000 | N14: ='HmAppplc_Detail_REM_E214 Elec'!I6 -> 95000 | O14: ='HmAppplc_Detail_REM_E214 Elec'!J6 -> 1000 | P14: ='HmAppplc_Detail_REM_E214 Elec'!K6 -> 500 | Q14: ='HmAppplc_Detail_REM_E214 Elec'!L6 -> 1862939.2 | R14: ='HmAppplc_Detail_REM_E214 Elec'!M6 -> 0 | S14: ='HmAppplc_Detail_REM_E214 Elec'!N6 -> 2374444.2 | T14: ='HmAppplc_Detail_REM_E214 Elec'!O6 -> 6172402.75
B15: ShwrHead_Detail_REM_E214 Elec | C15: E214 | E15: Residential Showerheads | H15: 18230435 | I15: ='ShwrHead_Detail_REM_E214 Elec'!D6 -> 21600 | J15: ='ShwrHead_Detail_REM_E214 Elec'!E6 -> 3200 | K15: ='ShwrHead_Detail_REM_E214 Elec'!F6 -> 23014.4 | L15: ='ShwrHead_Detail_REM_E214 Elec'!G6 -> 80915 | M15: ='ShwrHead_Detail_REM_E214 Elec'!H6 -> 500 | N15: ='ShwrHead_Detail_REM_E214 Elec'!I6 -> 12125 | O15: ='ShwrHead_Detail_REM_E214 Elec'!J6 -> 500 | P15: ='ShwrHead_Detail_REM_E214 Elec'!K6 -> 250 | Q15: ='ShwrHead_Detail_REM_E214 Elec'!L6 -> 275097.8344 | R15: ='ShwrHead_Detail_REM_E214 Elec'!M6 -> 0 | S15: ='ShwrHead_Detail_REM_E214 Elec'!N6 -> 417202.2344 | T15: ='ShwrHead_Detail_REM_E214 Elec'!O6 -> 1476223
B16: Lighting Detail_REM_E214 Elec | C16: E214 | E16: Energy Efficient Lighting Services | H16: 18230440 | I16: ='Lighting Detail_REM_E214 Elec'!D6 -> 166720 | J16: ='Lighting Detail_REM_E214 Elec'!E6 -> 103200 | K16: ='Lighting Detail_REM_E214 Elec'!F6 -> 250485.76 | L16: ='Lighting Detail_REM_E214 Elec'!G6 -> 1450000 | M16: ='Lighting Detail_REM_E214 Elec'!H6 -> 11000 | N16: ='Lighting Detail_REM_E214 Elec'!I6 -> 1585743.5 | O16: ='Lighting Detail_REM_E214 Elec'!J6 -> 8250 | P16: ='Lighting Detail_REM_E214 Elec'!K6 -> 0 | Q16: ='Lighting Detail_REM_E214 Elec'!L6 -> 8421740.663 | R16: ='Lighting Detail_REM_E214 Elec'!M6 -> 0 | S16: ='Lighting Detail_REM_E214 Elec'!N6 -> 11997139.92 | T16: ='Lighting Detail_REM_E214 Elec'!O6 -> 59570286.23
B17: HER Detail_REM_E214 elec. | C17: E214 | E17: Home Energy Reports | H17: 18230461 | I17: ='HER Detail_REM_E214 elec.'!D6 -> 24800 | J17: ='HER Detail_REM_E214 elec.'!E6 -> 4000 | K17: ='HER Detail_REM_E214 elec.'!F6 -> 26726.4 | L17: ='HER Detail_REM_E214 elec.'!G6 -> 15381.33 | M17: ='HER Detail_REM_E214 elec.'!H6 -> 600 | N17: ='HER Detail_REM_E214 elec.'!I6 -> 100250 | O17: ='HER Detail_REM_E214 elec.'!J6 -> 100 | P17: ='HER Detail_REM_E214 elec.'!K6 -> 150 | Q17: ='HER Detail_REM_E214 elec.'!L6 -> 217200 | R17: ='HER Detail_REM_E214 elec.'!M6 -> 0 | S17: ='HER Detail_REM_E214 elec.'!N6 -> 389207.73 | T17: ='HER Detail_REM_E214 elec.'!O6 -> 0
B18: Web Tstat Detail_REM E214 Elec | C18: E214 | E18: Web-Enabled Thermostat | H18: 18230023 | I18: ='Web Tstat Detail_REM E214 Elec'!D6 -> 26800 | J18: ='Web Tstat Detail_REM E214 Elec'!E6 -> 4800 | K18: ='Web Tstat Detail_REM E214 Elec'!F6 -> 29324.8 | L18: ='Web Tstat Detail_REM E214 Elec'!G6 -> 15000 | M18: ='Web Tstat Detail_REM E214 Elec'!H6 -> 100 | N18: ='Web Tstat Detail_REM E214 Elec'!I6 -> 12000 | O18: ='Web Tstat Detail_REM E214 Elec'!J6 -> 500 | P18: ='Web Tstat Detail_REM E214 Elec'!K6 -> 500 | Q18: ='Web Tstat Detail_REM E214 Elec'!L6 -> 75000 | R18: ='Web Tstat Detail_REM E214 Elec'!M6 -> 0 | S18: ='Web Tstat Detail_REM E214 Elec'!N6 -> 164024.8 | T18: ='Web Tstat Detail_REM E214 Elec'!O6 -> 1457000
B19: SFNC Detail_REM E215 Elec | C19: E215 | E19: Single Family New Construction | H19: 18230405 | I19: ='SFNC Detail_REM E215 Elec'!D6 -> 13600 | J19: ='SFNC Detail_REM E215 Elec'!E6 -> 4000 | K19: ='SFNC Detail_REM E215 Elec'!F6 -> 16332.8 | L19: ='SFNC Detail_REM E215 Elec'!G6 -> 4000 | M19: ='SFNC Detail_REM E215 Elec'!H6 -> 1000 | N19: ='SFNC Detail_REM E215 Elec'!I6 -> 0 | O19: ='SFNC Detail_REM E215 Elec'!J6 -> 0 | P19: ='SFNC Detail_REM E215 Elec'!K6 -> 0 | Q19: ='SFNC Detail_REM E215 Elec'!L6 -> 137750 | R19: ='SFNC Detail_REM E215 Elec'!M6 -> 0 | S19: ='SFNC Detail_REM E215 Elec'!N6 -> 176682.8 | T19: ='SFNC Detail_REM E215 Elec'!O6 -> 260073
B20: MfgHmNew Detail_REM E215 Elec | C20: E215 | E20: Manufactured Home New Construction | H20: 18230071 | I20: ='NCMfgHome Detail_REM E215 Elec'!D6 -> 10400 | J20: ='NCMfgHome Detail_REM E215 Elec'!E6 -> 2400 | K20: ='NCMfgHome Detail_REM E215 Elec'!F6 -> 11878.4 | L20: ='NCMfgHome Detail_REM E215 Elec'!G6 -> 19000 | M20: ='NCMfgHome Detail_REM E215 Elec'!H6 -> 500 | N20: ='NCMfgHome Detail_REM E215 Elec'!I6 -> 1500 | O20: ='NCMfgHome Detail_REM E215 Elec'!J6 -> 500 | P20: ='NCMfgHome Detail_REM E215 Elec'!K6 -> 0 | Q20: ='NCMfgHome Detail_REM E215 Elec'!L6 -> 45000 | R20: ='NCMfgHome Detail_REM E215 Elec'!M6 -> 0 | S20: ='NCMfgHome Detail_REM E215 Elec'!N6 -> 91178.4 | T20: ='NCMfgHome Detail_REM E215 Elec'!O6 -> 99430
B21: MF Retr Detail_REM E217 Elec | C21: E217 | E21: Multifamily Retrofit | H21: 18230407 | I21: ='MF Retr Detail_REM E217 Elec'!D6 -> 144900 | J21: ='MF Retr Detail_REM E217 Elec'!E6 -> 43200 | K21: ='MF Retr Detail_REM E217 Elec'!F6 -> 174556.8 | L21: ='MF Retr Detail_REM E217 Elec'!G6 -> 67500 | M21: ='MF Retr Detail_REM E217 Elec'!H6 -> 4000 | N21: ='MF Retr Detail_REM E217 Elec'!I6 -> 1492000 | O21: ='MF Retr Detail_REM E217 Elec'!J6 -> 1000 | P21: ='MF Retr Detail_REM E217 Elec'!K6 -> 1000 | Q21: ='MF Retr Detail_REM E217 Elec'!L6 -> 7242098.045 | R21: ='MF Retr Detail_REM E217 Elec'!M6 -> 0 | S21: ='MF Retr Detail_REM E217 Elec'!N6 -> 9170254.845 | T21: ='MF Retr Detail_REM E217 Elec'!O6 -> 16234965.03
B22: MFNC Detail_REM E218 Elec | C22: E218 | E22: Multi-Family New Construction | H22: 18230486 | I22: ='MFNC Detail_REM E218 Elec'!D6 -> 103720 | J22: ='MFNC Detail_REM E218 Elec'!E6 -> 4000 | K22: ='MFNC Detail_REM E218 Elec'!F6 -> 99964.16 | L22: ='MFNC Detail_REM E218 Elec'!G6 -> 35000 | M22: ='MFNC Detail_REM E218 Elec'!H6 -> 4000 | N22: ='MFNC Detail_REM E218 Elec'!I6 -> 302500 | O22: ='MFNC Detail_REM E218 Elec'!J6 -> 3000 | P22: ='MFNC Detail_REM E218 Elec'!K6 -> 0 | Q22: ='MFNC Detail_REM E218 Elec'!L6 -> 897227.1 | R22: ='MFNC Detail_REM E218 Elec'!M6 -> 0 | S22: ='MFNC Detail_REM E218 Elec'!N6 -> 1449411.26 | T22: ='MFNC Detail_REM E218 Elec'!O6 -> 3496000
G23: Total, Residential Energy Management | I23: =SUM(I8:I22) -> 829340 | J23: =SUM(J8:J22) -> 306400 | K23: 1053966.72 | L23: 2533327.33 | M23: 36500 | N23: 3987718.5 | O23: 18350 | P23: 6900 | Q23: 28881446.93 | R23: 0 | S23: 37653949.48 | T23: 106589579.8
C26: Business Energy Managment
B27: CI Retr Detail_BEM E250 Elec | C27: E250 | E27: Commercial/Industrial Retrofit | H27: 18230711 | I27: ='CI Retr Detail_BEM E250 Elec'!C6 -> 687882.109 | J27: ='CI Retr Detail_BEM E250 Elec'!D6 -> 14500 | K27: ='CI Retr Detail_BEM E250 Elec'!E6 -> 648330.5972 | L27: ='CI Retr Detail_BEM E250 Elec'!F6 -> 10150 | M27: ='CI Retr Detail_BEM E250 Elec'!G6 -> 90700 | N27: ='CI Retr Detail_BEM E250 Elec'!H6 -> 639700 | O27: ='CI Retr Detail_BEM E250 Elec'!I6 -> 0 | P27: ='CI Retr Detail_BEM E250 Elec'!J6 -> 0 | Q27: ='CI Retr Detail_BEM E250 Elec'!K6 -> 3230000 | S27: ='CI Retr Detail_BEM E250 Elec'!M6 -> 5321262.706 | T27: ='CI Retr Detail_BEM E250 Elec'!N6 -> 17000000
B28: BusLgtGrants_BEM E250 Elect | C28: E250 | E28: Custom Lighting Grants | H28: 18230724 | I28: ='BusLgtGrants_BEM E250 Elect'!C6 -> 1287500 | J28: ='BusLgtGrants_BEM E250 Elect'!D6 -> 3090 | K28: ='BusLgtGrants_BEM E250 Elect'!E6 -> 1196925.92 | L28: ='BusLgtGrants_BEM E250 Elect'!F6 -> 12000 | M28: ='BusLgtGrants_BEM E250 Elect'!G6 -> 45000 | N28: ='BusLgtGrants_BEM E250 Elect'!H6 -> 112500 | O28: ='BusLgtGrants_BEM E250 Elect'!I6 -> 3500 | P28: ='BusLgtGrants_BEM E250 Elect'!J6 -> 3000 | Q28: ='BusLgtGrants_BEM E250 Elect'!K6 -> 7437500 | S28: ='BusLgtGrants_BEM E250 Elect'!M6 -> 10101015.92 | T28: ='BusLgtGrants_BEM E250 Elect'!N6 -> 43750000
B29: CI NC Detail_BEM E251 Elec | C29: E251 | E29: Commercial/Industrial New Construction | H29: 18230715 | I29: ='CI NC Detail_BEM E251 Elec'!C6 -> 336000 | J29: ='CI NC Detail_BEM E251 Elec'!D6 -> 4800 | K29: ='CI NC Detail_BEM E251 Elec'!E6 -> 315110.4 | L29: ='CI NC Detail_BEM E251 Elec'!F6 -> 4800 | M29: ='CI NC Detail_BEM E251 Elec'!G6 -> 4800 | N29: ='CI NC Detail_BEM E251 Elec'!H6 -> 100800 | O29: ='CI NC Detail_BEM E251 Elec'!I6 -> 7200 | P29: ='CI NC Detail_BEM E251 Elec'!J6 -> 0 | Q29: ='CI NC Detail_BEM E251 Elec'!K6 -> 4022400 | S29: ='CI NC Detail_BEM E251 Elec'!M6 -> 4795910.4 | T29: ='CI NC Detail_BEM E251 Elec'!N6 -> 20000000
E30: Commercial Strategic Energy Management | I30: =SUM(I31:I33) -> 443000 | J30: =SUM(J31:J33) -> 0 | K30: =SUM(K31:K33) -> 411704 | L30: 5000 | M30: 15000 | N30: 30000 | O30: 5000 | P30: 10000 | Q30: 500000 | R30: 0 | S30: 1419704 | T30: 13000000
B31: RCM Detail_BEM E253 Elec | C31: E253 | E31: SEM | H31: 18230723 | I31: ='RCM Detail_BEM E253 Elec'!C6 -> 393000 | J31: ='RCM Detail_BEM E253 Elec'!D6 -> 0 | K31: ='RCM Detail_BEM E253 Elec'!E6 -> 364704 | L31: ='RCM Detail_BEM E253 Elec'!F6 -> 5000 | M31: ='RCM Detail_BEM E253 Elec'!G6 -> 15000 | N31: ='RCM Detail_BEM E253 Elec'!H6 -> 15000 | O31: ='RCM Detail_BEM E253 Elec'!I6 -> 5000 | P31: ='RCM Detail_BEM E253 Elec'!J6 -> 10000 | Q31: ='RCM Detail_BEM E253 Elec'!K6 -> 500000 | S31: ='RCM Detail_BEM E253 Elec'!M6 -> 1307704 | T31: ='RCM Detail_BEM E253 Elec'!N6 -> 13000000
B32: RCM U-S-B Detail_E253 Elec | C32: E253 | E32: Urban Smart Bellevue | H32: 18230414 | I32: ='RCM U-S-B Detail_E253 Elec'!C6 -> 0 | J32: ='RCM U-S-B Detail_E253 Elec'!D6 -> 0 | K32: ='RCM U-S-B Detail_E253 Elec'!E6 -> 0 | L32: ='RCM U-S-B Detail_E253 Elec'!F6 -> 0 | M32: ='RCM U-S-B Detail_E253 Elec'!G6 -> 0 | N32: ='RCM U-S-B Detail_E253 Elec'!H6 -> 0 | O32: ='RCM U-S-B Detail_E253 Elec'!I6 -> 0 | P32: ='RCM U-S-B Detail_E253 Elec'!J6 -> 0 | Q32: ='RCM U-S-B Detail_E253 Elec'!K6 -> 0 | R32: ='RCM U-S-B Detail_E253 Elec'!L6 -> 0 | S32: ='RCM U-S-B Detail_E253 Elec'!M6 -> 0 | T32: ='RCM U-S-B Detail_E253 Elec'!N6 -> 0
B33: ResAcctSW Detail_PSWE_Elec | E33: Resource Accounting Software | H33: 18230502 | I33: ='ResAcctSW Detail_PSWE_Elec'!D6 -> 50000 | J33: ='ResAcctSW Detail_PSWE_Elec'!E6 -> 0 | K33: ='ResAcctSW Detail_PSWE_Elec'!F6 -> 47000 | L33: ='ResAcctSW Detail_PSWE_Elec'!G6 -> 0 | M33: ='ResAcctSW Detail_PSWE_Elec'!H6 -> 0 | N33: ='ResAcctSW Detail_PSWE_Elec'!I6 -> 15000 | O33: ='ResAcctSW Detail_PSWE_Elec'!J6 -> 0 | P33: ='ResAcctSW Detail_PSWE_Elec'!K6 -> 0 | Q33: ='ResAcctSW Detail_PSWE_Elec'!L6 -> 0 | R33: ='ResAcctSW Detail_PSWE_Elec'!M6 -> 0 | S33: ='ResAcctSW Detail_PSWE_Elec'!N6 -> 112000
E34: High Voltage, Self-Directed | I34: =SUM(I35:I36) -> 351443.6398 | J34: =SUM(J35:J36) -> 0 | K34: 326603.5826 | L34: 0 | M34: 0 | N34: 0 | O34: 0 | P34: 0 | Q34: 1242500 | R34: 0 | S34: 1920547.222 | T34: 1000000
B35: LPSD_Detail_449_Elec | C35: E258 | E35: 449 Customers | H35: 18230720 | I35: =LPSD_Detail_449_Elec!C6 -> 94853 | J35: =LPSD_Detail_449_Elec!D6 -> 0 | K35: =LPSD_Detail_449_Elec!E6 -> 88487.46882 | L35: =LPSD_Detail_449_Elec!F6 -> 0 | M35: =LPSD_Detail_449_Elec!G6 -> 0 | N35: =LPSD_Detail_449_Elec!H6 -> 0 | O35: =LPSD_Detail_449_Elec!I6 -> 0 | P35: =LPSD_Detail_449_Elec!J6 -> 0 | Q35: =LPSD_Detail_449_Elec!K6 -> 440000 | R35: =LPSD_Detail_449_Elec!L6 -> 0 | S35: =LPSD_Detail_449_Elec!M6 -> 623340.4688 | T35: =LPSD_Detail_449_Elec!N6 -> 500000
B36: LPSD_Detail_Non-449 Elec | C36: E258 | E36: Non-449 Customers | H36: 18230721 | I36: ='LPSD_Detail_Non-449 Elec'!C6 -> 256590.6398 | J36: ='LPSD_Detail_Non-449 Elec'!D6 -> 0 | K36: ='LPSD_Detail_Non-449 Elec'!E6 -> 238116.1137 | L36: ='LPSD_Detail_Non-449 Elec'!F6 -> 0 | M36: ='LPSD_Detail_Non-449 Elec'!G6 -> 0 | N36: ='LPSD_Detail_Non-449 Elec'!H6 -> 0 | O36: ='LPSD_Detail_Non-449 Elec'!I6 -> 0 | P36: ='LPSD_Detail_Non-449 Elec'!J6 -> 0 | Q36: ='LPSD_Detail_Non-449 Elec'!K6 -> 802500 | S36: ='LPSD_Detail_Non-449 Elec'!M6 -> 1297206.754 | T36: ='LPSD_Detail_Non-449 Elec'!N6 -> 500000
B37: TechEval Detail_BEM E261 Elec | C37: E261 | E37: Technology Evaluation | H37: 18230448 | I37: ='TechEval Detail_BEM E261 Elec'!C6 -> 0 | J37: ='TechEval Detail_BEM E261 Elec'!D6 -> 0 | K37: ='TechEval Detail_BEM E261 Elec'!E6 -> 0 | L37: ='TechEval Detail_BEM E261 Elec'!F6 -> 0 | M37: ='TechEval Detail_BEM E261 Elec'!G6 -> 0 | N37: ='TechEval Detail_BEM E261 Elec'!H6 -> 0 | O37: ='TechEval Detail_BEM E261 Elec'!I6 -> 0 | P37: ='TechEval Detail_BEM E261 Elec'!J6 -> 0 | Q37: ='TechEval Detail_BEM E261 Elec'!K6 -> 0 | S37: ='TechEval Detail_BEM E261 Elec'!M6 -> 0 | T37: ='TechEval Detail_BEM E261 Elec'!N6 -> 0
C38: E262 | E38: Business Rebates | I38: =SUM(I39:I44) -> 188480 | J38: =SUM(J39:J44) -> 30400 | K38: =SUM(K39:K44) -> 203120.64 | L38: 110000 | M38: 15250 | N38: 833740 | O38: 7750 | P38: 4000 | Q38: 4615912 | R38: 0 | S38: 6008652.64 | T38: =SUM(T39:T44) -> 20870406.3
B39: Comm Lgt Mkdn_E262 Elect | C39: E262 | E39: Lighting to Go--also referred to as Business Lighting Markdowns | H39: 18230714 | I39: ='Comm Lgt Mkdn_E262 Elect'!D6 -> 14400 | J39: ='Comm Lgt Mkdn_E262 Elect'!E6 -> 9600 | K39: ='Comm Lgt Mkdn_E262 Elect'!F6 -> 22272 | L39: ='Comm Lgt Mkdn_E262 Elect'!G6 -> 10000 | M39: ='Comm Lgt Mkdn_E262 Elect'!H6 -> 2750 | N39: ='Comm Lgt Mkdn_E262 Elect'!I6 -> 95000 | O39: ='Comm Lgt Mkdn_E262 Elect'!J6 -> 250 | P39: ='Comm Lgt Mkdn_E262 Elect'!K6 -> 500 | Q39: ='Comm Lgt Mkdn_E262 Elect'!L6 -> 357452 | R39: ='Comm Lgt Mkdn_E262 Elect'!M6 -> 0 | S39: ='Comm Lgt Mkdn_E262 Elect'!N6 -> 512224 | T39: ='Comm Lgt Mkdn_E262 Elect'!O6 -> 8969882
B40: Comm Kit-Laund_E262 Elect | C40: E262 | E40: Commercial kitchen and laundry | H40: 18230716 | I40: ='Comm Kit-Laund_E262 Elect'!D6 -> 25600 | J40: ='Comm Kit-Laund_E262 Elect'!E6 -> 6400 | K40: ='Comm Kit-Laund_E262 Elect'!F6 -> 29696 | L40: ='Comm Kit-Laund_E262 Elect'!G6 -> 15000 | M40: ='Comm Kit-Laund_E262 Elect'!H6 -> 3500 | N40: ='Comm Kit-Laund_E262 Elect'!I6 -> 0 | O40: ='Comm Kit-Laund_E262 Elect'!J6 -> 0 | P40: ='Comm Kit-Laund_E262 Elect'!K6 -> 0 | Q40: ='Comm Kit-Laund_E262 Elect'!L6 -> 78010 | R40: ='Comm Kit-Laund_E262 Elect'!M6 -> 0 | S40: ='Comm Kit-Laund_E262 Elect'!N6 -> 158206 | T40: ='Comm Kit-Laund_E262 Elect'!O6 -> 472024.3
B41: Comm HVAC_E262 Elect | C41: E262 | E41: Commercial HVAC | H41: 18230718 | I41: ='Comm HVAC_E262 Elect'!D6 -> 15200 | J41: ='Comm HVAC_E262 Elect'!E6 -> 4000 | K41: ='Comm HVAC_E262 Elect'!F6 -> 17817.6 | L41: ='Comm HVAC_E262 Elect'!G6 -> 5000 | M41: ='Comm HVAC_E262 Elect'!H6 -> 2000 | N41: ='Comm HVAC_E262 Elect'!I6 -> 0 | O41: ='Comm HVAC_E262 Elect'!J6 -> 5000 | P41: ='Comm HVAC_E262 Elect'!K6 -> 1000 | Q41: ='Comm HVAC_E262 Elect'!L6 -> 281250 | R41: ='Comm HVAC_E262 Elect'!M6 -> 0 | S41: ='Comm HVAC_E262 Elect'!N6 -> 331267.6 | T41: ='Comm HVAC_E262 Elect'!O6 -> 1033500
C42: E262 | D42: New for 2018-2019 | E42: Upstream Rooftop Units | H42: 1823zzzz | I42: ='Comm Upstr-Rooftop_E262 Elect'!D6 -> 17600 | J42: ='Comm Upstr-Rooftop_E262 Elect'!E6 -> 4000 | K42: ='Comm Upstr-Rooftop_E262 Elect'!F6 -> 20044.8 | L42: ='Comm Upstr-Rooftop_E262 Elect'!G6 -> 40000 | M42: ='Comm Upstr-Rooftop_E262 Elect'!H6 -> 1000 | N42: ='Comm Upstr-Rooftop_E262 Elect'!I6 -> 200000 | O42: ='Comm Upstr-Rooftop_E262 Elect'!J6 -> 500 | P42: ='Comm Upstr-Rooftop_E262 Elect'!K6 -> 500 | Q42: ='Comm Upstr-Rooftop_E262 Elect'!L6 -> 700000 | R42: ='Comm Upstr-Rooftop_E262 Elect'!M6 -> 0 | S42: ='Comm Upstr-Rooftop_E262 Elect'!N6 -> 983644.8 | T42: ='Comm Upstr-Rooftop_E262 Elect'!O6 -> 2115000
B43: Comm ExpLgt_E262 Elect | C43: E262 | E43: Business Lighting Express | H43: 18230722 | I43: ='Comm ExpLgt_E262 Elect'!D6 -> 0 | J43: ='Comm ExpLgt_E262 Elect'!E6 -> 0 | K43: ='Comm ExpLgt_E262 Elect'!F6 -> 0 | L43: ='Comm ExpLgt_E262 Elect'!G6 -> 0 | M43: ='Comm ExpLgt_E262 Elect'!H6 -> 0 | N43: ='Comm ExpLgt_E262 Elect'!I6 -> 0 | O43: ='Comm ExpLgt_E262 Elect'!J6 -> 0 | P43: ='Comm ExpLgt_E262 Elect'!K6 -> 0 | Q43: ='Comm ExpLgt_E262 Elect'!L6 -> 0 | R43: ='Comm ExpLgt_E262 Elect'!M6 -> 0 | S43: ='Comm ExpLgt_E262 Elect'!N6 -> 0 | T43: ='Comm ExpLgt_E262 Elect'!O6 -> 0
E44: Business Direct-Install Programs--Includes: | I44: =I45+I46+I47 -> 115680 | J44: =J45+J46+J47 -> 6400 | K44: 113290.24 | L44: 40000 | M44: 6000 | N44: 538740 | O44: 2000 | P44: 2000 | Q44: 3199200 | R44: 0 | S44: 4023310.24 | T44: 8280000
B45: Sm Bus DI_E262 Elect | C45: E262 | F45: Small Business Direct Install | H45: 18231134 | I45: ='Sm Bus DI_E262 Elect'!D6 -> 115680 | J45: ='Sm Bus DI_E262 Elect'!E6 -> 6400 | K45: ='Sm Bus DI_E262 Elect'!F6 -> 113290.24 | L45: ='Sm Bus DI_E262 Elect'!G6 -> 40000 | M45: ='Sm Bus DI_E262 Elect'!H6 -> 6000 | N45: ='Sm Bus DI_E262 Elect'!I6 -> 538740 | O45: ='Sm Bus DI_E262 Elect'!J6 -> 2000 | P45: ='Sm Bus DI_E262 Elect'!K6 -> 2000 | Q45: ='Sm Bus DI_E262 Elect'!L6 -> 3199200 | R45: ='Sm Bus DI_E262 Elect'!M6 -> 0 | S45: ='Sm Bus DI_E262 Elect'!N6 -> 4023310.24 | T45: ='Sm Bus DI_E262 Elect'!O6 -> 8280000
B46: Sm Agr DI_E262 Elect | C46: E262 | F46: Small Agriculture Direct Install | H46: 18230521 | I46: ='Sm Agr DI_E262 Elect'!D6 -> 0 | J46: ='Sm Agr DI_E262 Elect'!E6 -> 0 | K46: ='Sm Agr DI_E262 Elect'!F6 -> 0 | L46: ='Sm Agr DI_E262 Elect'!G6 -> 0 | M46: ='Sm Agr DI_E262 Elect'!H6 -> 0 | N46: ='Sm Agr DI_E262 Elect'!I6 -> 0 | O46: ='Sm Agr DI_E262 Elect'!J6 -> 0 | P46: ='Sm Agr DI_E262 Elect'!K6 -> 0 | Q46: ='Sm Agr DI_E262 Elect'!L6 -> 0 | R46: ='Sm Agr DI_E262 Elect'!M6 -> 0 | S46: ='Sm Agr DI_E262 Elect'!N6 -> 0 | T46: ='Sm Agr DI_E262 Elect'!O6 -> 0
B47: Lodging DI_E262 Elec | C47: E262 | F47: Lodging Direct Install | H47: 18230520 | I47: ='Lodging DI_E262 Elec'!D6 -> 0 | J47: ='Lodging DI_E262 Elec'!E6 -> 0 | K47: ='Lodging DI_E262 Elec'!F6 -> 0 | L47: ='Lodging DI_E262 Elec'!G6 -> 0 | M47: ='Lodging DI_E262 Elec'!H6 -> 0 | N47: ='Lodging DI_E262 Elec'!I6 -> 0 | O47: ='Lodging DI_E262 Elec'!J6 -> 0 | P47: ='Lodging DI_E262 Elec'!K6 -> 0 | Q47: ='Lodging DI_E262 Elec'!L6 -> 0 | R47: ='Lodging DI_E262 Elec'!M6 -> 0 | S47: ='Lodging DI_E262 Elec'!N6 -> 0 | T47: ='Lodging DI_E262 Elec'!O6 -> 0
G48: Total, Business Energy Management | I48: =SUM(I27:I30)+I34+I37+I38 -> 3294305.749 | J48: 52790 | K48: 3101795.14 | L48: 141950 | M48: 170750 | N48: 1716740 | O48: 23450 | P48: 17000 | Q48: 21048312 | R48: 0 | S48: 29567092.89 | T48: 115620406.3
C51: Pilots With Uncertain Savings
B52: REM Pilots E249 Elec | C52: E249 | E52: Residential Pilots | H52: 18230522 | I52: ='REM Pilots E249 Elec'!D6 -> 0 | J52: ='REM Pilots E249 Elec'!E6 -> 0 | K52: ='REM Pilots E249 Elec'!F6 -> 0 | L52: ='REM Pilots E249 Elec'!G6 -> 0 | M52: ='REM Pilots E249 Elec'!H6 -> 0 | N52: ='REM Pilots E249 Elec'!I6 -> 0 | O52: ='REM Pilots E249 Elec'!J6 -> 0 | P52: ='REM Pilots E249 Elec'!K6 -> 0 | Q52: ='REM Pilots E249 Elec'!L6 -> 0 | R52: ='REM Pilots E249 Elec'!M6 -> 0 | S52: ='REM Pilots E249 Elec'!N6 -> 0 | T52: ='REM Pilots E249 Elec'!O6 -> 0
B53: BEM Pilots E249 Elec | C53: E249 | E53: Commercial Pay for Performance Pilot | H53: 1823pppp | I53: ='BEM Pilots E249 Elec'!I6 -> 0 | J53: ='BEM Pilots E249 Elec'!J6 -> 0 | K53: ='BEM Pilots E249 Elec'!K6 -> 0 | L53: ='BEM Pilots E249 Elec'!L6 -> 0 | M53: ='BEM Pilots E249 Elec'!M6 -> 0 | N53: ='BEM Pilots E249 Elec'!N6 -> 0 | O53: ='BEM Pilots E249 Elec'!O6 -> 0 | P53: ='BEM Pilots E249 Elec'!P6 -> 0 | Q53: ='BEM Pilots E249 Elec'!Q6 -> 350000 | R53: ='BEM Pilots E249 Elec'!R6 -> 0 | S53: ='BEM Pilots E249 Elec'!S6 -> 350000 | T53: ='BEM Pilots E249 Elec'!T6 -> 3640000
G54: Total, Pilots | I54: =SUM(I52:I53) -> 0 | J54: =SUM(J52:J53) -> 0 | K54: 0 | L54: 0 | M54: 0 | N54: 0 | O54: 0 | P54: 0 | Q54: 350000 | R54: 0 | S54: 350000 | T54: 3640000
C58: Regional Efficiency Programs
B59: NEEA Detail_E254 elec | C59: E254 | E59: Northwest Energy Efficiency Alliance | H59: 18230421 | I59: ='NEEA Detail_E254 elec'!D6 -> 0 | J59: ='NEEA Detail_E254 elec'!E6 -> 0 | K59: ='NEEA Detail_E254 elec'!F6 -> 0 | L59: ='NEEA Detail_E254 elec'!G6 -> 0 | M59: ='NEEA Detail_E254 elec'!H6 -> 0 | N59: ='NEEA Detail_E254 elec'!I6 -> 1560000 | O59: ='NEEA Detail_E254 elec'!J6 -> 0 | P59: ='NEEA Detail_E254 elec'!K6 -> 0 | Q59: ='NEEA Detail_E254 elec'!L6 -> 3640000 | S59: ='NEEA Detail_E254 elec'!N6 -> 5200000 | T59: ='NEEA Detail_E254 elec'!O6 -> 12526800
B60: T&D Detail_Reg E292 elec | C60: E292 | E60: Transmission & Distribution | H60: 18230711 | I60: ='T&D Detail_Reg E292 elec'!C6 -> 0 | J60: ='T&D Detail_Reg E292 elec'!D6 -> 0 | K60: ='T&D Detail_Reg E292 elec'!E6 -> 0 | L60: ='T&D Detail_Reg E292 elec'!F6 -> 0 | M60: ='T&D Detail_Reg E292 elec'!G6 -> 0 | N60: ='T&D Detail_Reg E292 elec'!H6 -> 0 | O60: ='T&D Detail_Reg E292 elec'!I6 -> 0 | P60: ='T&D Detail_Reg E292 elec'!J6 -> 0 | Q60: ='T&D Detail_Reg E292 elec'!K6 -> 0 | S60: ='T&D Detail_Reg E292 elec'!M6 -> 0 | T60: ='T&D Detail_Reg E292 elec'!N6 -> 750000
G61: Total, Regional Efficiency Programs | I61: =SUM(I59:I60) -> 0 | J61: 0 | K61: 0 | L61: 0 | M61: 0 | N61: 1560000 | O61: 0 | P61: 0 | Q61: 3640000 | R61: 0 | S61: 5200000 | T61: 13276800
C65: Energy Efficiency Portfolio Support
B66: Data & Systm Svcs_Elect | E66: Data and Systems Services | H66: 18230745 | I66: ='Data & Systm Svcs_Elect'!D6 -> 419340 | J66: ='Data & Systm Svcs_Elect'!E6 -> 0 | K66: ='Data & Systm Svcs_Elect'!F6 -> 389147.52 | L66: ='Data & Systm Svcs_Elect'!G6 -> 0 | M66: ='Data & Systm Svcs_Elect'!H6 -> 10440 | N66: ='Data & Systm Svcs_Elect'!I6 -> 282750 | O66: ='Data & Systm Svcs_Elect'!J6 -> 0 | P66: ='Data & Systm Svcs_Elect'!K6 -> 0 | Q66: ='Data & Systm Svcs_Elect'!L6 -> 0 | R66: ='Data & Systm Svcs_Elect'!M6 -> 0 | S66: ='Data & Systm Svcs_Elect'!N6 -> 1101677.52
B67: Rebt Procg Detail_Elect | E67: Rebates Processing | H67: 18230507 | I67: ='Rebt Procg Detail_Elect'!D6 -> 278800 | J67: ='Rebt Procg Detail_Elect'!E6 -> 0 | K67: ='Rebt Procg Detail_Elect'!F6 -> 258726.4 | L67: ='Rebt Procg Detail_Elect'!G6 -> 0 | M67: ='Rebt Procg Detail_Elect'!H6 -> 20000 | N67: ='Rebt Procg Detail_Elect'!I6 -> 0 | O67: ='Rebt Procg Detail_Elect'!J6 -> 5000 | P67: ='Rebt Procg Detail_Elect'!K6 -> 0 | Q67: ='Rebt Procg Detail_Elect'!L6 -> 0 | S67: ='Rebt Procg Detail_Elect'!N6 -> 562526.4
B68: VTeam Detail_R&C_Elec | E68: Verification Team | H68: 18230418 | I68: ='Verifctn Team Detail Elec'!D6 -> 230080 | J68: ='Verifctn Team Detail Elec'!E6 -> 0 | K68: ='Verifctn Team Detail Elec'!F6 -> 213514.24 | L68: ='Verifctn Team Detail Elec'!G6 -> 0 | M68: ='Verifctn Team Detail Elec'!H6 -> 10800 | N68: ='Verifctn Team Detail Elec'!I6 -> 78300 | O68: ='Verifctn Team Detail Elec'!J6 -> 6200 | P68: ='Verifctn Team Detail Elec'!K6 -> 0 | Q68: ='Verifctn Team Detail Elec'!L6 -> 0 | R68: ='Verifctn Team Detail Elec'!M6 -> 0 | S68: ='Verifctn Team Detail Elec'!N6 -> 538894.24
B69: ProgDev Detail_R&C_ Elec | E69: Programs Support | H69: 18230810 | I69: ='Progs Supp Detail_PS_ Elec'!D6 -> 208800 | J69: ='Progs Supp Detail_PS_ Elec'!E6 -> 0 | K69: ='Progs Supp Detail_PS_ Elec'!F6 -> 193766.4 | L69: ='Progs Supp Detail_PS_ Elec'!G6 -> 0 | M69: ='Progs Supp Detail_PS_ Elec'!H6 -> 12000 | N69: ='Progs Supp Detail_PS_ Elec'!I6 -> 0 | O69: ='Progs Supp Detail_PS_ Elec'!J6 -> 0 | P69: ='Progs Supp Detail_PS_ Elec'!K6 -> 0 | Q69: ='Progs Supp Detail_PS_ Elec'!L6 -> 0 | R69: ='Progs Supp Detail_PS_ Elec'!M6 -> 0 | S69: ='Progs Supp Detail_PS_ Elec'!N6 -> 414566.4
B70: TradeAlly Detail_PS_ Elec | E70: Trade Ally Support | H70: 18230730 | I70: ='TradeAlly Detail_PS_ Elec'!D6 -> 0 | J70: ='TradeAlly Detail_PS_ Elec'!E6 -> 0 | K70: ='TradeAlly Detail_PS_ Elec'!F6 -> 0 | L70: ='TradeAlly Detail_PS_ Elec'!G6 -> 0 | M70: ='TradeAlly Detail_PS_ Elec'!H6 -> 0 | N70: ='TradeAlly Detail_PS_ Elec'!I6 -> 118000 | O70: ='TradeAlly Detail_PS_ Elec'!J6 -> 0 | P70: ='TradeAlly Detail_PS_ Elec'!K6 -> 0 | Q70: ='TradeAlly Detail_PS_ Elec'!L6 -> 0 | S70: ='TradeAlly Detail_PS_ Elec'!N6 -> 118000
B71: CAN_Elect | E71: Contractor Alliance Network (revenue + cost) | H71: 18230746 | I71: =CAN_Elect!D6 -> 70400 | J71: =CAN_Elect!E6 -> 3200 | K71: =CAN_Elect!F6 -> 68300.8 | L71: =CAN_Elect!G6 -> 20000 | M71: =CAN_Elect!H6 -> 5000 | N71: =CAN_Elect!I6 -> 148000 | O71: =CAN_Elect!J6 -> 1500 | P71: =CAN_Elect!K6 -> 0 | Q71: =CAN_Elect!L6 -> 0 | R71: =CAN_Elect!M6 -> -282400.8 | S71: =CAN_Elect!N6 -> 34000
B72: ABS Detail_PSWE_Elec | E72: Automated Benchmarking System | H72: 18230411 | I72: ='ABS Detail_PSWE_Elec'!D6 -> 59191 | J72: ='ABS Detail_PSWE_Elec'!E6 -> 0 | K72: ='ABS Detail_PSWE_Elec'!F6 -> 54929.248 | L72: ='ABS Detail_PSWE_Elec'!G6 -> 0 | M72: ='ABS Detail_PSWE_Elec'!H6 -> 0 | N72: ='ABS Detail_PSWE_Elec'!I6 -> 59500 | O72: ='ABS Detail_PSWE_Elec'!J6 -> 0 | P72: ='ABS Detail_PSWE_Elec'!K6 -> 0 | Q72: ='ABS Detail_PSWE_Elec'!L6 -> 0 | R72: ='ABS Detail_PSWE_Elec'!L6 -> 0 | S72: ='ABS Detail_PSWE_Elec'!N6 -> 173620.248
B73: Engy Adv Detail_PSCE Elec | E73: Energy Advisors | H73: 18230610 | I73: ='Engy Adv Detail_PSCE Elec'!D6 -> 654240 | J73: ='Engy Adv Detail_PSCE Elec'!E6 -> 0 | K73: ='Engy Adv Detail_PSCE Elec'!F6 -> 450117.12 | L73: ='Engy Adv Detail_PSCE Elec'!G6 -> 0 | M73: ='Engy Adv Detail_PSCE Elec'!H6 -> 44000 | N73: ='Engy Adv Detail_PSCE Elec'!I6 -> 1000 | O73: ='Engy Adv Detail_PSCE Elec'!J6 -> 0 | P73: ='Engy Adv Detail_PSCE Elec'!K6 -> 1350 | Q73: ='Engy Adv Detail_PSCE Elec'!L6 -> 0 | R73: ='Engy Adv Detail_PSCE Elec'!M6 -> 0 | S73: ='Engy Adv Detail_PSCE Elec'!N6 -> 1150707.12
B74: EEC Detail_PS_Elec | E74: Energy Efficient Communities | H74: 18230811 | I74: ='EEC Detail_PS_Elec'!D6 -> 444200 | J74: ='EEC Detail_PS_Elec'!E6 -> 7000 | K74: ='EEC Detail_PS_Elec'!F6 -> 310425.6 | L74: ='EEC Detail_PS_Elec'!G6 -> 137040 | M74: ='EEC Detail_PS_Elec'!H6 -> 35670 | N74: ='EEC Detail_PS_Elec'!I6 -> 45000 | O74: ='EEC Detail_PS_Elec'!J6 -> 12000 | P74: ='EEC Detail_PS_Elec'!K6 -> 0 | Q74: ='EEC Detail_PS_Elec'!L6 -> 0 | S74: ='EEC Detail_PS_Elec'!N6 -> 991335.6
B75: CustOnline Detail_PSWE_Elec | E75: Customer Digital Experience | H75: 18230408 | I75: ='CustDigExprnc Detail_PSWE_Elec'!D6 -> 101840 | J75: ='CustDigExprnc Detail_PSWE_Elec'!E6 -> 0 | K75: ='CustDigExprnc Detail_PSWE_Elec'!F6 -> 70065.92 | L75: ='CustDigExprnc Detail_PSWE_Elec'!G6 -> 0 | M75: ='CustDigExprnc Detail_PSWE_Elec'!H6 -> 0 | N75: ='CustDigExprnc Detail_PSWE_Elec'!I6 -> 414290 | O75: ='CustDigExprnc Detail_PSWE_Elec'!J6 -> 0 | P75: ='CustDigExprnc Detail_PSWE_Elec'!K6 -> 0 | Q75: ='CustDigExprnc Detail_PSWE_Elec'!L6 -> 0 | S75: ='CustDigExprnc Detail_PSWE_Elec'!N6 -> 586195.92
B76: Mkt Intgn Detail_PSWE_Elec | E76: Market Integration | H76: 18230466 | I76: ='Mkt Intgn Detail_PSWE_Elec'!D6 -> 146944 | J76: ='Mkt Intgn Detail_PSWE_Elec'!E6 -> 0 | K76: ='Mkt Intgn Detail_PSWE_Elec'!F6 -> 101097.472 | L76: ='Mkt Intgn Detail_PSWE_Elec'!G6 -> 0 | M76: ='Mkt Intgn Detail_PSWE_Elec'!H6 -> 0 | N76: ='Mkt Intgn Detail_PSWE_Elec'!I6 -> 13920 | O76: ='Mkt Intgn Detail_PSWE_Elec'!J6 -> 0 | P76: ='Mkt Intgn Detail_PSWE_Elec'!K6 -> 0 | Q76: ='Mkt Intgn Detail_PSWE_Elec'!L6 -> 0 | S76: ='Mkt Intgn Detail_PSWE_Elec'!N6 -> 261961.472
B77: Events Detail_PSCE Elec | E77: Events | H77: 18230602 | I77: ='Events Detail_PSCE Elec'!D6 -> 300840 | J77: ='Events Detail_PSCE Elec'!E6 -> 1300 | K77: ='Events Detail_PSCE Elec'!F6 -> 207872.32 | L77: ='Events Detail_PSCE Elec'!G6 -> 6960 | M77: ='Events Detail_PSCE Elec'!H6 -> 3905 | N77: ='Events Detail_PSCE Elec'!I6 -> 72200 | O77: ='Events Detail_PSCE Elec'!J6 -> 4785 | P77: ='Events Detail_PSCE Elec'!K6 -> 0 | Q77: ='Events Detail_PSCE Elec'!L6 -> 0 | R77: ='Events Detail_PSCE Elec'!M6 -> 0 | S77: ='Events Detail_PSCE Elec'!N6 -> 597862.32
B78: Brochures Detail_PSCE Elec | E78: Brochures, non program-specific | H78: 18230482 | I78: ='Brochures Detail_PSCE Elec'!D6 -> 17600 | J78: ='Brochures Detail_PSCE Elec'!E6 -> 8700 | K78: ='Brochures Detail_PSCE Elec'!F6 -> 18094.4 | L78: ='Brochures Detail_PSCE Elec'!G6 -> 13000 | M78: ='Brochures Detail_PSCE Elec'!H6 -> 0 | N78: ='Brochures Detail_PSCE Elec'!I6 -> 2610 | O78: ='Brochures Detail_PSCE Elec'!J6 -> 22620 | P78: ='Brochures Detail_PSCE Elec'!K6 -> 0 | Q78: ='Brochures Detail_PSCE Elec'!L6 -> 0 | R78: ='Brochures Detail_PSCE Elec'!M6 -> 0 | S78: ='Brochures Detail_PSCE Elec'!N6 -> 82624.4
B79: Educatn Detail_PSCE E202 Elec | C79: E202 | E79: Education | H79: 18230621 | I79: ='Educatn Detail_PSCE E202 Elec'!D6 -> 0 | J79: ='Educatn Detail_PSCE E202 Elec'!E6 -> 0 | K79: ='Educatn Detail_PSCE E202 Elec'!F6 -> 0 | L79: ='Educatn Detail_PSCE E202 Elec'!G6 -> 0 | M79: ='Educatn Detail_PSCE E202 Elec'!H6 -> 0 | N79: ='Educatn Detail_PSCE E202 Elec'!I6 -> 8700 | O79: ='Educatn Detail_PSCE E202 Elec'!J6 -> 0 | P79: ='Educatn Detail_PSCE E202 Elec'!K6 -> 0 | Q79: ='Educatn Detail_PSCE E202 Elec'!L6 -> 0 | R79: ='Educatn Detail_PSCE E202 Elec'!M6 -> 0 | S79: ='Educatn Detail_PSCE E202 Elec'!N6 -> 8700
G80: Total, Portfolio Support | I80: =SUM(I66:I79) -> 2932275 | J80: 20200 | K80: 2336057.44 | L80: 177000 | M80: 141815 | N80: 1244270 | O80: 52105 | P80: 1350 | Q80: 0 | R80: -282400.8 | S80: 6622671.64
C84: Research & Compliance
B85: SuppCrv Detail_R&C_Elec | E85: Conservation Supply Curves | H85: 18230809 | I85: ='SuppCrv Detail_R&C_Elec'!D6 -> 87000 | J85: ='SuppCrv Detail_R&C_Elec'!E6 -> 0 | K85: ='SuppCrv Detail_R&C_Elec'!F6 -> 59856 | L85: ='SuppCrv Detail_R&C_Elec'!G6 -> 0 | M85: ='SuppCrv Detail_R&C_Elec'!H6 -> 870 | N85: ='SuppCrv Detail_R&C_Elec'!I6 -> 62640 | O85: ='SuppCrv Detail_R&C_Elec'!J6 -> 0 | P85: ='SuppCrv Detail_R&C_Elec'!K6 -> 0 | Q85: ='SuppCrv Detail_R&C_Elec'!L6 -> 0 | R85: ='SuppCrv Detail_R&C_Elec'!M6 -> 0 | S85: ='SuppCrv Detail_R&C_Elec'!N6 -> 210366
B86: Strat Plan Detail_R&C_Elec | E86: Strategic Planning | H86: 18230469 | I86: ='Strat Plan Detail_R&C_Elec'!D6 -> 231768 | J86: ='Strat Plan Detail_R&C_Elec'!E6 -> 0 | K86: ='Strat Plan Detail_R&C_Elec'!F6 -> 159456.384 | L86: ='Strat Plan Detail_R&C_Elec'!G6 -> 0 | M86: ='Strat Plan Detail_R&C_Elec'!H6 -> 10005 | N86: ='Strat Plan Detail_R&C_Elec'!I6 -> 384800 | O86: ='Strat Plan Detail_R&C_Elec'!J6 -> 0 | P86: ='Strat Plan Detail_R&C_Elec'!K6 -> 0 | Q86: ='Strat Plan Detail_R&C_Elec'!L6 -> 0 | R86: ='Strat Plan Detail_R&C_Elec'!M6 -> 0 | S86: ='Strat Plan Detail_R&C_Elec'!N6 -> 786029.384
B87: Mktg Resch Detail_PS_ Elec | E87: Market Research | H87: 18230413 | I87: ='Mktg Resch Detail_PS_ Elec'!D6 -> 139200 | J87: ='Mktg Resch Detail_PS_ Elec'!E6 -> 0 | K87: ='Mktg Resch Detail_PS_ Elec'!F6 -> 95769.6 | L87: ='Mktg Resch Detail_PS_ Elec'!G6 -> 0 | M87: ='Mktg Resch Detail_PS_ Elec'!H6 -> 0 | N87: ='Mktg Resch Detail_PS_ Elec'!I6 -> 0 | O87: ='Mktg Resch Detail_PS_ Elec'!J6 -> 0 | P87: ='Mktg Resch Detail_PS_ Elec'!K6 -> 0 | Q87: ='Mktg Resch Detail_PS_ Elec'!L6 -> 0 | R87: ='Mktg Resch Detail_PS_ Elec'!M6 -> 0 | S87: ='Mktg Resch Detail_PS_ Elec'!N6 -> 234969.6
B88: Eval Detail_R&C_Elec | E88: Program Evaluation | H88: 18230802 | I88: ='Eval Detail_R&C_Elec'!D6 -> 164256 | J88: ='Eval Detail_R&C_Elec'!E6 -> 0 | K88: ='Eval Detail_R&C_Elec'!F6 -> 152429.568 | L88: ='Eval Detail_R&C_Elec'!G6 -> 0 | M88: ='Eval Detail_R&C_Elec'!H6 -> 6090 | N88: ='Eval Detail_R&C_Elec'!I6 -> 1397981.25 | O88: ='Eval Detail_R&C_Elec'!J6 -> 0 | P88: ='Eval Detail_R&C_Elec'!K6 -> 273000 | Q88: ='Eval Detail_R&C_Elec'!L6 -> 0 | R88: ='Eval Detail_R&C_Elec'!M6 -> 0 | S88: ='Eval Detail_R&C_Elec'!N6 -> 1993756.818
B89: BECAR Detail_R&C Elec | E89: Biennial Elec. Consv. Aquisitn. Review | H89: 18230624 | I89: ='BECAR Detail_R&C Elec'!D6 -> 0 | J89: ='BECAR Detail_R&C Elec'!E6 -> 0 | K89: ='BECAR Detail_R&C Elec'!F6 -> 0 | L89: ='BECAR Detail_R&C Elec'!G6 -> 0 | M89: ='BECAR Detail_R&C Elec'!H6 -> 0 | N89: ='BECAR Detail_R&C Elec'!I6 -> 75000 | O89: ='BECAR Detail_R&C Elec'!J6 -> 0 | P89: ='BECAR Detail_R&C Elec'!K6 -> 0 | Q89: ='BECAR Detail_R&C Elec'!L6 -> 0 | R89: ='BECAR Detail_R&C Elec'!M6 -> 0 | S89: ='BECAR Detail_R&C Elec'!N6 -> 75000
G90: Total, Research & Compliance | I90: =SUM(I85:I89) -> 622224 | J90: 0 | K90: 467511.552 | L90: 0 | M90: 16965 | N90: 1920421.25 | O90: 0 | P90: 273000 | Q90: 0 | R90: 0 | S90: 3300121.802
C94: Other Electric Programs
B95: Net Mtr Details_Oth Elec E150 | C95: E150 | E95: Net Metering | H95: 18230128 | I95: ='Net Mtr Details_Oth Elec E150'!D6 -> 243200 | J95: ='Net Mtr Details_Oth Elec E150'!E6 -> 0 | K95: ='Net Mtr Details_Oth Elec E150'!F6 -> 225689.6 | L95: ='Net Mtr Details_Oth Elec E150'!G6 -> 0 | M95: ='Net Mtr Details_Oth Elec E150'!H6 -> 10000 | N95: ='Net Mtr Details_Oth Elec E150'!I6 -> 50000 | O95: ='Net Mtr Details_Oth Elec E150'!J6 -> 5000 | P95: ='Net Mtr Details_Oth Elec E150'!K6 -> 560000 | Q95: ='Net Mtr Details_Oth Elec E150'!L6 -> 0 | S95: ='Net Mtr Details_Oth Elec E150'!N6 -> 1093889.6
G96: Total, Other Electric Programs | I96: =SUM(I95:I95) -> 243200 | J96: 0 | K96: 225689.6 | L96: 0 | M96: 10000 | N96: 50000 | O96: 5000 | P96: 560000 | Q96: 0 | R96: 0 | S96: 1093889.6
G100: GRAND TOTAL, ELECTRIC PROGRAMS | I100: =I96+I90+I61+I54+I48+I23 -> 4989069.749 | J100: 359190 | K100: 4848963.012 | L100: 2675277.33 | M100: 234215 | N100: 9234879.75 | O100: 46800 | P100: 856900 | Q100: 53919758.93 | R100: 0 | S100: =S96+S90+S80+S61+S54+S48+S23 -> 83787725.41 | T100: =T96+T90+T61+T54+T48+T23 -> 239126786.1
T103: =T100/1000/8760 -> 27.29757832
G104: Budget Category Includes | H104: This is the main level of tracking expenditures and expenses in EES. Per FERC rules, all conservation order numbers start with a "1823nnnn", where "n" is some number. Cost elements apply to all order numbers (for instance, all conservation programs that | I104: Energy Efficiency program staff labor. Average FTE cost including management assessments. This Budget Category group includes assessments from Major Accounts management, Resource Planning, Corporate Communications management, IT specialists and some building maintenance allocations. | J104: Also Energy Efficiency staff labor, associated specifically with Marketing functions. Marketing allocates staffing according to program needs. | K104: Overhead--costs associated with primarily employee labor; benefits, for instance. For 2017, includes micro-overhead. | L104: Service and materials associated with the cost of printing program brochures, marketing pieces, advertising, banners, etc. Also includes marketing conducted by vendors and contractors. | M104: Costs associated with EE staff attending events, employee training, conferences, business meals, business parking, ferry & bridge tolls, mileage incurred on employee automobiles, office supplies, phones, subscriptions, software/hardware, etc. | N104: Contractors and vendors, such as PECI, Ecos, CostCo, EFI, etc. Legal expenses, technical services (CMS design, PSE.com web portals, etc.). These costs do NOT include brochure development, marketing pieces, (which are classified under MARKETING). These costs do NOT include incentives paid to customers by contractors. | O104: Primarily tools, trade show equipment, etc. | P104: This category should seldomly be used, and only expenses that cannot be classified under one of the above categories. | Q104: All costs associated with rebates, grants, remuneration, value-added services that have a direct bearing on a customer's perceived value of PSE offerings. | R104: Any amount that PSE is paid by a customer, partner, municipality or outside entity.

Sheet 2-year Sector View Gas
C2: Energy Efficiency 2018-2019 Budgets and Aggregate Program Savings
C3: Two-Year Sector View
C4: Natural Gas Programs | I4: Please see category descriptions at the bottom of the sector table.
I5: Budget Category
B6: Workbook Name | C6: Schedule | D6: Comment | E6: Description (Blue, indented text indicates a sub-total value) | H6: Order Number (Click on the order# below to link to the detail page) | I6: Program Labor | J6: Marketing Labor | K6: Overhead | L6: Marketing | M6: Employee/Office Expense | N6: Outside Services | O6: Materials | P6: Miscellaneous | Q6: DBtC | R6: Revenue | S6: Total Budget | T6: Total Savings Therms
C7: Residential Energy Management
B8: LIW Detail_REM G201 Gas | C8: G201 | E8: Low Income Weatherization | H8: 18230661 | I8: ='2018 Sector View Gas'!I8+'2019 Sector View Gas'!I8 -> 14800 | J8: ='2018 Sector View Gas'!J8+'2019 Sector View Gas'!J8 -> 0 | K8: ='2018 Sector View Gas'!K8+'2019 Sector View Gas'!K8 -> 13734.4 | L8: ='2018 Sector View Gas'!L8+'2019 Sector View Gas'!L8 -> 0 | M8: ='2018 Sector View Gas'!M8+'2019 Sector View Gas'!M8 -> 0 | N8: ='2018 Sector View Gas'!N8+'2019 Sector View Gas'!N8 -> 0 | O8: ='2018 Sector View Gas'!O8+'2019 Sector View Gas'!O8 -> 0 | P8: ='2018 Sector View Gas'!P8+'2019 Sector View Gas'!P8 -> 0 | Q8: ='2018 Sector View Gas'!Q8+'2019 Sector View Gas'!Q8 -> 549623.736 | R8: ='2018 Sector View Gas'!R8+'2019 Sector View Gas'!R8 -> 0 | S8: ='2018 Sector View Gas'!S8+'2019 Sector View Gas'!S8 -> 578158.136 | T8: ='2018 Sector View Gas'!T8+'2019 Sector View Gas'!T8 -> 19539.94
B9: HmPrint Detail_REM G214 Gas | C9: G214 | E9: Home Energy Assessments | H9: 18230635 | I9: ='2018 Sector View Gas'!I9+'2019 Sector View Gas'!I9 -> 0 | J9: ='2018 Sector View Gas'!J9+'2019 Sector View Gas'!J9 -> 0 | K9: ='2018 Sector View Gas'!K9+'2019 Sector View Gas'!K9 -> 0 | L9: ='2018 Sector View Gas'!L9+'2019 Sector View Gas'!L9 -> 0 | M9: ='2018 Sector View Gas'!M9+'2019 Sector View Gas'!M9 -> 0 | N9: ='2018 Sector View Gas'!N9+'2019 Sector View Gas'!N9 -> 0 | O9: ='2018 Sector View Gas'!O9+'2019 Sector View Gas'!O9 -> 0 | P9: ='2018 Sector View Gas'!P9+'2019 Sector View Gas'!P9 -> 0 | Q9: ='2018 Sector View Gas'!Q9+'2019 Sector View Gas'!Q9 -> 0 | R9: ='2018 Sector View Gas'!R9+'2019 Sector View Gas'!R9 -> 0 | S9: ='2018 Sector View Gas'!S9+'2019 Sector View Gas'!S9 -> 0 | T9: ='2018 Sector View Gas'!T9+'2019 Sector View Gas'!T9 -> 0
B10: WtrHeat Detail_REM G214 Gas | C10: G214 | E10: SF Existing Water Heat | H10: 18230636 | I10: ='2018 Sector View Gas'!I10+'2019 Sector View Gas'!I10 -> 27200 | J10: ='2018 Sector View Gas'!J10+'2019 Sector View Gas'!J10 -> 6400 | K10: ='2018 Sector View Gas'!K10+'2019 Sector View Gas'!K10 -> 31180.8 | L10: ='2018 Sector View Gas'!L10+'2019 Sector View Gas'!L10 -> 50000 | M10: ='2018 Sector View Gas'!M10+'2019 Sector View Gas'!M10 -> 2400 | N10: ='2018 Sector View Gas'!N10+'2019 Sector View Gas'!N10 -> 0 | O10: ='2018 Sector View Gas'!O10+'2019 Sector View Gas'!O10 -> 2000 | P10: ='2018 Sector View Gas'!P10+'2019 Sector View Gas'!P10 -> 1000 | Q10: ='2018 Sector View Gas'!Q10+'2019 Sector View Gas'!Q10 -> 454052 | R10: ='2018 Sector View Gas'!R10+'2019 Sector View Gas'!R10 -> 0 | S10: ='2018 Sector View Gas'!S10+'2019 Sector View Gas'!S10 -> 574232.8 | T10: ='2018 Sector View Gas'!T10+'2019 Sector View Gas'!T10 -> 188251
B11: Wx Detail_REM G214 Gas | C11: G214 | E11: SF Existing Weatherization | H11: 18230637 | I11: ='2018 Sector View Gas'!I11+'2019 Sector View Gas'!I11 -> 49600 | J11: ='2018 Sector View Gas'!J11+'2019 Sector View Gas'!J11 -> 22400 | K11: ='2018 Sector View Gas'!K11+'2019 Sector View Gas'!K11 -> 66816 | L11: ='2018 Sector View Gas'!L11+'2019 Sector View Gas'!L11 -> 75000 | M11: ='2018 Sector View Gas'!M11+'2019 Sector View Gas'!M11 -> 2000 | N11: ='2018 Sector View Gas'!N11+'2019 Sector View Gas'!N11 -> 449800 | O11: ='2018 Sector View Gas'!O11+'2019 Sector View Gas'!O11 -> 200 | P11: ='2018 Sector View Gas'!P11+'2019 Sector View Gas'!P11 -> 2000 | Q11: ='2018 Sector View Gas'!Q11+'2019 Sector View Gas'!Q11 -> 4678078 | R11: ='2018 Sector View Gas'!R11+'2019 Sector View Gas'!R11 -> 0 | S11: ='2018 Sector View Gas'!S11+'2019 Sector View Gas'!S11 -> 5345894 | T11: ='2018 Sector View Gas'!T11+'2019 Sector View Gas'!T11 -> 771370
B12: SpHeat Detail_REM G214 Gas | C12: G214 | E12: SF Existing Space Heat | H12: 18230638 | I12: ='2018 Sector View Gas'!I12+'2019 Sector View Gas'!I12 -> 59200 | J12: ='2018 Sector View Gas'!J12+'2019 Sector View Gas'!J12 -> 28800 | K12: ='2018 Sector View Gas'!K12+'2019 Sector View Gas'!K12 -> 81664 | L12: ='2018 Sector View Gas'!L12+'2019 Sector View Gas'!L12 -> 450000 | M12: ='2018 Sector View Gas'!M12+'2019 Sector View Gas'!M12 -> 6000 | N12: ='2018 Sector View Gas'!N12+'2019 Sector View Gas'!N12 -> 20000 | O12: ='2018 Sector View Gas'!O12+'2019 Sector View Gas'!O12 -> 2000 | P12: ='2018 Sector View Gas'!P12+'2019 Sector View Gas'!P12 -> 1000 | Q12: ='2018 Sector View Gas'!Q12+'2019 Sector View Gas'!Q12 -> 3835749.2 | R12: ='2018 Sector View Gas'!R12+'2019 Sector View Gas'!R12 -> 0 | S12: ='2018 Sector View Gas'!S12+'2019 Sector View Gas'!S12 -> 4484413.2 | T12: ='2018 Sector View Gas'!T12+'2019 Sector View Gas'!T12 -> 1258195.8
C13: G214 | D13: New for 2018-2019 | E13: SF Rentals Pilot | H13: 1823xxxx | I13: ='2018 Sector View Gas'!I13+'2019 Sector View Gas'!I13 -> 14400 | J13: ='2018 Sector View Gas'!J13+'2019 Sector View Gas'!J13 -> 11200 | K13: ='2018 Sector View Gas'!K13+'2019 Sector View Gas'!K13 -> 23756.8 | L13: ='2018 Sector View Gas'!L13+'2019 Sector View Gas'!L13 -> 25000 | M13: ='2018 Sector View Gas'!M13+'2019 Sector View Gas'!M13 -> 350 | N13: ='2018 Sector View Gas'!N13+'2019 Sector View Gas'!N13 -> 120000 | O13: ='2018 Sector View Gas'!O13+'2019 Sector View Gas'!O13 -> 0 | P13: ='2018 Sector View Gas'!P13+'2019 Sector View Gas'!P13 -> 0 | Q13: ='2018 Sector View Gas'!Q13+'2019 Sector View Gas'!Q13 -> 0 | R13: ='2018 Sector View Gas'!R13+'2019 Sector View Gas'!R13 -> 0 | S13: ='2018 Sector View Gas'!S13+'2019 Sector View Gas'!S13 -> 194706.8 | T13: ='2018 Sector View Gas'!T13+'2019 Sector View Gas'!T13 -> 0
B14: ShwrHead Detail_REM G214 Gas | C14: G214 | E14: Residential Showerheads | H14: 18230700 | I14: ='2018 Sector View Gas'!I14+'2019 Sector View Gas'!I14 -> 24160 | J14: ='2018 Sector View Gas'!J14+'2019 Sector View Gas'!J14 -> 6400 | K14: ='2018 Sector View Gas'!K14+'2019 Sector View Gas'!K14 -> 28359.68 | L14: ='2018 Sector View Gas'!L14+'2019 Sector View Gas'!L14 -> 161830 | M14: ='2018 Sector View Gas'!M14+'2019 Sector View Gas'!M14 -> 600 | N14: ='2018 Sector View Gas'!N14+'2019 Sector View Gas'!N14 -> 18870 | O14: ='2018 Sector View Gas'!O14+'2019 Sector View Gas'!O14 -> 600 | P14: ='2018 Sector View Gas'!P14+'2019 Sector View Gas'!P14 -> 600 | Q14: ='2018 Sector View Gas'!Q14+'2019 Sector View Gas'!Q14 -> 345506.5172 | R14: ='2018 Sector View Gas'!R14+'2019 Sector View Gas'!R14 -> 0 | S14: ='2018 Sector View Gas'!S14+'2019 Sector View Gas'!S14 -> 586926.1972 | T14: ='2018 Sector View Gas'!T14+'2019 Sector View Gas'!T14 -> 121399
B15: HmApplSvgs Detail_REM G214 Gas | C15: G214 | E15: Home Appliances | H15: 1823gggg | I15: ='2018 Sector View Gas'!I15+'2019 Sector View Gas'!I15 -> 0 | J15: ='2018 Sector View Gas'!J15+'2019 Sector View Gas'!J15 -> 0 | K15: ='2018 Sector View Gas'!K15+'2019 Sector View Gas'!K15 -> 0 | L15: ='2018 Sector View Gas'!L15+'2019 Sector View Gas'!L15 -> 0 | M15: ='2018 Sector View Gas'!M15+'2019 Sector View Gas'!M15 -> 0 | N15: ='2018 Sector View Gas'!N15+'2019 Sector View Gas'!N15 -> 0 | O15: ='2018 Sector View Gas'!O15+'2019 Sector View Gas'!O15 -> 0 | P15: ='2018 Sector View Gas'!P15+'2019 Sector View Gas'!P15 -> 0 | Q15: ='2018 Sector View Gas'!Q15+'2019 Sector View Gas'!Q15 -> 0 | R15: ='2018 Sector View Gas'!R15+'2019 Sector View Gas'!R15 -> 0 | S15: ='2018 Sector View Gas'!S15+'2019 Sector View Gas'!S15 -> 0 | T15: ='2018 Sector View Gas'!T15+'2019 Sector View Gas'!T15 -> 23582.5
B16: WebTstat Detail_REM G214 Gas | C16: G214 | E16: Web-Enabled Thermostats | H16: 18230687 | I16: ='2018 Sector View Gas'!I16+'2019 Sector View Gas'!I16 -> 53600 | J16: ='2018 Sector View Gas'!J16+'2019 Sector View Gas'!J16 -> 9600 | K16: ='2018 Sector View Gas'!K16+'2019 Sector View Gas'!K16 -> 58649.6 | L16: ='2018 Sector View Gas'!L16+'2019 Sector View Gas'!L16 -> 64000 | M16: ='2018 Sector View Gas'!M16+'2019 Sector View Gas'!M16 -> 2000 | N16: ='2018 Sector View Gas'!N16+'2019 Sector View Gas'!N16 -> 125000 | O16: ='2018 Sector View Gas'!O16+'2019 Sector View Gas'!O16 -> 1000 | P16: ='2018 Sector View Gas'!P16+'2019 Sector View Gas'!P16 -> 1000 | Q16: ='2018 Sector View Gas'!Q16+'2019 Sector View Gas'!Q16 -> 937500 | R16: ='2018 Sector View Gas'!R16+'2019 Sector View Gas'!R16 -> 0 | S16: ='2018 Sector View Gas'!S16+'2019 Sector View Gas'!S16 -> 1252349.6 | T16: ='2018 Sector View Gas'!T16+'2019 Sector View Gas'!T16 -> 712500
B17: HER Detail_REM G214 gas | C17: G214 | E17: Home Energy Reports | H17: 18230738 | I17: ='2018 Sector View Gas'!I17+'2019 Sector View Gas'!I17 -> 44800 | J17: ='2018 Sector View Gas'!J17+'2019 Sector View Gas'!J17 -> 8000 | K17: ='2018 Sector View Gas'!K17+'2019 Sector View Gas'!K17 -> 48998.4 | L17: ='2018 Sector View Gas'!L17+'2019 Sector View Gas'!L17 -> 20285.54 | M17: ='2018 Sector View Gas'!M17+'2019 Sector View Gas'!M17 -> 500 | N17: ='2018 Sector View Gas'!N17+'2019 Sector View Gas'!N17 -> 50486 | O17: ='2018 Sector View Gas'!O17+'2019 Sector View Gas'!O17 -> 200 | P17: ='2018 Sector View Gas'!P17+'2019 Sector View Gas'!P17 -> 300 | Q17: ='2018 Sector View Gas'!Q17+'2019 Sector View Gas'!Q17 -> 27800 | R17: ='2018 Sector View Gas'!R17+'2019 Sector View Gas'!R17 -> 0 | S17: ='2018 Sector View Gas'!S17+'2019 Sector View Gas'!S17 -> 201369.94 | T17: ='2018 Sector View Gas'!T17+'2019 Sector View Gas'!T17 -> 120000
B18: SFNC Detail_REM G215 Gas | C18: G215 | E18: Single Family New Construction | H18: 18230684 | I18: ='2018 Sector View Gas'!I18+'2019 Sector View Gas'!I18 -> 12160 | J18: ='2018 Sector View Gas'!J18+'2019 Sector View Gas'!J18 -> 4800 | K18: ='2018 Sector View Gas'!K18+'2019 Sector View Gas'!K18 -> 15738.88 | L18: ='2018 Sector View Gas'!L18+'2019 Sector View Gas'!L18 -> 96000 | M18: ='2018 Sector View Gas'!M18+'2019 Sector View Gas'!M18 -> 3000 | N18: ='2018 Sector View Gas'!N18+'2019 Sector View Gas'!N18 -> 0 | O18: ='2018 Sector View Gas'!O18+'2019 Sector View Gas'!O18 -> 2000 | P18: ='2018 Sector View Gas'!P18+'2019 Sector View Gas'!P18 -> 0 | Q18: ='2018 Sector View Gas'!Q18+'2019 Sector View Gas'!Q18 -> 75000 | R18: ='2018 Sector View Gas'!R18+'2019 Sector View Gas'!R18 -> 0 | S18: ='2018 Sector View Gas'!S18+'2019 Sector View Gas'!S18 -> 208698.88 | T18: ='2018 Sector View Gas'!T18+'2019 Sector View Gas'!T18 -> 25920
B19: MF Retr Detail_REM G217 Gas | C19: G217 | E19: Multifamily Retrofit | H19: 18230736 | I19: ='2018 Sector View Gas'!I19+'2019 Sector View Gas'!I19 -> 89600 | J19: ='2018 Sector View Gas'!J19+'2019 Sector View Gas'!J19 -> 28800 | K19: ='2018 Sector View Gas'!K19+'2019 Sector View Gas'!K19 -> 109875.2 | L19: ='2018 Sector View Gas'!L19+'2019 Sector View Gas'!L19 -> 7200 | M19: ='2018 Sector View Gas'!M19+'2019 Sector View Gas'!M19 -> 2000 | N19: ='2018 Sector View Gas'!N19+'2019 Sector View Gas'!N19 -> 330000 | O19: ='2018 Sector View Gas'!O19+'2019 Sector View Gas'!O19 -> 1000 | P19: ='2018 Sector View Gas'!P19+'2019 Sector View Gas'!P19 -> 1000 | Q19: ='2018 Sector View Gas'!Q19+'2019 Sector View Gas'!Q19 -> 727768 | R19: ='2018 Sector View Gas'!R19+'2019 Sector View Gas'!R19 -> 0 | S19: ='2018 Sector View Gas'!S19+'2019 Sector View Gas'!S19 -> 1297243.2 | T19: ='2018 Sector View Gas'!T19+'2019 Sector View Gas'!T19 -> 160453.6
B20: MFNC Detail_REM G218 Gas | C20: G218 | E20: Multi-Family New Construction | H20: 18230673 | I20: ='2018 Sector View Gas'!I20+'2019 Sector View Gas'!I20 -> 67800 | J20: ='2018 Sector View Gas'!J20+'2019 Sector View Gas'!J20 -> 8000 | K20: ='2018 Sector View Gas'!K20+'2019 Sector View Gas'!K20 -> 70342.4 | L20: ='2018 Sector View Gas'!L20+'2019 Sector View Gas'!L20 -> 26000 | M20: ='2018 Sector View Gas'!M20+'2019 Sector View Gas'!M20 -> 2000 | N20: ='2018 Sector View Gas'!N20+'2019 Sector View Gas'!N20 -> 150000 | O20: ='2018 Sector View Gas'!O20+'2019 Sector View Gas'!O20 -> 3000 | P20: ='2018 Sector View Gas'!P20+'2019 Sector View Gas'!P20 -> 0 | Q20: ='2018 Sector View Gas'!Q20+'2019 Sector View Gas'!Q20 -> 568800 | R20: ='2018 Sector View Gas'!R20+'2019 Sector View Gas'!R20 -> 0 | S20: ='2018 Sector View Gas'!S20+'2019 Sector View Gas'!S20 -> 895942.4 | T20: ='2018 Sector View Gas'!T20+'2019 Sector View Gas'!T20 -> 109970
G21: Total, Residential Energy Management | I21: =SUM(I8:I20) -> 457320 | J21: 134400 | K21: 549116.16 | L21: 975315.54 | M21: 20850 | N21: 1264156 | O21: 12000 | P21: 6900 | Q21: 12199877.45 | R21: 0 | S21: 15619935.15 | T21: 3511181.84
H23: 2016-2017 Figures | I23: 446556.5285 | J23: 124416.725 | K23: 384565.6588 | L23: 839223.65 | M23: 22150 | N23: 1083243 | O23: 41000 | P23: 42250 | Q23: 11687724.73 | R23: 0 | S23: 14671130.29 | T23: 3505307.64
C25: Business Energy Management
B26: CI Retr Detail_BEM G250 Gas | C26: G250 | E26: Commercial/Industrial Retrofit | H26: 18230731 | I26: ='2018 Sector View Gas'!I26+'2019 Sector View Gas'!I26 -> 390000 | J26: ='2018 Sector View Gas'!J26+'2019 Sector View Gas'!J26 -> 16400 | K26: ='2018 Sector View Gas'!K26+'2019 Sector View Gas'!K26 -> 373200 | L26: ='2018 Sector View Gas'!L26+'2019 Sector View Gas'!L26 -> 13400 | M26: ='2018 Sector View Gas'!M26+'2019 Sector View Gas'!M26 -> 24600 | N26: ='2018 Sector View Gas'!N26+'2019 Sector View Gas'!N26 -> 49100 | O26: ='2018 Sector View Gas'!O26+'2019 Sector View Gas'!O26 -> 0 | P26: ='2018 Sector View Gas'!P26+'2019 Sector View Gas'!P26 -> 0 | Q26: ='2018 Sector View Gas'!Q26+'2019 Sector View Gas'!Q26 -> 2400000 | R26: ='2018 Sector View Gas'!R26+'2019 Sector View Gas'!R26 -> 0 | S26: ='2018 Sector View Gas'!S26+'2019 Sector View Gas'!S26 -> 3266700 | T26: ='2018 Sector View Gas'!T26+'2019 Sector View Gas'!T26 -> 825000
B27: CI NC Detail_BEM G251 Gas | C27: G251 | E27: Commercial/Industrial New Construction | H27: 18230706 | I27: ='2018 Sector View Gas'!I27+'2019 Sector View Gas'!I27 -> 88000 | J27: ='2018 Sector View Gas'!J27+'2019 Sector View Gas'!J27 -> 2000 | K27: ='2018 Sector View Gas'!K27+'2019 Sector View Gas'!K27 -> 83040 | L27: ='2018 Sector View Gas'!L27+'2019 Sector View Gas'!L27 -> 2000 | M27: ='2018 Sector View Gas'!M27+'2019 Sector View Gas'!M27 -> 4000 | N27: ='2018 Sector View Gas'!N27+'2019 Sector View Gas'!N27 -> 19000 | O27: ='2018 Sector View Gas'!O27+'2019 Sector View Gas'!O27 -> 4000 | P27: ='2018 Sector View Gas'!P27+'2019 Sector View Gas'!P27 -> 0 | Q27: ='2018 Sector View Gas'!Q27+'2019 Sector View Gas'!Q27 -> 796880 | R27: ='2018 Sector View Gas'!R27+'2019 Sector View Gas'!R27 -> 0 | S27: ='2018 Sector View Gas'!S27+'2019 Sector View Gas'!S27 -> 998920 | T27: ='2018 Sector View Gas'!T27+'2019 Sector View Gas'!T27 -> 210000
E28: Commercial Strategic Energy Management | I28: ='2018 Sector View Gas'!I28+'2019 Sector View Gas'!I28 -> 363000 | J28: ='2018 Sector View Gas'!J28+'2019 Sector View Gas'!J28 -> 0 | K28: ='2018 Sector View Gas'!K28+'2019 Sector View Gas'!K28 -> 336864.24 | L28: ='2018 Sector View Gas'!L28+'2019 Sector View Gas'!L28 -> 4000 | M28: ='2018 Sector View Gas'!M28+'2019 Sector View Gas'!M28 -> 10000 | N28: ='2018 Sector View Gas'!N28+'2019 Sector View Gas'!N28 -> 20000 | O28: ='2018 Sector View Gas'!O28+'2019 Sector View Gas'!O28 -> 4000 | P28: ='2018 Sector View Gas'!P28+'2019 Sector View Gas'!P28 -> 10000 | Q28: ='2018 Sector View Gas'!Q28+'2019 Sector View Gas'!Q28 -> 384000 | R28: ='2018 Sector View Gas'!R28+'2019 Sector View Gas'!R28 -> 0 | S28: ='2018 Sector View Gas'!S28+'2019 Sector View Gas'!S28 -> 1131864.24 | T28: ='2018 Sector View Gas'!T28+'2019 Sector View Gas'!T28 -> 1340000
B29: RCM Detail_BEM 253 Gas | C29: G253 | E29: SEM | H29: 18230691 | I29: ='2018 Sector View Gas'!I29+'2019 Sector View Gas'!I29 -> 333000 | J29: ='2018 Sector View Gas'!J29+'2019 Sector View Gas'!J29 -> 0 | K29: ='2018 Sector View Gas'!K29+'2019 Sector View Gas'!K29 -> 309024 | L29: ='2018 Sector View Gas'!L29+'2019 Sector View Gas'!L29 -> 4000 | M29: ='2018 Sector View Gas'!M29+'2019 Sector View Gas'!M29 -> 10000 | N29: ='2018 Sector View Gas'!N29+'2019 Sector View Gas'!N29 -> 10000 | O29: ='2018 Sector View Gas'!O29+'2019 Sector View Gas'!O29 -> 4000 | P29: ='2018 Sector View Gas'!P29+'2019 Sector View Gas'!P29 -> 10000 | Q29: ='2018 Sector View Gas'!Q29+'2019 Sector View Gas'!Q29 -> 384000 | R29: ='2018 Sector View Gas'!R29+'2019 Sector View Gas'!R29 -> 0 | S29: ='2018 Sector View Gas'!S29+'2019 Sector View Gas'!S29 -> 1064024 | T29: ='2018 Sector View Gas'!T29+'2019 Sector View Gas'!T29 -> 1340000
B30: ResAcctSW Detail_PSWE_Gas | E30: Resource Accounting Software | H30: 18231033 | I30: ='2018 Sector View Gas'!I30+'2019 Sector View Gas'!I30 -> 30000 | J30: ='2018 Sector View Gas'!J30+'2019 Sector View Gas'!J30 -> 0 | K30: ='2018 Sector View Gas'!K30+'2019 Sector View Gas'!K30 -> 27840.24 | L30: ='2018 Sector View Gas'!L30+'2019 Sector View Gas'!L30 -> 0 | M30: ='2018 Sector View Gas'!M30+'2019 Sector View Gas'!M30 -> 0 | N30: ='2018 Sector View Gas'!N30+'2019 Sector View Gas'!N30 -> 10000 | O30: ='2018 Sector View Gas'!O30+'2019 Sector View Gas'!O30 -> 0 | P30: ='2018 Sector View Gas'!P30+'2019 Sector View Gas'!P30 -> 0 | Q30: ='2018 Sector View Gas'!Q30+'2019 Sector View Gas'!Q30 -> 0 | R30: ='2018 Sector View Gas'!R30+'2019 Sector View Gas'!R30 -> 0 | S30: ='2018 Sector View Gas'!S30+'2019 Sector View Gas'!S30 -> 67840.24 | T30: ='2018 Sector View Gas'!T30+'2019 Sector View Gas'!T30 -> 0
B31: TechEval Detail_BEM G261 Gas | C31: G261 | E31: Technology Evaluation | H31: 18230694 | I31: ='2018 Sector View Gas'!I31+'2019 Sector View Gas'!I31 -> 0 | J31: ='2018 Sector View Gas'!J31+'2019 Sector View Gas'!J31 -> 0 | K31: ='2018 Sector View Gas'!K31+'2019 Sector View Gas'!K31 -> 0 | L31: ='2018 Sector View Gas'!L31+'2019 Sector View Gas'!L31 -> 0 | M31: ='2018 Sector View Gas'!M31+'2019 Sector View Gas'!M31 -> 0 | N31: ='2018 Sector View Gas'!N31+'2019 Sector View Gas'!N31 -> 0 | O31: ='2018 Sector View Gas'!O31+'2019 Sector View Gas'!O31 -> 0 | P31: ='2018 Sector View Gas'!P31+'2019 Sector View Gas'!P31 -> 0 | Q31: ='2018 Sector View Gas'!Q31+'2019 Sector View Gas'!Q31 -> 0 | R31: ='2018 Sector View Gas'!R31+'2019 Sector View Gas'!R31 -> 0 | S31: ='2018 Sector View Gas'!S31+'2019 Sector View Gas'!S31 -> 0 | T31: ='2018 Sector View Gas'!T31+'2019 Sector View Gas'!T31 -> 0
B32: Rebates Detail_BEM G262 Gas | C32: G262 | E32: Business Rebates | I32: ='2018 Sector View Gas'!I32+'2019 Sector View Gas'!I32 -> 170400 | J32: ='2018 Sector View Gas'!J32+'2019 Sector View Gas'!J32 -> 0 | K32: ='2018 Sector View Gas'!K32+'2019 Sector View Gas'!K32 -> 158131.2 | L32: ='2018 Sector View Gas'!L32+'2019 Sector View Gas'!L32 -> 30000 | M32: ='2018 Sector View Gas'!M32+'2019 Sector View Gas'!M32 -> 11000 | N32: ='2018 Sector View Gas'!N32+'2019 Sector View Gas'!N32 -> 43870 | O32: ='2018 Sector View Gas'!O32+'2019 Sector View Gas'!O32 -> 2000 | P32: ='2018 Sector View Gas'!P32+'2019 Sector View Gas'!P32 -> 0 | Q32: ='2018 Sector View Gas'!Q32+'2019 Sector View Gas'!Q32 -> 675516 | R32: ='2018 Sector View Gas'!R32+'2019 Sector View Gas'!R32 -> 0 | S32: ='2018 Sector View Gas'!S32+'2019 Sector View Gas'!S32 -> 1090917.2 | T32: ='2018 Sector View Gas'!T32+'2019 Sector View Gas'!T32 -> 268817.8
B33: Comm Kit-Laund_G262 Gas | C33: G262 | E33: Commercial Kitchen & Laundry | H33: 18231027 | I33: ='2018 Sector View Gas'!I33+'2019 Sector View Gas'!I33 -> 59200 | J33: ='2018 Sector View Gas'!J33+'2019 Sector View Gas'!J33 -> 0 | K33: ='2018 Sector View Gas'!K33+'2019 Sector View Gas'!K33 -> 54937.6 | L33: ='2018 Sector View Gas'!L33+'2019 Sector View Gas'!L33 -> 30000 | M33: ='2018 Sector View Gas'!M33+'2019 Sector View Gas'!M33 -> 7000 | N33: ='2018 Sector View Gas'!N33+'2019 Sector View Gas'!N33 -> 0 | O33: ='2018 Sector View Gas'!O33+'2019 Sector View Gas'!O33 -> 0 | P33: ='2018 Sector View Gas'!P33+'2019 Sector View Gas'!P33 -> 0 | Q33: ='2018 Sector View Gas'!Q33+'2019 Sector View Gas'!Q33 -> 371208 | R33: ='2018 Sector View Gas'!R33+'2019 Sector View Gas'!R33 -> 0 | S33: ='2018 Sector View Gas'!S33+'2019 Sector View Gas'!S33 -> 522345.6 | T33: ='2018 Sector View Gas'!T33+'2019 Sector View Gas'!T33 -> 170317.8
B34: Comm HVAC_G262 Gas | C34: G262 | E34: Commercial HVAC | H34: 18231029 | I34: ='2018 Sector View Gas'!I34+'2019 Sector View Gas'!I34 -> 29600 | J34: ='2018 Sector View Gas'!J34+'2019 Sector View Gas'!J34 -> 0 | K34: ='2018 Sector View Gas'!K34+'2019 Sector View Gas'!K34 -> 27468.8 | L34: ='2018 Sector View Gas'!L34+'2019 Sector View Gas'!L34 -> 0 | M34: ='2018 Sector View Gas'!M34+'2019 Sector View Gas'!M34 -> 0 | N34: ='2018 Sector View Gas'!N34+'2019 Sector View Gas'!N34 -> 0 | O34: ='2018 Sector View Gas'!O34+'2019 Sector View Gas'!O34 -> 0 | P34: ='2018 Sector View Gas'!P34+'2019 Sector View Gas'!P34 -> 0 | Q34: ='2018 Sector View Gas'!Q34+'2019 Sector View Gas'!Q34 -> 100000 | R34: ='2018 Sector View Gas'!R34+'2019 Sector View Gas'!R34 -> 0 | S34: ='2018 Sector View Gas'!S34+'2019 Sector View Gas'!S34 -> 157068.8 | T34: ='2018 Sector View Gas'!T34+'2019 Sector View Gas'!T34 -> 27000
E35: Business Direct Installs--Includes:
B36: Sm Bus DI_G262 Gas | C36: G262 | F36: Small Business Direct Install | H36: 18231022 | I36: ='2018 Sector View Gas'!I36+'2019 Sector View Gas'!I36 -> 81600 | J36: ='2018 Sector View Gas'!J36+'2019 Sector View Gas'!J36 -> 0 | K36: ='2018 Sector View Gas'!K36+'2019 Sector View Gas'!K36 -> 75724.8 | L36: ='2018 Sector View Gas'!L36+'2019 Sector View Gas'!L36 -> 0 | M36: ='2018 Sector View Gas'!M36+'2019 Sector View Gas'!M36 -> 4000 | N36: ='2018 Sector View Gas'!N36+'2019 Sector View Gas'!N36 -> 43870 | O36: ='2018 Sector View Gas'!O36+'2019 Sector View Gas'!O36 -> 2000 | P36: ='2018 Sector View Gas'!P36+'2019 Sector View Gas'!P36 -> 0 | Q36: ='2018 Sector View Gas'!Q36+'2019 Sector View Gas'!Q36 -> 204308 | R36: ='2018 Sector View Gas'!R36+'2019 Sector View Gas'!R36 -> 0 | S36: ='2018 Sector View Gas'!S36+'2019 Sector View Gas'!S36 -> 411502.8 | T36: ='2018 Sector View Gas'!T36+'2019 Sector View Gas'!T36 -> 71500
B37: Sm Agr DI_G262 Gas | C37: G262 | F37: Small Agriculture Direct Install | H37: 18230251 | I37: ='2018 Sector View Gas'!I37+'2019 Sector View Gas'!I37 -> 0 | J37: ='2018 Sector View Gas'!J37+'2019 Sector View Gas'!J37 -> 0 | K37: ='2018 Sector View Gas'!K37+'2019 Sector View Gas'!K37 -> 0 | L37: ='2018 Sector View Gas'!L37+'2019 Sector View Gas'!L37 -> 0 | M37: ='2018 Sector View Gas'!M37+'2019 Sector View Gas'!M37 -> 0 | N37: ='2018 Sector View Gas'!N37+'2019 Sector View Gas'!N37 -> 0 | O37: ='2018 Sector View Gas'!O37+'2019 Sector View Gas'!O37 -> 0 | P37: ='2018 Sector View Gas'!P37+'2019 Sector View Gas'!P37 -> 0 | Q37: ='2018 Sector View Gas'!Q37+'2019 Sector View Gas'!Q37 -> 0 | R37: ='2018 Sector View Gas'!R37+'2019 Sector View Gas'!R37 -> 0 | S37: ='2018 Sector View Gas'!S37+'2019 Sector View Gas'!S37 -> 0 | T37: ='2018 Sector View Gas'!T37+'2019 Sector View Gas'!T37 -> 0
B38: Lodging DI_G262_Gas | C38: G262 | F38: Lodging Direct Install | H38: 18230250 | I38: ='2018 Sector View Gas'!I38+'2019 Sector View Gas'!I38 -> 0 | J38: ='2018 Sector View Gas'!J38+'2019 Sector View Gas'!J38 -> 0 | K38: ='2018 Sector View Gas'!K38+'2019 Sector View Gas'!K38 -> 0 | L38: ='2018 Sector View Gas'!L38+'2019 Sector View Gas'!L38 -> 0 | M38: ='2018 Sector View Gas'!M38+'2019 Sector View Gas'!M38 -> 0 | N38: ='2018 Sector View Gas'!N38+'2019 Sector View Gas'!N38 -> 0 | O38: ='2018 Sector View Gas'!O38+'2019 Sector View Gas'!O38 -> 0 | P38: ='2018 Sector View Gas'!P38+'2019 Sector View Gas'!P38 -> 0 | Q38: ='2018 Sector View Gas'!Q38+'2019 Sector View Gas'!Q38 -> 0 | R38: ='2018 Sector View Gas'!R38+'2019 Sector View Gas'!R38 -> 0 | S38: ='2018 Sector View Gas'!S38+'2019 Sector View Gas'!S38 -> 0 | T38: ='2018 Sector View Gas'!T38+'2019 Sector View Gas'!T38 -> 0
G39: Total, Business Energy Management | I39: =SUM(I26:I28)+I31+I32 -> 1011400 | J39: 18400 | K39: 951235.44 | L39: 49400 | M39: 49600 | N39: 131970 | O39: 10000 | P39: 10000 | Q39: 4256396 | R39: 0 | S39: 6488401.44 | T39: 2643817.8
H41: 2016-2017 Figures | I41: 1186139.09 | J41: 13156.08 | K41: 807802.3992 | L41: 68500 | M41: 47850 | N41: 204330 | O41: 9680 | P41: 162309 | Q41: 7036972.826 | R41: 0 | S41: 9536739.395 | T41: 3452978.4
C43: Pilots With Uncertain Savings
B44: REM Pilots Detail G249 Gas | C44: G249 | E44: Residential Pilots | H44: 18230622 | I44: ='2018 Sector View Gas'!I44+'2019 Sector View Gas'!I44 -> 0 | J44: ='2018 Sector View Gas'!J44+'2019 Sector View Gas'!J44 -> 0 | K44: ='2018 Sector View Gas'!K44+'2019 Sector View Gas'!K44 -> 0 | L44: ='2018 Sector View Gas'!L44+'2019 Sector View Gas'!L44 -> 0 | M44: ='2018 Sector View Gas'!M44+'2019 Sector View Gas'!M44 -> 0 | N44: ='2018 Sector View Gas'!N44+'2019 Sector View Gas'!N44 -> 0 | O44: ='2018 Sector View Gas'!O44+'2019 Sector View Gas'!O44 -> 0 | P44: ='2018 Sector View Gas'!P44+'2019 Sector View Gas'!P44 -> 0 | Q44: ='2018 Sector View Gas'!Q44+'2019 Sector View Gas'!Q44 -> 0 | R44: ='2018 Sector View Gas'!R44+'2019 Sector View Gas'!R44 -> 0 | S44: ='2018 Sector View Gas'!S44+'2019 Sector View Gas'!S44 -> 0 | T44: ='2018 Sector View Gas'!T44+'2019 Sector View Gas'!T44 -> 0
B45: BEM Pilots Detail G249 Gas | C45: G249 | E45: Commercial Pay for Performance Pilot | H45: 1823pppp | I45: ='2018 Sector View Gas'!I45+'2019 Sector View Gas'!I45 -> 0 | J45: ='2018 Sector View Gas'!J45+'2019 Sector View Gas'!J45 -> 0 | K45: ='2018 Sector View Gas'!K45+'2019 Sector View Gas'!K45 -> 0 | L45: ='2018 Sector View Gas'!L45+'2019 Sector View Gas'!L45 -> 0 | M45: ='2018 Sector View Gas'!M45+'2019 Sector View Gas'!M45 -> 0 | N45: ='2018 Sector View Gas'!N45+'2019 Sector View Gas'!N45 -> 0 | O45: ='2018 Sector View Gas'!O45+'2019 Sector View Gas'!O45 -> 0 | P45: ='2018 Sector View Gas'!P45+'2019 Sector View Gas'!P45 -> 0 | Q45: ='2018 Sector View Gas'!Q45+'2019 Sector View Gas'!Q45 -> 61613 | R45: ='2018 Sector View Gas'!R45+'2019 Sector View Gas'!R45 -> 0 | S45: ='2018 Sector View Gas'!S45+'2019 Sector View Gas'!S45 -> 61613 | T45: ='2018 Sector View Gas'!T45+'2019 Sector View Gas'!T45 -> 40000
G46: Total, Pilots | I46: =SUM(I44:I45) -> 0 | J46: =SUM(J44:J45) -> 0 | K46: 0 | L46: 0 | M46: 0 | N46: 0 | O46: 0 | P46: 0 | Q46: 61613 | R46: 0 | S46: 61613 | T46: =SUM(T44:T45) -> 40000
H48: 2016-2017 Figures | I48: 12045.54 | J48: 1992 | K48: 9363.03918 | L48: 0 | M48: 2000 | N48: 77000 | O48: 500 | P48: 649.42 | Q48: 77479 | R48: 0 | S48: 181028.9992 | T48: 430529
C50: Regional Efficiency Programs
E51: NW Gas Market Transformation | H51: 18230660 | I51: ='2018 Sector View Gas'!I51+'2019 Sector View Gas'!I51 -> 0 | J51: ='2018 Sector View Gas'!J51+'2019 Sector View Gas'!J51 -> 0 | K51: ='2018 Sector View Gas'!K51+'2019 Sector View Gas'!K51 -> 0 | L51: ='2018 Sector View Gas'!L51+'2019 Sector View Gas'!L51 -> 0 | M51: ='2018 Sector View Gas'!M51+'2019 Sector View Gas'!M51 -> 0 | N51: ='2018 Sector View Gas'!N51+'2019 Sector View Gas'!N51 -> 4440380 | O51: ='2018 Sector View Gas'!O51+'2019 Sector View Gas'!O51 -> 0 | P51: ='2018 Sector View Gas'!P51+'2019 Sector View Gas'!P51 -> 0 | Q51: ='2018 Sector View Gas'!Q51+'2019 Sector View Gas'!Q51 -> 0 | R51: ='2018 Sector View Gas'!R51+'2019 Sector View Gas'!R51 -> 0 | S51: ='2018 Sector View Gas'!S51+'2019 Sector View Gas'!S51 -> 4440380 | T51: ='2018 Sector View Gas'!T51+'2019 Sector View Gas'!T51 -> 0
G52: Total, Regional Efficiency Programs | I52: =SUM(I51:I51) -> 0 | J52: 0 | K52: 0 | L52: 0 | M52: 0 | N52: 4440380 | O52: 0 | P52: 0 | Q52: 0 | S52: =SUM(S51:S51) -> 4440380 | T52: =SUM(T51:T51) -> 0
H54: 2016-2017 Figures | I54: 0 | J54: 0 | K54: 0 | L54: 0 | M54: 0 | N54: 2475756 | O54: 0 | P54: 0 | Q54: 0 | R54: 0 | S54: 2475756 | T54: 37680
C56: Energy Efficiency Portfolio Support
B57: Data & Systm Svcs Detail Gas | E57: Data and Systems Services | H57: 18231005 | I57: ='2018 Sector View Gas'!I57+'2019 Sector View Gas'!I57 -> 125320 | J57: ='2018 Sector View Gas'!J57+'2019 Sector View Gas'!J57 -> 0 | K57: ='2018 Sector View Gas'!K57+'2019 Sector View Gas'!K57 -> 116296.96 | L57: ='2018 Sector View Gas'!L57+'2019 Sector View Gas'!L57 -> 0 | M57: ='2018 Sector View Gas'!M57+'2019 Sector View Gas'!M57 -> 3120 | N57: ='2018 Sector View Gas'!N57+'2019 Sector View Gas'!N57 -> 84500 | O57: ='2018 Sector View Gas'!O57+'2019 Sector View Gas'!O57 -> 0 | P57: ='2018 Sector View Gas'!P57+'2019 Sector View Gas'!P57 -> 0 | Q57: ='2018 Sector View Gas'!Q57+'2019 Sector View Gas'!Q57 -> 0 | R57: ='2018 Sector View Gas'!R57+'2019 Sector View Gas'!R57 -> 0 | S57: ='2018 Sector View Gas'!S57+'2019 Sector View Gas'!S57 -> 329236.96
B58: Rebt Procg_Detail Gas | E58: Rebates Processing | H58: 18230507 | I58: ='2018 Sector View Gas'!I58+'2019 Sector View Gas'!I58 -> 82400 | J58: ='2018 Sector View Gas'!J58+'2019 Sector View Gas'!J58 -> 0 | K58: ='2018 Sector View Gas'!K58+'2019 Sector View Gas'!K58 -> 76467.2 | L58: ='2018 Sector View Gas'!L58+'2019 Sector View Gas'!L58 -> 0 | M58: ='2018 Sector View Gas'!M58+'2019 Sector View Gas'!M58 -> 6600 | N58: ='2018 Sector View Gas'!N58+'2019 Sector View Gas'!N58 -> 0 | O58: ='2018 Sector View Gas'!O58+'2019 Sector View Gas'!O58 -> 1500 | P58: ='2018 Sector View Gas'!P58+'2019 Sector View Gas'!P58 -> 0 | Q58: ='2018 Sector View Gas'!Q58+'2019 Sector View Gas'!Q58 -> 0 | R58: ='2018 Sector View Gas'!R58+'2019 Sector View Gas'!R58 -> 0 | S58: ='2018 Sector View Gas'!S58+'2019 Sector View Gas'!S58 -> 166967.2
B59: Vteam Detail_R&C_Gas | E59: Verification Team | H59: 18230668 | I59: ='2018 Sector View Gas'!I59+'2019 Sector View Gas'!I59 -> 67840 | J59: ='2018 Sector View Gas'!J59+'2019 Sector View Gas'!J59 -> 0 | K59: ='2018 Sector View Gas'!K59+'2019 Sector View Gas'!K59 -> 62955.52 | L59: ='2018 Sector View Gas'!L59+'2019 Sector View Gas'!L59 -> 0 | M59: ='2018 Sector View Gas'!M59+'2019 Sector View Gas'!M59 -> 3700 | N59: ='2018 Sector View Gas'!N59+'2019 Sector View Gas'!N59 -> 23400 | O59: ='2018 Sector View Gas'!O59+'2019 Sector View Gas'!O59 -> 1800 | P59: ='2018 Sector View Gas'!P59+'2019 Sector View Gas'!P59 -> 0 | Q59: ='2018 Sector View Gas'!Q59+'2019 Sector View Gas'!Q59 -> 0 | R59: ='2018 Sector View Gas'!R59+'2019 Sector View Gas'!R59 -> 0 | S59: ='2018 Sector View Gas'!S59+'2019 Sector View Gas'!S59 -> 159695.52
B60: ProgDev Detail_R&C_ Elec | E60: Programs Support | H60: 18230688 | I60: ='2018 Sector View Gas'!I60+'2019 Sector View Gas'!I60 -> 62400 | J60: ='2018 Sector View Gas'!J60+'2019 Sector View Gas'!J60 -> 0 | K60: ='2018 Sector View Gas'!K60+'2019 Sector View Gas'!K60 -> 57907.2 | L60: ='2018 Sector View Gas'!L60+'2019 Sector View Gas'!L60 -> 0 | M60: ='2018 Sector View Gas'!M60+'2019 Sector View Gas'!M60 -> 4000 | N60: ='2018 Sector View Gas'!N60+'2019 Sector View Gas'!N60 -> 0 | O60: ='2018 Sector View Gas'!O60+'2019 Sector View Gas'!O60 -> 0 | P60: ='2018 Sector View Gas'!P60+'2019 Sector View Gas'!P60 -> 0 | Q60: ='2018 Sector View Gas'!Q60+'2019 Sector View Gas'!Q60 -> 0 | R60: ='2018 Sector View Gas'!R60+'2019 Sector View Gas'!R60 -> 0 | S60: ='2018 Sector View Gas'!S60+'2019 Sector View Gas'!S60 -> 124307.2
B61: TradeAlly Detail_PS_gas | E61: Trade Ally Support | H61: 18230698 | I61: ='2018 Sector View Gas'!I61+'2019 Sector View Gas'!I61 -> 0 | J61: ='2018 Sector View Gas'!J61+'2019 Sector View Gas'!J61 -> 0 | K61: ='2018 Sector View Gas'!K61+'2019 Sector View Gas'!K61 -> 0 | L61: ='2018 Sector View Gas'!L61+'2019 Sector View Gas'!L61 -> 0 | M61: ='2018 Sector View Gas'!M61+'2019 Sector View Gas'!M61 -> 0 | N61: ='2018 Sector View Gas'!N61+'2019 Sector View Gas'!N61 -> 0 | O61: ='2018 Sector View Gas'!O61+'2019 Sector View Gas'!O61 -> 44000 | P61: ='2018 Sector View Gas'!P61+'2019 Sector View Gas'!P61 -> 0 | Q61: ='2018 Sector View Gas'!Q61+'2019 Sector View Gas'!Q61 -> 0 | R61: ='2018 Sector View Gas'!R61+'2019 Sector View Gas'!R61 -> 0 | S61: ='2018 Sector View Gas'!S61+'2019 Sector View Gas'!S61 -> 44000
B62: CAN_PS_Detail Gas | E62: Contractor Alliance Network (revenue + cost) | H62: 18231031 | I62: ='2018 Sector View Gas'!I62+'2019 Sector View Gas'!I62 -> 140800 | J62: ='2018 Sector View Gas'!J62+'2019 Sector View Gas'!J62 -> 6400 | K62: ='2018 Sector View Gas'!K62+'2019 Sector View Gas'!K62 -> 136601.6 | L62: ='2018 Sector View Gas'!L62+'2019 Sector View Gas'!L62 -> 40000 | M62: ='2018 Sector View Gas'!M62+'2019 Sector View Gas'!M62 -> 10000 | N62: ='2018 Sector View Gas'!N62+'2019 Sector View Gas'!N62 -> 228000 | O62: ='2018 Sector View Gas'!O62+'2019 Sector View Gas'!O62 -> 3000 | P62: ='2018 Sector View Gas'!P62+'2019 Sector View Gas'!P62 -> 0 | Q62: ='2018 Sector View Gas'!Q62+'2019 Sector View Gas'!Q62 -> 0 | R62: ='2018 Sector View Gas'!R62+'2019 Sector View Gas'!R62 -> -564801.6 | S62: ='2018 Sector View Gas'!S62+'2019 Sector View Gas'!S62 -> 0
B63: ABS Detail_PSWE_Gas | E63: Automated Benchmarking System | H63: 18230667 | I63: ='2018 Sector View Gas'!I63+'2019 Sector View Gas'!I63 -> 58239 | J63: ='2018 Sector View Gas'!J63+'2019 Sector View Gas'!J63 -> 0 | K63: ='2018 Sector View Gas'!K63+'2019 Sector View Gas'!K63 -> 54045.792 | L63: ='2018 Sector View Gas'!L63+'2019 Sector View Gas'!L63 -> 0 | M63: ='2018 Sector View Gas'!M63+'2019 Sector View Gas'!M63 -> 0 | N63: ='2018 Sector View Gas'!N63+'2019 Sector View Gas'!N63 -> 58500 | O63: ='2018 Sector View Gas'!O63+'2019 Sector View Gas'!O63 -> 0 | P63: ='2018 Sector View Gas'!P63+'2019 Sector View Gas'!P63 -> 0 | Q63: ='2018 Sector View Gas'!Q63+'2019 Sector View Gas'!Q63 -> 0 | R63: ='2018 Sector View Gas'!R63+'2019 Sector View Gas'!R63 -> 0 | S63: ='2018 Sector View Gas'!S63+'2019 Sector View Gas'!S63 -> 170784.792
B64: Engy Adv Detail_PSCE_Gas | E64: Energy Advisors | H64: 18230704 | I64: ='2018 Sector View Gas'!I64+'2019 Sector View Gas'!I64 -> 195520 | J64: ='2018 Sector View Gas'!J64+'2019 Sector View Gas'!J64 -> 0 | K64: ='2018 Sector View Gas'!K64+'2019 Sector View Gas'!K64 -> 134517.76 | L64: ='2018 Sector View Gas'!L64+'2019 Sector View Gas'!L64 -> 0 | M64: ='2018 Sector View Gas'!M64+'2019 Sector View Gas'!M64 -> 15664 | N64: ='2018 Sector View Gas'!N64+'2019 Sector View Gas'!N64 -> 400 | O64: ='2018 Sector View Gas'!O64+'2019 Sector View Gas'!O64 -> 876 | P64: ='2018 Sector View Gas'!P64+'2019 Sector View Gas'!P64 -> 404 | Q64: ='2018 Sector View Gas'!Q64+'2019 Sector View Gas'!Q64 -> 0 | R64: ='2018 Sector View Gas'!R64+'2019 Sector View Gas'!R64 -> 0 | S64: ='2018 Sector View Gas'!S64+'2019 Sector View Gas'!S64 -> 347381.76
B65: EEC Detail_PS_Gas | E65: Energy Efficient Communities | H65: 18230657 | I65: ='2018 Sector View Gas'!I65+'2019 Sector View Gas'!I65 -> 123600 | J65: ='2018 Sector View Gas'!J65+'2019 Sector View Gas'!J65 -> 4300 | K65: ='2018 Sector View Gas'!K65+'2019 Sector View Gas'!K65 -> 87995.2 | L65: ='2018 Sector View Gas'!L65+'2019 Sector View Gas'!L65 -> 40370 | M65: ='2018 Sector View Gas'!M65+'2019 Sector View Gas'!M65 -> 10530 | N65: ='2018 Sector View Gas'!N65+'2019 Sector View Gas'!N65 -> 13500 | O65: ='2018 Sector View Gas'!O65+'2019 Sector View Gas'!O65 -> 3705 | P65: ='2018 Sector View Gas'!P65+'2019 Sector View Gas'!P65 -> 0 | Q65: ='2018 Sector View Gas'!Q65+'2019 Sector View Gas'!Q65 -> 0 | R65: ='2018 Sector View Gas'!R65+'2019 Sector View Gas'!R65 -> 0 | S65: ='2018 Sector View Gas'!S65+'2019 Sector View Gas'!S65 -> 284000.2
B66: CustOnline Detail_PSWE_Gas | E66: Customer Digital Experience | H66: 18230665 | I66: ='2018 Sector View Gas'!I66+'2019 Sector View Gas'!I66 -> 31040 | J66: ='2018 Sector View Gas'!J66+'2019 Sector View Gas'!J66 -> 0 | K66: ='2018 Sector View Gas'!K66+'2019 Sector View Gas'!K66 -> 21355.52 | L66: ='2018 Sector View Gas'!L66+'2019 Sector View Gas'!L66 -> 0 | M66: ='2018 Sector View Gas'!M66+'2019 Sector View Gas'!M66 -> 0 | N66: ='2018 Sector View Gas'!N66+'2019 Sector View Gas'!N66 -> 124012 | O66: ='2018 Sector View Gas'!O66+'2019 Sector View Gas'!O66 -> 0 | P66: ='2018 Sector View Gas'!P66+'2019 Sector View Gas'!P66 -> 0 | Q66: ='2018 Sector View Gas'!Q66+'2019 Sector View Gas'!Q66 -> 0 | R66: ='2018 Sector View Gas'!R66+'2019 Sector View Gas'!R66 -> 0 | S66: ='2018 Sector View Gas'!S66+'2019 Sector View Gas'!S66 -> 176407.52
B67: Mkt Intg Detail_PSWE_Gas | E67: Market Integration | H67: 18230732 | I67: ='2018 Sector View Gas'!I67+'2019 Sector View Gas'!I67 -> 43712 | J67: ='2018 Sector View Gas'!J67+'2019 Sector View Gas'!J67 -> 0 | K67: ='2018 Sector View Gas'!K67+'2019 Sector View Gas'!K67 -> 30073.856 | L67: ='2018 Sector View Gas'!L67+'2019 Sector View Gas'!L67 -> 0 | M67: ='2018 Sector View Gas'!M67+'2019 Sector View Gas'!M67 -> 0 | N67: ='2018 Sector View Gas'!N67+'2019 Sector View Gas'!N67 -> 4160 | O67: ='2018 Sector View Gas'!O67+'2019 Sector View Gas'!O67 -> 0 | P67: ='2018 Sector View Gas'!P67+'2019 Sector View Gas'!P67 -> 0 | Q67: ='2018 Sector View Gas'!Q67+'2019 Sector View Gas'!Q67 -> 0 | R67: ='2018 Sector View Gas'!R67+'2019 Sector View Gas'!R67 -> 0 | S67: ='2018 Sector View Gas'!S67+'2019 Sector View Gas'!S67 -> 77945.856
B68: Events Detail_PSCE_Gas | E68: Events | H68: 18230653 | I68: ='2018 Sector View Gas'!I68+'2019 Sector View Gas'!I68 -> 115600 | J68: ='2018 Sector View Gas'!J68+'2019 Sector View Gas'!J68 -> 400 | K68: ='2018 Sector View Gas'!K68+'2019 Sector View Gas'!K68 -> 79808 | L68: ='2018 Sector View Gas'!L68+'2019 Sector View Gas'!L68 -> 2080 | M68: ='2018 Sector View Gas'!M68+'2019 Sector View Gas'!M68 -> 1190 | N68: ='2018 Sector View Gas'!N68+'2019 Sector View Gas'!N68 -> 27300 | O68: ='2018 Sector View Gas'!O68+'2019 Sector View Gas'!O68 -> 1430 | P68: ='2018 Sector View Gas'!P68+'2019 Sector View Gas'!P68 -> 0 | Q68: ='2018 Sector View Gas'!Q68+'2019 Sector View Gas'!Q68 -> 0 | R68: ='2018 Sector View Gas'!R68+'2019 Sector View Gas'!R68 -> 0 | S68: ='2018 Sector View Gas'!S68+'2019 Sector View Gas'!S68 -> 227808
B69: Brochure Detail_PSCE_Gas | E69: Brochures, non program-specific | H69: 18230685 | I69: ='2018 Sector View Gas'!I69+'2019 Sector View Gas'!I69 -> 4800 | J69: ='2018 Sector View Gas'!J69+'2019 Sector View Gas'!J69 -> 0 | K69: ='2018 Sector View Gas'!K69+'2019 Sector View Gas'!K69 -> 3302.4 | L69: ='2018 Sector View Gas'!L69+'2019 Sector View Gas'!L69 -> 4000 | M69: ='2018 Sector View Gas'!M69+'2019 Sector View Gas'!M69 -> 0 | N69: ='2018 Sector View Gas'!N69+'2019 Sector View Gas'!N69 -> 780 | O69: ='2018 Sector View Gas'!O69+'2019 Sector View Gas'!O69 -> 6760 | P69: ='2018 Sector View Gas'!P69+'2019 Sector View Gas'!P69 -> 0 | Q69: ='2018 Sector View Gas'!Q69+'2019 Sector View Gas'!Q69 -> 0 | R69: ='2018 Sector View Gas'!R69+'2019 Sector View Gas'!R69 -> 0 | S69: ='2018 Sector View Gas'!S69+'2019 Sector View Gas'!S69 -> 19642.4
B70: Eductn Detail_PSCE_G207 Gas | C70: G202 | E70: Education | H70: 18230671 | I70: ='2018 Sector View Gas'!I70+'2019 Sector View Gas'!I70 -> 0 | J70: ='2018 Sector View Gas'!J70+'2019 Sector View Gas'!J70 -> 0 | K70: ='2018 Sector View Gas'!K70+'2019 Sector View Gas'!K70 -> 0 | L70: ='2018 Sector View Gas'!L70+'2019 Sector View Gas'!L70 -> 0 | M70: ='2018 Sector View Gas'!M70+'2019 Sector View Gas'!M70 -> 0 | N70: ='2018 Sector View Gas'!N70+'2019 Sector View Gas'!N70 -> 2600 | O70: ='2018 Sector View Gas'!O70+'2019 Sector View Gas'!O70 -> 0 | P70: ='2018 Sector View Gas'!P70+'2019 Sector View Gas'!P70 -> 0 | Q70: ='2018 Sector View Gas'!Q70+'2019 Sector View Gas'!Q70 -> 0 | R70: ='2018 Sector View Gas'!R70+'2019 Sector View Gas'!R70 -> 0 | S70: ='2018 Sector View Gas'!S70+'2019 Sector View Gas'!S70 -> 2600
G71: Total, Portfolio Support | I71: =SUM(I57:I70) -> 1051271 | J71: 11100 | K71: 861327.008 | L71: 86450 | M71: 54804 | N71: 567152 | O71: 63071 | P71: 404 | Q71: 0 | R71: -564801.6 | S71: 2130777.408
H73: 2016-2017 Figures | I73: 1011419.81 | J73: 16882.2 | K73: 692653.2434 | L73: 60100 | M73: 67472 | N73: 354410 | O73: 30636 | P73: 25534 | Q73: 0 | R73: -626643.48 | S73: 1632463.774
C75: Energy Efficiency Research & Compliance
B76: Supp Crv Detail_R&C_gas | E76: Conservation Supply Curves | H76: 18230703 | I76: ='2018 Sector View Gas'!I76+'2019 Sector View Gas'!I76 -> 26000 | J76: ='2018 Sector View Gas'!J76+'2019 Sector View Gas'!J76 -> 0 | K76: ='2018 Sector View Gas'!K76+'2019 Sector View Gas'!K76 -> 17888 | L76: ='2018 Sector View Gas'!L76+'2019 Sector View Gas'!L76 -> 0 | M76: ='2018 Sector View Gas'!M76+'2019 Sector View Gas'!M76 -> 260 | N76: ='2018 Sector View Gas'!N76+'2019 Sector View Gas'!N76 -> 62400 | O76: ='2018 Sector View Gas'!O76+'2019 Sector View Gas'!O76 -> 0 | P76: ='2018 Sector View Gas'!P76+'2019 Sector View Gas'!P76 -> 0 | Q76: ='2018 Sector View Gas'!Q76+'2019 Sector View Gas'!Q76 -> 0 | R76: ='2018 Sector View Gas'!R76+'2019 Sector View Gas'!R76 -> 0 | S76: ='2018 Sector View Gas'!S76+'2019 Sector View Gas'!S76 -> 106548
B77: Strat Pln Detail_R&C_Gas | E77: Strategic Planning | H77: 18230679 | I77: ='2018 Sector View Gas'!I77+'2019 Sector View Gas'!I77 -> 69264 | J77: ='2018 Sector View Gas'!J77+'2019 Sector View Gas'!J77 -> 0 | K77: ='2018 Sector View Gas'!K77+'2019 Sector View Gas'!K77 -> 47653.632 | L77: ='2018 Sector View Gas'!L77+'2019 Sector View Gas'!L77 -> 0 | M77: ='2018 Sector View Gas'!M77+'2019 Sector View Gas'!M77 -> 5210 | N77: ='2018 Sector View Gas'!N77+'2019 Sector View Gas'!N77 -> 26000 | O77: ='2018 Sector View Gas'!O77+'2019 Sector View Gas'!O77 -> 0 | P77: ='2018 Sector View Gas'!P77+'2019 Sector View Gas'!P77 -> 0 | Q77: ='2018 Sector View Gas'!Q77+'2019 Sector View Gas'!Q77 -> 0 | R77: ='2018 Sector View Gas'!R77+'2019 Sector View Gas'!R77 -> 0 | S77: ='2018 Sector View Gas'!S77+'2019 Sector View Gas'!S77 -> 148127.632
B78: Mktg Rsch Detail_PS_gas | E78: Market Research | H78: 18230669 | I78: ='2018 Sector View Gas'!I78+'2019 Sector View Gas'!I78 -> 41600 | J78: ='2018 Sector View Gas'!J78+'2019 Sector View Gas'!J78 -> 0 | K78: ='2018 Sector View Gas'!K78+'2019 Sector View Gas'!K78 -> 28620.8 | L78: ='2018 Sector View Gas'!L78+'2019 Sector View Gas'!L78 -> 0 | M78: ='2018 Sector View Gas'!M78+'2019 Sector View Gas'!M78 -> 0 | N78: ='2018 Sector View Gas'!N78+'2019 Sector View Gas'!N78 -> 268.12 | O78: ='2018 Sector View Gas'!O78+'2019 Sector View Gas'!O78 -> 0 | P78: ='2018 Sector View Gas'!P78+'2019 Sector View Gas'!P78 -> 0 | Q78: ='2018 Sector View Gas'!Q78+'2019 Sector View Gas'!Q78 -> 0 | R78: ='2018 Sector View Gas'!R78+'2019 Sector View Gas'!R78 -> 0 | S78: ='2018 Sector View Gas'!S78+'2019 Sector View Gas'!S78 -> 70488.92
B79: Eval Detail_R&C_Gas | E79: Program Evaluation | H79: 18230699 | I79: ='2018 Sector View Gas'!I79+'2019 Sector View Gas'!I79 -> 49088 | J79: ='2018 Sector View Gas'!J79+'2019 Sector View Gas'!J79 -> 0 | K79: ='2018 Sector View Gas'!K79+'2019 Sector View Gas'!K79 -> 45553.664 | L79: ='2018 Sector View Gas'!L79+'2019 Sector View Gas'!L79 -> 0 | M79: ='2018 Sector View Gas'!M79+'2019 Sector View Gas'!M79 -> 1820 | N79: ='2018 Sector View Gas'!N79+'2019 Sector View Gas'!N79 -> 424937.5 | O79: ='2018 Sector View Gas'!O79+'2019 Sector View Gas'!O79 -> 0 | P79: ='2018 Sector View Gas'!P79+'2019 Sector View Gas'!P79 -> 0 | Q79: ='2018 Sector View Gas'!Q79+'2019 Sector View Gas'!Q79 -> 0 | R79: ='2018 Sector View Gas'!R79+'2019 Sector View Gas'!R79 -> 0 | S79: ='2018 Sector View Gas'!S79+'2019 Sector View Gas'!S79 -> 521399.164
G80: Total, Research & Compliance | I80: =SUM(I76:I79) -> 185952 | J80: 0 | K80: 139716.096 | L80: 0 | M80: 7290 | N80: 513605.62 | O80: 0 | P80: 0 | Q80: 0 | R80: 0 | S80: 846563.716
H82: 2016-2017 Figures | I82: 260727.198 | J82: 0 | K82: 175620.7364 | L82: 0 | M82: 4742.4 | N82: 539950.645 | O82: 1833 | P82: 1170 | Q82: 0 | R82: 0 | S82: 984043.9794
G84: GRAND TOTAL, GAS PROGRAMS | I84: =I80+I71+I52+I46+I39+I21 -> 2705943 | J84: 163900 | K84: 2501394.704 | L84: 1111165.54 | M84: 132544 | N84: 6917263.62 | O84: 85071 | P84: 17304 | Q84: 16517886.45 | R84: -564801.6 | S84: 29587670.72 | T84: 6194999.64
H86: 2016-2017 Figures | I86: 2916888.167 | J86: 156447.005 | K86: 2070005.077 | L86: 967823.65 | M86: 144214.4 | N86: 4734689.645 | O86: 83649 | P86: 231912.42 | Q86: 18802176.56 | R86: -626643.48 | S86: 29481162.44 | T86: 7426495.04
G88: Budget Category Includes | H88: This is the main level of tracking expenditures and expenses in EES. Per FERC rules, all conservation order numbers start with a "1823nnnn", where "n" is some number. Cost elements apply to all order numbers (for instance, all conservation programs that | I88: Energy Efficiency program staff labor. Average FTE cost including management assessments. This Budget Category group includes assessments from Major Accounts management, Resource Planning, Corporate Communications management, IT specialists and some building maintenance allocations. | J88: Also Energy Efficiency staff labor, associated specifically with Marketing functions. Marketing allocates staffing according to program needs. | K88: Overhead--costs associated with primarily employee labor; benefits, for instance. For 2017, includes micro-overhead | L88: Service and materials associated with the cost of printing program brochures, marketing pieces, advertising, banners, etc. Also includes marketing conducted by vendors and contractors. | M88: Costs associated with EE staff attending events, employee training, conferences, business meals, business parking, ferry & bridge tolls, mileage incurred on employee automobiles, office supplies, phones, subscriptions, software/hardware, etc. | N88: Contractors and vendors, such as PECI, Ecos, CostCo, EFI, etc. Legal expenses, technical services (CMS design, PSE.com web portals, etc.). These costs do NOT include brochure development, marketing pieces, (which are classified under MARKETING). These costs do NOT include incentives paid to customers by contractors. | O88: Primarily tools, trade show equipment, etc. | P88: This category should seldomly be used, and only expenses that cannot be classified under one of the above categories. | Q88: All costs associated with rebates, grants, remuneration, value-added services that have a direct bearing on a customer's perceived value of PSE offerings. | R88: Any amount that PSE is paid by a customer, partner, municipality or outside entity.

Sheet 2018 Sector View Gas
C2: Energy Efficiency 2018 Budgets and Aggregate Program Savings
C3: Sector View | I3: Please see category descriptions at the bottom of the sector table.
C4: Natural Gas Programs
I5: Budget Category
B6: Workbook Name | C6: Schedule | D6: Comment | E6: Description (Blue, indented text indicates a sub-total value) | H6: Order Number (Click on the order# below to link to the detail page) | I6: Program Labor | J6: Marketing Labor | K6: Overhead | L6: Marketing | M6: Employee/Office Expense | N6: Outside Services | O6: Materials | P6: Miscellaneous | Q6: DBtC | R6: Revenue | S6: Total Budget | T6: Total Savings Therms
C7: Residential Energy Management
B8: LIW Detail_REM G201 Gas | C8: G201 | E8: Low Income Weatherization | H8: 18230661 | I8: ='LowIncWx Detail_REM G201 Gas'!D5 -> 7400 | J8: ='LowIncWx Detail_REM G201 Gas'!E5 -> 0 | K8: ='LowIncWx Detail_REM G201 Gas'!F5 -> 6867.2 | L8: ='LowIncWx Detail_REM G201 Gas'!G5 -> 0 | M8: ='LowIncWx Detail_REM G201 Gas'!H5 -> 0 | N8: ='LowIncWx Detail_REM G201 Gas'!I5 -> 0 | O8: ='LowIncWx Detail_REM G201 Gas'!J5 -> 0 | P8: ='LowIncWx Detail_REM G201 Gas'!K5 -> 0 | Q8: ='LowIncWx Detail_REM G201 Gas'!L5 -> 274811.868 | R8: ='LowIncWx Detail_REM G201 Gas'!M5 -> 0 | S8: ='LowIncWx Detail_REM G201 Gas'!N5 -> 289079.068 | T8: ='LowIncWx Detail_REM G201 Gas'!O5 -> 9769.97
B9: HmPrint Detail_REM G214 Gas | C9: G214 | E9: Home Energy Assessments | H9: 18230635 | I9: ='HmEnrgyAsmt Detail_REM G214 Gas'!D5 -> 0 | J9: ='HmEnrgyAsmt Detail_REM G214 Gas'!E5 -> 0 | K9: ='HmEnrgyAsmt Detail_REM G214 Gas'!F5 -> 0 | L9: ='HmEnrgyAsmt Detail_REM G214 Gas'!G5 -> 0 | M9: ='HmEnrgyAsmt Detail_REM G214 Gas'!H5 -> 0 | N9: ='HmEnrgyAsmt Detail_REM G214 Gas'!I5 -> 0 | O9: ='HmEnrgyAsmt Detail_REM G214 Gas'!J5 -> 0 | P9: ='HmEnrgyAsmt Detail_REM G214 Gas'!K5 -> 0 | Q9: ='HmEnrgyAsmt Detail_REM G214 Gas'!L5 -> 0 | R9: ='HmEnrgyAsmt Detail_REM G214 Gas'!M5 -> 0 | S9: ='HmEnrgyAsmt Detail_REM G214 Gas'!N5 -> 0 | T9: ='HmEnrgyAsmt Detail_REM G214 Gas'!O5 -> 0
B10: WtrHeat Detail_REM G214 Gas | C10: G214 | E10: SF Existing Water Heat | H10: 18230636 | I10: ='WtrHeat Detail_REM G214 Gas'!D5 -> 13600 | J10: ='WtrHeat Detail_REM G214 Gas'!E5 -> 3200 | K10: ='WtrHeat Detail_REM G214 Gas'!F5 -> 15590.4 | L10: ='WtrHeat Detail_REM G214 Gas'!G5 -> 25000 | M10: ='WtrHeat Detail_REM G214 Gas'!H5 -> 1200 | N10: ='WtrHeat Detail_REM G214 Gas'!I5 -> 0 | O10: ='WtrHeat Detail_REM G214 Gas'!J5 -> 1000 | P10: ='WtrHeat Detail_REM G214 Gas'!K5 -> 500 | Q10: ='WtrHeat Detail_REM G214 Gas'!L5 -> 227026 | R10: ='WtrHeat Detail_REM G214 Gas'!M5 -> 0 | S10: ='WtrHeat Detail_REM G214 Gas'!N5 -> 287116.4 | T10: ='WtrHeat Detail_REM G214 Gas'!O5 -> 94125.5
B11: Wx Detail_REM G214 Gas | C11: G214 | E11: SF Existing Weatherization | H11: 18230637 | I11: ='Wx Detail_REM G214 Gas'!D5 -> 24800 | J11: ='Wx Detail_REM G214 Gas'!E5 -> 11200 | K11: ='Wx Detail_REM G214 Gas'!F5 -> 33408 | L11: ='Wx Detail_REM G214 Gas'!G5 -> 37500 | M11: ='Wx Detail_REM G214 Gas'!H5 -> 1000 | N11: ='Wx Detail_REM G214 Gas'!I5 -> 224900 | O11: ='Wx Detail_REM G214 Gas'!J5 -> 100 | P11: ='Wx Detail_REM G214 Gas'!K5 -> 1000 | Q11: ='Wx Detail_REM G214 Gas'!L5 -> 2369639 | R11: ='Wx Detail_REM G214 Gas'!M5 -> 0 | S11: ='Wx Detail_REM G214 Gas'!N5 -> 2703547 | T11: ='Wx Detail_REM G214 Gas'!O5 -> 393047.5
B12: SpHeat Detail_REM G214 Gas | C12: G214 | E12: SF Existing Space Heat | H12: 18230638 | I12: ='SpHeat Detail_REM G214 Gas'!D5 -> 29600 | J12: ='SpHeat Detail_REM G214 Gas'!E5 -> 14400 | K12: ='SpHeat Detail_REM G214 Gas'!F5 -> 40832 | L12: ='SpHeat Detail_REM G214 Gas'!G5 -> 225000 | M12: ='SpHeat Detail_REM G214 Gas'!H5 -> 3000 | N12: ='SpHeat Detail_REM G214 Gas'!I5 -> 10000 | O12: ='SpHeat Detail_REM G214 Gas'!J5 -> 1000 | P12: ='SpHeat Detail_REM G214 Gas'!K5 -> 500 | Q12: ='SpHeat Detail_REM G214 Gas'!L5 -> 1917874.6 | R12: ='SpHeat Detail_REM G214 Gas'!M5 -> 0 | S12: ='SpHeat Detail_REM G214 Gas'!N5 -> 2242206.6 | T12: ='SpHeat Detail_REM G214 Gas'!O5 -> 629097.9
C13: G214 | D13: New for 2018-2019 | E13: SF Rentals Pilot | H13: 1823xxxx | I13: ='SFRental_REM_G214 Gas'!D5 -> 7200 | J13: ='SFRental_REM_G214 Gas'!E5 -> 5600 | K13: ='SFRental_REM_G214 Gas'!F5 -> 11878.4 | L13: ='SFRental_REM_G214 Gas'!G5 -> 15000 | M13: ='SFRental_REM_G214 Gas'!H5 -> 250 | N13: ='SFRental_REM_G214 Gas'!I5 -> 60000 | O13: ='SFRental_REM_G214 Gas'!J5 -> 0 | P13: ='SFRental_REM_G214 Gas'!K5 -> 0 | Q13: ='SFRental_REM_G214 Gas'!L5 -> 0 | R13: ='SFRental_REM_G214 Gas'!M5 -> 0 | S13: ='SFRental_REM_G214 Gas'!N5 -> 99928.4 | T13: ='SFRental_REM_G214 Gas'!O5 -> 0
B14: ShwrHead Detail_REM G214 Gas | C14: G214 | E14: Residential Showerheads | H14: 18230700 | I14: ='ShwrHead Detail_REM G214 Gas'!D5 -> 12080 | J14: ='ShwrHead Detail_REM G214 Gas'!E5 -> 3200 | K14: ='ShwrHead Detail_REM G214 Gas'!F5 -> 14179.84 | L14: ='ShwrHead Detail_REM G214 Gas'!G5 -> 80915 | M14: ='ShwrHead Detail_REM G214 Gas'!H5 -> 300 | N14: ='ShwrHead Detail_REM G214 Gas'!I5 -> 9435 | O14: ='ShwrHead Detail_REM G214 Gas'!J5 -> 300 | P14: ='ShwrHead Detail_REM G214 Gas'!K5 -> 300 | Q14: ='ShwrHead Detail_REM G214 Gas'!L5 -> 172754.9586 | R14: ='ShwrHead Detail_REM G214 Gas'!M5 -> 0 | S14: ='ShwrHead Detail_REM G214 Gas'!N5 -> 293464.7986 | T14: ='ShwrHead Detail_REM G214 Gas'!O5 -> 60700.4
B15: HmApplSvgs Detail_REM G214 Gas | C15: G214 | E15: Home Appliances | H15: 1823gggg | I15: ='HmApplSvgs Detail_REM G214 Gas'!D5 -> 0 | J15: ='HmApplSvgs Detail_REM G214 Gas'!E5 -> 0 | K15: ='HmApplSvgs Detail_REM G214 Gas'!F5 -> 0 | L15: ='HmApplSvgs Detail_REM G214 Gas'!G5 -> 0 | M15: ='HmApplSvgs Detail_REM G214 Gas'!H5 -> 0 | N15: ='HmApplSvgs Detail_REM G214 Gas'!I5 -> 0 | O15: ='HmApplSvgs Detail_REM G214 Gas'!J5 -> 0 | P15: ='HmApplSvgs Detail_REM G214 Gas'!K5 -> 0 | Q15: ='HmApplSvgs Detail_REM G214 Gas'!L5 -> 0 | R15: ='HmApplSvgs Detail_REM G214 Gas'!M5 -> 0 | S15: ='HmApplSvgs Detail_REM G214 Gas'!N5 -> 0 | T15: ='HmApplSvgs Detail_REM G214 Gas'!O5 -> 11791.25
B16: WebTstat Detail_REM G214 Gas | C16: G214 | E16: Web-Enabled Thermostats | H16: 18230687 | I16: ='WebTstat Detail_REM G214 Gas'!D5 -> 26800 | J16: ='WebTstat Detail_REM G214 Gas'!E5 -> 4800 | K16: ='WebTstat Detail_REM G214 Gas'!F5 -> 29324.8 | L16: ='WebTstat Detail_REM G214 Gas'!G5 -> 32000 | M16: ='WebTstat Detail_REM G214 Gas'!H5 -> 1000 | N16: ='WebTstat Detail_REM G214 Gas'!I5 -> 60000 | O16: ='WebTstat Detail_REM G214 Gas'!J5 -> 500 | P16: ='WebTstat Detail_REM G214 Gas'!K5 -> 500 | Q16: ='WebTstat Detail_REM G214 Gas'!L5 -> 450000 | R16: ='WebTstat Detail_REM G214 Gas'!M5 -> 0 | S16: ='WebTstat Detail_REM G214 Gas'!N5 -> 604924.8 | T16: ='WebTstat Detail_REM G214 Gas'!O5 -> 342000
B17: HER Detail_REM G214 gas | C17: G214 | E17: Home Energy Reports | H17: 18230738 | I17: ='HER Detail_REM G214 gas'!D5 -> 22400 | J17: ='HER Detail_REM G214 gas'!E5 -> 4000 | K17: ='HER Detail_REM G214 gas'!F5 -> 24499.2 | L17: ='HER Detail_REM G214 gas'!G5 -> 10142.77 | M17: ='HER Detail_REM G214 gas'!H5 -> 250 | N17: ='HER Detail_REM G214 gas'!I5 -> 25243 | O17: ='HER Detail_REM G214 gas'!J5 -> 100 | P17: ='HER Detail_REM G214 gas'!K5 -> 150 | Q17: ='HER Detail_REM G214 gas'!L5 -> 13900 | R17: ='HER Detail_REM G214 gas'!M5 -> 0 | S17: ='HER Detail_REM G214 gas'!N5 -> 100684.97 | T17: ='HER Detail_REM G214 gas'!O5 -> 120000
B18: SFNC Detail_REM G215 Gas | C18: G215 | E18: Single Family New Construction | H18: 18230684 | I18: ='SFNC Detail_REM G215 Gas'!D5 -> 6080 | J18: ='SFNC Detail_REM G215 Gas'!E5 -> 2400 | K18: ='SFNC Detail_REM G215 Gas'!F5 -> 7869.44 | L18: ='SFNC Detail_REM G215 Gas'!G5 -> 48000 | M18: ='SFNC Detail_REM G215 Gas'!H5 -> 1500 | N18: ='SFNC Detail_REM G215 Gas'!I5 -> 0 | O18: ='SFNC Detail_REM G215 Gas'!J5 -> 1000 | P18: ='SFNC Detail_REM G215 Gas'!K5 -> 0 | Q18: ='SFNC Detail_REM G215 Gas'!L5 -> 28750 | R18: ='SFNC Detail_REM G215 Gas'!M5 -> 0 | S18: ='SFNC Detail_REM G215 Gas'!N5 -> 95599.44 | T18: ='SFNC Detail_REM G215 Gas'!O5 -> 9875
B19: MF Retr Detail_REM G217 Gas | C19: G217 | E19: Multifamily Retrofit | H19: 18230736 | I19: ='MF Retr Detail_REM G217 Gas'!D5 -> 49000 | J19: ='MF Retr Detail_REM G217 Gas'!E5 -> 14400 | K19: ='MF Retr Detail_REM G217 Gas'!F5 -> 58835.2 | L19: ='MF Retr Detail_REM G217 Gas'!G5 -> 3600 | M19: ='MF Retr Detail_REM G217 Gas'!H5 -> 1000 | N19: ='MF Retr Detail_REM G217 Gas'!I5 -> 165000 | O19: ='MF Retr Detail_REM G217 Gas'!J5 -> 500 | P19: ='MF Retr Detail_REM G217 Gas'!K5 -> 500 | Q19: ='MF Retr Detail_REM G217 Gas'!L5 -> 363884 | R19: ='MF Retr Detail_REM G217 Gas'!M5 -> 0 | S19: ='MF Retr Detail_REM G217 Gas'!N5 -> 656719.2 | T19: ='MF Retr Detail_REM G217 Gas'!O5 -> 80226.8
B20: MFNC Detail_REM G218 Gas | C20: G218 | E20: Multi-Family New Construction | H20: 18230673 | I20: ='MFNC Detail_REM G218 Gas'!D5 -> 33900 | J20: ='MFNC Detail_REM G218 Gas'!E5 -> 4000 | K20: ='MFNC Detail_REM G218 Gas'!F5 -> 35171.2 | L20: ='MFNC Detail_REM G218 Gas'!G5 -> 13000 | M20: ='MFNC Detail_REM G218 Gas'!H5 -> 1000 | N20: ='MFNC Detail_REM G218 Gas'!I5 -> 75000 | O20: ='MFNC Detail_REM G218 Gas'!J5 -> 1500 | P20: ='MFNC Detail_REM G218 Gas'!K5 -> 0 | Q20: ='MFNC Detail_REM G218 Gas'!L5 -> 282525 | R20: ='MFNC Detail_REM G218 Gas'!M5 -> 0 | S20: ='MFNC Detail_REM G218 Gas'!N5 -> 446096.2 | T20: ='MFNC Detail_REM G218 Gas'!O5 -> 54735
G21: Total, Residential Energy Management | I21: =SUM(I8:I20) -> 232860 | J21: 67200 | K21: 278455.68 | L21: 490157.77 | M21: 10500 | N21: 629578 | O21: 6000 | P21: 3450 | Q21: 6101165.427 | R21: 0 | S21: 7819366.877 | T21: 1805369.32
C25: Business Energy Management
B26: CI Retr Detail_BEM G250 Gas | C26: G250 | E26: Commercial/Industrial Retrofit | H26: 18230731 | I26: ='CI Retr Detail_BEM G250 Gas'!C5 -> 195000 | J26: ='CI Retr Detail_BEM G250 Gas'!D5 -> 8200 | K26: ='CI Retr Detail_BEM G250 Gas'!E5 -> 186600 | L26: ='CI Retr Detail_BEM G250 Gas'!F5 -> 6700 | M26: ='CI Retr Detail_BEM G250 Gas'!G5 -> 12300 | N26: ='CI Retr Detail_BEM G250 Gas'!H5 -> 8300 | O26: ='CI Retr Detail_BEM G250 Gas'!I5 -> 0 | P26: ='CI Retr Detail_BEM G250 Gas'!J5 -> 0 | Q26: ='CI Retr Detail_BEM G250 Gas'!K5 -> 1200000 | R26: ='CI Retr Detail_BEM G250 Gas'!L5 -> 0 | S26: ='CI Retr Detail_BEM G250 Gas'!M5 -> 1617100 | T26: ='CI Retr Detail_BEM G250 Gas'!N5 -> 400000
B27: CI NC Detail_BEM G251 Gas | C27: G251 | E27: Commercial/Industrial New Construction | H27: 18230706 | I27: ='CI NC Detail_BEM G251 Gas'!C5 -> 44000 | J27: ='CI NC Detail_BEM G251 Gas'!D5 -> 1000 | K27: ='CI NC Detail_BEM G251 Gas'!E5 -> 41520 | L27: ='CI NC Detail_BEM G251 Gas'!F5 -> 1000 | M27: ='CI NC Detail_BEM G251 Gas'!G5 -> 2000 | N27: ='CI NC Detail_BEM G251 Gas'!H5 -> 9500 | O27: ='CI NC Detail_BEM G251 Gas'!I5 -> 2000 | P27: ='CI NC Detail_BEM G251 Gas'!J5 -> 0 | Q27: ='CI NC Detail_BEM G251 Gas'!K5 -> 398440 | R27: ='CI NC Detail_BEM G251 Gas'!L5 -> 0 | S27: ='CI NC Detail_BEM G251 Gas'!M5 -> 499460 | T27: ='CI NC Detail_BEM G251 Gas'!N5 -> 105000
E28: Commercial Strategic Energy Management | I28: =SUM(I29:I30) -> 179000 | J28: =SUM(J29:J30) -> 0 | K28: 166112.24 | L28: 2000 | M28: 5000 | N28: 10000 | O28: 2000 | P28: 5000 | Q28: 192000 | R28: 0 | S28: =SUM(S29:S30) -> 561112.24 | T28: 670000
B29: RCM Detail_BEM 253 Gas | C29: G253 | E29: SEM | H29: 18230691 | I29: ='RCM Detail_BEM 253 Gas'!C5 -> 164000 | J29: ='RCM Detail_BEM 253 Gas'!D5 -> 0 | K29: ='RCM Detail_BEM 253 Gas'!E5 -> 152192 | L29: ='RCM Detail_BEM 253 Gas'!F5 -> 2000 | M29: ='RCM Detail_BEM 253 Gas'!G5 -> 5000 | N29: ='RCM Detail_BEM 253 Gas'!H5 -> 5000 | O29: ='RCM Detail_BEM 253 Gas'!I5 -> 2000 | P29: ='RCM Detail_BEM 253 Gas'!J5 -> 5000 | Q29: ='RCM Detail_BEM 253 Gas'!K5 -> 192000 | R29: ='RCM Detail_BEM 253 Gas'!L5 -> 0 | S29: ='RCM Detail_BEM 253 Gas'!M5 -> 527192 | T29: ='RCM Detail_BEM 253 Gas'!N5 -> 670000
B30: ResAcctSW Detail_PSWE_Gas | E30: Resource Accounting Software | H30: 18231033 | I30: ='ResAcctSW Detail_PSWE_Gas'!D5 -> 15000 | J30: ='ResAcctSW Detail_PSWE_Gas'!E5 -> 0 | K30: ='ResAcctSW Detail_PSWE_Gas'!F5 -> 13920.24 | L30: ='ResAcctSW Detail_PSWE_Gas'!G5 -> 0 | M30: ='ResAcctSW Detail_PSWE_Gas'!H5 -> 0 | N30: ='ResAcctSW Detail_PSWE_Gas'!I5 -> 5000 | O30: ='ResAcctSW Detail_PSWE_Gas'!J5 -> 0 | P30: ='ResAcctSW Detail_PSWE_Gas'!K5 -> 0 | Q30: ='ResAcctSW Detail_PSWE_Gas'!L5 -> 0 | R30: ='ResAcctSW Detail_PSWE_Gas'!M5 -> 0 | S30: ='ResAcctSW Detail_PSWE_Gas'!N5 -> 33920.24 | T30: ='ResAcctSW Detail_PSWE_Gas'!O5 -> 0
B31: TechEval Detail_BEM G261 Gas | C31: G261 | E31: Technology Evaluation | H31: 18230694 | I31: ='TechEval Detail_BEM G261 Gas'!C5 -> 0 | J31: ='TechEval Detail_BEM G261 Gas'!D5 -> 0 | K31: ='TechEval Detail_BEM G261 Gas'!E5 -> 0 | L31: ='TechEval Detail_BEM G261 Gas'!F5 -> 0 | M31: ='TechEval Detail_BEM G261 Gas'!G5 -> 0 | N31: ='TechEval Detail_BEM G261 Gas'!H5 -> 0 | O31: ='TechEval Detail_BEM G261 Gas'!I5 -> 0 | P31: ='TechEval Detail_BEM G261 Gas'!J5 -> 0 | Q31: ='TechEval Detail_BEM G261 Gas'!K5 -> 0 | R31: ='TechEval Detail_BEM G261 Gas'!L5 -> 0 | S31: ='TechEval Detail_BEM G261 Gas'!M5 -> 0 | T31: ='TechEval Detail_BEM G261 Gas'!N5 -> 0
B32: Rebates Detail_BEM G262 Gas | C32: G262 | E32: Business Rebates | I32: =SUM(I33:I35) -> 85200 | J32: =SUM(J33:J35) -> 0 | K32: 79065.6 | L32: 15000 | M32: 5500 | N32: 19315 | O32: 1000 | P32: 0 | Q32: 318527.2 | R32: 0 | S32: 523607.8 | T32: 127858.9
B33: Comm Kit-Laund_G262 Gas | C33: G262 | E33: Commercial Kitchen & Laundry | H33: 18231027 | I33: ='Comm Kit-Laund_G262 Gas'!D5 -> 29600 | J33: ='Comm Kit-Laund_G262 Gas'!E5 -> 0 | K33: ='Comm Kit-Laund_G262 Gas'!F5 -> 27468.8 | L33: ='Comm Kit-Laund_G262 Gas'!G5 -> 15000 | M33: ='Comm Kit-Laund_G262 Gas'!H5 -> 3500 | N33: ='Comm Kit-Laund_G262 Gas'!I5 -> 0 | O33: ='Comm Kit-Laund_G262 Gas'!J5 -> 0 | P33: ='Comm Kit-Laund_G262 Gas'!K5 -> 0 | Q33: ='Comm Kit-Laund_G262 Gas'!L5 -> 185604 | R33: ='Comm Kit-Laund_G262 Gas'!M5 -> 0 | S33: ='Comm Kit-Laund_G262 Gas'!N5 -> 261172.8 | T33: ='Comm Kit-Laund_G262 Gas'!O5 -> 85158.9
B34: Comm HVAC_G262 Gas | C34: G262 | E34: Commercial HVAC | H34: 18231029 | I34: ='Comm HVAC_G262 Gas'!D5 -> 14800 | J34: ='Comm HVAC_G262 Gas'!E5 -> 0 | K34: ='Comm HVAC_G262 Gas'!F5 -> 13734.4 | L34: ='Comm HVAC_G262 Gas'!G5 -> 0 | M34: ='Comm HVAC_G262 Gas'!H5 -> 0 | N34: ='Comm HVAC_G262 Gas'!I5 -> 0 | O34: ='Comm HVAC_G262 Gas'!J5 -> 0 | P34: ='Comm HVAC_G262 Gas'!K5 -> 0 | Q34: ='Comm HVAC_G262 Gas'!L5 -> 50000 | R34: ='Comm HVAC_G262 Gas'!M5 -> 0 | S34: ='Comm HVAC_G262 Gas'!N5 -> 78534.4 | T34: ='Comm HVAC_G262 Gas'!O5 -> 13500
E35: Business Direct Installs--Includes: | I35: =I36+I37+I38 -> 40800 | J35: =J36+J37+J38 -> 0 | K35: 37862.4 | L35: 0 | M35: 2000 | N35: 19315 | O35: 1000 | P35: 0 | Q35: 82923.2 | R35: 0 | S35: 183900.6 | T35: 29200
B36: Sm Bus DI_G262 Gas | C36: G262 | F36: Small Business Direct Install | H36: 18231022 | I36: ='Sm Bus DI_G262 Gas'!D5 -> 40800 | J36: ='Sm Bus DI_G262 Gas'!E5 -> 0 | K36: ='Sm Bus DI_G262 Gas'!F5 -> 37862.4 | L36: ='Sm Bus DI_G262 Gas'!G5 -> 0 | M36: ='Sm Bus DI_G262 Gas'!H5 -> 2000 | N36: ='Sm Bus DI_G262 Gas'!I5 -> 19315 | O36: ='Sm Bus DI_G262 Gas'!J5 -> 1000 | P36: ='Sm Bus DI_G262 Gas'!K5 -> 0 | Q36: ='Sm Bus DI_G262 Gas'!L5 -> 82923.2 | R36: ='Sm Bus DI_G262 Gas'!M5 -> 0 | S36: ='Sm Bus DI_G262 Gas'!N5 -> 183900.6 | T36: ='Sm Bus DI_G262 Gas'!O5 -> 29200
B37: Sm Agr DI_G262 Gas | C37: G262 | F37: Small Agriculture Direct Install | H37: 18230251 | I37: ='Sm Agr DI_G262 Gas'!D5 -> 0 | J37: ='Sm Agr DI_G262 Gas'!E5 -> 0 | K37: ='Sm Agr DI_G262 Gas'!F5 -> 0 | L37: ='Sm Agr DI_G262 Gas'!G5 -> 0 | M37: ='Sm Agr DI_G262 Gas'!H5 -> 0 | N37: ='Sm Agr DI_G262 Gas'!I5 -> 0 | O37: ='Sm Agr DI_G262 Gas'!J5 -> 0 | P37: ='Sm Agr DI_G262 Gas'!K5 -> 0 | Q37: ='Sm Agr DI_G262 Gas'!L5 -> 0 | R37: ='Sm Agr DI_G262 Gas'!M5 -> 0 | S37: ='Sm Agr DI_G262 Gas'!N5 -> 0 | T37: ='Sm Agr DI_G262 Gas'!O5 -> 0
B38: Lodging DI_G262_Gas | C38: G262 | F38: Lodging Direct Install | H38: 18230250 | I38: ='Lodging DI_G262_Gas'!D5 -> 0 | J38: ='Lodging DI_G262_Gas'!E5 -> 0 | K38: ='Lodging DI_G262_Gas'!F5 -> 0 | L38: ='Lodging DI_G262_Gas'!G5 -> 0 | M38: ='Lodging DI_G262_Gas'!H5 -> 0 | N38: ='Lodging DI_G262_Gas'!I5 -> 0 | O38: ='Lodging DI_G262_Gas'!J5 -> 0 | P38: ='Lodging DI_G262_Gas'!K5 -> 0 | Q38: ='Lodging DI_G262_Gas'!L5 -> 0 | R38: ='Lodging DI_G262_Gas'!M5 -> 0 | S38: ='Lodging DI_G262_Gas'!N5 -> 0 | T38: ='Lodging DI_G262_Gas'!O5 -> 0
G39: Total, Business Energy Management | I39: =SUM(I26:I28)+I31+I32 -> 503200 | J39: 9200 | K39: 473297.84 | L39: 24700 | M39: 24800 | N39: 47115 | O39: 5000 | P39: 5000 | Q39: 2108967.2 | R39: 0 | S39: 3201280.04 | T39: 1302858.9
C43: Pilots With Uncertain Savings
B44: REM Pilots Detail G249 Gas | C44: G249 | E44: Residential Pilots | H44: 18230622 | I44: ='REM Pilots Detail G249 Gas'!D5 -> 0 | J44: ='REM Pilots Detail G249 Gas'!E5 -> 0 | K44: ='REM Pilots Detail G249 Gas'!F5 -> 0 | L44: ='REM Pilots Detail G249 Gas'!G5 -> 0 | M44: ='REM Pilots Detail G249 Gas'!H5 -> 0 | N44: ='REM Pilots Detail G249 Gas'!I5 -> 0 | O44: ='REM Pilots Detail G249 Gas'!J5 -> 0 | P44: ='REM Pilots Detail G249 Gas'!K5 -> 0 | Q44: ='REM Pilots Detail G249 Gas'!L5 -> 0 | R44: ='REM Pilots Detail G249 Gas'!M5 -> 0 | S44: ='REM Pilots Detail G249 Gas'!N5 -> 0 | T44: ='REM Pilots Detail G249 Gas'!O5 -> 0
B45: BEM Pilots Detail G249 Gas | C45: G249 | E45: Commercial Pay for Performance Pilot | H45: 1823pppp | I45: ='BEM Pilots Detail G249 Gas'!D5 -> 0 | J45: ='BEM Pilots Detail G249 Gas'!E5 -> 0 | K45: ='BEM Pilots Detail G249 Gas'!F5 -> 0 | L45: ='BEM Pilots Detail G249 Gas'!G5 -> 0 | M45: ='BEM Pilots Detail G249 Gas'!H5 -> 0 | N45: ='BEM Pilots Detail G249 Gas'!I5 -> 0 | O45: ='BEM Pilots Detail G249 Gas'!J5 -> 0 | P45: ='BEM Pilots Detail G249 Gas'!K5 -> 0 | Q45: ='BEM Pilots Detail G249 Gas'!L5 -> 11925 | R45: ='BEM Pilots Detail G249 Gas'!M5 -> 0 | S45: ='BEM Pilots Detail G249 Gas'!N5 -> 11925 | T45: ='BEM Pilots Detail G249 Gas'!O5 -> 7500
G46: Total, Pilots | I46: =SUM(I44:I45) -> 0 | J46: =SUM(J44:J45) -> 0 | K46: 0 | L46: 0 | M46: 0 | N46: 0 | O46: 0 | P46: 0 | Q46: 11925 | R46: 0 | S46: 11925 | T46: =SUM(T44:T45) -> 7500
C50: Regional Efficiency Programs
E51: NW Gas Market Transformation | H51: 18230660 | I51: ='NEEA Gas MT_no Sched Gas'!D5 -> 0 | J51: ='NEEA Gas MT_no Sched Gas'!E5 -> 0 | K51: ='NEEA Gas MT_no Sched Gas'!F5 -> 0 | L51: ='NEEA Gas MT_no Sched Gas'!G5 -> 0 | M51: ='NEEA Gas MT_no Sched Gas'!H5 -> 0 | N51: ='NEEA Gas MT_no Sched Gas'!I5 -> 2006136 | O51: ='NEEA Gas MT_no Sched Gas'!J5 -> 0 | P51: ='NEEA Gas MT_no Sched Gas'!K5 -> 0 | Q51: ='NEEA Gas MT_no Sched Gas'!L5 -> 0 | R51: ='NEEA Gas MT_no Sched Gas'!M5 -> 0 | S51: ='NEEA Gas MT_no Sched Gas'!N5 -> 2006136 | T51: ='NEEA Gas MT_no Sched Gas'!O5 -> 0
G52: Total, Regional Efficiency Programs | I52: =SUM(I51:I51) -> 0 | J52: 0 | K52: 0 | L52: 0 | M52: 0 | N52: 2006136 | O52: 0 | P52: 0 | Q52: 0 | S52: =SUM(S51:S51) -> 2006136 | T52: =SUM(T51:T51) -> 0
C56: Energy Efficiency Portfolio Support
B57: Data & Systm Svcs Detail Gas | E57: Data and Systems Services | H57: 18231005 | I57: ='Data & Systm Svcs Detail Gas'!D5 -> 62660 | J57: ='Data & Systm Svcs Detail Gas'!E5 -> 0 | K57: ='Data & Systm Svcs Detail Gas'!F5 -> 58148.48 | L57: ='Data & Systm Svcs Detail Gas'!G5 -> 0 | M57: ='Data & Systm Svcs Detail Gas'!H5 -> 1560 | N57: ='Data & Systm Svcs Detail Gas'!I5 -> 42250 | O57: ='Data & Systm Svcs Detail Gas'!J5 -> 0 | P57: ='Data & Systm Svcs Detail Gas'!K5 -> 0 | Q57: ='Data & Systm Svcs Detail Gas'!L5 -> 0 | R57: ='Data & Systm Svcs Detail Gas'!M5 -> 0 | S57: ='Data & Systm Svcs Detail Gas'!N5 -> 164618.48
B58: Rebt Procg_Detail Gas | E58: Rebates Processing | H58: 18230507 | I58: ='Rebt Procg_Detail Gas'!D5 -> 41200 | J58: ='Rebt Procg_Detail Gas'!E5 -> 0 | K58: ='Rebt Procg_Detail Gas'!F5 -> 38233.6 | L58: ='Rebt Procg_Detail Gas'!G5 -> 0 | M58: ='Rebt Procg_Detail Gas'!H5 -> 3300 | N58: ='Rebt Procg_Detail Gas'!I5 -> 0 | O58: ='Rebt Procg_Detail Gas'!J5 -> 750 | P58: ='Rebt Procg_Detail Gas'!K5 -> 0 | Q58: ='Rebt Procg_Detail Gas'!L5 -> 0 | R58: ='Rebt Procg_Detail Gas'!M5 -> 0 | S58: ='Rebt Procg_Detail Gas'!N5 -> 83483.6
B59: Vteam Detail_R&C_Gas | E59: Verification Team | H59: 18230668 | I59: ='Verifctn team Detail Gas'!D5 -> 33920 | J59: ='Verifctn team Detail Gas'!E5 -> 0 | K59: ='Verifctn team Detail Gas'!F5 -> 31477.76 | L59: ='Verifctn team Detail Gas'!G5 -> 0 | M59: ='Verifctn team Detail Gas'!H5 -> 1850 | N59: ='Verifctn team Detail Gas'!I5 -> 11700 | O59: ='Verifctn team Detail Gas'!J5 -> 900 | P59: ='Verifctn team Detail Gas'!K5 -> 0 | Q59: ='Verifctn team Detail Gas'!L5 -> 0 | R59: ='Verifctn team Detail Gas'!M5 -> 0 | S59: ='Verifctn team Detail Gas'!N5 -> 79847.76
B60: ProgDev Detail_R&C_ Elec | E60: Programs Support | H60: 18230688 | I60: ='Progs Supp Detail_PS_Gas'!D5 -> 31200 | J60: ='Progs Supp Detail_PS_Gas'!E5 -> 0 | K60: ='Progs Supp Detail_PS_Gas'!F5 -> 28953.6 | L60: ='Progs Supp Detail_PS_Gas'!G5 -> 0 | M60: ='Progs Supp Detail_PS_Gas'!H5 -> 2000 | N60: ='Progs Supp Detail_PS_Gas'!I5 -> 0 | O60: ='Progs Supp Detail_PS_Gas'!J5 -> 0 | P60: ='Progs Supp Detail_PS_Gas'!K5 -> 0 | Q60: ='Progs Supp Detail_PS_Gas'!L5 -> 0 | R60: ='Progs Supp Detail_PS_Gas'!M5 -> 0 | S60: ='Progs Supp Detail_PS_Gas'!N5 -> 62153.6
B61: TradeAlly Detail_PS_gas | E61: Trade Ally Support | H61: 18230698 | I61: ='TradeAlly Detail_PS_gas'!D5 -> 0 | J61: ='TradeAlly Detail_PS_gas'!E5 -> 0 | K61: ='TradeAlly Detail_PS_gas'!F5 -> 0 | L61: ='TradeAlly Detail_PS_gas'!G5 -> 0 | M61: ='TradeAlly Detail_PS_gas'!H5 -> 0 | N61: ='TradeAlly Detail_PS_gas'!I5 -> 0 | O61: ='TradeAlly Detail_PS_gas'!J5 -> 22000 | P61: ='TradeAlly Detail_PS_gas'!K5 -> 0 | Q61: ='TradeAlly Detail_PS_gas'!L5 -> 0 | R61: ='TradeAlly Detail_PS_gas'!M5 -> 0 | S61: ='TradeAlly Detail_PS_gas'!N5 -> 22000
B62: CAN_PS_Detail Gas | E62: Contractor Alliance Network (revenue + cost) | H62: 18231031 | I62: ='CAN_PS_Detail Gas'!D5 -> 70400 | J62: ='CAN_PS_Detail Gas'!E5 -> 3200 | K62: ='CAN_PS_Detail Gas'!F5 -> 68300.8 | L62: ='CAN_PS_Detail Gas'!G5 -> 20000 | M62: ='CAN_PS_Detail Gas'!H5 -> 5000 | N62: ='CAN_PS_Detail Gas'!I5 -> 80000 | O62: ='CAN_PS_Detail Gas'!J5 -> 1500 | P62: ='CAN_PS_Detail Gas'!K5 -> 0 | Q62: ='CAN_PS_Detail Gas'!L5 -> 0 | R62: ='CAN_PS_Detail Gas'!M5 -> -282400.8 | S62: ='CAN_PS_Detail Gas'!N5 -> -34000
B63: ABS Detail_PSWE_Gas | E63: Automated Benchmarking System | H63: 18230667 | I63: ='ABS Detail_PSWE_Gas'!D5 -> 31300 | J63: ='ABS Detail_PSWE_Gas'!E5 -> 0 | K63: ='ABS Detail_PSWE_Gas'!F5 -> 29046.4 | L63: ='ABS Detail_PSWE_Gas'!G5 -> 0 | M63: ='ABS Detail_PSWE_Gas'!H5 -> 0 | N63: ='ABS Detail_PSWE_Gas'!I5 -> 33000 | O63: ='ABS Detail_PSWE_Gas'!J5 -> 0 | P63: ='ABS Detail_PSWE_Gas'!K5 -> 0 | Q63: ='ABS Detail_PSWE_Gas'!L5 -> 0 | R63: ='ABS Detail_PSWE_Gas'!M5 -> 0 | S63: ='ABS Detail_PSWE_Gas'!N5 -> 93346.4
B64: Engy Adv Detail_PSCE_Gas | E64: Energy Advisors | H64: 18230704 | I64: ='Engy Adv Detail_PSCE_Gas'!D5 -> 97760 | J64: ='Engy Adv Detail_PSCE_Gas'!E5 -> 0 | K64: ='Engy Adv Detail_PSCE_Gas'!F5 -> 67258.88 | L64: ='Engy Adv Detail_PSCE_Gas'!G5 -> 0 | M64: ='Engy Adv Detail_PSCE_Gas'!H5 -> 7832 | N64: ='Engy Adv Detail_PSCE_Gas'!I5 -> 200 | O64: ='Engy Adv Detail_PSCE_Gas'!J5 -> 453 | P64: ='Engy Adv Detail_PSCE_Gas'!K5 -> 202 | Q64: ='Engy Adv Detail_PSCE_Gas'!L5 -> 0 | R64: ='Engy Adv Detail_PSCE_Gas'!M5 -> 0 | S64: ='Engy Adv Detail_PSCE_Gas'!N5 -> 173705.88
B65: EEC Detail_PS_Gas | E65: Energy Efficient Communities | H65: 18230657 | I65: ='EEC Detail_PS_Gas'!D5 -> 61800 | J65: ='EEC Detail_PS_Gas'!E5 -> 2000 | K65: ='EEC Detail_PS_Gas'!F5 -> 43894.4 | L65: ='EEC Detail_PS_Gas'!G5 -> 19370 | M65: ='EEC Detail_PS_Gas'!H5 -> 5200 | N65: ='EEC Detail_PS_Gas'!I5 -> 6500 | O65: ='EEC Detail_PS_Gas'!J5 -> 1755 | P65: ='EEC Detail_PS_Gas'!K5 -> 0 | Q65: ='EEC Detail_PS_Gas'!L5 -> 0 | R65: ='EEC Detail_PS_Gas'!M5 -> 0 | S65: ='EEC Detail_PS_Gas'!N5 -> 140519.4
B66: CustOnline Detail_PSWE_Gas | E66: Customer Digital Experience | H66: 18230665 | I66: ='CustDigExprnc Detail_PSWE_Gas'!D5 -> 15520 | J66: ='CustDigExprnc Detail_PSWE_Gas'!E5 -> 0 | K66: ='CustDigExprnc Detail_PSWE_Gas'!F5 -> 10677.76 | L66: ='CustDigExprnc Detail_PSWE_Gas'!G5 -> 0 | M66: ='CustDigExprnc Detail_PSWE_Gas'!H5 -> 0 | N66: ='CustDigExprnc Detail_PSWE_Gas'!I5 -> 62006 | O66: ='CustDigExprnc Detail_PSWE_Gas'!J5 -> 0 | P66: ='CustDigExprnc Detail_PSWE_Gas'!K5 -> 0 | Q66: ='CustDigExprnc Detail_PSWE_Gas'!L5 -> 0 | R66: ='CustDigExprnc Detail_PSWE_Gas'!M5 -> 0 | S66: ='CustDigExprnc Detail_PSWE_Gas'!N5 -> 88203.76
B67: Mkt Intg Detail_PSWE_Gas | E67: Market Integration | H67: 18230732 | I67: ='Mkt Intg Detail_PSWE_Gas'!D5 -> 21856 | J67: ='Mkt Intg Detail_PSWE_Gas'!E5 -> 0 | K67: ='Mkt Intg Detail_PSWE_Gas'!F5 -> 15036.928 | L67: ='Mkt Intg Detail_PSWE_Gas'!G5 -> 0 | M67: ='Mkt Intg Detail_PSWE_Gas'!H5 -> 0 | N67: ='Mkt Intg Detail_PSWE_Gas'!I5 -> 2080 | O67: ='Mkt Intg Detail_PSWE_Gas'!J5 -> 0 | P67: ='Mkt Intg Detail_PSWE_Gas'!K5 -> 0 | Q67: ='Mkt Intg Detail_PSWE_Gas'!L5 -> 0 | R67: ='Mkt Intg Detail_PSWE_Gas'!M5 -> 0 | S67: ='Mkt Intg Detail_PSWE_Gas'!N5 -> 38972.928
B68: Events Detail_PSCE_Gas | E68: Events | H68: 18230653 | I68: ='Events Detail_PSCE_Gas'!D5 -> 57800 | J68: ='Events Detail_PSCE_Gas'!E5 -> 200 | K68: ='Events Detail_PSCE_Gas'!F5 -> 39904 | L68: ='Events Detail_PSCE_Gas'!G5 -> 1040 | M68: ='Events Detail_PSCE_Gas'!H5 -> 595 | N68: ='Events Detail_PSCE_Gas'!I5 -> 16500 | O68: ='Events Detail_PSCE_Gas'!J5 -> 715 | P68: ='Events Detail_PSCE_Gas'!K5 -> 0 | Q68: ='Events Detail_PSCE_Gas'!L5 -> 0 | R68: ='Events Detail_PSCE_Gas'!M5 -> 0 | S68: ='Events Detail_PSCE_Gas'!N5 -> 116754
B69: Brochure Detail_PSCE_Gas | E69: Brochures, non program-specific | H69: 18230685 | I69: ='Brochure Detail_PSCE_Gas'!D5 -> 2400 | J69: ='Brochure Detail_PSCE_Gas'!E5 -> 0 | K69: ='Brochure Detail_PSCE_Gas'!F5 -> 1651.2 | L69: ='Brochure Detail_PSCE_Gas'!G5 -> 2000 | M69: ='Brochure Detail_PSCE_Gas'!H5 -> 0 | N69: ='Brochure Detail_PSCE_Gas'!I5 -> 390 | O69: ='Brochure Detail_PSCE_Gas'!J5 -> 3380 | P69: ='Brochure Detail_PSCE_Gas'!K5 -> 0 | Q69: ='Brochure Detail_PSCE_Gas'!L5 -> 0 | R69: ='Brochure Detail_PSCE_Gas'!M5 -> 0 | S69: ='Brochure Detail_PSCE_Gas'!N5 -> 9821.2
B70: Eductn Detail_PSCE_G207 Gas | C70: G202 | E70: Education | H70: 18230671 | I70: ='Eductn Detail_PSCE_G207 Gas'!D5 -> 0 | J70: ='Eductn Detail_PSCE_G207 Gas'!E5 -> 0 | K70: ='Eductn Detail_PSCE_G207 Gas'!F5 -> 0 | L70: ='Eductn Detail_PSCE_G207 Gas'!G5 -> 0 | M70: ='Eductn Detail_PSCE_G207 Gas'!H5 -> 0 | N70: ='Eductn Detail_PSCE_G207 Gas'!I5 -> 1300 | O70: ='Eductn Detail_PSCE_G207 Gas'!J5 -> 0 | P70: ='Eductn Detail_PSCE_G207 Gas'!K5 -> 0 | Q70: ='Eductn Detail_PSCE_G207 Gas'!L5 -> 0 | R70: ='Eductn Detail_PSCE_G207 Gas'!M5 -> 0 | S70: ='Eductn Detail_PSCE_G207 Gas'!N5 -> 1300
G71: Total, Portfolio Support | I71: =SUM(I57:I70) -> 527816 | J71: 5400 | K71: 432583.808 | L71: 42410 | M71: 27337 | N71: 255926 | O71: 31453 | P71: 202 | Q71: 0 | R71: -282400.8 | S71: 1040727.008
C75: Energy Efficiency Research & Compliance
B76: Supp Crv Detail_R&C_gas | E76: Conservation Supply Curves | H76: 18230703 | I76: ='Supp Crv Detail_R&C_gas'!D5 -> 13000 | J76: ='Supp Crv Detail_R&C_gas'!E5 -> 0 | K76: ='Supp Crv Detail_R&C_gas'!F5 -> 8944 | L76: ='Supp Crv Detail_R&C_gas'!G5 -> 0 | M76: ='Supp Crv Detail_R&C_gas'!H5 -> 130 | N76: ='Supp Crv Detail_R&C_gas'!I5 -> 53040 | O76: ='Supp Crv Detail_R&C_gas'!J5 -> 0 | P76: ='Supp Crv Detail_R&C_gas'!K5 -> 0 | Q76: ='Supp Crv Detail_R&C_gas'!L5 -> 0 | R76: ='Supp Crv Detail_R&C_gas'!M5 -> 0 | S76: ='Supp Crv Detail_R&C_gas'!N5 -> 75114
B77: Strat Pln Detail_R&C_Gas | E77: Strategic Planning | H77: 18230679 | I77: ='Strat Pln Detail_R&C_Gas'!D5 -> 34632 | J77: ='Strat Pln Detail_R&C_Gas'!E5 -> 0 | K77: ='Strat Pln Detail_R&C_Gas'!F5 -> 23826.816 | L77: ='Strat Pln Detail_R&C_Gas'!G5 -> 0 | M77: ='Strat Pln Detail_R&C_Gas'!H5 -> 2605 | N77: ='Strat Pln Detail_R&C_Gas'!I5 -> 20800 | O77: ='Strat Pln Detail_R&C_Gas'!J5 -> 0 | P77: ='Strat Pln Detail_R&C_Gas'!K5 -> 0 | Q77: ='Strat Pln Detail_R&C_Gas'!L5 -> 0 | R77: ='Strat Pln Detail_R&C_Gas'!M5 -> 0 | S77: ='Strat Pln Detail_R&C_Gas'!N5 -> 81863.816
B78: Mktg Rsch Detail_PS_gas | E78: Market Research | H78: 18230669 | I78: ='Mktg Rsch Detail_PS_gas'!D5 -> 20800 | J78: ='Mktg Rsch Detail_PS_gas'!E5 -> 0 | K78: ='Mktg Rsch Detail_PS_gas'!F5 -> 14310.4 | L78: ='Mktg Rsch Detail_PS_gas'!G5 -> 0 | M78: ='Mktg Rsch Detail_PS_gas'!H5 -> 0 | N78: ='Mktg Rsch Detail_PS_gas'!I5 -> 268.12 | O78: ='Mktg Rsch Detail_PS_gas'!J5 -> 0 | P78: ='Mktg Rsch Detail_PS_gas'!K5 -> 0 | Q78: ='Mktg Rsch Detail_PS_gas'!L5 -> 0 | R78: ='Mktg Rsch Detail_PS_gas'!M5 -> 0 | S78: ='Mktg Rsch Detail_PS_gas'!N5 -> 35378.52
B79: Eval Detail_R&C_Gas | E79: Program Evaluation | H79: 18230699 | I79: ='Eval Detail_R&C_Gas'!D5 -> 24544 | J79: ='Eval Detail_R&C_Gas'!E5 -> 0 | K79: ='Eval Detail_R&C_Gas'!F5 -> 22776.832 | L79: ='Eval Detail_R&C_Gas'!G5 -> 0 | M79: ='Eval Detail_R&C_Gas'!H5 -> 910 | N79: ='Eval Detail_R&C_Gas'!I5 -> 216043.75 | O79: ='Eval Detail_R&C_Gas'!J5 -> 0 | P79: ='Eval Detail_R&C_Gas'!K5 -> 0 | Q79: ='Eval Detail_R&C_Gas'!L5 -> 0 | R79: ='Eval Detail_R&C_Gas'!M5 -> 0 | S79: ='Eval Detail_R&C_Gas'!N5 -> 264274.582
G80: Total, Research & Compliance | I80: =SUM(I76:I79) -> 92976 | J80: 0 | K80: 69858.048 | L80: 0 | M80: 3645 | N80: 290151.87 | O80: =SUM(O76:O79) -> 0 | P80: 0 | Q80: =SUM(Q76:Q79) -> 0 | R80: 0 | S80: 456630.918
G84: GRAND TOTAL, GAS PROGRAMS | I84: =I80+I71+I52+I46+I39+I21 -> 1356852 | J84: 81800 | K84: 1254195.376 | L84: 557267.77 | M84: 66282 | N84: 3228906.87 | O84: 42453 | P84: 8652 | Q84: 8222057.627 | R84: -282400.8 | S84: 14536065.84 | T84: 3115728.22
G88: Budget Category Includes | H88: This is the main level of tracking expenditures and expenses in EES. Per FERC rules, all conservation order numbers start with a "1823nnnn", where "n" is some number. Cost elements apply to all order numbers (for instance, all conservation programs that | I88: Energy Efficiency program staff labor. Average FTE cost including management assessments. This Budget Category group includes assessments from Major Accounts management, Resource Planning, Corporate Communications management, IT specialists and some building maintenance allocations. | J88: Also Energy Efficiency staff labor, associated specifically with Marketing functions. Marketing allocates staffing according to program needs. | K88: Overhead--costs associated with primarily employee labor; benefits, for instance. For 2017, includes micro-overhead | L88: Service and materials associated with the cost of printing program brochures, marketing pieces, advertising, banners, etc. Also includes marketing conducted by vendors and contractors. | M88: Costs associated with EE staff attending events, employee training, conferences, business meals, business parking, ferry & bridge tolls, mileage incurred on employee automobiles, office supplies, phones, subscriptions, software/hardware, etc. | N88: Contractors and vendors, such as PECI, Ecos, CostCo, EFI, etc. Legal expenses, technical services (CMS design, PSE.com web portals, etc.). These costs do NOT include brochure development, marketing pieces, (which are classified under MARKETING). These costs do NOT include incentives paid to customers by contractors. | O88: Primarily tools, trade show equipment, etc. | P88: This category should seldomly be used, and only expenses that cannot be classified under one of the above categories. | Q88: All costs associated with rebates, grants, remuneration, value-added services that have a direct bearing on a customer's perceived value of PSE offerings. | R88: Any amount that PSE is paid by a customer, partner, municipality or outside entity.

Sheet 2019 Sector View Gas
C2: Energy Efficiency 2019 Budgets and Aggregate Program Savings
C3: Sector View | I3: Please see category descriptions at the bottom of the sector table.
C4: Natural Gas Programs
I5: Budget Category
B6: Workbook Name | C6: Schedule | D6: Comment | E6: Description (Blue, indented text indicates a sub-total value) | H6: Order Number (Click on the order# below to link to the detail page) | I6: Program Labor | J6: Marketing Labor | K6: Overhead | L6: Marketing | M6: Employee/Office Expense | N6: Outside Services | O6: Materials | P6: Miscellaneous | Q6: DBtC | R6: Revenue | S6: Total Budget | T6: Total Savings Therms
C7: Residential Energy Management
B8: LIW Detail_REM G201 Gas | C8: G201 | E8: Low Income Weatherization | H8: 18230661 | I8: ='LowIncWx Detail_REM G201 Gas'!D6 -> 7400 | J8: ='LowIncWx Detail_REM G201 Gas'!E6 -> 0 | K8: ='LowIncWx Detail_REM G201 Gas'!F6 -> 6867.2 | L8: ='LowIncWx Detail_REM G201 Gas'!G6 -> 0 | M8: ='LowIncWx Detail_REM G201 Gas'!H6 -> 0 | N8: ='LowIncWx Detail_REM G201 Gas'!I6 -> 0 | O8: ='LowIncWx Detail_REM G201 Gas'!J6 -> 0 | P8: ='LowIncWx Detail_REM G201 Gas'!K6 -> 0 | Q8: ='LowIncWx Detail_REM G201 Gas'!L6 -> 274811.868 | R8: ='LowIncWx Detail_REM G201 Gas'!M6 -> 0 | S8: ='LowIncWx Detail_REM G201 Gas'!N6 -> 289079.068 | T8: ='LowIncWx Detail_REM G201 Gas'!O6 -> 9769.97
B9: HmPrint Detail_REM G214 Gas | C9: G214 | E9: Home Energy Assessments | H9: 18230635 | I9: ='HmEnrgyAsmt Detail_REM G214 Gas'!D6 -> 0 | J9: ='HmEnrgyAsmt Detail_REM G214 Gas'!E6 -> 0 | K9: ='HmEnrgyAsmt Detail_REM G214 Gas'!F6 -> 0 | L9: ='HmEnrgyAsmt Detail_REM G214 Gas'!G6 -> 0 | M9: ='HmEnrgyAsmt Detail_REM G214 Gas'!H6 -> 0 | N9: ='HmEnrgyAsmt Detail_REM G214 Gas'!I6 -> 0 | O9: ='HmEnrgyAsmt Detail_REM G214 Gas'!J6 -> 0 | P9: ='HmEnrgyAsmt Detail_REM G214 Gas'!K6 -> 0 | Q9: ='HmEnrgyAsmt Detail_REM G214 Gas'!L6 -> 0 | R9: ='HmEnrgyAsmt Detail_REM G214 Gas'!M6 -> 0 | S9: ='HmEnrgyAsmt Detail_REM G214 Gas'!N6 -> 0 | T9: ='HmEnrgyAsmt Detail_REM G214 Gas'!O6 -> 0
B10: WtrHeat Detail_REM G214 Gas | C10: G214 | E10: SF Existing Water Heat | H10: 18230636 | I10: ='WtrHeat Detail_REM G214 Gas'!D6 -> 13600 | J10: ='WtrHeat Detail_REM G214 Gas'!E6 -> 3200 | K10: ='WtrHeat Detail_REM G214 Gas'!F6 -> 15590.4 | L10: ='WtrHeat Detail_REM G214 Gas'!G6 -> 25000 | M10: ='WtrHeat Detail_REM G214 Gas'!H6 -> 1200 | N10: ='WtrHeat Detail_REM G214 Gas'!I6 -> 0 | O10: ='WtrHeat Detail_REM G214 Gas'!J6 -> 1000 | P10: ='WtrHeat Detail_REM G214 Gas'!K6 -> 500 | Q10: ='WtrHeat Detail_REM G214 Gas'!L6 -> 227026 | R10: ='WtrHeat Detail_REM G214 Gas'!M6 -> 0 | S10: ='WtrHeat Detail_REM G214 Gas'!N6 -> 287116.4 | T10: ='WtrHeat Detail_REM G214 Gas'!O6 -> 94125.5
B11: Wx Detail_REM G214 Gas | C11: G214 | E11: SF Existing Weatherization | H11: 18230637 | I11: ='Wx Detail_REM G214 Gas'!D6 -> 24800 | J11: ='Wx Detail_REM G214 Gas'!E6 -> 11200 | K11: ='Wx Detail_REM G214 Gas'!F6 -> 33408 | L11: ='Wx Detail_REM G214 Gas'!G6 -> 37500 | M11: ='Wx Detail_REM G214 Gas'!H6 -> 1000 | N11: ='Wx Detail_REM G214 Gas'!I6 -> 224900 | O11: ='Wx Detail_REM G214 Gas'!J6 -> 100 | P11: ='Wx Detail_REM G214 Gas'!K6 -> 1000 | Q11: ='Wx Detail_REM G214 Gas'!L6 -> 2308439 | R11: ='Wx Detail_REM G214 Gas'!M6 -> 0 | S11: ='Wx Detail_REM G214 Gas'!N6 -> 2642347 | T11: ='Wx Detail_REM G214 Gas'!O6 -> 378322.5
B12: SpHeat Detail_REM G214 Gas | C12: G214 | E12: SF Existing Space Heat | H12: 18230638 | I12: ='SpHeat Detail_REM G214 Gas'!D6 -> 29600 | J12: ='SpHeat Detail_REM G214 Gas'!E6 -> 14400 | K12: ='SpHeat Detail_REM G214 Gas'!F6 -> 40832 | L12: ='SpHeat Detail_REM G214 Gas'!G6 -> 225000 | M12: ='SpHeat Detail_REM G214 Gas'!H6 -> 3000 | N12: ='SpHeat Detail_REM G214 Gas'!I6 -> 10000 | O12: ='SpHeat Detail_REM G214 Gas'!J6 -> 1000 | P12: ='SpHeat Detail_REM G214 Gas'!K6 -> 500 | Q12: ='SpHeat Detail_REM G214 Gas'!L6 -> 1917874.6 | R12: ='SpHeat Detail_REM G214 Gas'!M6 -> 0 | S12: ='SpHeat Detail_REM G214 Gas'!N6 -> 2242206.6 | T12: ='SpHeat Detail_REM G214 Gas'!O6 -> 629097.9
C13: G214 | D13: New for 2018-2019 | E13: SF Rentals Pilot | H13: 1823xxxx | I13: ='SFRental_REM_G214 Gas'!D6 -> 7200 | J13: ='SFRental_REM_G214 Gas'!E6 -> 5600 | K13: ='SFRental_REM_G214 Gas'!F6 -> 11878.4 | L13: ='SFRental_REM_G214 Gas'!G6 -> 10000 | M13: ='SFRental_REM_G214 Gas'!H6 -> 100 | N13: ='SFRental_REM_G214 Gas'!I6 -> 60000 | O13: ='SFRental_REM_G214 Gas'!J6 -> 0 | P13: ='SFRental_REM_G214 Gas'!K6 -> 0 | Q13: ='SFRental_REM_G214 Gas'!L6 -> 0 | R13: ='SFRental_REM_G214 Gas'!M6 -> 0 | S13: ='SFRental_REM_G214 Gas'!N6 -> 94778.4 | T13: ='SFRental_REM_G214 Gas'!O6 -> 0
B14: ShwrHead Detail_REM G214 Gas | C14: G214 | E14: Residential Showerheads | H14: 18230700 | I14: ='ShwrHead Detail_REM G214 Gas'!D6 -> 12080 | J14: ='ShwrHead Detail_REM G214 Gas'!E6 -> 3200 | K14: ='ShwrHead Detail_REM G214 Gas'!F6 -> 14179.84 | L14: ='ShwrHead Detail_REM G214 Gas'!G6 -> 80915 | M14: ='ShwrHead Detail_REM G214 Gas'!H6 -> 300 | N14: ='ShwrHead Detail_REM G214 Gas'!I6 -> 9435 | O14: ='ShwrHead Detail_REM G214 Gas'!J6 -> 300 | P14: ='ShwrHead Detail_REM G214 Gas'!K6 -> 300 | Q14: ='ShwrHead Detail_REM G214 Gas'!L6 -> 172751.5586 | R14: ='ShwrHead Detail_REM G214 Gas'!M6 -> 0 | S14: ='ShwrHead Detail_REM G214 Gas'!N6 -> 293461.3986 | T14: ='ShwrHead Detail_REM G214 Gas'!O6 -> 60698.6
B15: HmApplSvgs Detail_REM G214 Gas | C15: G214 | E15: Home Appliances | H15: 1823gggg | I15: ='HmApplSvgs Detail_REM G214 Gas'!D6 -> 0 | J15: ='HmApplSvgs Detail_REM G214 Gas'!E6 -> 0 | K15: ='HmApplSvgs Detail_REM G214 Gas'!F6 -> 0 | L15: ='HmApplSvgs Detail_REM G214 Gas'!G6 -> 0 | M15: ='HmApplSvgs Detail_REM G214 Gas'!H6 -> 0 | N15: ='HmApplSvgs Detail_REM G214 Gas'!I6 -> 0 | O15: ='HmApplSvgs Detail_REM G214 Gas'!J6 -> 0 | P15: ='HmApplSvgs Detail_REM G214 Gas'!K6 -> 0 | Q15: ='HmApplSvgs Detail_REM G214 Gas'!L6 -> 0 | R15: ='HmApplSvgs Detail_REM G214 Gas'!M6 -> 0 | S15: ='HmApplSvgs Detail_REM G214 Gas'!N6 -> 0 | T15: ='HmApplSvgs Detail_REM G214 Gas'!O6 -> 11791.25
B16: WebTstat Detail_REM G214 Gas | C16: G214 | E16: Web-Enabled Thermostats | H16: 18230687 | I16: ='WebTstat Detail_REM G214 Gas'!D6 -> 26800 | J16: ='WebTstat Detail_REM G214 Gas'!E6 -> 4800 | K16: ='WebTstat Detail_REM G214 Gas'!F6 -> 29324.8 | L16: ='WebTstat Detail_REM G214 Gas'!G6 -> 32000 | M16: ='WebTstat Detail_REM G214 Gas'!H6 -> 1000 | N16: ='WebTstat Detail_REM G214 Gas'!I6 -> 65000 | O16: ='WebTstat Detail_REM G214 Gas'!J6 -> 500 | P16: ='WebTstat Detail_REM G214 Gas'!K6 -> 500 | Q16: ='WebTstat Detail_REM G214 Gas'!L6 -> 487500 | R16: ='WebTstat Detail_REM G214 Gas'!M6 -> 0 | S16: ='WebTstat Detail_REM G214 Gas'!N6 -> 647424.8 | T16: ='WebTstat Detail_REM G214 Gas'!O6 -> 370500
B17: HER Detail_REM G214 gas | C17: G214 | E17: Home Energy Reports | H17: 18230738 | I17: ='HER Detail_REM G214 gas'!D6 -> 22400 | J17: ='HER Detail_REM G214 gas'!E6 -> 4000 | K17: ='HER Detail_REM G214 gas'!F6 -> 24499.2 | L17: ='HER Detail_REM G214 gas'!G6 -> 10142.77 | M17: ='HER Detail_REM G214 gas'!H6 -> 250 | N17: ='HER Detail_REM G214 gas'!I6 -> 25243 | O17: ='HER Detail_REM G214 gas'!J6 -> 100 | P17: ='HER Detail_REM G214 gas'!K6 -> 150 | Q17: ='HER Detail_REM G214 gas'!L6 -> 13900 | R17: ='HER Detail_REM G214 gas'!M6 -> 0 | S17: ='HER Detail_REM G214 gas'!N6 -> 100684.97 | T17: ='HER Detail_REM G214 gas'!O6 -> 0
B18: SFNC Detail_REM G215 Gas | C18: G215 | E18: Single Family New Construction | H18: 18230684 | I18: ='SFNC Detail_REM G215 Gas'!D6 -> 6080 | J18: ='SFNC Detail_REM G215 Gas'!E6 -> 2400 | K18: ='SFNC Detail_REM G215 Gas'!F6 -> 7869.44 | L18: ='SFNC Detail_REM G215 Gas'!G6 -> 48000 | M18: ='SFNC Detail_REM G215 Gas'!H6 -> 1500 | N18: ='SFNC Detail_REM G215 Gas'!I6 -> 0 | O18: ='SFNC Detail_REM G215 Gas'!J6 -> 1000 | P18: ='SFNC Detail_REM G215 Gas'!K6 -> 0 | Q18: ='SFNC Detail_REM G215 Gas'!L6 -> 46250 | R18: ='SFNC Detail_REM G215 Gas'!M6 -> 0 | S18: ='SFNC Detail_REM G215 Gas'!N6 -> 113099.44 | T18: ='SFNC Detail_REM G215 Gas'!O6 -> 16045
B19: MF Retr Detail_REM G217 Gas | C19: G217 | E19: Multifamily Retrofit | H19: 18230736 | I19: ='MF Retr Detail_REM G217 Gas'!D6 -> 40600 | J19: ='MF Retr Detail_REM G217 Gas'!E6 -> 14400 | K19: ='MF Retr Detail_REM G217 Gas'!F6 -> 51040 | L19: ='MF Retr Detail_REM G217 Gas'!G6 -> 3600 | M19: ='MF Retr Detail_REM G217 Gas'!H6 -> 1000 | N19: ='MF Retr Detail_REM G217 Gas'!I6 -> 165000 | O19: ='MF Retr Detail_REM G217 Gas'!J6 -> 500 | P19: ='MF Retr Detail_REM G217 Gas'!K6 -> 500 | Q19: ='MF Retr Detail_REM G217 Gas'!L6 -> 363884 | R19: ='MF Retr Detail_REM G217 Gas'!M6 -> 0 | S19: ='MF Retr Detail_REM G217 Gas'!N6 -> 640524 | T19: ='MF Retr Detail_REM G217 Gas'!O6 -> 80226.8
B20: MFNC Detail_REM G218 Gas | C20: G218 | E20: Multi-Family New Construction | H20: 18230673 | I20: ='MFNC Detail_REM G218 Gas'!D6 -> 33900 | J20: ='MFNC Detail_REM G218 Gas'!E6 -> 4000 | K20: ='MFNC Detail_REM G218 Gas'!F6 -> 35171.2 | L20: ='MFNC Detail_REM G218 Gas'!G6 -> 13000 | M20: ='MFNC Detail_REM G218 Gas'!H6 -> 1000 | N20: ='MFNC Detail_REM G218 Gas'!I6 -> 75000 | O20: ='MFNC Detail_REM G218 Gas'!J6 -> 1500 | P20: ='MFNC Detail_REM G218 Gas'!K6 -> 0 | Q20: ='MFNC Detail_REM G218 Gas'!L6 -> 286275 | R20: ='MFNC Detail_REM G218 Gas'!M6 -> 0 | S20: ='MFNC Detail_REM G218 Gas'!N6 -> 449846.2 | T20: ='MFNC Detail_REM G218 Gas'!O6 -> 55235
G21: Total, Residential Energy Management | I21: =SUM(I8:I20) -> 224460 | J21: 67200 | K21: 270660.48 | L21: 485157.77 | M21: 10350 | N21: 634578 | O21: 6000 | P21: 3450 | Q21: 6098712.027 | R21: 0 | S21: 7800568.277 | T21: 1705812.52
C25: Business Energy Management
B26: CI Retr Detail_BEM G250 Gas | C26: G250 | E26: Commercial/Industrial Retrofit | H26: 18230731 | I26: ='CI Retr Detail_BEM G250 Gas'!C6 -> 195000 | J26: ='CI Retr Detail_BEM G250 Gas'!D6 -> 8200 | K26: ='CI Retr Detail_BEM G250 Gas'!E6 -> 186600 | L26: ='CI Retr Detail_BEM G250 Gas'!F6 -> 6700 | M26: ='CI Retr Detail_BEM G250 Gas'!G6 -> 12300 | N26: ='CI Retr Detail_BEM G250 Gas'!H6 -> 40800 | O26: ='CI Retr Detail_BEM G250 Gas'!I6 -> 0 | P26: ='CI Retr Detail_BEM G250 Gas'!J6 -> 0 | Q26: ='CI Retr Detail_BEM G250 Gas'!K6 -> 1200000 | S26: ='CI Retr Detail_BEM G250 Gas'!M6 -> 1649600 | T26: ='CI Retr Detail_BEM G250 Gas'!N6 -> 425000
B27: CI NC Detail_BEM G251 Gas | C27: G251 | E27: Commercial/Industrial New Construction | H27: 18230706 | I27: ='CI NC Detail_BEM G251 Gas'!C6 -> 44000 | J27: ='CI NC Detail_BEM G251 Gas'!D6 -> 1000 | K27: ='CI NC Detail_BEM G251 Gas'!E6 -> 41520 | L27: ='CI NC Detail_BEM G251 Gas'!F6 -> 1000 | M27: ='CI NC Detail_BEM G251 Gas'!G6 -> 2000 | N27: ='CI NC Detail_BEM G251 Gas'!H6 -> 9500 | O27: ='CI NC Detail_BEM G251 Gas'!I6 -> 2000 | P27: ='CI NC Detail_BEM G251 Gas'!J6 -> 0 | Q27: ='CI NC Detail_BEM G251 Gas'!K6 -> 398440 | S27: ='CI NC Detail_BEM G251 Gas'!M6 -> 499460 | T27: ='CI NC Detail_BEM G251 Gas'!N6 -> 105000
E28: Commercial Strategic Energy Management | I28: =SUM(I29:I30) -> 184000 | J28: =SUM(J29:J30) -> 0 | K28: 170752 | L28: 2000 | M28: 5000 | N28: 10000 | O28: 2000 | P28: 5000 | Q28: 192000 | R28: 0 | S28: =SUM(S29:S30) -> 570752 | T28: 670000
B29: RCM Detail_BEM 253 Gas | C29: G253 | E29: SEM | H29: 18230691 | I29: ='RCM Detail_BEM 253 Gas'!C6 -> 169000 | J29: ='RCM Detail_BEM 253 Gas'!D6 -> 0 | K29: ='RCM Detail_BEM 253 Gas'!E6 -> 156832 | L29: ='RCM Detail_BEM 253 Gas'!F6 -> 2000 | M29: ='RCM Detail_BEM 253 Gas'!G6 -> 5000 | N29: ='RCM Detail_BEM 253 Gas'!H6 -> 5000 | O29: ='RCM Detail_BEM 253 Gas'!I6 -> 2000 | P29: ='RCM Detail_BEM 253 Gas'!J6 -> 5000 | Q29: ='RCM Detail_BEM 253 Gas'!K6 -> 192000 | S29: ='RCM Detail_BEM 253 Gas'!M6 -> 536832 | T29: ='RCM Detail_BEM 253 Gas'!N6 -> 670000
B30: ResAcctSW Detail_PSWE_Gas | E30: Resource Accounting Software | H30: 18231033 | I30: ='ResAcctSW Detail_PSWE_Gas'!D6 -> 15000 | J30: ='ResAcctSW Detail_PSWE_Gas'!E6 -> 0 | K30: ='ResAcctSW Detail_PSWE_Gas'!F6 -> 13920 | L30: ='ResAcctSW Detail_PSWE_Gas'!G6 -> 0 | M30: ='ResAcctSW Detail_PSWE_Gas'!H6 -> 0 | N30: ='ResAcctSW Detail_PSWE_Gas'!I6 -> 5000 | O30: ='ResAcctSW Detail_PSWE_Gas'!J6 -> 0 | P30: ='ResAcctSW Detail_PSWE_Gas'!K6 -> 0 | Q30: ='ResAcctSW Detail_PSWE_Gas'!L6 -> 0 | R30: ='ResAcctSW Detail_PSWE_Gas'!M6 -> 0 | S30: ='ResAcctSW Detail_PSWE_Gas'!N6 -> 33920
B31: TechEval Detail_BEM G261 Gas | C31: G261 | E31: Technology Evaluation | H31: 18230694 | I31: ='TechEval Detail_BEM G261 Gas'!C6 -> 0 | J31: ='TechEval Detail_BEM G261 Gas'!D6 -> 0 | K31: ='TechEval Detail_BEM G261 Gas'!E6 -> 0 | L31: ='TechEval Detail_BEM G261 Gas'!F6 -> 0 | M31: ='TechEval Detail_BEM G261 Gas'!G6 -> 0 | N31: ='TechEval Detail_BEM G261 Gas'!H6 -> 0 | O31: ='TechEval Detail_BEM G261 Gas'!I6 -> 0 | P31: ='TechEval Detail_BEM G261 Gas'!J6 -> 0 | Q31: ='TechEval Detail_BEM G261 Gas'!K6 -> 0 | S31: ='TechEval Detail_BEM G261 Gas'!M6 -> 0 | T31: ='TechEval Detail_BEM G261 Gas'!N6 -> 0
B32: Rebates Detail_BEM G262 Gas | C32: G262 | E32: Business Rebates | I32: =SUM(I33:I35) -> 85200 | J32: =SUM(J33:J35) -> 0 | K32: 79065.6 | L32: 15000 | M32: 5500 | N32: 24555 | O32: 1000 | P32: 0 | Q32: 356988.8 | R32: 0 | S32: 567309.4 | T32: =SUM(T33:T35) -> 140958.9
B33: Comm Kit-Laund_G262 Gas | C33: G262 | E33: Commercial Kitchen & Laundry | H33: 18231027 | I33: ='Comm Kit-Laund_G262 Gas'!D6 -> 29600 | J33: ='Comm Kit-Laund_G262 Gas'!E6 -> 0 | K33: ='Comm Kit-Laund_G262 Gas'!F6 -> 27468.8 | L33: ='Comm Kit-Laund_G262 Gas'!G6 -> 15000 | M33: ='Comm Kit-Laund_G262 Gas'!H6 -> 3500 | N33: ='Comm Kit-Laund_G262 Gas'!I6 -> 0 | O33: ='Comm Kit-Laund_G262 Gas'!J6 -> 0 | P33: ='Comm Kit-Laund_G262 Gas'!K6 -> 0 | Q33: ='Comm Kit-Laund_G262 Gas'!L6 -> 185604 | R33: ='Comm Kit-Laund_G262 Gas'!M6 -> 0 | S33: ='Comm Kit-Laund_G262 Gas'!N6 -> 261172.8 | T33: ='Comm Kit-Laund_G262 Gas'!O6 -> 85158.9
B34: Comm HVAC_G262 Gas | C34: G262 | E34: Commercial HVAC | H34: 18231029 | I34: ='Comm HVAC_G262 Gas'!D6 -> 14800 | J34: ='Comm HVAC_G262 Gas'!E6 -> 0 | K34: ='Comm HVAC_G262 Gas'!F6 -> 13734.4 | L34: ='Comm HVAC_G262 Gas'!G6 -> 0 | M34: ='Comm HVAC_G262 Gas'!H6 -> 0 | N34: ='Comm HVAC_G262 Gas'!I6 -> 0 | O34: ='Comm HVAC_G262 Gas'!J6 -> 0 | P34: ='Comm HVAC_G262 Gas'!K6 -> 0 | Q34: ='Comm HVAC_G262 Gas'!L6 -> 50000 | R34: ='Comm HVAC_G262 Gas'!M6 -> 0 | S34: ='Comm HVAC_G262 Gas'!N6 -> 78534.4 | T34: ='Comm HVAC_G262 Gas'!O6 -> 13500
E35: Business Direct Installs--Includes: | I35: =I36+I37+I38 -> 40800 | J35: =J36+J37+J38 -> 0 | K35: 37862.4 | L35: 0 | M35: 2000 | N35: 24555 | O35: 1000 | P35: 0 | Q35: 121384.8 | R35: 0 | S35: 227602.2 | T35: =T36+T37+T38 -> 42300
B36: Sm Bus DI_G262 Gas | C36: G262 | F36: Small Business Direct Install | H36: 18231022 | I36: ='Sm Bus DI_G262 Gas'!D6 -> 40800 | J36: ='Sm Bus DI_G262 Gas'!E6 -> 0 | K36: ='Sm Bus DI_G262 Gas'!F6 -> 37862.4 | L36: ='Sm Bus DI_G262 Gas'!G6 -> 0 | M36: ='Sm Bus DI_G262 Gas'!H6 -> 2000 | N36: ='Sm Bus DI_G262 Gas'!I6 -> 24555 | O36: ='Sm Bus DI_G262 Gas'!J6 -> 1000 | P36: ='Sm Bus DI_G262 Gas'!K6 -> 0 | Q36: ='Sm Bus DI_G262 Gas'!L6 -> 121384.8 | R36: ='Sm Bus DI_G262 Gas'!M6 -> 0 | S36: ='Sm Bus DI_G262 Gas'!N6 -> 227602.2 | T36: ='Sm Bus DI_G262 Gas'!O6 -> 42300
B37: Sm Agr DI_G262 Gas | C37: G262 | F37: Small Agriculture Direct Install | H37: 18230251 | I37: ='Sm Agr DI_G262 Gas'!D6 -> 0 | J37: ='Sm Agr DI_G262 Gas'!E6 -> 0 | K37: ='Sm Agr DI_G262 Gas'!F6 -> 0 | L37: ='Sm Agr DI_G262 Gas'!G6 -> 0 | M37: ='Sm Agr DI_G262 Gas'!H6 -> 0 | N37: ='Sm Agr DI_G262 Gas'!I6 -> 0 | O37: ='Sm Agr DI_G262 Gas'!J6 -> 0 | P37: ='Sm Agr DI_G262 Gas'!K6 -> 0 | Q37: ='Sm Agr DI_G262 Gas'!L6 -> 0 | R37: ='Sm Agr DI_G262 Gas'!M6 -> 0 | S37: ='Sm Agr DI_G262 Gas'!N6 -> 0 | T37: ='Sm Agr DI_G262 Gas'!O6 -> 0
B38: Lodging DI_G262_Gas | C38: G262 | F38: Lodging Direct Install | H38: 18230250 | I38: ='Lodging DI_G262_Gas'!D6 -> 0 | J38: ='Lodging DI_G262_Gas'!E6 -> 0 | K38: ='Lodging DI_G262_Gas'!F6 -> 0 | L38: ='Lodging DI_G262_Gas'!G6 -> 0 | M38: ='Lodging DI_G262_Gas'!H6 -> 0 | N38: ='Lodging DI_G262_Gas'!I6 -> 0 | O38: ='Lodging DI_G262_Gas'!J6 -> 0 | P38: ='Lodging DI_G262_Gas'!K6 -> 0 | Q38: ='Lodging DI_G262_Gas'!L6 -> 0 | R38: ='Lodging DI_G262_Gas'!M6 -> 0 | S38: ='Lodging DI_G262_Gas'!N6 -> 0 | T38: ='Lodging DI_G262_Gas'!O6 -> 0
G39: Total, Business Energy Management | I39: =SUM(I26:I28)+I31+I32 -> 508200 | J39: 9200 | K39: 477937.6 | L39: 24700 | M39: 24800 | N39: 84855 | O39: 5000 | P39: 5000 | Q39: 2147428.8 | R39: 0 | S39: 3287121.4 | T39: 1340958.9
C43: Pilots With Uncertain Savings
B44: REM Pilots Detail G249 Gas | C44: G249 | E44: Residential Pilots | H44: 18230622 | I44: ='REM Pilots Detail G249 Gas'!D6 -> 0 | J44: ='REM Pilots Detail G249 Gas'!E6 -> 0 | K44: ='REM Pilots Detail G249 Gas'!F6 -> 0 | L44: ='REM Pilots Detail G249 Gas'!G6 -> 0 | M44: ='REM Pilots Detail G249 Gas'!H6 -> 0 | N44: ='REM Pilots Detail G249 Gas'!I6 -> 0 | O44: ='REM Pilots Detail G249 Gas'!J6 -> 0 | P44: ='REM Pilots Detail G249 Gas'!K6 -> 0 | Q44: ='REM Pilots Detail G249 Gas'!L6 -> 0 | R44: ='REM Pilots Detail G249 Gas'!M6 -> 0 | S44: ='REM Pilots Detail G249 Gas'!N6 -> 0 | T44: ='REM Pilots Detail G249 Gas'!O6 -> 0
B45: BEM Pilots Detail G249 Gas | C45: G249 | E45: Commercial Pay for Performance Pilot | H45: 1823pppp | I45: ='BEM Pilots Detail G249 Gas'!D6 -> 0 | J45: ='BEM Pilots Detail G249 Gas'!E6 -> 0 | K45: ='BEM Pilots Detail G249 Gas'!F6 -> 0 | L45: ='BEM Pilots Detail G249 Gas'!G6 -> 0 | M45: ='BEM Pilots Detail G249 Gas'!H6 -> 0 | N45: ='BEM Pilots Detail G249 Gas'!I6 -> 0 | O45: ='BEM Pilots Detail G249 Gas'!J6 -> 0 | P45: ='BEM Pilots Detail G249 Gas'!K6 -> 0 | Q45: ='BEM Pilots Detail G249 Gas'!L6 -> 49688 | R45: ='BEM Pilots Detail G249 Gas'!M6 -> 0 | S45: ='BEM Pilots Detail G249 Gas'!N6 -> 49688 | T45: ='BEM Pilots Detail G249 Gas'!O6 -> 32500
G46: Total, Pilots | I46: =SUM(I44:I45) -> 0 | J46: =SUM(J44:J45) -> 0 | K46: 0 | L46: 0 | M46: 0 | N46: 0 | O46: 0 | P46: 0 | Q46: 49688 | R46: 0 | S46: 49688 | T46: =SUM(T44:T45) -> 32500
C50: Regional Efficiency Programs
E51: NW Gas Market Transformation | H51: 18230660 | I51: ='NEEA Gas MT_no Sched Gas'!D6 -> 0 | J51: ='NEEA Gas MT_no Sched Gas'!E6 -> 0 | K51: ='NEEA Gas MT_no Sched Gas'!F6 -> 0 | L51: ='NEEA Gas MT_no Sched Gas'!G6 -> 0 | M51: ='NEEA Gas MT_no Sched Gas'!H6 -> 0 | N51: ='NEEA Gas MT_no Sched Gas'!I6 -> 2434244 | O51: ='NEEA Gas MT_no Sched Gas'!J6 -> 0 | P51: ='NEEA Gas MT_no Sched Gas'!K6 -> 0 | Q51: ='NEEA Gas MT_no Sched Gas'!L6 -> 0 | S51: ='NEEA Gas MT_no Sched Gas'!N6 -> 2434244 | T51: ='NEEA Gas MT_no Sched Gas'!O6 -> 0
G52: Total, Regional Efficiency Programs | I52: =SUM(I51:I51) -> 0 | J52: 0 | K52: 0 | L52: 0 | M52: 0 | N52: 2434244 | O52: 0 | P52: 0 | Q52: 0 | S52: =SUM(S51:S51) -> 2434244 | T52: =SUM(T51:T51) -> 0
C56: Energy Efficiency Portfolio Support
